Workbook

Sheet drawing

Sheet Basic
B2: Sail Boat Design | C2: Scale 1 in | D2: 1
B3: LWL | C3: =('Hull Long'!B53-'Hull Long'!B12)/1000 -> 3.600106452 | D3: m
B4: LOA | C4: =('Hull Long'!B56-'Hull Long'!B9)/1000 -> 3.93 | D4: m
B5: BWL | C5: =('Hull Plan'!C134-'Hull Plan'!F134)/1000+2*('Hull Long'!C113-'Hull Long'!C134)/('Hull Long'!C185-'Hull Long'!C134)*('Hull Plan'!C185-'Hull Plan'!C134)/1000 -> 0.5591636364 | D5: m
B6: BOA | C6: =('Hull Plan'!C185-'Hull Plan'!F185)/1000 -> 0.65 | D6: m
B7: DWL | C7: =('Hull Long'!C113-'Hull Long'!C134)/1000 -> 0.0252 | D7: m
B8: Amidships Deadrise | C8: =DEGREES(ATAN2('Hull Plan'!C134-'Hull Plan'!C83,'Hull Long'!C134-'Hull Long'!C83)) -> 0 | D8: Degrees
B9: Amidships Depth | C9: =('Hull Long'!C287-'Hull Long'!C134)/1000 -> 0.3374 | D9: m | E9: Chine to Seat
B10: Amidships Freeboard | C10: =('Hull Long'!C185-'Hull Long'!C113)/1000 -> 0.2498 | D10: m
B11: Forward Freeboard | C11: =('Hull Long'!C162-'Hull Long'!C113)/1000 -> 0.3098 | D11: m | E11: Nominal Forward Freeboard | F11: =0.191*C3-C3*C3*0.0053 -> 0.61892827
B12: Rear Freeboard | C12: =('Hull Long'!C209-'Hull Long'!C156)/1000 -> 0.3098 | D12: m | E12: Nominal Rear Freeboard | F12: =F11/1.35 -> 0.4584653852
B13: MSA | C13: =C7*('Hull Plan'!C134-'Hull Plan'!F134+('Hull Long'!C113-'Hull Long'!C134)/('Hull Long'!C185-'Hull Long'!C134)*('Hull Plan'!C185-'Hull Plan'!C134))/1000 -> 0.01397546182 | D13: m^2
B14: Plan WL Area | C14: ='Hull Long'!L158 -> 1.462554679 | D14: m^2
B15: cp | C15: =C16/C3/C5/C7 -> 2.019004145
B16: Vol | C16: ='Hull Long'!K158/1000 -> 0.1024217081 | D16: m^3
B17: Disp | C17: =C16*1025 -> 104.9822508 | D17: kg
B18: DLR | C18: =C17/(C4/3.048)^3 -> 48.97597795
B19: Hull Speed | C19: =1.34*(C3*3.28)^0.5 -> 4.604679332 | D19: kt
B20: Pd | C20: =MAX(6.5,10*(1.3*C7+0.1*C3)) -> 6.5 | D20: KN | E20: AS4132:4.1.2(b&c) | F20: =TEXT(C14*C20/C17/9.81*1000,"0.0")&"g" -> 9.2g
B22: Bottom Plank
B23: Pd (Design Pressure) | C23: =C20*F23 -> 10.47269104 | D23: kPa | E23: Scale Up Load for 6mm Plywood | F23: 1.611183236
B24: L (Span) | C24: =2*'Hull Plan'!C134*F24 -> 275 | D24: mm | E24: Half Hull Width | F24: 0.5
B25: S (Allowable Stress) | C25: 11000 | D25: kPa | E25: F11 Plywood
B26: t (Thickness) | C26: =(C23*C24*C24/C25/2)^0.5 -> 5.999989619 | D26: mm | E26: t^2=P*L^2/2/S, ~fixed sides
B27: E (Modulus of Elasticity) | C27: =10500000 -> 10500000 | D27: kPa
B28: I (Moment of Inertia) | C28: =1000*C26^3/12 -> 17999.90657 | D28: mm^4
B29: d=P*L^4/384EI (2% max) | C29: =C23*C24^4/384/C27/C28*1000 -> 0.8252742453 | D29: mm | E29: Deflection Ratio: | F29: =C24/C29 -> 333.222564
B30: Maximum Concentrated Load | C30: =0.5*C23*C24*C24/1000000 -> 0.3959986298 | D30: kN | E30: ~0.5*Pd*L^2/1000000
B32: Side Plank
B33: Pd (Design Pressure) | C33: =C20 -> 6.5 | D33: kPa
B34: L (Span) | C34: =C9*1000 -> 337.4 | D34: mm
B35: S (Allowable Stress) | C35: 11000 | D35: kPa | E35: F11 Plywood
B36: t (Thickness) | C36: =(C33*C34*C34/C35/2)^0.5 -> 5.799498176 | D36: mm | E36: t^2=P*L^2/2/S, ~fixed sides
B37: E (Modulus of Elasticity) | C37: =10500000*80% -> 8400000 | D37: kPa
B38: I (Moment of Inertia) | C38: =1000*C36^3/12 -> 16255.11336 | D38: mm^4
B39: Lmax | C39: =80*C36/(12)^0.5 -> 133.9336733 | D39: mm
B40: d=P*L^4/384EI (2% max) | C40: =C33*C34^4/384/C37/C38*1000 -> 1.606545969 | D40: mm | E40: Deflection Ratio: | F40: =C34/C40 -> 210.015777
B41: Maximum Concentrated Load | C41: =0.5*C33*C34*C34/1000000 -> 0.36997597 | D41: kN | E41: ~0.5*Pd*L^2/1000000
B43: Hull Section Modulus | C43: SM=PsL^2/12/S, Triangular Load & Free Ends
B44: Pd (Design Pressure) | C44: =C20 -> 6.5 | D44: kPa
B45: s (Span) | C45: =C5*1000 -> 559.1636364 | D45: mm | E45: BWL
B46: L (Bulkhead Spacing) | C46: =C3*1000 -> 3600.106452 | D46: mm | E46: LWL
B47: S (Allowable Stress) | C47: 11000 | D47: kPa | E47: F11 Plywood
B48: SM (Required Section Modulus) | C48: =C44*C45*C46^2/12/C47 -> 356869.1703 | D48: mm^3
B49: Channel Model
B50: Chine Width | C50: =('Hull Plan'!C134-'Hull Plan'!F134) -> 550 | D50: mm
B51: Side Height (flange) | C51: ='Hull Long'!C287-'Hull Long'!C83 -> 337.4 | D51: mm
B52: Deck Width (lip) | C52: ='Hull Plan'!C185-'Hull Plan'!C236 -> 50 | D52: mm
B53: Thickness | C53: =C36 -> 5.799498176 | D53: mm | E53: Sides and seat thickness
B54: cy (from keel) | C54: =C51*(C51+2*C52)/(C50+2*C51+2*C52) -> 111.3970109 | D54: mm
B55: I | C55: =1/12*C50*C53^3+2/3*C53*C51^3+1/6*C52*C53^3+2*C52*C53*C51^2-(C50*C53+2*C51*C53+2*C52*C53)*C51^2*(C51+2*C52)^2/(C50+2*C51+2*C52)^2 -> 119191268.3 | D55: mm^4
B56: Rg | C56: =(C55/(C50+2*C51+2*C52)/C53)^0.5 -> 124.552329 | D56: mm | E56: Radius of gyration
B57: Slenderness Ratio | C57: =C46/C56 -> 28.90436879
B58: Z | C58: =MIN(C55/C54,C55/(C51-C54)) -> 527388.0173 | D58: mm^3
B59: Working Factor | C59: =C58/C48 -> 1.477818935 | E59: Assumes no significant keel or stringers

Sheet Hull Long
A1: Long
A5: Parameters | B5: =400*Basic!$D$2 -> 400 | C5: =1000*Basic!$D$2 -> 1000
A6: Number of Lines | B6: =COUNT(A8:A1008) -> 357 | E6: =COUNT(D8:D1008) -> 0
A7: Line Id | B7: X | C7: Z | D7: Line Id | E7: X | F7: Z | G7: KEEL
A8: 0 | B8: =0*Basic!$D$2 -> 0 | C8: =C$13+(C$9-C$13)*ABS(B$13-B8)/ABS(B$9-B$13) -> 325.7575758
A9: 1 | B9: =35*Basic!$D$2 -> 35 | C9: =260*Basic!$D$2 -> 260
A10: 1 | B10: =$B$9+($B$9-$B$13)/($C$9-$C$13)*($C10-$C$9) -> 66.93548387 | C10: =200*Basic!$D$2 -> 200
A11: 1 | B11: =$B$9+($B$9-$B$13)/($C$9-$C$13)*($C11-$C$9) -> 199.8935484 | C11: =-49.8*Basic!$D$2 -> -49.8
A12: 1 | B12: =$B$9+($B$9-$B$13)/($C$9-$C$13)*($C12-$C$9) -> 199.9467742 | C12: =-49.9*Basic!$D$2 -> -49.9
A13: 1 | B13: =200*Basic!$D$2 -> 200 | C13: =-50*Basic!$D$2 -> -50 | G13: 2
A14: 1 | B14: =250*Basic!$D$2 -> 250 | C14: =C$32+(C$13-C$32)*ABS(B$32-B14)^G$13/ABS(B$13-B$32)^G$13 -> -51.36959877
A15: 1 | B15: =300*Basic!$D$2 -> 300 | C15: =C$32+(C$13-C$32)*ABS(B$32-B15)^G$13/ABS(B$13-B$32)^G$13 -> -52.70061728
A16: 1 | B16: =400*Basic!$D$2 -> 400 | C16: -55.24691358
A17: 1 | B17: =500*Basic!$D$2 -> 500 | C17: -57.63888889
A18: 1 | B18: =600*Basic!$D$2 -> 600 | C18: -59.87654321
A19: 1 | B19: =699*Basic!$D$2 -> 699 | C19: -61.9398071
A20: 1 | B20: =701*Basic!$D$2 -> 701 | C20: -61.97993056
A21: 1 | B21: =800*Basic!$D$2 -> 800 | C21: -63.88888889
A22: 1 | B22: =900*Basic!$D$2 -> 900 | C22: -65.66358025
A23: 1 | B23: =1000*Basic!$D$2 -> 1000 | C23: -67.28395062
A24: 1 | B24: =1100*Basic!$D$2 -> 1100 | C24: -68.75
A25: 1 | B25: =1200*Basic!$D$2 -> 1200 | C25: -70.0617284
A26: 1 | B26: =1300*Basic!$D$2 -> 1300 | C26: -71.2191358
A27: 1 | B27: =1400*Basic!$D$2 -> 1400 | C27: -72.22222222
A28: 1 | B28: =1500*Basic!$D$2 -> 1500 | C28: -73.07098765
A29: 1 | B29: =1600*Basic!$D$2 -> 1600 | C29: -73.7654321
A30: 1 | B30: =1700*Basic!$D$2 -> 1700 | C30: -74.30555556
A31: 1 | B31: =1800*Basic!$D$2 -> 1800 | C31: -74.69135802
A32: 1 | B32: =2000*Basic!$D$2 -> 2000 | C32: =-75*Basic!$D$2 -> -75
A33: 1 | B33: =2000*Basic!$D$2 -> 2000 | C33: =-75*Basic!$D$2 -> -75
A34: 1 | B34: =2200*Basic!$D$2 -> 2200 | C34: =C$33+(C$52-C$33)*ABS(B$33-$B34)^G$52/ABS(B$52-B$33)^G$52 -> -74.69135802
A35: 1 | B35: =2300*Basic!$D$2 -> 2300 | C35: -74.30555556
A36: 1 | B36: =2400*Basic!$D$2 -> 2400 | C36: -73.7654321
A37: 1 | B37: =2500*Basic!$D$2 -> 2500 | C37: -73.07098765
A38: 1 | B38: =2600*Basic!$D$2 -> 2600 | C38: -72.22222222
A39: 1 | B39: =2700*Basic!$D$2 -> 2700 | C39: -71.2191358
A40: 1 | B40: =2800*Basic!$D$2 -> 2800 | C40: -70.0617284
A41: 1 | B41: =2900*Basic!$D$2 -> 2900 | C41: -68.75
A42: 1 | B42: =3000*Basic!$D$2 -> 3000 | C42: -67.28395062
A43: 1 | B43: =3100*Basic!$D$2 -> 3100 | C43: -65.66358025
A44: 1 | B44: =3200*Basic!$D$2 -> 3200 | C44: -63.88888889
A45: 1 | B45: =3299*Basic!$D$2 -> 3299 | C45: -61.97993056
A46: 1 | B46: =3301*Basic!$D$2 -> 3301 | C46: -61.9398071
A47: 1 | B47: =3400*Basic!$D$2 -> 3400 | C47: -59.87654321
A48: 1 | B48: =3500*Basic!$D$2 -> 3500 | C48: -57.63888889
A49: 1 | B49: =3600*Basic!$D$2 -> 3600 | C49: -55.24691358
A50: 1 | B50: =3700*Basic!$D$2 -> 3700 | C50: -52.70061728
A51: 1 | B51: =3750*Basic!$D$2 -> 3750 | C51: -51.36959877
A52: 1 | B52: =3800*Basic!$D$2 -> 3800 | C52: =-50*Basic!$D$2 -> -50 | G52: 2
A53: 1 | B53: =$B$52+($B$52-$B$56)/($C$52-$C$56)*($C53-$C$52) -> 3800.053226 | C53: =-49.9*Basic!$D$2 -> -49.9
A54: 1 | B54: =$B$52+($B$52-$B$56)/($C$52-$C$56)*($C54-$C$52) -> 3800.106452 | C54: =-49.8*Basic!$D$2 -> -49.8
A55: 1 | B55: =$B$52+($B$52-$B$56)/($C$52-$C$56)*($C55-$C$52) -> 3933.064516 | C55: =200*Basic!$D$2 -> 200
A56: 1 | B56: =3965*Basic!$D$2 -> 3965 | C56: =260*Basic!$D$2 -> 260
A57: 0 | B57: =4000*Basic!$D$2 -> 4000 | C57: =C$52+(C$56-C$52)*ABS(B$52-$B57)/ABS(B$56-B$52) -> 325.7575758
A58: 0 | B58: 0 | C58: 0 | G58: RABBET
A59: 0 | B59: =B8 -> 0 | C59: =C8 -> 325.7575758
A60: 0 | B60: =B9 -> 35 | C60: 260
A61: 0 | B61: 66.93548387 | C61: 200
A62: 0 | B62: 199.8935484 | C62: -49.8
A63: 0 | B63: 199.9467742 | C63: -49.9
A64: 2 | B64: 200 | C64: =C$83+(C$63-C$83)*ABS(B$83-B64)^G$64/ABS(B$63-B$83)^G$64 -> -49.90148434 | G64: 2
A65: 2 | B65: 250 | C65: -51.27648019
A66: 2 | B66: 300 | C66: -52.61274375
A67: 2 | B67: 400 | C67: -55.16907405
A68: 2 | B68: 500 | C68: -57.57047524
A69: 2 | B69: 600 | C69: -59.81694732
A70: 2 | B70: 699 | C70: -61.88834176
A71: 2 | B71: 701 | C71: -61.92862333
A72: 2 | B72: 800 | C72: -63.84510415
A73: 2 | B73: 900 | C73: -65.62678891
A74: 2 | B74: 1000 | C74: -67.25354455
A75: 2 | B75: 1100 | C75: -68.72537109
A76: 2 | B76: 1200 | C76: -70.04226851
A77: 2 | B77: 1300 | C77: -71.20423683
A78: 2 | B78: 1400 | C78: -72.21127604
A79: 2 | B79: 1500 | C79: -73.06338614
A80: 2 | B80: 1600 | C80: -73.76056713
A81: 2 | B81: 1700 | C81: -74.30281901
A82: 2 | B82: 1800 | C82: -74.69014178
A83: 2 | B83: 2000 | C83: =-75*Basic!$D$2 -> -75
A84: 2 | B84: 2000 | C84: =-75*Basic!$D$2 -> -75
A85: 2 | B85: 2200 | C85: =C$84+(C$104-C$84)*ABS(B$84-$B85)^G$104/ABS(B$104-B$84)^G$104 -> -74.69014178
A86: 2 | B86: 2300 | C86: -74.30281901
A87: 2 | B87: 2400 | C87: -73.76056713
A88: 2 | B88: 2500 | C88: -73.06338614
A89: 2 | B89: 2600 | C89: -72.21127604
A90: 2 | B90: 2700 | C90: -71.20423683
A91: 2 | B91: 2800 | C91: -70.04226851
A92: 2 | B92: 2900 | C92: -68.72537109
A93: 2 | B93: 3000 | C93: -67.25354455
A94: 2 | B94: 3100 | C94: -65.62678891
A95: 2 | B95: 3200 | C95: -63.84510415
A96: 2 | B96: 3299 | C96: -61.92862333
A97: 2 | B97: 3301 | C97: -61.88834176
A98: 2 | B98: 3400 | C98: -59.81694732
A99: 2 | B99: 3500 | C99: =C$84+(C$104-C$84)*ABS(B$84-$B99)^G$104/ABS(B$104-B$84)^G$104 -> -57.57047524
A100: 2 | B100: 3600 | C100: -55.16907405
A101: 2 | B101: 3700 | C101: -52.61274375
A102: 2 | B102: 3750 | C102: =C$84+(C$104-C$84)*ABS(B$84-$B102)^G$104/ABS(B$104-B$84)^G$104 -> -51.27648019
A103: 2 | B103: 3800 | C103: =C$84+(C$104-C$84)*ABS(B$84-$B103)^G$104/ABS(B$104-B$84)^G$104 -> -49.90148434
A104: 2 | B104: 3800.053226 | C104: =C53 -> -49.9 | G104: 2
A105: 0 | B105: 3800.106452 | C105: =C54 -> -49.8
A106: 0 | B106: 3933.064516 | C106: =C55 -> 200
A107: 0 | B107: 3965 | C107: =C56 -> 260
A108: 0 | B108: 4000 | C108: =C57 -> 325.7575758
A109: 0 | B109: 0 | C109: 0 | G109: CHINE | K109: =C113 -> -49.8
A110: 0 | B110: =B8 -> 0 | C110: =C8 -> 325.7575758 | H110: Displacement Calculations: | K110: 0 | L110: mm
A111: 0 | B111: =B9 -> 35 | C111: 260 | H111: Width | I111: Depth | J111: Length | K111: Volume | L111: Plan Area | M111: Lateral Area | N111: CLA | P111: Surface Area
A112: 0 | B112: 66.93548387 | C112: 200 | H112: =IF(2*('Hull Plan'!C112+('Hull Plan'!C163-'Hull Plan'!C112)/('Hull Long'!C163-'Hull Long'!C112)*($K$110-C112))>0,2*('Hull Plan'!C112+('Hull Plan'!C163-'Hull Plan'!C112)/('Hull Long'!C163-'Hull Long'!C112)*($K$110-C112)),0) -> 0 | I112: =IF(($K$110-C112)>0,($K$110-C112),0) -> 0 | J112: =(B112-B111) -> 31.93548387 | K112: =H112*I112*J112/1000000 -> 0 | L112: =H112*J112/1000000 -> 0 | M112: =I112*J112/1000000 -> 0 | N112: =M112*B112 -> 0 | P112: =(H112+I112*2)*J112/1000000 -> 0
A113: 3 | B113: 199.8935484 | C113: -49.8 | G113: 2 | H113: =IF(2*('Hull Plan'!C113+('Hull Plan'!C164-'Hull Plan'!C113)/('Hull Long'!C164-'Hull Long'!C113)*($K$110-C113))>0,2*('Hull Plan'!C113+('Hull Plan'!C164-'Hull Plan'!C113)/('Hull Long'!C164-'Hull Long'!C113)*($K$110-C113)),0) -> 17.26092872 | I113: 49.8 | J113: =(B113-B112) -> 132.9580645 | K113: =H113*I113*J113/1000000 -> 0.1142899878 | L113: =H113*J113/1000000 -> 0.002294979674 | M113: =I113*J113/1000000 -> 0.006621311613 | N113: =M113*B113 -> 1.323557473 | P113: 0.0155376029
A114: 3 | B114: 199.9467742 | C114: =C$134+(C$113-C$134)*ABS(B$134-B114)^G$113/ABS(B$113-B$134)^G$113 -> -49.80149021 | H114: =IF(2*('Hull Plan'!C114+('Hull Plan'!C165-'Hull Plan'!C114)/('Hull Long'!C165-'Hull Long'!C114)*($K$110-C114))>0,2*('Hull Plan'!C114+('Hull Plan'!C165-'Hull Plan'!C114)/('Hull Long'!C165-'Hull Long'!C114)*($K$110-C114)),0) -> 17.29398888 | I114: 49.80149021 | J114: =(B114-B113) -> 0.05322580645 | K114: =H114*I114*J114/1000000 -> 4.584159968e-05 | L114: =H114*J114/1000000 -> 9.204865051e-07 | M114: =I114*J114/1000000 -> 2.650724479e-06 | N114: =M114*B114 -> 0.0005300038089 | P114: 6.221935463e-06
A115: 3 | B115: 200 | C115: =C$134+(C$113-C$134)*ABS(B$134-B115)^G$113/ABS(B$113-B$134)^G$113 -> -49.80298038 | H115: =IF(2*('Hull Plan'!C115+('Hull Plan'!C166-'Hull Plan'!C115)/('Hull Long'!C166-'Hull Long'!C115)*($K$110-C115))>0,2*('Hull Plan'!C115+('Hull Plan'!C166-'Hull Plan'!C115)/('Hull Long'!C166-'Hull Long'!C115)*($K$110-C115)),0) -> 17.32704807 | I115: 49.80298038 | J115: 0.05322580645 | K115: 4.593060478e-05 | L115: =H115*J115/1000000 -> 9.222461071e-07 | M115: =I115*J115/1000000 -> 2.650803794e-06 | N115: =M115*B115 -> 0.0005301607589 | P115: 6.223853696e-06
A116: 3 | B116: 250 | C116: =C$134+(C$113-C$134)*ABS(B$134-B116)^G$113/ABS(B$113-B$134)^G$113 -> -51.18337266 | H116: =IF(2*('Hull Plan'!C116+('Hull Plan'!C167-'Hull Plan'!C116)/('Hull Long'!C167-'Hull Long'!C116)*($K$110-C116))>0,2*('Hull Plan'!C116+('Hull Plan'!C167-'Hull Plan'!C116)/('Hull Long'!C167-'Hull Long'!C116)*($K$110-C116)),0) -> 47.95215839 | I116: 51.18337266 | J116: 50 | K116: 0.1227176596 | L116: 0.002397607919 | M116: 0.002559168633 | N116: 0.6397921582 | P116: 0.007515945185
A117: 3 | B117: 300 | C117: -52.52488065 | H117: =IF(2*('Hull Plan'!C117+('Hull Plan'!C168-'Hull Plan'!C117)/('Hull Long'!C168-'Hull Long'!C117)*($K$110-C117))>0,2*('Hull Plan'!C117+('Hull Plan'!C168-'Hull Plan'!C117)/('Hull Long'!C168-'Hull Long'!C117)*($K$110-C117)),0) -> 77.71720708 | I117: 52.52488065 | J117: 50 | K117: 0.2041043513 | L117: 0.003885860354 | M117: 0.002626244032 | N117: 0.7878732097 | P117: 0.009138348419
A118: 3 | B118: 400 | C118: -55.09124376 | H118: =IF(2*('Hull Plan'!C118+('Hull Plan'!C169-'Hull Plan'!C118)/('Hull Long'!C169-'Hull Long'!C118)*($K$110-C118))>0,2*('Hull Plan'!C118+('Hull Plan'!C169-'Hull Plan'!C118)/('Hull Long'!C169-'Hull Long'!C118)*($K$110-C118)),0) -> 134.6671088 | I118: 55.09124376 | J118: 100 | K118: 0.7418978518 | L118: 0.01346671088 | M118: 0.005509124376 | N118: 2.20364975 | P118: 0.02448495963
A119: 3 | B119: 500 | C119: -57.50206971 | H119: =IF(2*('Hull Plan'!C119+('Hull Plan'!C170-'Hull Plan'!C119)/('Hull Long'!C170-'Hull Long'!C119)*($K$110-C119))>0,2*('Hull Plan'!C119+('Hull Plan'!C170-'Hull Plan'!C119)/('Hull Long'!C170-'Hull Long'!C119)*($K$110-C119)),0) -> 188.1766189 | I119: 57.50206971 | J119: 100 | K119: 1.082054506 | L119: 0.01881766189 | M119: 0.005750206971 | N119: =M119*B119 -> 2.875103485 | P119: 0.03031807584
A120: 3 | B120: 600 | C120: -59.7573585 | H120: =IF(2*('Hull Plan'!C120+('Hull Plan'!C171-'Hull Plan'!C120)/('Hull Long'!C171-'Hull Long'!C120)*($K$110-C120))>0,2*('Hull Plan'!C120+('Hull Plan'!C171-'Hull Plan'!C120)/('Hull Long'!C171-'Hull Long'!C120)*($K$110-C120)),0) -> 238.2454196 | I120: 59.7573585 | J120: 100 | K120: 1.423691695 | L120: 0.02382454196 | M120: 0.00597573585 | N120: 3.58544151 | P120: 0.03577601366
A121: 3 | B121: 699 | C121: -61.83688253 | H121: =IF(2*('Hull Plan'!C121+('Hull Plan'!C172-'Hull Plan'!C121)/('Hull Long'!C172-'Hull Long'!C121)*($K$110-C121))>0,2*('Hull Plan'!C121+('Hull Plan'!C172-'Hull Plan'!C121)/('Hull Long'!C172-'Hull Long'!C121)*($K$110-C121)),0) -> 284.4237661 | I121: 61.83688253 | J121: 99 | K121: 1.741200022 | L121: 0.02815795284 | M121: 0.00612185137 | N121: 4.279174108 | P121: 0.04040165558
A122: 3 | B122: 701 | C122: -61.87732219 | H122: =IF(2*('Hull Plan'!C122+('Hull Plan'!C173-'Hull Plan'!C122)/('Hull Long'!C173-'Hull Long'!C122)*($K$110-C122))>0,2*('Hull Plan'!C122+('Hull Plan'!C173-'Hull Plan'!C122)/('Hull Long'!C173-'Hull Long'!C122)*($K$110-C122)),0) -> 285.3219013 | I122: 61.87732219 | J122: 2 | K122: 0.03530991043 | L122: 0.0005706438027 | M122: 0.0001237546444 | N122: 0.08675200571 | P122: 0.0008181530914
A123: 3 | B123: 800 | C123: -63.80132461 | H123: =IF(2*('Hull Plan'!C123+('Hull Plan'!C174-'Hull Plan'!C123)/('Hull Long'!C174-'Hull Long'!C123)*($K$110-C123))>0,2*('Hull Plan'!C123+('Hull Plan'!C174-'Hull Plan'!C123)/('Hull Long'!C174-'Hull Long'!C123)*($K$110-C123)),0) -> 328.0586819 | I123: 63.80132461 | J123: 99 | K123: 2.072127267 | L123: =H123*J123/1000000 -> 0.03247780951 | M123: 0.006316331137 | N123: 5.053064909 | P123: 0.04511047178
A124: 3 | B124: 900 | C124: -65.59000193 | H124: =IF(2*('Hull Plan'!C124+('Hull Plan'!C175-'Hull Plan'!C124)/('Hull Long'!C175-'Hull Long'!C124)*($K$110-C124))>0,2*('Hull Plan'!C124+('Hull Plan'!C175-'Hull Plan'!C124)/('Hull Long'!C175-'Hull Long'!C124)*($K$110-C124)),0) -> 367.8015597 | I124: 65.59000193 | J124: 100 | K124: 2.412410501 | L124: 0.03678015597 | M124: 0.006559000193 | N124: 5.903100174 | P124: 0.04989815636
A125: 3 | B125: 1000 | C125: -67.22314209 | H125: =IF(2*('Hull Plan'!C125+('Hull Plan'!C176-'Hull Plan'!C125)/('Hull Long'!C176-'Hull Long'!C125)*($K$110-C125))>0,2*('Hull Plan'!C125+('Hull Plan'!C176-'Hull Plan'!C125)/('Hull Long'!C176-'Hull Long'!C125)*($K$110-C125)),0) -> 404.1005557 | I125: 67.22314209 | J125: 100 | K125: 2.716490908 | L125: 0.04041005557 | M125: 0.006722314209 | N125: 6.722314209 | P125: 0.05385468399
A126: 3 | B126: 1100 | C126: -68.7007451 | H126: =IF(2*('Hull Plan'!C126+('Hull Plan'!C177-'Hull Plan'!C126)/('Hull Long'!C177-'Hull Long'!C126)*($K$110-C126))>0,2*('Hull Plan'!C126+('Hull Plan'!C177-'Hull Plan'!C126)/('Hull Long'!C177-'Hull Long'!C126)*($K$110-C126)),0) -> 436.9543885 | I126: 68.7007451 | J126: 100 | K126: 3.001909206 | L126: 0.04369543885 | M126: 0.00687007451 | N126: 7.55708196 | P126: 0.05743558787
A127: 3 | B127: 1200 | C127: -70.02281094 | H127: =IF(2*('Hull Plan'!C127+('Hull Plan'!C178-'Hull Plan'!C127)/('Hull Long'!C178-'Hull Long'!C127)*($K$110-C127))>0,2*('Hull Plan'!C127+('Hull Plan'!C178-'Hull Plan'!C127)/('Hull Long'!C178-'Hull Long'!C127)*($K$110-C127)),0) -> 466.3615748 | I127: 70.02281094 | J127: 100 | K127: 3.265594838 | L127: 0.04663615748 | M127: 0.007002281094 | N127: 8.402737313 | P127: 0.06064071967
A128: 3 | B128: 1300 | C128: -71.18933963 | H128: =IF(2*('Hull Plan'!C128+('Hull Plan'!C179-'Hull Plan'!C128)/('Hull Long'!C179-'Hull Long'!C128)*($K$110-C128))>0,2*('Hull Plan'!C128+('Hull Plan'!C179-'Hull Plan'!C128)/('Hull Long'!C179-'Hull Long'!C128)*($K$110-C128)),0) -> 492.3204221 | I128: 71.18933963 | J128: 100 | K128: 3.504796573 | L128: 0.04923204221 | M128: 0.007118933963 | N128: 9.254614151 | P128: 0.06346991013
A129: 3 | B129: 1400 | C129: -72.20033115 | H129: =IF(2*('Hull Plan'!C129+('Hull Plan'!C180-'Hull Plan'!C129)/('Hull Long'!C180-'Hull Long'!C129)*($K$110-C129))>0,2*('Hull Plan'!C129+('Hull Plan'!C180-'Hull Plan'!C129)/('Hull Long'!C180-'Hull Long'!C129)*($K$110-C129)),0) -> 514.8290153 | I129: 72.20033115 | J129: 100 | K129: 3.717082539 | L129: 0.05148290153 | M129: 0.007220033115 | N129: 10.10804636 | P129: 0.06592296776
A130: 3 | B130: 1500 | C130: -73.05578552 | H130: =IF(2*('Hull Plan'!C130+('Hull Plan'!C181-'Hull Plan'!C130)/('Hull Long'!C181-'Hull Long'!C130)*($K$110-C130))>0,2*('Hull Plan'!C130+('Hull Plan'!C181-'Hull Plan'!C130)/('Hull Long'!C181-'Hull Long'!C130)*($K$110-C130)),0) -> 533.8851925 | I130: 73.05578552 | J130: 100 | K130: 3.900340211 | L130: 0.05338851925 | M130: 0.007305578552 | N130: 10.95836783 | P130: 0.06799967635
A131: 3 | B131: 1600 | C131: -73.75570273 | H131: =IF(2*('Hull Plan'!C131+('Hull Plan'!C182-'Hull Plan'!C131)/('Hull Long'!C182-'Hull Long'!C131)*($K$110-C131))>0,2*('Hull Plan'!C131+('Hull Plan'!C182-'Hull Plan'!C131)/('Hull Long'!C182-'Hull Long'!C131)*($K$110-C131)),0) -> 549.4864981 | I131: 73.75570273 | J131: 100 | K131: 4.052776281 | L131: 0.05494864981 | M131: 0.007375570273 | N131: 11.80091244 | P131: 0.06969979036
A132: 3 | B132: 1700 | C132: -74.30008279 | H132: =IF(2*('Hull Plan'!C132+('Hull Plan'!C183-'Hull Plan'!C132)/('Hull Long'!C183-'Hull Long'!C132)*($K$110-C132))>0,2*('Hull Plan'!C132+('Hull Plan'!C183-'Hull Plan'!C132)/('Hull Long'!C183-'Hull Long'!C132)*($K$110-C132)),0) -> 561.6300917 | I132: 74.30008279 | J132: 100 | K132: 4.172916231 | L132: 0.05616300917 | M132: 0.007430008279 | N132: 12.63101407 | P132: 0.07102302573
A133: 3 | B133: 1800 | C133: -74.68892568 | H133: =IF(2*('Hull Plan'!C133+('Hull Plan'!C184-'Hull Plan'!C133)/('Hull Long'!C184-'Hull Long'!C133)*($K$110-C133))>0,2*('Hull Plan'!C133+('Hull Plan'!C184-'Hull Plan'!C133)/('Hull Long'!C184-'Hull Long'!C133)*($K$110-C133)),0) -> 570.3125506 | I133: 74.68892568 | J133: 100 | K133: 4.259603171 | L133: 0.05703125506 | M133: 0.007468892568 | N133: 13.44400662 | P133: 0.0719690402
A134: 3 | B134: 2000 | C134: =-75*Basic!$D$2 -> -75 | H134: =IF(2*('Hull Plan'!C134+('Hull Plan'!C185-'Hull Plan'!C134)/('Hull Long'!C185-'Hull Long'!C134)*($K$110-C134))>0,2*('Hull Plan'!C134+('Hull Plan'!C185-'Hull Plan'!C134)/('Hull Long'!C185-'Hull Long'!C134)*($K$110-C134)),0) -> 577.2727273 | I134: 75 | J134: =(B134-B133) -> 200 | K134: =H134*I134*J134/1000000 -> 8.659090909 | L134: =H134*J134/1000000 -> 0.1154545455 | M134: =I134*J134/1000000 -> 0.015 | N134: =M134*B134 -> 30 | P134: =(H134+I134*2)*J134/1000000 -> 0.1454545455
A135: 3 | B135: 2000 | C135: =-75*Basic!$D$2 -> -75 | H135: =IF(2*('Hull Plan'!C135+('Hull Plan'!C186-'Hull Plan'!C135)/('Hull Long'!C186-'Hull Long'!C135)*($K$110-C135))>0,2*('Hull Plan'!C135+('Hull Plan'!C186-'Hull Plan'!C135)/('Hull Long'!C186-'Hull Long'!C135)*($K$110-C135)),0) -> 577.2727273 | I135: 75 | J135: =(B136-B135) -> 200 | K135: 8.659090909 | L135: 0.1154545455 | M135: 0.015 | N135: 30 | P135: =(H135+I135*2)*J135/1000000 -> 0.1454545455
A136: 3 | B136: 2200 | C136: =C$135+(C$156-C$135)*ABS(B$135-$B136)^G$156/ABS(B$156-B$135)^G$156 -> -74.68892568 | H136: =IF(2*('Hull Plan'!C136+('Hull Plan'!C187-'Hull Plan'!C136)/('Hull Long'!C187-'Hull Long'!C136)*($K$110-C136))>0,2*('Hull Plan'!C136+('Hull Plan'!C187-'Hull Plan'!C136)/('Hull Long'!C187-'Hull Long'!C136)*($K$110-C136)),0) -> 570.3547713 | I136: 74.68892568 | J136: =(B137-B136) -> 100 | K136: 4.259918513 | L136: 0.05703547713 | M136: 0.007468892568 | N136: 16.43156365 | P136: 0.07197326227
A137: 3 | B137: 2300 | C137: -74.30008279 | H137: =IF(2*('Hull Plan'!C137+('Hull Plan'!C188-'Hull Plan'!C137)/('Hull Long'!C188-'Hull Long'!C137)*($K$110-C137))>0,2*('Hull Plan'!C137+('Hull Plan'!C188-'Hull Plan'!C137)/('Hull Long'!C188-'Hull Long'!C137)*($K$110-C137)),0) -> 561.7075571 | I137: 74.30008279 | J137: 100 | K137: 4.173491799 | L137: 0.05617075571 | M137: 0.007430008279 | N137: 17.08901904 | P137: 0.07103077226
A138: 3 | B138: 2400 | C138: -73.75570273 | H138: =IF(2*('Hull Plan'!C138+('Hull Plan'!C189-'Hull Plan'!C138)/('Hull Long'!C189-'Hull Long'!C138)*($K$110-C138))>0,2*('Hull Plan'!C138+('Hull Plan'!C189-'Hull Plan'!C138)/('Hull Long'!C189-'Hull Long'!C138)*($K$110-C138)),0) -> 549.6018857 | I138: 73.75570273 | J138: 100 | K138: 4.053627331 | L138: 0.05496018857 | M138: 0.007375570273 | N138: 17.70136866 | P138: 0.06971132912
A139: 3 | B139: 2500 | C139: -73.05578552 | H139: =IF(2*('Hull Plan'!C139+('Hull Plan'!C190-'Hull Plan'!C139)/('Hull Long'!C190-'Hull Long'!C139)*($K$110-C139))>0,2*('Hull Plan'!C139+('Hull Plan'!C190-'Hull Plan'!C139)/('Hull Long'!C190-'Hull Long'!C139)*($K$110-C139)),0) -> 534.0381816 | I139: 73.05578552 | J139: 100 | K139: 3.901457886 | L139: 0.05340381816 | M139: 0.007305578552 | N139: 18.26394638 | P139: 0.06801497527
A140: 3 | B140: 2600 | C140: -72.20033115 | H140: =IF(2*('Hull Plan'!C140+('Hull Plan'!C191-'Hull Plan'!C140)/('Hull Long'!C191-'Hull Long'!C140)*($K$110-C140))>0,2*('Hull Plan'!C140+('Hull Plan'!C191-'Hull Plan'!C140)/('Hull Long'!C191-'Hull Long'!C140)*($K$110-C140)),0) -> 515.0169843 | I140: 72.20033115 | J140: 100 | K140: 3.718439681 | L140: 0.05150169843 | M140: 0.007220033115 | N140: 18.7720861 | P140: 0.06594176466
A141: 3 | B141: 2700 | C141: -71.18933963 | H141: =IF(2*('Hull Plan'!C141+('Hull Plan'!C192-'Hull Plan'!C141)/('Hull Long'!C192-'Hull Long'!C141)*($K$110-C141))>0,2*('Hull Plan'!C141+('Hull Plan'!C192-'Hull Plan'!C141)/('Hull Long'!C192-'Hull Long'!C141)*($K$110-C141)),0) -> 492.5389437 | I141: 71.18933963 | J141: 100 | K141: 3.506352214 | L141: 0.04925389437 | M141: 0.007118933963 | N141: 19.2211217 | P141: 0.06349176229
A142: 3 | B142: 2800 | C142: -70.02281094 | H142: =IF(2*('Hull Plan'!C142+('Hull Plan'!C193-'Hull Plan'!C142)/('Hull Long'!C193-'Hull Long'!C142)*($K$110-C142))>0,2*('Hull Plan'!C142+('Hull Plan'!C193-'Hull Plan'!C142)/('Hull Long'!C193-'Hull Long'!C142)*($K$110-C142)),0) -> 466.6048155 | I142: 70.02281094 | J142: 100 | K142: 3.267298078 | L142: 0.04666048155 | M142: 0.007002281094 | N142: 19.60638706 | P142: 0.06066504374
A143: 3 | B143: 2900 | C143: -68.7007451 | H143: =IF(2*('Hull Plan'!C143+('Hull Plan'!C194-'Hull Plan'!C143)/('Hull Long'!C194-'Hull Long'!C143)*($K$110-C143))>0,2*('Hull Plan'!C143+('Hull Plan'!C194-'Hull Plan'!C143)/('Hull Long'!C194-'Hull Long'!C143)*($K$110-C143)),0) -> 437.2154545 | I143: 68.7007451 | J143: 100 | K143: 3.003702749 | L143: 0.04372154545 | M143: 0.00687007451 | N143: 19.92321608 | P143: 0.05746169447
A144: 3 | B144: 3000 | C144: -67.22314209 | H144: =IF(2*('Hull Plan'!C144+('Hull Plan'!C195-'Hull Plan'!C144)/('Hull Long'!C195-'Hull Long'!C144)*($K$110-C144))>0,2*('Hull Plan'!C144+('Hull Plan'!C195-'Hull Plan'!C144)/('Hull Long'!C195-'Hull Long'!C144)*($K$110-C144)),0) -> 404.3718081 | I144: 67.22314209 | J144: 100 | K144: 2.718314352 | L144: 0.04043718081 | M144: 0.006722314209 | N144: 20.16694263 | P144: 0.05388180923
A145: 3 | B145: 3100 | C145: -65.59000193 | H145: =IF(2*('Hull Plan'!C145+('Hull Plan'!C196-'Hull Plan'!C145)/('Hull Long'!C196-'Hull Long'!C145)*($K$110-C145))>0,2*('Hull Plan'!C145+('Hull Plan'!C196-'Hull Plan'!C145)/('Hull Long'!C196-'Hull Long'!C145)*($K$110-C145)),0) -> 368.0749091 | I145: 65.59000193 | J145: 100 | K145: 2.4142034 | L145: 0.03680749091 | M145: 0.006559000193 | N145: 20.3329006 | P145: 0.0499254913
A146: 3 | B146: 3200 | C146: -63.80132461 | H146: =IF(2*('Hull Plan'!C146+('Hull Plan'!C197-'Hull Plan'!C146)/('Hull Long'!C197-'Hull Long'!C146)*($K$110-C146))>0,2*('Hull Plan'!C146+('Hull Plan'!C197-'Hull Plan'!C146)/('Hull Long'!C197-'Hull Long'!C146)*($K$110-C146)),0) -> 328.3258677 | I146: 63.80132461 | J146: 99 | K146: 2.073814901 | L146: 0.0325042609 | M146: 0.006316331137 | N146: 20.21225964 | P146: 0.04513692318
A147: 3 | B147: 3299 | C147: -61.87732219 | H147: =IF(2*('Hull Plan'!C147+('Hull Plan'!C198-'Hull Plan'!C147)/('Hull Long'!C198-'Hull Long'!C147)*($K$110-C147))>0,2*('Hull Plan'!C147+('Hull Plan'!C198-'Hull Plan'!C147)/('Hull Long'!C198-'Hull Long'!C147)*($K$110-C147)),0) -> 285.5749416 | I147: 61.87732219 | J147: 2 | K147: 0.03534122534 | L147: 0.0005711498832 | M147: 0.0001237546444 | N147: 0.4082665718 | P147: 0.000818659172
A148: 3 | B148: 3301 | C148: -61.83688253 | H148: =IF(2*('Hull Plan'!C148+('Hull Plan'!C199-'Hull Plan'!C148)/('Hull Long'!C199-'Hull Long'!C148)*($K$110-C148))>0,2*('Hull Plan'!C148+('Hull Plan'!C199-'Hull Plan'!C148)/('Hull Long'!C199-'Hull Long'!C148)*($K$110-C148)),0) -> 284.6764401 | I148: 61.83688253 | J148: 99 | K148: 1.742746855 | L148: 0.02818296757 | M148: 0.00612185137 | N148: 20.20823137 | P148: 0.04042667031
A149: 3 | B149: 3400 | C149: -59.7573585 | H149: =IF(2*('Hull Plan'!C149+('Hull Plan'!C200-'Hull Plan'!C149)/('Hull Long'!C200-'Hull Long'!C149)*($K$110-C149))>0,2*('Hull Plan'!C149+('Hull Plan'!C200-'Hull Plan'!C149)/('Hull Long'!C200-'Hull Long'!C149)*($K$110-C149)),0) -> 238.4761364 | I149: 59.7573585 | J149: 100 | K149: 1.425070397 | L149: 0.02384761364 | M149: 0.00597573585 | N149: 20.31750189 | P149: 0.03579908534
A150: 3 | B150: 3500 | C150: -57.50206971 | H150: =IF(2*('Hull Plan'!C150+('Hull Plan'!C201-'Hull Plan'!C150)/('Hull Long'!C201-'Hull Long'!C150)*($K$110-C150))>0,2*('Hull Plan'!C150+('Hull Plan'!C201-'Hull Plan'!C150)/('Hull Long'!C201-'Hull Long'!C150)*($K$110-C150)),0) -> 188.3779794 | I150: 57.50206971 | J150: 100 | K150: 1.08321237 | L150: 0.01883779794 | M150: 0.005750206971 | N150: 20.1257244 | P150: 0.03033821188
A151: 3 | B151: 3600 | C151: -55.09124376 | H151: =IF(2*('Hull Plan'!C151+('Hull Plan'!C202-'Hull Plan'!C151)/('Hull Long'!C202-'Hull Long'!C151)*($K$110-C151))>0,2*('Hull Plan'!C151+('Hull Plan'!C202-'Hull Plan'!C151)/('Hull Long'!C202-'Hull Long'!C151)*($K$110-C151)),0) -> 134.8327286 | I151: 55.09124376 | J151: 100 | K151: 0.7428102718 | L151: 0.01348327286 | M151: 0.005509124376 | N151: 19.83284775 | P151: 0.02450152161
A152: 3 | B152: 3700 | C152: -52.52488065 | H152: =IF(2*('Hull Plan'!C152+('Hull Plan'!C203-'Hull Plan'!C152)/('Hull Long'!C203-'Hull Long'!C152)*($K$110-C152))>0,2*('Hull Plan'!C152+('Hull Plan'!C203-'Hull Plan'!C152)/('Hull Long'!C203-'Hull Long'!C152)*($K$110-C152)),0) -> 77.84175521 | I152: 52.52488065 | J152: 50 | K152: 0.2044314451 | L152: 0.003892087761 | M152: 0.002626244032 | N152: 9.71710292 | P152: 0.009144575825
A153: 3 | B153: 3750 | C153: -51.18337266 | H153: =IF(2*('Hull Plan'!C153+('Hull Plan'!C204-'Hull Plan'!C153)/('Hull Long'!C204-'Hull Long'!C153)*($K$110-C153))>0,2*('Hull Plan'!C153+('Hull Plan'!C204-'Hull Plan'!C153)/('Hull Long'!C204-'Hull Long'!C153)*($K$110-C153)),0) -> 48.05455848 | I153: 51.18337266 | J153: 50 | K153: 0.1229797187 | L153: 0.002402727924 | M153: 0.002559168633 | N153: 9.596882374 | P153: 0.00752106519
A154: 3 | B154: 3800 | C154: =C$135+(C$156-C$135)*ABS(B$135-$B154)^G$156/ABS(B$156-B$135)^G$156 -> -49.80298038 | H154: =IF(2*('Hull Plan'!C154+('Hull Plan'!C205-'Hull Plan'!C154)/('Hull Long'!C205-'Hull Long'!C154)*($K$110-C154))>0,2*('Hull Plan'!C154+('Hull Plan'!C205-'Hull Plan'!C154)/('Hull Long'!C205-'Hull Long'!C154)*($K$110-C154)),0) -> 17.40645683 | I154: 49.80298038 | J154: 0.05322580645 | K154: 4.61411018e-05 | L154: 9.26472702e-07 | M154: 2.650803794e-06 | N154: 0.01007305442 | P154: 6.228080291e-06
A155: 3 | B155: 3800.053226 | C155: =C$135+(C$156-C$135)*ABS(B$135-$B155)^G$156/ABS(B$156-B$135)^G$156 -> -49.80149021 | H155: =IF(2*('Hull Plan'!C155+('Hull Plan'!C206-'Hull Plan'!C155)/('Hull Long'!C206-'Hull Long'!C155)*($K$110-C155))>0,2*('Hull Plan'!C155+('Hull Plan'!C206-'Hull Plan'!C155)/('Hull Long'!C206-'Hull Long'!C155)*($K$110-C155)),0) -> 17.37337278 | I155: 49.80149021 | J155: 0.05322580645 | K155: 4.605202451e-05 | L155: 9.247117769e-07 | M155: 2.650724479e-06 | N155: 0.01007289411 | P155: 6.226160735e-06
A156: 3 | B156: 3800.106452 | C156: =C54 -> -49.8 | G156: 2 | H156: =IF(2*('Hull Plan'!C156+('Hull Plan'!C207-'Hull Plan'!C156)/('Hull Long'!C207-'Hull Long'!C156)*($K$110-C156))>0,2*('Hull Plan'!C156+('Hull Plan'!C207-'Hull Plan'!C156)/('Hull Long'!C207-'Hull Long'!C156)*($K$110-C156)),0) -> 17.34028776 | I156: 49.8 | J156: =(B157-B156) -> 132.9580645 | K156: 0.1148154487 | L156: 0.002305531098 | M156: 0.006621311613 | N156: 25.16168898 | P156: 0.01554815432
A157: 0 | B157: 3933.064516 | C157: =C55 -> 200 | H157: =IF(2*('Hull Plan'!C157+('Hull Plan'!C208-'Hull Plan'!C157)/('Hull Long'!C208-'Hull Long'!C157)*($K$110-C157))>0,2*('Hull Plan'!C157+('Hull Plan'!C208-'Hull Plan'!C157)/('Hull Long'!C208-'Hull Long'!C157)*($K$110-C157)),0) -> 0 | I157: 0 | J157: =(B158-B157) -> 31.93548387 | K157: =H157*I157*J157/1000000 -> 0 | L157: =H157*J157/1000000 -> 0 | M157: =I157*J157/1000000 -> 0 | N157: =M157*B157 -> 0 | P157: 0
A158: 0 | B158: 3965 | C158: =C56 -> 260 | J158: =SUM(J112:J157) -> 3930 | K158: =SUM(K112:K157) -> 102.4217081 | L158: =SUM(L112:L157) -> 1.462554679 | M158: =SUM(M112:M157) -> 0.2553634338 | N158: =SUM(N112:N157)/M158 -> 2000 | P158: =SUM(P112:P157) -> 1.973281547
A159: 0 | B159: 4000 | C159: =C57 -> 325.7575758
A160: 0 | B160: 0 | C160: 0 | G160: SHEER
A161: 0 | B161: =B8 -> 0 | C161: =C8 -> 325.7575758
A162: 5 | B162: =B9 -> 35 | C162: 260 | G162: 2
A163: 5 | B163: 66.93548387 | C163: =C$185+(C$162-C$185)*ABS(B$185-B163)^G$162/ABS(B$162-B$185)^G$162 -> 258.0655894
A164: 5 | B164: 199.8935484 | C164: =C$185+(C$162-C$185)*ABS(B$185-B164)^G$162/ABS(B$162-B$185)^G$162 -> 250.3526716
A165: 5 | B165: 199.9467742 | C165: =C$185+(C$162-C$185)*ABS(B$185-B165)^G$162/ABS(B$162-B$185)^G$162 -> 250.3496939
A166: 5 | B166: 200 | C166: =C$185+(C$162-C$185)*ABS(B$185-B166)^G$162/ABS(B$162-B$185)^G$162 -> 250.3467164
A167: 5 | B167: 250 | C167: 247.5885244
A168: 5 | B168: 300 | C168: 244.9080279
A169: 5 | B169: 400 | C169: 239.7801216
A170: 5 | B170: 500 | C170: 234.9629975
A171: 5 | B171: 600 | C171: 230.4566556
A172: 5 | B172: 699 | C172: 226.3015131
A173: 5 | B173: 701 | C173: 226.2207097
A174: 5 | B174: 800 | C174: 222.3763184
A175: 5 | B175: 900 | C175: 218.8023231
A176: 5 | B176: 1000 | C176: 215.53911
A177: 5 | B177: 1100 | C177: 212.5866791
A178: 5 | B178: 1200 | C178: 209.9450304
A179: 5 | B179: 1300 | C179: 207.6141639
A180: 5 | B180: 1400 | C180: 205.5940796
A181: 5 | B181: 1500 | C181: 203.8847775
A182: 5 | B182: 1600 | C182: 202.4862576
A183: 5 | B183: 1700 | C183: 201.3985199
A184: 5 | B184: 1800 | C184: 200.6215644
A185: 5 | B185: 2000 | C185: =200*Basic!$D$2 -> 200
A186: 5 | B186: 2000 | C186: =200*Basic!$D$2 -> 200
A187: 5 | B187: 2200 | C187: =C$186+(C$209-C$186)*ABS(B$186-$B187)^G$209/ABS(B$209-B$186)^G$209 -> 200.6215644
A188: 5 | B188: 2300 | C188: 201.3985199
A189: 5 | B189: 2400 | C189: 202.4862576
A190: 5 | B190: 2500 | C190: 203.8847775
A191: 5 | B191: 2600 | C191: 205.5940796
A192: 5 | B192: 2700 | C192: 207.6141639
A193: 5 | B193: 2800 | C193: 209.9450304
A194: 5 | B194: 2900 | C194: 212.5866791
A195: 5 | B195: 3000 | C195: 215.53911
A196: 5 | B196: 3100 | C196: 218.8023231
A197: 5 | B197: 3200 | C197: 222.3763184
A198: 5 | B198: 3299 | C198: 226.2207097
A199: 5 | B199: 3301 | C199: 226.3015131
A200: 5 | B200: 3400 | C200: 230.4566556
A201: 5 | B201: 3500 | C201: 234.9629975
A202: 5 | B202: 3600 | C202: 239.7801216
A203: 5 | B203: 3700 | C203: 244.9080279
... 161 more rows

Sheet Hull Plan
A1: Plan
A5: Parameters | B5: =400*Basic!$D$2 -> 400 | C5: =1000*Basic!$D$2 -> 1000
A6: Number of Lines | B6: =COUNT(A8:A1061) -> 357 | E6: =COUNT(D8:D1061) -> 357
A7: Line Id | B7: X | C7: Y | D7: Line Id | E7: X | F7: Y
A8: 0 | B8: ='Hull Long'!B8 -> 0 | C8: =0*Basic!$D$2 -> 0 | D8: 0 | E8: =B8 -> 0 | F8: =0*Basic!$D$2 -> 0 | G8: KEEL
A9: 1 | B9: ='Hull Long'!B9 -> 35 | C9: =0*Basic!$D$2 -> 0 | D9: 1 | E9: =B9 -> 35 | F9: =0*Basic!$D$2 -> 0 | G9: Sheer
A10: 1 | B10: ='Hull Long'!B10 -> 66.93548387 | C10: =0*Basic!$D$2 -> 0 | D10: 1 | E10: 66.93548387 | F10: =0*Basic!$D$2 -> 0 | G10: Deck
A11: 1 | B11: ='Hull Long'!B11 -> 199.8935484 | C11: =0*Basic!$D$2 -> 0 | D11: 1 | E11: 199.8935484 | F11: =0*Basic!$D$2 -> 0 | G11: Chine
A12: 1 | B12: ='Hull Long'!B12 -> 199.9467742 | C12: =0*Basic!$D$2 -> 0 | D12: 1 | E12: 199.9467742 | F12: =0*Basic!$D$2 -> 0 | G12: Rabbet
A13: 1 | B13: ='Hull Long'!B13 -> 200 | C13: =0*Basic!$D$2 -> 0 | D13: 1 | E13: 200 | F13: =0*Basic!$D$2 -> 0 | G13: Keel | H13: 1 | I13: 1
A14: 1 | B14: ='Hull Long'!B14 -> 250 | C14: =C$32+(C$13-C$32)*ABS($B$32-$B14)^H$13/ABS($B$13-$B$32)^H$13 -> 0 | D14: 1 | E14: 250 | F14: =F$32+(F$13-F$32)*ABS($E$32-$E14)^I$13/ABS($E$13-$E$32)^I$13 -> 0
A15: 1 | B15: ='Hull Long'!B15 -> 300 | C15: =C$32+(C$13-C$32)*ABS($B$32-$B15)^H$13/ABS($B$13-$B$32)^H$13 -> 0 | D15: 1 | E15: 300 | F15: =F$32+(F$13-F$32)*ABS($E$32-$E15)^I$13/ABS($E$13-$E$32)^I$13 -> 0
A16: 1 | B16: ='Hull Long'!B16 -> 400 | C16: =C$32+(C$13-C$32)*ABS($B$32-$B16)^H$13/ABS($B$13-$B$32)^H$13 -> 0 | D16: 1 | E16: 400 | F16: =F$32+(F$13-F$32)*ABS($E$32-$E16)^I$13/ABS($E$13-$E$32)^I$13 -> 0
A17: 1 | B17: ='Hull Long'!B17 -> 500 | C17: 0 | D17: 1 | E17: 500 | F17: 0
A18: 1 | B18: ='Hull Long'!B18 -> 600 | C18: 0 | D18: 1 | E18: 600 | F18: 0
A19: 1 | B19: ='Hull Long'!B19 -> 699 | C19: 0 | D19: 1 | E19: 699 | F19: 0 | G19: Bulkhead
A20: 1 | B20: ='Hull Long'!B20 -> 701 | C20: 0 | D20: 1 | E20: 701 | F20: 0
A21: 1 | B21: ='Hull Long'!B21 -> 800 | C21: 0 | D21: 1 | E21: 800 | F21: 0
A22: 1 | B22: ='Hull Long'!B22 -> 900 | C22: 0 | D22: 1 | E22: 900 | F22: 0
A23: 1 | B23: ='Hull Long'!B23 -> 1000 | C23: 0 | D23: 1 | E23: 1000 | F23: 0
A24: 1 | B24: ='Hull Long'!B24 -> 1100 | C24: 0 | D24: 1 | E24: 1100 | F24: 0
A25: 1 | B25: ='Hull Long'!B25 -> 1200 | C25: 0 | D25: 1 | E25: 1200 | F25: 0
A26: 1 | B26: ='Hull Long'!B26 -> 1300 | C26: 0 | D26: 1 | E26: 1300 | F26: 0
A27: 1 | B27: ='Hull Long'!B27 -> 1400 | C27: 0 | D27: 1 | E27: 1400 | F27: 0
A28: 1 | B28: ='Hull Long'!B28 -> 1500 | C28: 0 | D28: 1 | E28: 1500 | F28: 0
A29: 1 | B29: ='Hull Long'!B29 -> 1600 | C29: 0 | D29: 1 | E29: 1600 | F29: 0
A30: 1 | B30: ='Hull Long'!B30 -> 1700 | C30: 0 | D30: 1 | E30: 1700 | F30: 0
A31: 1 | B31: ='Hull Long'!B31 -> 1800 | C31: 0 | D31: 1 | E31: =B31 -> 1800 | F31: 0
A32: 1 | B32: ='Hull Long'!B32 -> 2000 | C32: =0*Basic!$D$2 -> 0 | D32: 1 | E32: =B32 -> 2000 | F32: =0*Basic!$D$2 -> 0
A33: 1 | B33: ='Hull Long'!B33 -> 2000 | C33: =0*Basic!$D$2 -> 0 | D33: 1 | E33: 2000 | F33: =0*Basic!$D$2 -> 0
A34: 1 | B34: ='Hull Long'!B34 -> 2200 | C34: =C$33+(C$52-C$33)*ABS($B$33-$B34)^H$52/ABS($B$52-$B$33)^H$52 -> 0 | D34: 1 | E34: 2200 | F34: =F$33+(F$52-F$33)*ABS($E$33-$E34)^I$52/ABS($E$52-$E$33)^I$52 -> 0
A35: 1 | B35: ='Hull Long'!B35 -> 2300 | C35: 0 | D35: 1 | E35: 2300 | F35: 0
A36: 1 | B36: ='Hull Long'!B36 -> 2400 | C36: 0 | D36: 1 | E36: 2400 | F36: 0
A37: 1 | B37: ='Hull Long'!B37 -> 2500 | C37: 0 | D37: 1 | E37: 2500 | F37: 0
A38: 1 | B38: ='Hull Long'!B38 -> 2600 | C38: 0 | D38: 1 | E38: 2600 | F38: 0
A39: 1 | B39: ='Hull Long'!B39 -> 2700 | C39: 0 | D39: 1 | E39: 2700 | F39: 0
A40: 1 | B40: ='Hull Long'!B40 -> 2800 | C40: 0 | D40: 1 | E40: 2800 | F40: 0
A41: 1 | B41: ='Hull Long'!B41 -> 2900 | C41: 0 | D41: 1 | E41: 2900 | F41: 0
A42: 1 | B42: ='Hull Long'!B42 -> 3000 | C42: 0 | D42: 1 | E42: 3000 | F42: 0
A43: 1 | B43: ='Hull Long'!B43 -> 3100 | C43: 0 | D43: 1 | E43: 3100 | F43: 0
A44: 1 | B44: ='Hull Long'!B44 -> 3200 | C44: 0 | D44: 1 | E44: 3200 | F44: 0
A45: 1 | B45: ='Hull Long'!B45 -> 3299 | C45: 0 | D45: 1 | E45: 3299 | F45: 0
A46: 1 | B46: ='Hull Long'!B46 -> 3301 | C46: 0 | D46: 1 | E46: 3301 | F46: 0 | G46: Bulkhead
A47: 1 | B47: ='Hull Long'!B47 -> 3400 | C47: 0 | D47: 1 | E47: 3400 | F47: 0
A48: 1 | B48: ='Hull Long'!B48 -> 3500 | C48: 0 | D48: 1 | E48: =B48 -> 3500 | F48: 0
A49: 1 | B49: ='Hull Long'!B49 -> 3600 | C49: 0 | D49: 1 | E49: 3600 | F49: 0
A50: 1 | B50: ='Hull Long'!B50 -> 3700 | C50: =C$33+(C$52-C$33)*ABS($B$33-$B50)^H$52/ABS($B$52-$B$33)^H$52 -> 0 | D50: 1 | E50: 3700 | F50: =F$33+(F$52-F$33)*ABS($E$33-$E50)^I$52/ABS($E$52-$E$33)^I$52 -> 0
A51: 1 | B51: ='Hull Long'!B51 -> 3750 | C51: =C$33+(C$52-C$33)*ABS($B$33-$B51)^H$52/ABS($B$52-$B$33)^H$52 -> 0 | D51: 1 | E51: 3750 | F51: =F$33+(F$52-F$33)*ABS($E$33-$E51)^I$52/ABS($E$52-$E$33)^I$52 -> 0
A52: 1 | B52: ='Hull Long'!B52 -> 3800 | C52: =0*Basic!$D$2 -> 0 | D52: 1 | E52: 3800 | F52: =0*Basic!$D$2 -> 0 | G52: Keel | H52: 1 | I52: 1
A53: 1 | B53: ='Hull Long'!B53 -> 3800.053226 | C53: =0*Basic!$D$2 -> 0 | D53: 1 | E53: 3800.053226 | F53: =0*Basic!$D$2 -> 0 | G53: Rabbet
A54: 1 | B54: ='Hull Long'!B54 -> 3800.106452 | C54: =0*Basic!$D$2 -> 0 | D54: 1 | E54: 3800.106452 | F54: =0*Basic!$D$2 -> 0 | G54: Chine
A55: 1 | B55: ='Hull Long'!B55 -> 3933.064516 | C55: =0*Basic!$D$2 -> 0 | D55: 1 | E55: =B55 -> 3933.064516 | F55: =0*Basic!$D$2 -> 0 | G55: Deck
A56: 1 | B56: ='Hull Long'!B56 -> 3965 | C56: =0*Basic!$D$2 -> 0 | D56: 1 | E56: =B56 -> 3965 | F56: =0*Basic!$D$2 -> 0 | G56: Sheer
A57: 0 | B57: ='Hull Long'!B57 -> 4000 | C57: =0*Basic!$D$2 -> 0 | D57: 0 | E57: =B57 -> 4000 | F57: =0*Basic!$D$2 -> 0
A58: 0 | B58: 0 | C58: 0 | D58: 0 | E58: 0 | F58: 0
A59: 0 | B59: ='Hull Long'!B59 -> 0 | C59: =0*Basic!$D$2 -> 0 | D59: 0 | E59: =B59 -> 0 | F59: =0*Basic!$D$2 -> 0 | G59: RABBET
A60: 0 | B60: ='Hull Long'!B60 -> 35 | C60: =0*Basic!$D$2 -> 0 | D60: 0 | E60: =B60 -> 35 | F60: =0*Basic!$D$2 -> 0 | G60: Sheer
A61: 0 | B61: ='Hull Long'!B61 -> 66.93548387 | C61: =0*Basic!$D$2 -> 0 | D61: 0 | E61: 66.93548387 | F61: =0*Basic!$D$2 -> 0 | G61: Deck
A62: 0 | B62: ='Hull Long'!B62 -> 199.8935484 | C62: =0*Basic!$D$2 -> 0 | D62: 0 | E62: 199.8935484 | F62: =0*Basic!$D$2 -> 0 | G62: Chine
A63: 2 | B63: ='Hull Long'!B63 -> 199.9467742 | C63: =0*Basic!$D$2 -> 0 | D63: 2 | E63: 199.9467742 | F63: =0*Basic!$D$2 -> 0 | G63: Rabbet | H63: 1 | I63: 1
A64: 2 | B64: ='Hull Long'!B64 -> 200 | C64: =C$83+(C$63-C$83)*ABS($B$83-$B64)^H$63/ABS($B$63-$B$83)^H$63 -> 0 | D64: 2 | E64: 200 | F64: =F$83+(F$63-F$83)*ABS($E$83-$E64)^I$63/ABS($E$63-$E$83)^I$63 -> 0
A65: 2 | B65: ='Hull Long'!B65 -> 250 | C65: 0 | D65: 2 | E65: 250 | F65: 0
A66: 2 | B66: ='Hull Long'!B66 -> 300 | C66: 0 | D66: 2 | E66: 300 | F66: 0
A67: 2 | B67: ='Hull Long'!B67 -> 400 | C67: 0 | D67: 2 | E67: 400 | F67: 0
A68: 2 | B68: ='Hull Long'!B68 -> 500 | C68: 0 | D68: 2 | E68: 500 | F68: 0
A69: 2 | B69: ='Hull Long'!B69 -> 600 | C69: 0 | D69: 2 | E69: 600 | F69: 0
A70: 2 | B70: ='Hull Long'!B70 -> 699 | C70: 0 | D70: 2 | E70: 699 | F70: 0 | G70: Bulkhead
A71: 2 | B71: ='Hull Long'!B71 -> 701 | C71: 0 | D71: 2 | E71: 701 | F71: 0
A72: 2 | B72: ='Hull Long'!B72 -> 800 | C72: 0 | D72: 2 | E72: 800 | F72: 0
A73: 2 | B73: ='Hull Long'!B73 -> 900 | C73: 0 | D73: 2 | E73: 900 | F73: 0
A74: 2 | B74: ='Hull Long'!B74 -> 1000 | C74: 0 | D74: 2 | E74: 1000 | F74: 0
A75: 2 | B75: ='Hull Long'!B75 -> 1100 | C75: 0 | D75: 2 | E75: 1100 | F75: 0
A76: 2 | B76: ='Hull Long'!B76 -> 1200 | C76: 0 | D76: 2 | E76: 1200 | F76: 0
A77: 2 | B77: ='Hull Long'!B77 -> 1300 | C77: 0 | D77: 2 | E77: 1300 | F77: 0
A78: 2 | B78: ='Hull Long'!B78 -> 1400 | C78: 0 | D78: 2 | E78: 1400 | F78: 0
A79: 2 | B79: ='Hull Long'!B79 -> 1500 | C79: 0 | D79: 2 | E79: 1500 | F79: 0
A80: 2 | B80: ='Hull Long'!B80 -> 1600 | C80: 0 | D80: 2 | E80: 1600 | F80: 0
A81: 2 | B81: ='Hull Long'!B81 -> 1700 | C81: 0 | D81: 2 | E81: 1700 | F81: 0
A82: 2 | B82: ='Hull Long'!B82 -> 1800 | C82: =C$83+(C$63-C$83)*ABS($B$83-$B82)^H$63/ABS($B$63-$B$83)^H$63 -> 0 | D82: 2 | E82: =B82 -> 1800 | F82: =F$83+(F$63-F$83)*ABS($E$83-$E82)^I$63/ABS($E$63-$E$83)^I$63 -> 0
A83: 2 | B83: ='Hull Long'!B83 -> 2000 | C83: =0*Basic!$D$2 -> 0 | D83: 2 | E83: 2000 | F83: =0*Basic!$D$2 -> 0
A84: 2 | B84: ='Hull Long'!B84 -> 2000 | C84: =0*Basic!$D$2 -> 0 | D84: 2 | E84: 2000 | F84: =0*Basic!$D$2 -> 0
A85: 2 | B85: ='Hull Long'!B85 -> 2200 | C85: =C$84+(C$104-C$84)*ABS($B$84-$B85)^H$104/ABS($B$104-$B$84)^H$104 -> 0 | D85: 2 | E85: 2200 | F85: =F$84+(F$104-F$84)*ABS($E$84-$E85)^I$104/ABS($E$104-$E$84)^I$104 -> 0
A86: 2 | B86: ='Hull Long'!B86 -> 2300 | C86: =C$84+(C$104-C$84)*ABS($B$84-$B86)^H$104/ABS($B$104-$B$84)^H$104 -> 0 | D86: 2 | E86: 2300 | F86: =F$84+(F$104-F$84)*ABS($E$84-$E86)^I$104/ABS($E$104-$E$84)^I$104 -> 0
A87: 2 | B87: ='Hull Long'!B87 -> 2400 | C87: 0 | D87: 2 | E87: 2400 | F87: 0
A88: 2 | B88: ='Hull Long'!B88 -> 2500 | C88: 0 | D88: 2 | E88: 2500 | F88: 0
A89: 2 | B89: ='Hull Long'!B89 -> 2600 | C89: 0 | D89: 2 | E89: 2600 | F89: 0
A90: 2 | B90: ='Hull Long'!B90 -> 2700 | C90: 0 | D90: 2 | E90: 2700 | F90: 0
A91: 2 | B91: ='Hull Long'!B91 -> 2800 | C91: 0 | D91: 2 | E91: 2800 | F91: 0
A92: 2 | B92: ='Hull Long'!B92 -> 2900 | C92: 0 | D92: 2 | E92: 2900 | F92: 0
A93: 2 | B93: ='Hull Long'!B93 -> 3000 | C93: 0 | D93: 2 | E93: 3000 | F93: 0
A94: 2 | B94: ='Hull Long'!B94 -> 3100 | C94: 0 | D94: 2 | E94: 3100 | F94: 0
A95: 2 | B95: ='Hull Long'!B95 -> 3200 | C95: 0 | D95: 2 | E95: 3200 | F95: 0
A96: 2 | B96: ='Hull Long'!B96 -> 3299 | C96: 0 | D96: 2 | E96: 3299 | F96: 0
A97: 2 | B97: ='Hull Long'!B97 -> 3301 | C97: 0 | D97: 2 | E97: 3301 | F97: 0 | G97: Bulkhead
A98: 2 | B98: ='Hull Long'!B98 -> 3400 | C98: 0 | D98: 2 | E98: =B98 -> 3400 | F98: 0
A99: 2 | B99: ='Hull Long'!B99 -> 3500 | C99: 0 | D99: 2 | E99: =B99 -> 3500 | F99: 0
A100: 2 | B100: ='Hull Long'!B100 -> 3600 | C100: 0 | D100: 2 | E100: 3600 | F100: 0
A101: 2 | B101: ='Hull Long'!B101 -> 3700 | C101: 0 | D101: 2 | E101: 3700 | F101: 0
A102: 2 | B102: ='Hull Long'!B102 -> 3750 | C102: 0 | D102: 2 | E102: 3750 | F102: 0
A103: 2 | B103: ='Hull Long'!B103 -> 3800 | C103: 0 | D103: 2 | E103: 3800 | F103: 0
A104: 2 | B104: ='Hull Long'!B104 -> 3800.053226 | C104: =0*Basic!$D$2 -> 0 | D104: 2 | E104: 3800.053226 | F104: =0*Basic!$D$2 -> 0 | G104: Rabbet | H104: 1 | I104: 1
A105: 0 | B105: ='Hull Long'!B105 -> 3800.106452 | C105: =0*Basic!$D$2 -> 0 | D105: 0 | E105: =B105 -> 3800.106452 | F105: =0*Basic!$D$2 -> 0 | G105: Chine
A106: 0 | B106: ='Hull Long'!B106 -> 3933.064516 | C106: =0*Basic!$D$2 -> 0 | D106: 0 | E106: 3933.064516 | F106: =0*Basic!$D$2 -> 0 | G106: Deck
A107: 0 | B107: ='Hull Long'!B107 -> 3965 | C107: =0*Basic!$D$2 -> 0 | D107: 0 | E107: 3965 | F107: =0*Basic!$D$2 -> 0 | G107: Sheer
A108: 0 | B108: ='Hull Long'!B108 -> 4000 | C108: =0*Basic!$D$2 -> 0 | D108: 0 | E108: 4000 | F108: =0*Basic!$D$2 -> 0
A109: 0 | B109: 0 | C109: 0 | D109: 0 | E109: 0 | F109: 0
A110: 0 | B110: ='Hull Long'!B110 -> 0 | C110: =0*Basic!$D$2 -> 0 | D110: 0 | E110: =B110 -> 0 | F110: =0*Basic!$D$2 -> 0 | G110: CHINE
A111: 0 | B111: ='Hull Long'!B111 -> 35 | C111: =0*Basic!$D$2 -> 0 | D111: 0 | E111: =B111 -> 35 | F111: =0*Basic!$D$2 -> 0 | G111: Sheer
A112: 0 | B112: ='Hull Long'!B112 -> 66.93548387 | C112: =0*Basic!$D$2 -> 0 | D112: 0 | E112: 66.93548387 | F112: =0*Basic!$D$2 -> 0 | G112: Deck
A113: 3 | B113: ='Hull Long'!B113 -> 199.8935484 | C113: =0*Basic!$D$2 -> 0 | D113: 3 | E113: 199.8935484 | F113: =0*Basic!$D$2 -> 0 | G113: Chine | H113: 2 | I113: 2
A114: 3 | B114: ='Hull Long'!B114 -> 199.9467742 | C114: =C$134+(C$113-C$134)*ABS($B$134-$B114)^H$113/ABS($B$113-$B$134)^H$113 -> 0.01626223867 | D114: 3 | E114: 199.9467742 | F114: =F$134+(F$113-F$134)*ABS($E$134-$E114)^I$113/ABS($E$113-$E$134)^I$113 -> -0.01626223867
A115: 3 | B115: ='Hull Long'!B115 -> 200 | C115: =C$134+(C$113-C$134)*ABS($B$134-$B115)^H$113/ABS($B$113-$B$134)^H$113 -> 0.0325239965 | D115: 3 | E115: 200 | F115: =F$134+(F$113-F$134)*ABS($E$134-$E115)^I$113/ABS($E$113-$E$134)^I$113 -> -0.0325239965
A116: 3 | B116: ='Hull Long'!B116 -> 250 | C116: =C$134+(C$113-C$134)*ABS($B$134-$B116)^H$113/ABS($B$113-$B$134)^H$113 -> 15.09632862 | D116: 3 | E116: 250 | F116: =F$134+(F$113-F$134)*ABS($E$134-$E116)^I$113/ABS($E$113-$E$134)^I$113 -> -15.09632862
A117: 3 | B117: ='Hull Long'!B117 -> 300 | C117: 29.73580073 | D117: 3 | E117: 300 | F117: -29.73580073
A118: 3 | B118: ='Hull Long'!B118 -> 400 | C118: 57.74174736 | D118: 3 | E118: 400 | F118: -57.74174736
A119: 3 | B119: ='Hull Long'!B119 -> 500 | C119: 84.05036389 | D119: 3 | E119: 500 | F119: -84.05036389
A120: 3 | B120: ='Hull Long'!B120 -> 600 | C120: 108.6616503 | D120: 3 | E120: 600 | F120: -108.6616503
A121: 3 | B121: ='Hull Long'!B121 -> 699 | C121: 131.3548689 | D121: 3 | E121: 699 | F121: -131.3548689 | G121: Bulkhead
A122: 3 | B122: ='Hull Long'!B122 -> 701 | C122: 131.7961747 | D122: 3 | E122: 701 | F122: -131.7961747
A123: 3 | B123: ='Hull Long'!B123 -> 800 | C123: 152.7922329 | D123: 3 | E123: 800 | F123: -152.7922329
A124: 3 | B124: ='Hull Long'!B124 -> 900 | C124: 172.311529 | D124: 3 | E124: 900 | F124: -172.311529
A125: 3 | B125: ='Hull Long'!B125 -> 1000 | C125: 190.1334951 | D125: 3 | E125: 1000 | F125: -190.1334951
A126: 3 | B126: ='Hull Long'!B126 -> 1100 | C126: 206.258131 | D126: 3 | E126: 1100 | F126: -206.258131
A127: 3 | B127: ='Hull Long'!B127 -> 1200 | C127: 220.6854368 | D127: 3 | E127: 1200 | F127: -220.6854368
A128: 3 | B128: ='Hull Long'!B128 -> 1300 | C128: 233.4154126 | D128: 3 | E128: 1300 | F128: -233.4154126
A129: 3 | B129: ='Hull Long'!B129 -> 1400 | C129: 244.4480582 | D129: 3 | E129: 1400 | F129: -244.4480582
A130: 3 | B130: ='Hull Long'!B130 -> 1500 | C130: 253.7833738 | D130: 3 | E130: 1500 | F130: -253.7833738
A131: 3 | B131: ='Hull Long'!B131 -> 1600 | C131: 261.4213592 | D131: 3 | E131: 1600 | F131: -261.4213592
A132: 3 | B132: ='Hull Long'!B132 -> 1700 | C132: 267.3620146 | D132: 3 | E132: 1700 | F132: -267.3620146
A133: 3 | B133: ='Hull Long'!B133 -> 1800 | C133: 271.6053398 | D133: 3 | E133: =B133 -> 1800 | F133: -271.6053398
A134: 3 | B134: ='Hull Long'!B134 -> 2000 | C134: =275*Basic!$D$2 -> 275 | D134: 3 | E134: 2000 | F134: =-275*Basic!$D$2 -> -275
A135: 3 | B135: ='Hull Long'!B135 -> 2000 | C135: =275*Basic!$D$2 -> 275 | D135: 3 | E135: 2000 | F135: =-275*Basic!$D$2 -> -275
A136: 3 | B136: ='Hull Long'!B136 -> 2200 | C136: =C$135+(C$156-C$135)*ABS($B$135-$B136)^H$156/ABS($B$156-$B$135)^H$156 -> 271.6053398 | D136: 3 | E136: 2200 | F136: =F$135+(F$156-F$135)*ABS($E$135-$E136)^I$156/ABS($E$156-$E$135)^I$156 -> -271.6053398
A137: 3 | B137: ='Hull Long'!B137 -> 2300 | C137: 267.3620146 | D137: 3 | E137: 2300 | F137: -267.3620146
A138: 3 | B138: ='Hull Long'!B138 -> 2400 | C138: 261.4213592 | D138: 3 | E138: 2400 | F138: -261.4213592
A139: 3 | B139: ='Hull Long'!B139 -> 2500 | C139: 253.7833738 | D139: 3 | E139: 2500 | F139: -253.7833738
A140: 3 | B140: ='Hull Long'!B140 -> 2600 | C140: 244.4480582 | D140: 3 | E140: 2600 | F140: -244.4480582
A141: 3 | B141: ='Hull Long'!B141 -> 2700 | C141: 233.4154126 | D141: 3 | E141: 2700 | F141: -233.4154126
A142: 3 | B142: ='Hull Long'!B142 -> 2800 | C142: 220.6854368 | D142: 3 | E142: 2800 | F142: -220.6854368
A143: 3 | B143: ='Hull Long'!B143 -> 2900 | C143: 206.258131 | D143: 3 | E143: 2900 | F143: -206.258131
A144: 3 | B144: ='Hull Long'!B144 -> 3000 | C144: 190.1334951 | D144: 3 | E144: 3000 | F144: -190.1334951
A145: 3 | B145: ='Hull Long'!B145 -> 3100 | C145: 172.311529 | D145: 3 | E145: 3100 | F145: -172.311529
A146: 3 | B146: ='Hull Long'!B146 -> 3200 | C146: 152.7922329 | D146: 3 | E146: 3200 | F146: -152.7922329
A147: 3 | B147: ='Hull Long'!B147 -> 3299 | C147: 131.7961747 | D147: 3 | E147: 3299 | F147: -131.7961747
A148: 3 | B148: ='Hull Long'!B148 -> 3301 | C148: 131.3548689 | D148: 3 | E148: 3301 | F148: -131.3548689 | G148: Bulkhead
A149: 3 | B149: ='Hull Long'!B149 -> 3400 | C149: 108.6616503 | D149: 3 | E149: =B149 -> 3400 | F149: -108.6616503
A150: 3 | B150: ='Hull Long'!B150 -> 3500 | C150: 84.05036389 | D150: 3 | E150: =B150 -> 3500 | F150: -84.05036389
A151: 3 | B151: ='Hull Long'!B151 -> 3600 | C151: 57.74174736 | D151: 3 | E151: 3600 | F151: -57.74174736
A152: 3 | B152: ='Hull Long'!B152 -> 3700 | C152: 29.73580073 | D152: 3 | E152: 3700 | F152: -29.73580073
A153: 3 | B153: ='Hull Long'!B153 -> 3750 | C153: 15.09632862 | D153: 3 | E153: 3750 | F153: -15.09632862
A154: 3 | B154: ='Hull Long'!B154 -> 3800 | C154: =C$135+(C$156-C$135)*ABS($B$135-$B154)^H$156/ABS($B$156-$B$135)^H$156 -> 0.0325239965 | D154: 3 | E154: 3800 | F154: =F$135+(F$156-F$135)*ABS($E$135-$E154)^I$156/ABS($E$156-$E$135)^I$156 -> -0.0325239965
A155: 3 | B155: ='Hull Long'!B155 -> 3800.053226 | C155: =C$135+(C$156-C$135)*ABS($B$135-$B155)^H$156/ABS($B$156-$B$135)^H$156 -> 0.01626223867 | D155: 3 | E155: 3800.053226 | F155: =F$135+(F$156-F$135)*ABS($E$135-$E155)^I$156/ABS($E$156-$E$135)^I$156 -> -0.01626223867
A156: 3 | B156: ='Hull Long'!B156 -> 3800.106452 | C156: =0*Basic!$D$2 -> 0 | D156: 3 | E156: =B156 -> 3800.106452 | F156: =0*Basic!$D$2 -> 0 | G156: Chine | H156: 2 | I156: 2
A157: 0 | B157: ='Hull Long'!B157 -> 3933.064516 | C157: =0*Basic!$D$2 -> 0 | D157: 0 | E157: =B157 -> 3933.064516 | F157: =0*Basic!$D$2 -> 0 | G157: Deck
A158: 0 | B158: ='Hull Long'!B158 -> 3965 | C158: =0*Basic!$D$2 -> 0 | D158: 0 | E158: =B158 -> 3965 | F158: =0*Basic!$D$2 -> 0 | G158: Sheer
A159: 0 | B159: ='Hull Long'!B159 -> 4000 | C159: =0*Basic!$D$2 -> 0 | D159: 0 | E159: =B159 -> 4000 | F159: =0*Basic!$D$2 -> 0
A160: 0 | B160: 0 | C160: 0 | D160: 0 | E160: 0 | F160: 0
A161: 0 | B161: ='Hull Long'!B161 -> 0 | C161: =0*Basic!$D$2 -> 0 | D161: 0 | E161: =B161 -> 0 | F161: =0*Basic!$D$2 -> 0 | G161: SHEER
A162: 5 | B162: ='Hull Long'!B162 -> 35 | C162: =0*Basic!$D$2 -> 0 | D162: 5 | E162: =B162 -> 35 | F162: =0*Basic!$D$2 -> 0 | G162: Sheer | H162: 1.99 | I162: 1.99
A163: 5 | B163: ='Hull Long'!B163 -> 66.93548387 | C163: =C$185+(C$162-C$185)*ABS($B$185-$B163)^H$162/ABS($B$162-$B$185)^H$162 -> 10.4265167 | D163: 5 | E163: 66.93548387 | F163: =F$185+(F$162-F$185)*ABS($E$185-$E163)^I$162/ABS($E$162-$E$185)^I$162 -> -10.4265167
A164: 5 | B164: ='Hull Long'!B164 -> 199.8935484 | C164: =C$185+(C$162-C$185)*ABS($B$185-$B164)^H$162/ABS($B$162-$B$185)^H$162 -> 52.01720752 | D164: 5 | E164: 199.8935484 | F164: -52.01720752
A165: 5 | B165: ='Hull Long'!B165 -> 199.9467742 | C165: 52.03326976 | D165: 5 | E165: 199.9467742 | F165: -52.03326976
A166: 5 | B166: ='Hull Long'!B166 -> 200 | C166: =C$185+(C$162-C$185)*ABS($B$185-$B166)^H$162/ABS($B$162-$B$185)^H$162 -> 52.04933153 | D166: 5 | E166: 200 | F166: -52.04933153
A167: 5 | B167: ='Hull Long'!B167 -> 250 | C167: 66.92995711 | D167: 5 | E167: 250 | F167: -66.92995711
A168: 5 | B168: ='Hull Long'!B168 -> 300 | C168: 81.39554259 | D168: 5 | E168: 300 | F168: -81.39554259
A169: 5 | B169: ='Hull Long'!B169 -> 400 | C169: 109.0811082 | D169: 5 | E169: 400 | F169: -109.0811082
A170: 5 | B170: ='Hull Long'!B170 -> 500 | C170: 135.1050206 | D170: 5 | E170: 500 | F170: -135.1050206
A171: 5 | B171: ='Hull Long'!B171 -> 600 | C171: 159.4662064 | D171: 5 | E171: 600 | F171: -159.4662064
A172: 5 | B172: ='Hull Long'!B172 -> 699 | C172: 181.9447841 | D172: 5 | E172: 699 | F172: -181.9447841 | G172: Bulkhead
A173: 5 | B173: ='Hull Long'!B173 -> 701 | C173: 182.3820834 | D173: 5 | E173: 701 | F173: -182.3820834
A174: 5 | B174: ='Hull Long'!B174 -> 800 | C174: 203.1957178 | D174: 5 | E174: 800 | F174: -203.1957178
A175: 5 | B175: ='Hull Long'!B175 -> 900 | C175: 222.561474 | D175: 5 | E175: 900 | F175: -222.561474
A176: 5 | B176: ='Hull Long'!B176 -> 1000 | C176: 240.2593332 | D176: 5 | E176: 1000 | F176: -240.2593332
A177: 5 | B177: ='Hull Long'!B177 -> 1100 | C177: 256.2877024 | D177: 5 | E177: 1100 | F177: -256.2877024
A178: 5 | B178: ='Hull Long'!B178 -> 1200 | C178: 270.6448184 | D178: 5 | E178: 1200 | F178: -270.6448184
A179: 5 | B179: ='Hull Long'!B179 -> 1300 | C179: 283.3287069 | D179: 5 | E179: 1300 | F179: -283.3287069
A180: 5 | B180: ='Hull Long'!B180 -> 1400 | C180: 294.3371255 | D180: 5 | E180: 1400 | F180: -294.3371255
A181: 5 | B181: ='Hull Long'!B181 -> 1500 | C181: 303.6674788 | D181: 5 | E181: 1500 | F181: -303.6674788
A182: 5 | B182: ='Hull Long'!B182 -> 1600 | C182: 311.316687 | D182: 5 | E182: 1600 | F182: -311.316687
A183: 5 | B183: ='Hull Long'!B183 -> 1700 | C183: 317.2809621 | D183: 5 | E183: 1700 | F183: -317.2809621
A184: 5 | B184: ='Hull Long'!B184 -> 1800 | C184: 321.555378 | D184: 5 | E184: =B184 -> 1800 | F184: -321.555378
A185: 5 | B185: ='Hull Long'!B185 -> 2000 | C185: =325*Basic!$D$2 -> 325 | D185: 5 | E185: 2000 | F185: =-325*Basic!$D$2 -> -325
A186: 5 | B186: ='Hull Long'!B186 -> 2000 | C186: =325*Basic!$D$2 -> 325 | D186: 5 | E186: 2000 | F186: =-325*Basic!$D$2 -> -325
A187: 5 | B187: ='Hull Long'!B187 -> 2200 | C187: =C$186+(C$209-C$186)*ABS($B$186-$B187)^H$209/ABS($B$209-$B$186)^H$209 -> 321.6331928 | D187: 5 | E187: 2200 | F187: =F$186+(F$209-F$186)*ABS($E$186-$E187)^I$209/ABS($E$209-$E$186)^I$209 -> -321.6331928
A188: 5 | B188: ='Hull Long'!B188 -> 2300 | C188: 317.4246839 | D188: 5 | E188: 2300 | F188: -317.4246839
A189: 5 | B189: ='Hull Long'!B189 -> 2400 | C189: 311.5327713 | D189: 5 | E189: 2400 | F189: -311.5327713
A190: 5 | B190: ='Hull Long'!B190 -> 2500 | C190: 303.9574552 | D190: 5 | E190: 2500 | F190: -303.9574552
A191: 5 | B191: ='Hull Long'!B191 -> 2600 | C191: 294.6987355 | D191: 5 | E191: 2600 | F191: -294.6987355
A192: 5 | B192: ='Hull Long'!B192 -> 2700 | C192: 283.7566122 | D192: 5 | E192: 2700 | F192: -283.7566122
A193: 5 | B193: ='Hull Long'!B193 -> 2800 | C193: 271.1310853 | D193: 5 | E193: 2800 | F193: -271.1310853
A194: 5 | B194: ='Hull Long'!B194 -> 2900 | C194: 256.8221549 | D194: 5 | E194: 2900 | F194: -256.8221549
A195: 5 | B195: ='Hull Long'!B195 -> 3000 | C195: 240.8298208 | D195: 5 | E195: 3000 | F195: -240.8298208
A196: 5 | B196: ='Hull Long'!B196 -> 3100 | C196: 223.1540832 | D196: 5 | E196: 3100 | F196: -223.1540832
A197: 5 | B197: ='Hull Long'!B197 -> 3200 | C197: 203.794942 | D197: 5 | E197: 3200 | F197: -203.794942
A198: 5 | B198: ='Hull Long'!B198 -> 3299 | C198: 182.9711555 | D198: 5 | E198: 3299 | F198: -182.9711555
A199: 5 | B199: ='Hull Long'!B199 -> 3301 | C199: 182.5334706 | D199: 5 | E199: 3301 | F199: -182.5334706 | G199: Bulkhead
A200: 5 | B200: ='Hull Long'!B200 -> 3400 | C200: 160.0264489 | D200: 5 | E200: =B200 -> 3400 | F200: -160.0264489
A201: 5 | B201: ='Hull Long'!B201 -> 3500 | C201: 135.6170969 | D201: 5 | E201: =B201 -> 3500 | F201: -135.6170969
A202: 5 | B202: ='Hull Long'!B202 -> 3600 | C202: 109.5243414 | D202: 5 | E202: 3600 | F202: -109.5243414
A203: 5 | B203: ='Hull Long'!B203 -> 3700 | C203: 81.74818225 | D203: 5 | E203: 3700 | F203: -81.74818225
... 161 more rows

Sheet Hull Unfold
A1: Unfold
A5: Parameters | B5: =300*Basic!$D$2 -> 300 | C5: =2000*Basic!$D$2 -> 2000
A6: Number of Lines | B6: =COUNT(A8:A876) -> 408 | E6: =COUNT(D8:D876) -> 408
A7: Line Id | B7: X | C7: Y | D7: Line Id | E7: X | F7: Y | H7: X | I7: Y | J7: A | O7: X0 | P7: Z0 | Q7: Y0 | R7: X1 | S7: Z1 | T7: Y1 | U7: F | V7: L | W7: D | X7: U | Y7: F' | Z7: A1 | AA7: A2 | AB7: A3 | AC7: A | AD7: B1 | AE7: B2 | AF7: B3 | AG7: B | AH7: XA | AI7: YA | AJ7: XB | AK7: YB | AL7: Check F | AM7: Error F
A8: 0 | B8: =(AH8-$AH$53)*COS(RADIANS($J$8))+$AH$53-(AI8-$AI$53)*SIN(RADIANS($J$8))+$H$8 -> -225.4997463 | C8: =(AI8-$AI$53)*COS(RADIANS($J$8))+$AI$53+(AH8-$AH$53)*SIN(RADIANS($J$8))+$I$8 -> -41.57695443 | D8: 0 | E8: =(AJ8-$AH$53)*COS(RADIANS($J$8))+$AH$53-(AK8-$AI$53)*SIN(RADIANS($J$8))+$H$8 -> -225.499746 | F8: =(AK8-$AI$53)*COS(RADIANS($J$8))+$AI$53+(AJ8-$AH$53)*SIN(RADIANS($J$8))+$I$8 -> -41.57694466 | G8: Keel | H8: =0*Basic!$D$2 -> 0 | I8: =0*Basic!$D$2 -> 0 | J8: 0 | O8: ='Hull Long'!B8 -> 0 | P8: ='Hull Long'!C8 -> 325.7575758 | Q8: ='Hull Plan'!C8 -> 0 | R8: ='Hull Long'!B59 -> 0 | S8: ='Hull Long'!C59 -> 325.7575758 | T8: ='Hull Plan'!C59 -> 0 | U8: =((O8-R8)^2+(S8-P8)^2+(T8-Q8)^2)^0.5+0.00001 -> 1e-05 | AH8: =AH9-V9*SIN(AC9*PI()/180) -> -225.4997463 | AI8: =AI9+V9*COS(AC9*PI()/180) -> -41.57695443 | AJ8: =AJ9-X9*SIN(AG9*PI()/180) -> -225.499746 | AK8: =AK9+X9*COS(AG9*PI()/180) -> -41.57694466 | AL8: =((AH8-AJ8)^2+(AI8-AK8)^2)^0.5 -> 9.78054512e-06 | AM8: =U8-AL8 -> 2.194548805e-07
A9: 0 | B9: -151.0333222 | C9: -43.52899185 | D9: 0 | E9: -151.0333219 | F9: -43.52898176 | O9: ='Hull Long'!B9 -> 35 | P9: ='Hull Long'!C9 -> 260 | Q9: ='Hull Plan'!C9 -> 0 | R9: ='Hull Long'!B60 -> 35 | S9: ='Hull Long'!C60 -> 260 | T9: ='Hull Plan'!C60 -> 0 | U9: 1e-05 | V9: =((O9-O8)^2+(P9-P8)^2+(Q9-Q8)^2)^0.5 -> 74.49200474 | W9: =((R9-O8)^2+(S9-P8)^2+(T9-Q8)^2)^0.5 -> 74.49200474 | X9: =((R9-R8)^2+(S9-S8)^2+(T9-T8)^2)^0.5 -> 74.49200474 | Y9: =U8 -> 1e-05 | Z9: =ACOS((U9*U9+V9*V9-W9*W9)/2/U9/V9)*180/PI() -> 89.99999615 | AA9: =ACOS((V9*V9+W9*W9-U9*U9)/2/V9/W9)*180/PI() -> 7.683962816e-06 | AB9: =ACOS((W9*W9+Y9*Y9-X9*X9)/2/W9/Y9)*180/PI() -> 89.99999615 | AC9: =AC10+Z9+AA10+AB10-180 -> 88.49841187 | AD9: =ACOS((U9*U9+W9*W9-V9*V9)/2/U9/W9)*180/PI() -> 89.99999615 | AE9: =ACOS((W9*W9+X9*X9-Y9*Y9)/2/W9/X9)*180/PI() -> 7.683962816e-06 | AF9: =ACOS((X9*X9+Y9*Y9-W9*W9)/2/X9/Y9)*180/PI() -> 89.99999615 | AG9: =180+AG10-AF10-AE9-AD9 -> 88.49841211 | AH9: -151.0333222 | AI9: -43.52899185 | AJ9: -151.0333219 | AK9: -43.52898176 | AL9: 1.009269675e-05 | AM9: -9.269675345e-08
A10: 0 | B10: -83.08699972 | C10: -45.31011401 | D10: 0 | E10: -83.08699946 | F10: -45.31010363 | O10: ='Hull Long'!B10 -> 66.93548387 | P10: ='Hull Long'!C10 -> 200 | Q10: ='Hull Plan'!C10 -> 0 | R10: ='Hull Long'!B61 -> 66.93548387 | S10: ='Hull Long'!C61 -> 200 | T10: ='Hull Plan'!C61 -> 0 | U10: 1e-05 | V10: 67.96966331 | W10: 67.96966331 | X10: 67.96966331 | Y10: 1e-05 | Z10: 89.99999578 | AA10: 8.451927883e-06 | AB10: 89.99999578 | AC10: 88.49841149 | AD10: 89.99999578 | AE10: 8.451927883e-06 | AF10: 89.99999578 | AG10: 88.49841173 | AH10: -83.08699972 | AI10: -45.31011401 | AJ10: -83.08699946 | AK10: -45.31010363 | AL10: 1.03865158e-05 | AM10: -3.865158023e-07
A11: 0 | B11: 199.7961898 | C11: -52.7255028 | D11: 0 | E11: 199.7961901 | F11: -52.72549186 | O11: ='Hull Long'!B11 -> 199.8935484 | P11: ='Hull Long'!C11 -> -49.8 | Q11: ='Hull Plan'!C11 -> 0 | R11: ='Hull Long'!B62 -> 199.8935484 | S11: ='Hull Long'!C62 -> -49.8 | T11: ='Hull Plan'!C62 -> 0 | U11: 1e-05 | V11: 282.9803649 | W11: 282.9803649 | X11: 282.9803649 | Y11: 1e-05 | Z11: 89.99999897 | AA11: 1.909095913e-06 | AB11: 89.99999897 | AC11: 88.49841482 | AD11: 89.99999897 | AE11: 1.909095913e-06 | AF11: 89.99999897 | AG11: 88.49841494 | AH11: 199.7961898 | AI11: -52.7255028 | AJ11: 199.7961901 | AK11: -52.72549186 | AL11: 1.094408191e-05 | AM11: -9.440819086e-07
A12: 0 | B12: 199.9094336 | C12: -52.72847632 | D12: 0 | E12: 199.9094338 | F12: -52.72846538 | O12: ='Hull Long'!B12 -> 199.9467742 | P12: ='Hull Long'!C12 -> -49.9 | Q12: ='Hull Plan'!C12 -> 0 | R12: ='Hull Long'!B63 -> 199.9467742 | S12: ='Hull Long'!C63 -> -49.9 | T12: ='Hull Plan'!C63 -> 0 | U12: 1e-05 | V12: 0.1132827722 | W12: 0.1132827722 | X12: 0.1132827722 | Y12: 1e-05 | Z12: 89.99747112 | AA12: 0.005057766396 | AB12: 89.99747112 | AC12: 88.49588697 | AD12: 89.99747112 | AE12: 0.005057766396 | AF12: 89.99747112 | AG12: 88.49588693 | AH12: 199.9094336 | AI12: -52.72847632 | AJ12: 199.9094338 | AK12: -52.72846538 | AL12: 1.094400199e-05 | AM12: -9.440019875e-07
A13: 0 | B13: 199.9628172 | C13: -52.82839216 | D13: 0 | E13: 199.9626619 | F13: -52.72986568 | O13: ='Hull Long'!B13 -> 200 | P13: ='Hull Long'!C13 -> -50 | Q13: ='Hull Plan'!C13 -> 0 | R13: ='Hull Long'!B64 -> 200 | S13: ='Hull Long'!C64 -> -49.90148434 | T13: ='Hull Plan'!C64 -> 0 | U13: 0.09852565724 | V13: 0.1132827722 | W13: 0.05324649985 | X13: 0.05324649985 | Y13: 1e-05 | Z13: 28.02466216 | AA13: 60.38883338 | AB13: 89.99461976 | AC13: 28.11496272 | AD13: 91.58650446 | AE13: 0.01076047807 | AF13: 89.99461976 | AG13: 88.49303558 | AH13: 199.9628172 | AI13: -52.82839216 | AJ13: 199.9626619 | AK13: -52.72986568 | AL13: 0.09852660108 | AM13: -9.438472234e-07
A14: 0 | B14: 249.964917 | C14: -54.1190576 | D14: 0 | E14: 249.9647702 | F14: -54.02592822 | O14: ='Hull Long'!B14 -> 250 | P14: ='Hull Long'!C14 -> -51.36959877 | Q14: ='Hull Plan'!C14 -> 0 | R14: ='Hull Long'!B65 -> 250 | S14: ='Hull Long'!C65 -> -51.27648019 | T14: ='Hull Plan'!C65 -> 0 | U14: 0.09312858033 | V14: 50.01875449 | W14: 50.01629136 | X14: 50.01890256 | Y14: 0.09852565724 | Z14: 88.43110484 | AA14: 0.1066428009 | AB14: 91.46226096 | AC14: 88.52139679 | AD14: 91.46225236 | AE14: 0.1128227403 | AF14: 88.4249163 | AG14: 88.51521681 | AH14: 249.964917 | AI14: -54.1190576 | AJ14: 249.9647702 | AK14: -54.02592822 | AL14: 0.09312948891 | AM14: -9.085701641e-07
A15: 0 | B15: 299.9669558 | C15: -55.37114641 | D15: 0 | E15: 299.9668173 | F15: -55.28326211 | O15: ='Hull Long'!B15 -> 300 | P15: ='Hull Long'!C15 -> -52.70061728 | Q15: ='Hull Plan'!C15 -> 0 | R15: ='Hull Long'!B66 -> 300 | S15: ='Hull Long'!C66 -> -52.61274375 | T15: ='Hull Plan'!C66 -> 0 | U15: 0.08788353377 | V15: 50.01771297 | W15: 50.01545171 | X15: 50.01785282 | Y15: 0.09312858033 | Z15: 88.47528735 | AA15: 0.1006404057 | AB15: 91.42408137 | AC15: 88.56557018 | AD15: 91.42407224 | AE15: 0.1066465133 | AF15: 88.46927212 | AG15: 88.55956403 | AH15: 299.9669558 | AI15: -55.37114641 | AJ15: 299.9668173 | AK15: -55.28326211 | AL15: 0.08788440706 | AM15: -8.732926087e-07
A16: 0 | B16: 399.9708506 | C16: -57.75958547 | D16: 0 | E16: 399.970728 | F16: -57.68173523 | O16: ='Hull Long'!B16 -> 400 | P16: ='Hull Long'!C16 -> -55.24691358 | Q16: ='Hull Plan'!C16 -> 0 | R16: ='Hull Long'!B67 -> 400 | S16: ='Hull Long'!C67 -> -55.16907405 | T16: ='Hull Plan'!C67 -> 0 | U16: 0.07784953164 | V16: 100.0324129 | W16: 100.0304618 | X16: 100.0326688 | Y16: 0.08788353377 | Z16: 88.54157654 | AA16: 0.04457647243 | AB16: 91.41386773 | AC16: 88.63183862 | AD16: 91.41384699 | AE16: 0.05032179239 | AF16: 88.53581048 | AG16: 88.62609326 | AH16: 399.9708506 | AI16: -57.75958547 | AJ16: 399.970728 | AK16: -57.68173523 | AL16: 0.07785033439 | AM16: -8.0275074e-07
A17: 0 | B17: 499.9745014 | C17: -59.99372234 | D17: 0 | E17: 499.9743937 | F17: -59.92529805 | O17: ='Hull Long'!B17 -> 500 | P17: ='Hull Long'!C17 -> -57.63888889 | Q17: ='Hull Plan'!C17 -> 0 | R17: ='Hull Long'!B68 -> 500 | S17: ='Hull Long'!C68 -> -57.57047524 | T17: ='Hull Plan'!C68 -> 0 | U17: 0.06842365086 | V17: 100.0286036 | W17: 100.0269911 | X17: 100.0288295 | Y17: 0.07784953164 | Z17: 88.62995496 | AA17: 0.03918208419 | AB17: 91.33088652 | AC17: 88.72019348 | AD17: 91.33086296 | AE17: 0.04457961565 | AF17: 88.62453387 | AG17: 88.71479591 | AH17: 499.9745014 | AI17: -59.99372234 | AJ17: 499.9743937 | AK17: -59.92529805 | AL17: 0.06842438308 | AM17: -7.322193829e-07
A18: 0 | B18: 599.9779083 | C18: -62.07355969 | D18: 0 | E18: 599.9778144 | F18: -62.01395321 | O18: ='Hull Long'!B18 -> 600 | P18: ='Hull Long'!C18 -> -59.87654321 | Q18: ='Hull Plan'!C18 -> 0 | R18: ='Hull Long'!B69 -> 600 | S18: ='Hull Long'!C69 -> -59.81694732 | T18: ='Hull Plan'!C69 -> 0 | U18: 0.05960589141 | V18: 100.0250324 | W18: 100.0237169 | X18: 100.02523 | Y18: 0.06842365086 | Z18: 88.7183418 | AA18: 0.03413502235 | AB18: 91.24755016 | AC18: 88.80855334 | AD18: 91.24752318 | AE18: 0.03918468796 | AF18: 88.71326515 | AG18: 88.80350363 | AH18: 599.9779083 | AI18: -62.07355969 | AJ18: 599.9778144 | AK18: -62.01395321 | AL18: 0.05960655308 | AM18: -6.616701359e-07
A19: 0 | B19: 698.9810406 | C19: -63.9806092 | D19: 0 | E19: 698.9809596 | F19: -63.92913334 | O19: ='Hull Long'!B19 -> 699 | P19: ='Hull Long'!C19 -> -61.9398071 | Q19: ='Hull Plan'!C19 -> 0 | R19: ='Hull Long'!B70 -> 699 | S19: ='Hull Long'!C70 -> -61.88834176 | T19: ='Hull Plan'!C70 -> 0 | U19: 0.05147533949 | V19: 99.02149796 | W19: 99.02043897 | X19: 99.0216677 | Y19: 0.05960589141 | Z19: 88.80629486 | AA19: 0.02977849622 | AB19: 91.1639575 | AC19: 88.89647555 | AD19: 91.16392664 | AE19: 0.0344819635 | AF19: 88.80156054 | AG19: 88.89177204 | AH19: 698.9810406 | AI19: -63.9806092 | AJ19: 698.9809596 | AK19: -63.92913334 | AL19: 0.05147593128 | AM19: -5.917851926e-07
A20: 0 | B20: 700.9811013 | C20: -64.01758689 | D20: 0 | E20: 700.9810205 | F20: -63.96626913 | O20: ='Hull Long'!B20 -> 701 | P20: ='Hull Long'!C20 -> -61.97993056 | Q20: ='Hull Plan'!C20 -> 0 | R20: ='Hull Long'!B71 -> 701 | S20: ='Hull Long'!C71 -> -61.92862333 | T20: ='Hull Plan'!C71 -> 0 | U20: 0.05131722794 | V20: 2.000402432 | W20: 2.000031269 | X20: 2.00040561 | Y20: 0.05147533949 | Z20: 88.85063934 | AA20: 1.469972779 | AB20: 89.67938769 | AC20: 88.94082022 | AD20: 89.67938788 | AE20: 1.474500511 | AF20: 88.8461118 | AG20: 88.93629245 | AH20: 700.9811013 | AI20: -64.01758689 | AJ20: 700.9810205 | AK20: -63.96626913 | AL20: 0.05131781832 | AM20: -5.903733455e-07
A21: 0 | B21: 799.9839897 | C21: -65.77035807 | D21: 0 | E21: 799.9839208 | F21: -65.72656287 | O21: ='Hull Long'!B21 -> 800 | P21: ='Hull Long'!C21 -> -63.88888889 | Q21: ='Hull Plan'!C21 -> 0 | R21: ='Hull Long'!B72 -> 800 | S21: ='Hull Long'!C72 -> -63.84510415 | T21: ='Hull Plan'!C72 -> 0 | U21: 0.04379473655 | V21: 99.01840295 | W21: 99.0175685 | X21: 99.01854826 | Y21: 0.05131722794 | Z21: 88.89558281 | AA21: 0.02533679166 | AB21: 91.07911653 | AC21: 88.98572756 | AD21: 91.0790804 | AE21: 0.02968877332 | AF21: 88.8911947 | AG21: 88.98137554 | AH21: 799.9839897 | AI21: -65.77035807 | AJ21: 799.9839208 | AK21: -65.72656287 | AL21: 0.04379525703 | AM21: -5.204763483e-07
A22: 0 | B22: 899.9866645 | C22: -67.38731819 | D22: 0 | E22: 899.9866066 | F22: -67.35051645 | O22: ='Hull Long'!B22 -> 900 | P22: ='Hull Long'!C22 -> -65.66358025 | Q22: ='Hull Plan'!C22 -> 0 | R22: ='Hull Long'!B73 -> 900 | S22: ='Hull Long'!C73 -> -65.62678891 | T22: ='Hull Plan'!C73 -> 0 | U22: 0.03680134113 | V22: 100.0157464 | W22: 100.0151003 | X22: 100.0158707 | Y22: 0.04379473655 | Z22: 88.98355405 | AA22: 0.02107911481 | AB22: 90.99541004 | AC22: 89.0736556 | AD22: 90.99536683 | AE22: 0.02508476864 | AF22: 88.97950519 | AG22: 89.0696499 | AH22: 899.9866645 | AI22: -67.38731819 | AJ22: 899.9866066 | AK22: -67.35051645 | AL22: 0.03680179108 | AM22: -4.499516114e-07
A23: 0 | B23: 999.9890953 | C23: -68.84999772 | D23: 0 | E23: 999.9890475 | F23: -68.81958131 | O23: ='Hull Long'!B23 -> 1000 | P23: ='Hull Long'!C23 -> -67.28395062 | Q23: ='Hull Plan'!C23 -> 0 | R23: ='Hull Long'!B74 -> 1000 | S23: ='Hull Long'!C74 -> -67.25354455 | T23: ='Hull Plan'!C74 -> 0 | U23: 0.03041606705 | V23: 100.0131271 | W23: 100.0126391 | X23: 100.0132308 | Y23: 0.03680134113 | Z23: 89.07197691 | AA23: 0.017422635 | AB23: 90.91065242 | AC23: 89.16202649 | AD23: 90.91060045 | AE23: 0.02108016347 | AF23: 89.06826742 | AG23: 89.15836892 | AH23: 999.9890953 | AI23: -68.84999772 | AJ23: 999.9890475 | AK23: -68.81958131 | AL23: 0.03041644648 | AM23: -3.794349321e-07
A24: 0 | B24: 1099.991282 | C24: -70.15840528 | D24: 0 | E24: 1099.991243 | F24: -70.13376609 | O24: ='Hull Long'!B24 -> 1100 | P24: ='Hull Long'!C24 -> -68.75 | Q24: ='Hull Plan'!C24 -> 0 | R24: ='Hull Long'!B75 -> 1100 | S24: ='Hull Long'!C75 -> -68.72537109 | T24: ='Hull Plan'!C75 -> 0 | U24: 0.02463891431 | V24: 100.0107459 | W24: 100.0103879 | X24: 100.0108308 | Y24: 0.03041606705 | Z24: 89.16041094 | AA24: 0.01411407635 | AB24: 90.82553865 | AC24: 89.25039685 | AD24: 90.82547498 | AE24: 0.01742342696 | AF24: 89.15703792 | AG24: 89.24708746 | AH24: 1099.991282 | AI24: -70.15840528 | AJ24: 1099.991243 | AK24: -70.13376609 | AL24: 0.02463922329 | AM24: -3.089858691e-07
A25: 0 | B25: 1199.993225 | C25: -71.31255259 | D25: 0 | E25: 1199.993194 | F25: -71.29308249 | O25: ='Hull Long'!B25 -> 1200 | P25: ='Hull Long'!C25 -> -70.0617284 | Q25: ='Hull Plan'!C25 -> 0 | R25: ='Hull Long'!B76 -> 1200 | S25: ='Hull Long'!C76 -> -70.04226851 | T25: ='Hull Plan'!C76 -> 0 | U25: 0.01946988291 | V25: 100.0086028 | W25: 100.0083494 | X25: 100.0086707 | Y25: 0.02463891431 | Z25: 89.24885838 | AA25: 0.01115353133 | AB25: 90.74006787 | AC25: =AC26+Z25+AA26+AB26-180 -> 89.33876451 | AD25: 90.73998809 | AE25: 0.01411465671 | AF25: 89.24581747 | AG25: =180+AG26-AF26-AE25-AD25 -> 89.33580334 | AH25: =AH26-V26*SIN(AC26*PI()/180) -> 1199.993225 | AI25: =AI26+V26*COS(AC26*PI()/180) -> -71.31255259 | AJ25: =AJ26-X26*SIN(AG26*PI()/180) -> 1199.993194 | AK25: =AK26+X26*COS(AG26*PI()/180) -> -71.29308249 | AL25: 0.01947012128 | AM25: -2.383644657e-07
A26: 0 | B26: 1299.994924 | C26: -72.31245602 | D26: 0 | E26: 1299.994901 | F26: -72.29754689 | O26: ='Hull Long'!B26 -> 1300 | P26: ='Hull Long'!C26 -> -71.2191358 | Q26: ='Hull Plan'!C26 -> 0 | R26: ='Hull Long'!B77 -> 1300 | S26: ='Hull Long'!C77 -> -71.20423683 | T26: ='Hull Plan'!C77 -> 0 | U26: 0.01490897285 | V26: =((O26-O25)^2+(P26-P25)^2+(Q26-Q25)^2)^0.5 -> 100.0066977 | W26: =((R26-O25)^2+(S26-P25)^2+(T26-Q25)^2)^0.5 -> 100.0065264 | X26: =((R26-R25)^2+(S26-S25)^2+(T26-T25)^2)^0.5 -> 100.0067506 | Y26: =U25 -> 0.01946988291 | Z26: 89.33732308 | AA26: 0.008541083504 | AB26: 90.65423869 | AC26: 89.42712636 | AD26: 90.65413583 | AE26: 0.011153941 | AF26: 89.33460737 | AG26: 89.42451346 | AH26: 1299.994924 | AI26: -72.31245602 | AJ26: 1299.994901 | AK26: -72.29754689 | AL26: 0.01490914068 | AM26: -1.678294854e-07
A27: 0 | B27: 1399.996379 | C27: -73.15813951 | D27: 0 | E27: 1399.996362 | F27: -73.14718324 | O27: ='Hull Long'!B27 -> 1400 | P27: ='Hull Long'!C27 -> -72.22222222 | Q27: ='Hull Plan'!C27 -> 0 | R27: ='Hull Long'!B78 -> 1400 | S27: ='Hull Long'!C78 -> -72.21127604 | T27: ='Hull Plan'!C78 -> 0 | U27: 0.01095618414 | V27: 100.0050308 | W27: 100.0049216 | X27: 100.0050705 | Y27: 0.01490897285 | Z27: 89.42581193 | AA27: 0.006276806992 | AB27: 90.56804882 | AC27: =AC28+Z27+AA28+AB28-180 -> 89.51547765 | AD27: 90.56791126 | AE27: 0.008541359331 | AF27: 89.42340982 | AG27: =180+AG28-AF28-AE27-AD27 -> 89.51321306 | AH27: =AH28-V28*SIN(AC28*PI()/180) -> 1399.996379 | AI27: =AI28+V28*COS(AC28*PI()/180) -> -73.15813951 | AJ27: =AJ28-X28*SIN(AG28*PI()/180) -> 1399.996362 | AK27: =AK28+X28*COS(AG28*PI()/180) -> -73.14718324 | AL27: 0.01095628142 | AM27: -9.728431334e-08
A28: 0 | B28: 1499.99759 | C28: -73.84964001 | D28: 0 | E28: 1499.997578 | F28: -73.84202847 | O28: ='Hull Long'!B28 -> 1500 | P28: ='Hull Long'!C28 -> -73.07098765 | Q28: ='Hull Plan'!C28 -> 0 | R28: ='Hull Long'!B79 -> 1500 | S28: ='Hull Long'!C79 -> -73.06338614 | T28: ='Hull Plan'!C79 -> 0 | U28: 0.007611516762 | V28: =((O28-O27)^2+(P28-P27)^2+(Q28-Q27)^2)^0.5 -> 100.0036019 | W28: =((R28-O27)^2+(S28-P27)^2+(T28-Q27)^2)^0.5 -> 100.0035377 | X28: =((R28-R27)^2+(S28-S27)^2+(T28-T27)^2)^0.5 -> 100.0036304 | Y28: =U27 -> 0.01095618414 | Z28: 89.51433809 | AA28: 0.004360766892 | AB28: 90.48149444 | AC28: 89.60381051 | AD28: 90.48130114 | AE28: 0.006276981534 | AF28: 89.51222858 | AG28: 89.60189426 | AH28: 1499.99759 | AI28: -73.84964001 | AJ28: 1499.997578 | AK28: -73.84202847 | AL28: 0.007611543557 | AM28: -2.679504355e-08
A29: 0 | B29: 1599.998557 | C29: -74.38701886 | D29: 0 | E29: 1599.99855 | F29: -74.38214394 | O29: ='Hull Long'!B29 -> 1600 | P29: ='Hull Long'!C29 -> -73.7654321 | Q29: ='Hull Plan'!C29 -> 0 | R29: ='Hull Long'!B80 -> 1600 | S29: ='Hull Long'!C80 -> -73.76056713 | T29: ='Hull Plan'!C80 -> 0 | U29: 0.004874970728 | V29: 100.0024112 | W29: 100.0023776 | X29: 100.0024303 | Y29: 0.007611516762 | Z29: 89.6029295 | AA29: 0.002793018931 | AB29: 90.39456886 | AC29: 89.69211054 | AD29: 90.39427748 | AE29: 0.004360868606 | AF29: 89.60107027 | AG29: 89.69054265 | AH29: 1599.998557 | AI29: -74.38701886 | AJ29: 1599.99855 | AK29: -74.38214394 | AL29: 0.004874926884 | AM29: 4.384354859e-08
A30: 0 | B30: 1699.999281 | C30: -74.77038911 | D30: 0 | E30: 1699.999277 | F30: -74.76764269 | O30: ='Hull Long'!B30 -> 1700 | P30: ='Hull Long'!C30 -> -74.30555556 | Q30: ='Hull Plan'!C30 -> 0 | R30: ='Hull Long'!B81 -> 1700 | S30: ='Hull Long'!C81 -> -74.30281901 | T30: ='Hull Plan'!C81 -> 0 | U30: 0.002746546034 | V30: 100.0014587 | W30: 100.0014439 | X30: 100.0014702 | Y30: 0.004874970728 | Z30: 89.6916561 | AA30: 0.00157360929 | AB30: 90.30725974 | AC30: 89.78034769 | AD30: 90.30677029 | AE30: 0.002793071388 | AF30: 89.68994719 | AG30: 89.77912819 | AH30: 1699.999281 | AI30: -74.77038911 | AJ30: 1699.999277 | AK30: -74.76764269 | AL30: 0.002746431211 | AM30: 1.148238147e-07
A31: 0 | B31: 1799.999762 | C31: -74.99999491 | D31: 0 | E31: 1799.99976 | F31: -74.99876885 | O31: ='Hull Long'!B31 -> 1800 | P31: ='Hull Long'!C31 -> -74.69135802 | Q31: ='Hull Plan'!C31 -> 0 | R31: ='Hull Long'!B82 -> 1800 | S31: ='Hull Long'!C82 -> -74.69014178 | T31: ='Hull Plan'!C82 -> 0 | U31: =((O31-R31)^2+(S31-P31)^2+(T31-Q31)^2)^0.5+0.00001 -> 0.001226242682 | V31: =((O31-O30)^2+(P31-P30)^2+(Q31-Q30)^2)^0.5 -> 100.0007442 | W31: =((R31-O30)^2+(S31-P30)^2+(T31-Q30)^2)^0.5 -> 100.0007395 | X31: =((R31-R30)^2+(S31-S30)^2+(T31-T30)^2)^0.5 -> 100.0007501 | Y31: =U30 -> 0.002746546034 | Z31: =ACOS((U31*U31+V31*V31-W31*W31)/2/U31/V31)*180/PI() -> 89.78074951 | AA31: =ACOS((V31*V31+W31*W31-U31*U31)/2/V31/W31)*180/PI() -> 0.0007025753084 | AB31: =ACOS((W31*W31+Y31*Y31-X31*X31)/2/W31/Y31)*180/PI() -> 90.21954258 | AC31: =AC32+Z31+AA32+AB32-180 -> 89.86844643 | AD31: =ACOS((U31*U31+W31*W31-V31*V31)/2/U31/W31)*180/PI() -> 90.21854792 | AE31: =ACOS((W31*W31+X31*X31-Y31*Y31)/2/W31/X31)*180/PI() -> 0.001573631756 | AF31: =ACOS((X31*X31+Y31*Y31-W31*W31)/2/X31/Y31)*180/PI() -> 89.77888378 | AG31: =180+AG32-AF32-AE31-AD31 -> 89.86757534 | AH31: =AH32-V32*SIN(AC32*PI()/180) -> 1799.999762 | AI31: =AI32+V32*COS(AC32*PI()/180) -> -74.99999491 | AJ31: =AJ32-X32*SIN(AG32*PI()/180) -> 1799.99976 | AK31: =AK32+X32*COS(AG32*PI()/180) -> -74.99876885 | AL31: =((AH31-AJ31)^2+(AI31-AK31)^2)^0.5 -> 0.001226058102 | AM31: =U31-AL31 -> 1.845797938e-07
A32: 0 | B32: 2000 | C32: -75 | D32: 0 | E32: 2000 | F32: -74.99999 | O32: ='Hull Long'!B32 -> 2000 | P32: ='Hull Long'!C32 -> -75 | Q32: ='Hull Plan'!C32 -> 0 | R32: ='Hull Long'!B83 -> 2000 | S32: ='Hull Long'!C83 -> -75 | T32: ='Hull Plan'!C83 -> 0 | U32: =((O32-R32)^2+(S32-P32)^2+(T32-Q32)^2)^0.5+0.00001 -> 1e-05 | V32: =((O32-O31)^2+(P32-P31)^2+(Q32-Q31)^2)^0.5 -> 200.0002381 | W32: =((R32-O31)^2+(S32-P31)^2+(T32-Q31)^2)^0.5 -> 200.0002381 | X32: =((R32-R31)^2+(S32-S31)^2+(T32-T31)^2)^0.5 -> 200.00024 | Y32: =U31 -> 0.001226242682 | Z32: =ACOS((U32*U32+V32*V32-W32*W32)/2/U32/V32)*180/PI() -> 89.99999854 | AA32: =ACOS((V32*V32+W32*W32-U32*U32)/2/V32/W32)*180/PI() -> 2.957558665e-06 | AB32: =ACOS((W32*W32+Y32*Y32-X32*X32)/2/W32/Y32)*180/PI() -> 90.08769543 | AC32: =Z32 -> 89.99999854 | AD32: =ACOS((U32*U32+W32*W32-V32*V32)/2/U32/W32)*180/PI() -> 89.99999854 | AE32: =ACOS((W32*W32+X32*X32-Y32*Y32)/2/W32/X32)*180/PI() -> 0.0003512923229 | AF32: =ACOS((X32*X32+Y32*Y32-W32*W32)/2/X32/Y32)*180/PI() -> 89.91195328 | AG32: =180-AD32-AE32 -> 89.99965017 | AH32: =O32 -> 2000 | AI32: =P32 -> -75 | AJ32: =AH32 -> 2000 | AK32: =AI32+U32 -> -74.99999 | AL32: =((AH32-AJ32)^2+(AI32-AK32)^2)^0.5 -> 1e-05 | AM32: =U32-AL32 -> -3.174135691e-15
A33: 0 | B33: 2000 | C33: -75 | D33: 0 | E33: 2000 | F33: -74.99999 | O33: ='Hull Long'!B33 -> 2000 | P33: ='Hull Long'!C33 -> -75 | Q33: ='Hull Plan'!C33 -> 0 | R33: ='Hull Long'!B84 -> 2000 | S33: ='Hull Long'!C84 -> -75 | T33: ='Hull Plan'!C84 -> 0 | U33: =((O33-R33)^2+(S33-P33)^2+(T33-Q33)^2)^0.5+0.00001 -> 1e-05 | V33: =((O33-O34)^2+(P33-P34)^2+(Q33-Q34)^2)^0.5 -> 200.0002381 | W33: =((R33-O34)^2+(S33-P34)^2+(T33-Q34)^2)^0.5 -> 200.0002381 | X33: =((R33-R34)^2+(S33-S34)^2+(T33-T34)^2)^0.5 -> 200.00024 | Y33: =U34 -> 0.001226242682 | Z33: =ACOS((U33*U33+V33*V33-W33*W33)/2/U33/V33)*180/PI() -> 89.99999854 | AA33: =ACOS((V33*V33+W33*W33-U33*U33)/2/V33/W33)*180/PI() -> 2.957558665e-06 | AB33: =ACOS((W33*W33+Y33*Y33-X33*X33)/2/W33/Y33)*180/PI() -> 90.08769543 | AC33: =Z33 -> 89.99999854 | AD33: =ACOS((U33*U33+W33*W33-V33*V33)/2/U33/W33)*180/PI() -> 89.99999854 | AE33: =ACOS((W33*W33+X33*X33-Y33*Y33)/2/W33/X33)*180/PI() -> 0.0003512923229 | AF33: =ACOS((X33*X33+Y33*Y33-W33*W33)/2/X33/Y33)*180/PI() -> 89.91195328 | AG33: =180-AD33-AE33 -> 89.99965017 | AH33: =O33 -> 2000 | AI33: =P33 -> -75 | AJ33: =AH33 -> 2000 | AK33: =AI33+U33 -> -74.99999 | AL33: =((AH33-AJ33)^2+(AI33-AK33)^2)^0.5 -> 1e-05 | AM33: =U33-AL33 -> -3.174135691e-15
A34: 0 | B34: 2200.000238 | C34: -74.99999491 | D34: 0 | E34: 2200.00024 | F34: -74.99876885 | O34: ='Hull Long'!B34 -> 2200 | P34: ='Hull Long'!C34 -> -74.69135802 | Q34: ='Hull Plan'!C34 -> 0 | R34: ='Hull Long'!B85 -> 2200 | S34: ='Hull Long'!C85 -> -74.69014178 | T34: ='Hull Plan'!C85 -> 0 | U34: =((O34-R34)^2+(S34-P34)^2+(T34-Q34)^2)^0.5+0.00001 -> 0.001226242682 | V34: =((O34-O35)^2+(P34-P35)^2+(Q34-Q35)^2)^0.5 -> 100.0007442 | W34: =((R34-O35)^2+(S34-P35)^2+(T34-Q35)^2)^0.5 -> 100.0007395 | X34: =((R34-R35)^2+(S34-S35)^2+(T34-T35)^2)^0.5 -> 100.0007501 | Y34: =U35 -> 0.002746546034 | Z34: =ACOS((U34*U34+V34*V34-W34*W34)/2/U34/V34)*180/PI() -> 89.78074951 | AA34: =ACOS((V34*V34+W34*W34-U34*U34)/2/V34/W34)*180/PI() -> 0.0007025753084 | AB34: =ACOS((W34*W34+Y34*Y34-X34*X34)/2/W34/Y34)*180/PI() -> 90.21954258 | AC34: =AC33+Z34+AA33+AB33-180 -> 89.86844643 | AD34: =ACOS((U34*U34+W34*W34-V34*V34)/2/U34/W34)*180/PI() -> 90.21854792 | AE34: =ACOS((W34*W34+X34*X34-Y34*Y34)/2/W34/X34)*180/PI() -> 0.001573631756 | AF34: =ACOS((X34*X34+Y34*Y34-W34*W34)/2/X34/Y34)*180/PI() -> 89.77888378 | AG34: =180+AG33-AF33-AE34-AD34 -> 89.86757534 | AH34: =AH33+V33*SIN(AC33*PI()/180) -> 2200.000238 | AI34: =AI33+V33*COS(AC33*PI()/180) -> -74.99999491 | AJ34: =AJ33+X33*SIN(AG33*PI()/180) -> 2200.00024 | AK34: =AK33+X33*COS(AG33*PI()/180) -> -74.99876885 | AL34: =((AH34-AJ34)^2+(AI34-AK34)^2)^0.5 -> 0.001226058102 | AM34: =U34-AL34 -> 1.845797938e-07
A35: 0 | B35: 2300.000719 | C35: -74.77038911 | D35: 0 | E35: 2300.000723 | F35: -74.76764269 | O35: ='Hull Long'!B35 -> 2300 | P35: ='Hull Long'!C35 -> -74.30555556 | Q35: ='Hull Plan'!C35 -> 0 | R35: ='Hull Long'!B86 -> 2300 | S35: ='Hull Long'!C86 -> -74.30281901 | T35: ='Hull Plan'!C86 -> 0 | U35: =((O35-R35)^2+(S35-P35)^2+(T35-Q35)^2)^0.5+0.00001 -> 0.002746546034 | V35: =((O35-O36)^2+(P35-P36)^2+(Q35-Q36)^2)^0.5 -> 100.0014587 | W35: =((R35-O36)^2+(S35-P36)^2+(T35-Q36)^2)^0.5 -> 100.0014439 | X35: =((R35-R36)^2+(S35-S36)^2+(T35-T36)^2)^0.5 -> 100.0014702 | Y35: =U36 -> 0.004874970728 | Z35: =ACOS((U35*U35+V35*V35-W35*W35)/2/U35/V35)*180/PI() -> 89.6916561 | AA35: =ACOS((V35*V35+W35*W35-U35*U35)/2/V35/W35)*180/PI() -> 0.00157360929 | AB35: =ACOS((W35*W35+Y35*Y35-X35*X35)/2/W35/Y35)*180/PI() -> 90.30725974 | AC35: =AC34+Z35+AA34+AB34-180 -> 89.78034769 | AD35: =ACOS((U35*U35+W35*W35-V35*V35)/2/U35/W35)*180/PI() -> 90.30677029 | AE35: =ACOS((W35*W35+X35*X35-Y35*Y35)/2/W35/X35)*180/PI() -> 0.002793071388 | AF35: =ACOS((X35*X35+Y35*Y35-W35*W35)/2/X35/Y35)*180/PI() -> 89.68994719 | AG35: =180+AG34-AF34-AE35-AD35 -> 89.77912819 | AH35: =AH34+V34*SIN(AC34*PI()/180) -> 2300.000719 | AI35: =AI34+V34*COS(AC34*PI()/180) -> -74.77038911 | AJ35: =AJ34+X34*SIN(AG34*PI()/180) -> 2300.000723 | AK35: =AK34+X34*COS(AG34*PI()/180) -> -74.76764269 | AL35: =((AH35-AJ35)^2+(AI35-AK35)^2)^0.5 -> 0.002746431211 | AM35: =U35-AL35 -> 1.148238144e-07
A36: 0 | B36: 2400.001443 | C36: -74.38701886 | D36: 0 | E36: 2400.00145 | F36: -74.38214394 | O36: ='Hull Long'!B36 -> 2400 | P36: ='Hull Long'!C36 -> -73.7654321 | Q36: ='Hull Plan'!C36 -> 0 | R36: ='Hull Long'!B87 -> 2400 | S36: ='Hull Long'!C87 -> -73.76056713 | T36: ='Hull Plan'!C87 -> 0 | U36: 0.004874970728 | V36: 100.0024112 | W36: 100.0023776 | X36: 100.0024303 | Y36: 0.007611516762 | Z36: 89.6029295 | AA36: 0.002793018931 | AB36: 90.39456886 | AC36: 89.69211054 | AD36: 90.39427748 | AE36: 0.004360868606 | AF36: 89.60107027 | AG36: 89.69054265 | AH36: 2400.001443 | AI36: -74.38701886 | AJ36: 2400.00145 | AK36: -74.38214394 | AL36: 0.004874926884 | AM36: 4.384354823e-08
A37: 0 | B37: 2500.00241 | C37: -73.84964001 | D37: 0 | E37: 2500.002422 | F37: -73.84202847 | O37: ='Hull Long'!B37 -> 2500 | P37: ='Hull Long'!C37 -> -73.07098765 | Q37: ='Hull Plan'!C37 -> 0 | R37: ='Hull Long'!B88 -> 2500 | S37: ='Hull Long'!C88 -> -73.06338614 | T37: ='Hull Plan'!C88 -> 0 | U37: 0.007611516762 | V37: =((O37-O38)^2+(P37-P38)^2+(Q37-Q38)^2)^0.5 -> 100.0036019 | W37: =((R37-O38)^2+(S37-P38)^2+(T37-Q38)^2)^0.5 -> 100.0035377 | X37: =((R37-R38)^2+(S37-S38)^2+(T37-T38)^2)^0.5 -> 100.0036304 | Y37: =U38 -> 0.01095618414 | Z37: 89.51433809 | AA37: 0.004360766892 | AB37: 90.48149444 | AC37: 89.60381051 | AD37: 90.48130114 | AE37: 0.006276981534 | AF37: 89.51222858 | AG37: 89.60189426 | AH37: 2500.00241 | AI37: -73.84964001 | AJ37: 2500.002422 | AK37: -73.84202847 | AL37: 0.007611543557 | AM37: -2.679504391e-08
A38: 0 | B38: 2600.003621 | C38: -73.15813951 | D38: 0 | E38: 2600.003638 | F38: -73.14718324 | O38: ='Hull Long'!B38 -> 2600 | P38: ='Hull Long'!C38 -> -72.22222222 | Q38: ='Hull Plan'!C38 -> 0 | R38: ='Hull Long'!B89 -> 2600 | S38: ='Hull Long'!C89 -> -72.21127604 | T38: ='Hull Plan'!C89 -> 0 | U38: 0.01095618414 | V38: 100.0050308 | W38: 100.0049216 | X38: 100.0050705 | Y38: 0.01490897285 | Z38: 89.42581193 | AA38: 0.006276806992 | AB38: 90.56804882 | AC38: =AC37+Z38+AA37+AB37-180 -> 89.51547765 | AD38: 90.56791126 | AE38: 0.008541359331 | AF38: 89.42340982 | AG38: =180+AG37-AF37-AE38-AD38 -> 89.51321306 | AH38: =AH37+V37*SIN(AC37*PI()/180) -> 2600.003621 | AI38: =AI37+V37*COS(AC37*PI()/180) -> -73.15813951 | AJ38: =AJ37+X37*SIN(AG37*PI()/180) -> 2600.003638 | AK38: =AK37+X37*COS(AG37*PI()/180) -> -73.14718324 | AL38: 0.01095628142 | AM38: -9.728431298e-08
A39: 0 | B39: 2700.005076 | C39: -72.31245602 | D39: 0 | E39: 2700.005099 | F39: -72.29754689 | O39: ='Hull Long'!B39 -> 2700 | P39: ='Hull Long'!C39 -> -71.2191358 | Q39: ='Hull Plan'!C39 -> 0 | R39: ='Hull Long'!B90 -> 2700 | S39: ='Hull Long'!C90 -> -71.20423683 | T39: ='Hull Plan'!C90 -> 0 | U39: 0.01490897285 | V39: =((O39-O40)^2+(P39-P40)^2+(Q39-Q40)^2)^0.5 -> 100.0066977 | W39: =((R39-O40)^2+(S39-P40)^2+(T39-Q40)^2)^0.5 -> 100.0065264 | X39: =((R39-R40)^2+(S39-S40)^2+(T39-T40)^2)^0.5 -> 100.0067506 | Y39: =U40 -> 0.01946988291 | Z39: 89.33732308 | AA39: 0.008541083504 | AB39: 90.65423869 | AC39: 89.42712636 | AD39: 90.65413583 | AE39: 0.011153941 | AF39: 89.33460737 | AG39: 89.42451346 | AH39: 2700.005076 | AI39: -72.31245602 | AJ39: 2700.005099 | AK39: -72.29754689 | AL39: 0.01490914068 | AM39: -1.678294858e-07
A40: 0 | B40: =(AH40-$AH$53)*COS(RADIANS($J$8))+$AH$53-(AI40-$AI$53)*SIN(RADIANS($J$8))+$H$8 -> 2800.006775 | C40: =(AI40-$AI$53)*COS(RADIANS($J$8))+$AI$53+(AH40-$AH$53)*SIN(RADIANS($J$8))+$I$8 -> -71.31255259 | D40: 0 | E40: =(AJ40-$AH$53)*COS(RADIANS($J$8))+$AH$53-(AK40-$AI$53)*SIN(RADIANS($J$8))+$H$8 -> 2800.006806 | F40: =(AK40-$AI$53)*COS(RADIANS($J$8))+$AI$53+(AJ40-$AH$53)*SIN(RADIANS($J$8))+$I$8 -> -71.29308249 | O40: ='Hull Long'!B40 -> 2800 | P40: ='Hull Long'!C40 -> -70.0617284 | Q40: ='Hull Plan'!C40 -> 0 | R40: ='Hull Long'!B91 -> 2800 | S40: ='Hull Long'!C91 -> -70.04226851 | T40: ='Hull Plan'!C91 -> 0 | U40: 0.01946988291 | V40: 100.0086028 | W40: 100.0083494 | X40: 100.0086707 | Y40: 0.02463891431 | Z40: 89.24885838 | AA40: 0.01115353133 | AB40: 90.74006787 | AC40: =AC39+Z40+AA39+AB39-180 -> 89.33876451 | AD40: 90.73998809 | AE40: 0.01411465671 | AF40: 89.24581747 | AG40: =180+AG39-AF39-AE40-AD40 -> 89.33580334 | AH40: =AH39+V39*SIN(AC39*PI()/180) -> 2800.006775 | AI40: =AI39+V39*COS(AC39*PI()/180) -> -71.31255259 | AJ40: =AJ39+X39*SIN(AG39*PI()/180) -> 2800.006806 | AK40: =AK39+X39*COS(AG39*PI()/180) -> -71.29308249 | AL40: 0.01947012128 | AM40: -2.383644664e-07
A41: 0 | B41: 2900.008718 | C41: -70.15840528 | D41: 0 | E41: 2900.008757 | F41: -70.13376609 | O41: ='Hull Long'!B41 -> 2900 | P41: ='Hull Long'!C41 -> -68.75 | Q41: ='Hull Plan'!C41 -> 0 | R41: ='Hull Long'!B92 -> 2900 | S41: ='Hull Long'!C92 -> -68.72537109 | T41: ='Hull Plan'!C92 -> 0 | U41: 0.02463891431 | V41: 100.0107459 | W41: 100.0103879 | X41: 100.0108308 | Y41: 0.03041606705 | Z41: 89.16041094 | AA41: 0.01411407635 | AB41: 90.82553865 | AC41: 89.25039685 | AD41: 90.82547498 | AE41: 0.01742342696 | AF41: 89.15703792 | AG41: 89.24708746 | AH41: 2900.008718 | AI41: -70.15840528 | AJ41: 2900.008757 | AK41: -70.13376609 | AL41: 0.02463922329 | AM41: -3.089858702e-07
A42: 0 | B42: 3000.010905 | C42: -68.84999772 | D42: 0 | E42: 3000.010952 | F42: -68.81958131 | O42: ='Hull Long'!B42 -> 3000 | P42: ='Hull Long'!C42 -> -67.28395062 | Q42: ='Hull Plan'!C42 -> 0 | R42: ='Hull Long'!B93 -> 3000 | S42: ='Hull Long'!C93 -> -67.25354455 | T42: ='Hull Plan'!C93 -> 0 | U42: 0.03041606705 | V42: 100.0131271 | W42: 100.0126391 | X42: 100.0132308 | Y42: 0.03680134113 | Z42: 89.07197691 | AA42: 0.017422635 | AB42: 90.91065242 | AC42: 89.16202649 | AD42: 90.91060045 | AE42: 0.02108016347 | AF42: 89.06826742 | AG42: 89.15836892 | AH42: 3000.010905 | AI42: -68.84999772 | AJ42: 3000.010952 | AK42: -68.81958131 | AL42: 0.03041644648 | AM42: -3.794349332e-07
A43: 0 | B43: 3100.013336 | C43: -67.38731819 | D43: 0 | E43: 3100.013393 | F43: -67.35051645 | O43: ='Hull Long'!B43 -> 3100 | P43: ='Hull Long'!C43 -> -65.66358025 | Q43: ='Hull Plan'!C43 -> 0 | R43: ='Hull Long'!B94 -> 3100 | S43: ='Hull Long'!C94 -> -65.62678891 | T43: ='Hull Plan'!C94 -> 0 | U43: 0.03680134113 | V43: 100.0157464 | W43: 100.0151003 | X43: 100.0158707 | Y43: 0.04379473655 | Z43: 88.98355405 | AA43: 0.02107911481 | AB43: 90.99541004 | AC43: 89.0736556 | AD43: 90.99536683 | AE43: 0.02508476864 | AF43: 88.97950519 | AG43: 89.0696499 | AH43: 3100.013336 | AI43: -67.38731819 | AJ43: 3100.013393 | AK43: -67.35051645 | AL43: 0.03680179108 | AM43: -4.499516128e-07
A44: 0 | B44: 3200.01601 | C44: -65.77035807 | D44: 0 | E44: 3200.016079 | F44: -65.72656287 | O44: ='Hull Long'!B44 -> 3200 | P44: ='Hull Long'!C44 -> -63.88888889 | Q44: ='Hull Plan'!C44 -> 0 | R44: ='Hull Long'!B95 -> 3200 | S44: ='Hull Long'!C95 -> -63.84510415 | T44: ='Hull Plan'!C95 -> 0 | U44: 0.04379473655 | V44: 99.01840295 | W44: 99.0175685 | X44: 99.01854826 | Y44: 0.05131722794 | Z44: 88.89558281 | AA44: 0.02533679166 | AB44: 91.07911653 | AC44: 88.98572756 | AD44: 91.0790804 | AE44: 0.02968877332 | AF44: 88.8911947 | AG44: 88.98137554 | AH44: 3200.01601 | AI44: -65.77035807 | AJ44: 3200.016079 | AK44: -65.72656287 | AL44: 0.04379525703 | AM44: -5.204763497e-07
A45: 0 | B45: 3299.018899 | C45: -64.01758689 | D45: 0 | E45: 3299.018979 | F45: -63.96626913 | O45: ='Hull Long'!B45 -> 3299 | P45: ='Hull Long'!C45 -> -61.97993056 | Q45: ='Hull Plan'!C45 -> 0 | R45: ='Hull Long'!B96 -> 3299 | S45: ='Hull Long'!C96 -> -61.92862333 | T45: ='Hull Plan'!C96 -> 0 | U45: 0.05131722794 | V45: 2.000402432 | W45: 2.000031269 | X45: 2.00040561 | Y45: 0.05147533949 | Z45: 88.85063934 | AA45: 1.469972779 | AB45: 89.67938769 | AC45: 88.94082022 | AD45: 89.67938788 | AE45: 1.474500511 | AF45: 88.8461118 | AG45: 88.93629245 | AH45: 3299.018899 | AI45: -64.01758689 | AJ45: 3299.018979 | AK45: -63.96626913 | AL45: 0.05131781832 | AM45: -5.903733541e-07
A46: 0 | B46: 3301.018959 | C46: -63.9806092 | D46: 0 | E46: 3301.01904 | F46: -63.92913334 | O46: ='Hull Long'!B46 -> 3301 | P46: ='Hull Long'!C46 -> -61.9398071 | Q46: ='Hull Plan'!C46 -> 0 | R46: ='Hull Long'!B97 -> 3301 | S46: ='Hull Long'!C97 -> -61.88834176 | T46: ='Hull Plan'!C97 -> 0 | U46: 0.05147533949 | V46: 99.02149796 | W46: 99.02043897 | X46: 99.0216677 | Y46: 0.05960589141 | Z46: 88.80629486 | AA46: 0.02977849622 | AB46: 91.1639575 | AC46: 88.89647555 | AD46: 91.16392664 | AE46: 0.0344819635 | AF46: 88.80156054 | AG46: 88.89177204 | AH46: 3301.018959 | AI46: -63.9806092 | AJ46: 3301.01904 | AK46: -63.92913334 | AL46: 0.05147593128 | AM46: -5.917852008e-07
A47: 0 | B47: 3400.022092 | C47: -62.07355969 | D47: 0 | E47: 3400.022186 | F47: -62.01395321 | O47: ='Hull Long'!B47 -> 3400 | P47: ='Hull Long'!C47 -> -59.87654321 | Q47: ='Hull Plan'!C47 -> 0 | R47: ='Hull Long'!B98 -> 3400 | S47: ='Hull Long'!C98 -> -59.81694732 | T47: ='Hull Plan'!C98 -> 0 | U47: 0.05960589141 | V47: 100.0250324 | W47: 100.0237169 | X47: 100.02523 | Y47: 0.06842365086 | Z47: 88.7183418 | AA47: 0.03413502235 | AB47: 91.24755016 | AC47: 88.80855334 | AD47: 91.24752318 | AE47: 0.03918468796 | AF47: 88.71326515 | AG47: 88.80350363 | AH47: 3400.022092 | AI47: -62.07355969 | AJ47: 3400.022186 | AK47: -62.01395321 | AL47: 0.05960655308 | AM47: -6.616704214e-07
A48: 0 | B48: 3500.025499 | C48: -59.99372234 | D48: 0 | E48: 3500.025606 | F48: -59.92529805 | O48: ='Hull Long'!B48 -> 3500 | P48: ='Hull Long'!C48 -> -57.63888889 | Q48: ='Hull Plan'!C48 -> 0 | R48: ='Hull Long'!B99 -> 3500 | S48: ='Hull Long'!C99 -> -57.57047524 | T48: ='Hull Plan'!C99 -> 0 | U48: 0.06842365086 | V48: 100.0286036 | W48: 100.0269911 | X48: 100.0288295 | Y48: 0.07784953164 | Z48: 88.62995496 | AA48: 0.03918208419 | AB48: 91.33088652 | AC48: 88.72019348 | AD48: 91.33086296 | AE48: 0.04457961565 | AF48: 88.62453387 | AG48: 88.71479591 | AH48: 3500.025499 | AI48: -59.99372234 | AJ48: 3500.025606 | AK48: -59.92529805 | AL48: 0.06842438308 | AM48: -7.322199813e-07
A49: 0 | B49: 3600.029149 | C49: -57.75958547 | D49: 0 | E49: 3600.029272 | F49: -57.68173523 | O49: ='Hull Long'!B49 -> 3600 | P49: ='Hull Long'!C49 -> -55.24691358 | Q49: ='Hull Plan'!C49 -> 0 | R49: ='Hull Long'!B100 -> 3600 | S49: ='Hull Long'!C100 -> -55.16907405 | T49: ='Hull Plan'!C100 -> 0 | U49: 0.07784953164 | V49: 100.0324129 | W49: 100.0304618 | X49: 100.0326688 | Y49: 0.08788353377 | Z49: 88.54157654 | AA49: 0.04457647243 | AB49: 91.41386773 | AC49: 88.63183862 | AD49: 91.41384699 | AE49: 0.05032179239 | AF49: 88.53581048 | AG49: 88.62609326 | AH49: 3600.029149 | AI49: -57.75958547 | AJ49: 3600.029272 | AK49: -57.68173523 | AL49: 0.07785033439 | AM49: -8.027515299e-07
A50: 0 | B50: 3700.033044 | C50: -55.37114641 | D50: 0 | E50: 3700.033183 | F50: -55.28326211 | O50: ='Hull Long'!B50 -> 3700 | P50: ='Hull Long'!C50 -> -52.70061728 | Q50: ='Hull Plan'!C50 -> 0 | R50: ='Hull Long'!B101 -> 3700 | S50: ='Hull Long'!C101 -> -52.61274375 | T50: ='Hull Plan'!C101 -> 0 | U50: 0.08788353377 | V50: 50.01771297 | W50: 50.01545171 | X50: 50.01785282 | Y50: 0.09312858033 | Z50: 88.47528735 | AA50: 0.1006404057 | AB50: 91.42408137 | AC50: 88.56557018 | AD50: 91.42407224 | AE50: 0.1066465133 | AF50: 88.46927212 | AG50: 88.55956403 | AH50: 3700.033044 | AI50: -55.37114641 | AJ50: 3700.033183 | AK50: -55.28326211 | AL50: 0.08788440706 | AM50: -8.732934837e-07
A51: 0 | B51: 3750.035083 | C51: -54.1190576 | D51: 0 | E51: 3750.03523 | F51: -54.02592822 | O51: ='Hull Long'!B51 -> 3750 | P51: ='Hull Long'!C51 -> -51.36959877 | Q51: ='Hull Plan'!C51 -> 0 | R51: ='Hull Long'!B102 -> 3750 | S51: ='Hull Long'!C102 -> -51.27648019 | T51: ='Hull Plan'!C102 -> 0 | U51: 0.09312858033 | V51: 50.01875449 | W51: 50.01629136 | X51: 50.01890256 | Y51: 0.09852565724 | Z51: 88.43110484 | AA51: 0.1066428009 | AB51: 91.46226096 | AC51: 88.52139679 | AD51: 91.46225236 | AE51: 0.1128227403 | AF51: 88.4249163 | AG51: 88.51521681 | AH51: 3750.035083 | AI51: -54.1190576 | AJ51: 3750.03523 | AK51: -54.02592822 | AL51: 0.09312948891 | AM51: -9.085710956e-07
A52: 0 | B52: 3800.037183 | C52: -52.82839216 | D52: 0 | E52: 3800.037338 | F52: -52.72986568 | O52: ='Hull Long'!B52 -> 3800 | P52: ='Hull Long'!C52 -> -50 | Q52: ='Hull Plan'!C52 -> 0 | R52: ='Hull Long'!B103 -> 3800 | S52: ='Hull Long'!C103 -> -49.90148434 | T52: ='Hull Plan'!C103 -> 0 | U52: 0.09852565724 | V52: 0.1132827722 | W52: 0.05324649985 | X52: 0.05324649985 | Y52: 1e-05 | Z52: 28.02466216 | AA52: 60.38883338 | AB52: 89.99461976 | AC52: 28.11496272 | AD52: 91.58650446 | AE52: 0.01076047807 | AF52: 89.99461976 | AG52: 88.49303558 | AH52: 3800.037183 | AI52: -52.82839216 | AJ52: 3800.037338 | AK52: -52.72986568 | AL52: 0.09852660108 | AM52: -9.438482545e-07
A53: 0 | B53: 3800.090566 | C53: -52.72847632 | D53: 0 | E53: 3800.090566 | F53: -52.72846538 | O53: ='Hull Long'!B53 -> 3800.053226 | P53: ='Hull Long'!C53 -> -49.9 | Q53: ='Hull Plan'!C53 -> 0 | R53: ='Hull Long'!B104 -> 3800.053226 | S53: ='Hull Long'!C104 -> -49.9 | T53: ='Hull Plan'!C104 -> 0 | U53: 1e-05 | V53: 0.1132827722 | W53: 0.1132827722 | X53: 0.1132827722 | Y53: 1e-05 | Z53: 89.99747112 | AA53: 0.005057766468 | AB53: 89.99747112 | AC53: 88.49588697 | AD53: 89.99747112 | AE53: 0.005057766468 | AF53: 89.99747112 | AG53: 88.49588693 | AH53: 3800.090566 | AI53: -52.72847632 | AJ53: 3800.090566 | AK53: -52.72846538 | AL53: 1.094400301e-05 | AM53: -9.44003011e-07
A54: 0 | B54: 3800.20381 | C54: -52.7255028 | D54: 0 | E54: 3800.20381 | F54: -52.72549186 | O54: ='Hull Long'!B54 -> 3800.106452 | P54: ='Hull Long'!C54 -> -49.8 | Q54: ='Hull Plan'!C54 -> 0 | R54: ='Hull Long'!B105 -> 3800.106452 | S54: ='Hull Long'!C105 -> -49.8 | T54: ='Hull Plan'!C105 -> 0 | U54: 1e-05 | V54: 282.9803649 | W54: 282.9803649 | X54: 282.9803649 | Y54: 1e-05 | Z54: 89.99999897 | AA54: 1.707547293e-06 | AB54: 89.99999897 | AC54: 88.49841482 | AD54: 89.99999897 | AE54: 1.707547293e-06 | AF54: 89.99999897 | AG54: 88.49841514 | AH54: 3800.20381 | AI54: -52.7255028 | AJ54: 3800.20381 | AK54: -52.72549186 | AL54: 1.094408307e-05 | AM54: -9.440830669e-07
A55: 0 | B55: 4083.087 | C55: -45.31011402 | D55: 0 | E55: 4083.086999 | F55: -45.31010463 | O55: ='Hull Long'!B55 -> 3933.064516 | P55: ='Hull Long'!C55 -> 200 | Q55: ='Hull Plan'!C55 -> 0 | R55: ='Hull Long'!B106 -> 3933.064516 | S55: ='Hull Long'!C106 -> 200 | T55: ='Hull Plan'!C106 -> 0 | U55: 1e-05 | V55: 67.96966331 | W55: 67.96966331 | X55: 67.96966331 | Y55: 1e-05 | Z55: 89.99999578 | AA55: 8.451927883e-06 | AB55: 89.99999578 | AC55: 88.49841128 | AD55: 89.99999578 | AE55: 8.451927883e-06 | AF55: 89.99999578 | AG55: 88.49841194 | AH55: 4083.087 | AI55: -45.31011402 | AJ55: 4083.086999 | AK55: -45.31010463 | AL55: 9.391793625e-06 | AM55: 6.082063754e-07
A56: 0 | B56: 4151.033322 | C56: -43.52899161 | D56: 0 | E56: 4151.033322 | F56: -43.528983 | O56: ='Hull Long'!B56 -> 3965 | P56: ='Hull Long'!C56 -> 260 | Q56: ='Hull Plan'!C56 -> 0 | R56: ='Hull Long'!B107 -> 3965 | S56: ='Hull Long'!C107 -> 260 | T56: ='Hull Plan'!C107 -> 0 | U56: 1e-05 | V56: 74.49200474 | W56: 74.49200474 | X56: 74.49200474 | Y56: 1e-05 | Z56: 89.99999615 | AA56: 7.683962816e-06 | AB56: 89.99999615 | AC56: 88.49841167 | AD56: 89.99999615 | AE56: 7.683962816e-06 | AF56: 89.99999615 | AG56: 88.49841232 | AH56: 4151.033322 | AI56: -43.52899161 | AJ56: 4151.033322 | AK56: -43.528983 | AL56: 8.619953984e-06 | AM56: 1.380046016e-06
A57: 0 | B57: 4225.499746 | C57: -41.57695393 | D57: 0 | E57: 4225.499746 | F57: -41.57694615 | O57: ='Hull Long'!B57 -> 4000 | P57: ='Hull Long'!C57 -> 325.7575758 | Q57: ='Hull Plan'!C57 -> 0 | R57: ='Hull Long'!B108 -> 4000 | S57: ='Hull Long'!C108 -> 325.7575758 | T57: ='Hull Plan'!C108 -> 0 | U57: 1e-05 | AH57: 4225.499746 | AI57: -41.57695393 | AJ57: 4225.499746 | AK57: -41.57694615 | AL57: 7.783911155e-06 | AM57: 2.216088845e-06
A58: 0 | B58: 0 | C58: 0 | D58: 0 | E58: 0 | F58: 0 | O58: X0 | P58: Z0 | Q58: Y0 | R58: X1 | S58: Z1 | T58: Y1 | U58: F | V58: L | W58: D | X58: U | Y58: F' | Z58: A1 | AA58: A2 | AB58: A3 | AC58: A | AD58: B1 | AE58: B2 | AF58: B3 | AG58: B | AH58: XA | AI58: YA | AJ58: XB | AK58: YB | AL58: Check F | AM58: Error F
A59: 0 | B59: =AH59+$H$59 -> -210.2799315 | C59: =AI59+$I$59 -> -113.8092347 | D59: 0 | E59: =AJ59+$H$59 -> -210.2799338 | F59: =AK59+$I$59 -> -113.8092265 | G59: Bottom Plank | H59: =0*Basic!$D$2 -> 0 | I59: =75*Basic!$D$2 -> 75 | O59: ='Hull Long'!B59 -> 0 | P59: ='Hull Long'!C59 -> 325.7575758 | Q59: ='Hull Plan'!C59 -> 0 | R59: ='Hull Long'!B110 -> 0 | S59: ='Hull Long'!C110 -> 325.7575758 | T59: ='Hull Plan'!C110 -> 0 | U59: =((O59-R59)^2+(S59-P59)^2+(T59-Q59)^2)^0.5+0.00001 -> 1e-05 | AH59: =AH60-V60*SIN(AC60*PI()/180) -> -210.2799315 | AI59: =AI60+V60*COS(AC60*PI()/180) -> -188.8092347 | AJ59: =AJ60-X60*SIN(AG60*PI()/180) -> -210.2799338 | AK59: =AK60+X60*COS(AG60*PI()/180) -> -188.8092265 | AL59: =((AH59-AJ59)^2+(AI59-AK59)^2)^0.5 -> 8.535967752e-06 | AM59: =U59-AL59 -> 1.464032248e-06
A60: 0 | B60: =AH60+$H$59 -> -138.5063645 | C60: =AI60+$I$59 -> -93.8689776 | D60: 0 | E60: =AJ60+$H$59 -> -138.5063669 | F60: =AK60+$I$59 -> -93.86896903 | O60: ='Hull Long'!B60 -> 35 | P60: ='Hull Long'!C60 -> 260 | Q60: ='Hull Plan'!C60 -> 0 | R60: ='Hull Long'!B111 -> 35 | S60: ='Hull Long'!C111 -> 260 | T60: ='Hull Plan'!C111 -> 0 | U60: 1e-05 | V60: =((O60-O59)^2+(P60-P59)^2+(Q60-Q59)^2)^0.5 -> 74.49200474 | W60: =((R60-O59)^2+(S60-P59)^2+(T60-Q59)^2)^0.5 -> 74.49200474 | X60: =((R60-R59)^2+(S60-S59)^2+(T60-T59)^2)^0.5 -> 74.49200474 | Y60: =U59 -> 1e-05 | Z60: =ACOS((U60*U60+V60*V60-W60*W60)/2/U60/V60)*180/PI() -> 89.99999615 | AA60: =ACOS((V60*V60+W60*W60-U60*U60)/2/V60/W60)*180/PI() -> 7.683962816e-06 | AB60: =ACOS((W60*W60+Y60*Y60-X60*X60)/2/W60/Y60)*180/PI() -> 89.99999615 | AC60: =AC61+Z60+AA61+AB61-180 -> 105.5264493 | AD60: =ACOS((U60*U60+W60*W60-V60*V60)/2/U60/W60)*180/PI() -> 89.99999615 | AE60: =ACOS((W60*W60+X60*X60-Y60*Y60)/2/W60/X60)*180/PI() -> 7.683962816e-06 | AF60: =ACOS((X60*X60+Y60*Y60-W60*W60)/2/X60/Y60)*180/PI() -> 89.99999615 | AG60: =180+AG61-AF61-AE60-AD60 -> 105.5264495 | AH60: -138.5063645 | AI60: -168.8689776 | AJ60: -138.5063669 | AK60: -168.868969 | AL60: 8.900733366e-06 | AM60: 1.099266634e-06
A61: 0 | B61: -73.01711898 | C61: -75.67464208 | D61: 0 | E61: -73.01712145 | F61: -75.67463318 | O61: ='Hull Long'!B61 -> 66.93548387 | P61: ='Hull Long'!C61 -> 200 | Q61: ='Hull Plan'!C61 -> 0 | R61: ='Hull Long'!B112 -> 66.93548387 | S61: ='Hull Long'!C112 -> 200 | T61: ='Hull Plan'!C112 -> 0 | U61: 1e-05 | V61: 67.96966331 | W61: 67.96966331 | X61: 67.96966331 | Y61: 1e-05 | Z61: 89.99999578 | AA61: 8.451927883e-06 | AB61: 89.99999578 | AC61: 105.5264489 | AD61: 89.99999578 | AE61: 8.451927883e-06 | AF61: 89.99999578 | AG61: 105.5264492 | AH61: -73.01711898 | AI61: -150.6746421 | AJ61: -73.01712145 | AK61: -150.6746332 | AL61: 9.242559626e-06 | AM61: 7.57440374e-07
A62: 0 | B62: 199.6364357 | C62: 0.0744573652 | D62: 0 | E62: 199.636433 | F62: 0.07446700027 | O62: ='Hull Long'!B62 -> 199.8935484 | P62: ='Hull Long'!C62 -> -49.8 | Q62: ='Hull Plan'!C62 -> 0 | R62: ='Hull Long'!B113 -> 199.8935484 | S62: ='Hull Long'!C113 -> -49.8 | T62: ='Hull Plan'!C113 -> 0 | U62: 1e-05 | V62: 282.9803649 | W62: 282.9803649 | X62: 282.9803649 | Y62: 1e-05 | Z62: 89.99999897 | AA62: 1.909095913e-06 | AB62: 89.99999897 | AC62: 105.5264522 | AD62: 89.99999897 | AE62: 1.909095913e-06 | AF62: 89.99999897 | AG62: 105.5264524 | AH62: 199.6364357 | AI62: -74.92554263 | AJ62: 199.636433 | AK62: -74.925533 | AL62: 9.999995443e-06 | AM62: 4.557189538e-12
A63: 0 | B63: 199.7147553 | C63: -0.007390147305 | D63: 0 | E63: 199.6900772 | F63: 0.08936535635 | O63: ='Hull Long'!B63 -> 199.9467742 | P63: ='Hull Long'!C63 -> -49.9 | Q63: ='Hull Plan'!C63 -> 0 | R63: ='Hull Long'!B114 -> 199.9467742 | S63: ='Hull Long'!C114 -> -49.80149021 | T63: ='Hull Plan'!C114 -> 0.01626223867 | U63: 0.09985307015 | V63: 0.1132827722 | W63: 0.05567465862 | X63: 0.05567465862 | Y63: 1e-05 | Z63: 29.42963354 | AA63: 61.79339062 | AB63: 89.99485441 | AC63: 43.73820821 | AD63: 88.77697583 | AE63: 0.01029117754 | AF63: 89.99485441 | AG63: 105.5213077 | AH63: 199.7147553 | AI63: -75.00739015 | AJ63: 199.6900772 | AK63: -74.91063464 | AL63: 0.09985307014 | AM63: 4.562891731e-12
A64: 0 | B64: 199.7669497 | C64: 0.003142746024 | D64: 1 | E64: 199.743724 | F64: 0.1042540049 | O64: ='Hull Long'!B64 -> 200 | P64: ='Hull Long'!C64 -> -49.90148434 | Q64: ='Hull Plan'!C64 -> 0 | R64: ='Hull Long'!B115 -> 200 | S64: ='Hull Long'!C115 -> -49.80298038 | T64: ='Hull Plan'!C115 -> 0.0325239965 | U64: 0.1037444729 | V64: 0.05324649985 | W64: 0.1153412473 | X64: 0.05567451699 | Y64: 0.09985307015 | Z64: 88.47251692 | AA64: 64.04488853 | AB64: 28.85454015 | AC64: 101.409146 | AD64: 27.48259455 | AE64: 59.94305442 | AF64: 91.20240543 | AG64: 105.5109801 | AH64: 199.7669497 | AI64: -74.99685725 | AJ64: 199.743724 | AK64: -74.895746 | AL64: 0.1037444729 | AM64: 4.562170086e-12
A65: 0 | B65: 249.7858522 | C65: 0.002625919882 | D65: 1 | E65: 249.7834457 | F65: 15.09925147 | O65: ='Hull Long'!B65 -> 250 | P65: ='Hull Long'!C65 -> -51.27648019 | Q65: ='Hull Plan'!C65 -> 0 | R65: ='Hull Long'!B116 -> 250 | S65: ='Hull Long'!C116 -> -51.18337266 | T65: ='Hull Plan'!C116 -> 15.09632862 | U65: 15.09662574 | V65: 50.01890256 | W65: 52.2450225 | X65: 52.23814404 | Y65: 0.1037444729 | Z65: 89.99027462 | AA65: 16.79559281 | AB65: 86.14162827 | AC65: 89.99940798 | AD65: 73.21413257 | AE65: 0.1135310545 | AF65: 93.74484068 | AG65: 106.6814697 | AH65: 249.7858522 | AI65: -74.99737408 | AJ65: 249.7834457 | AK65: -59.90074853 | AL65: 15.09662574 | AM65: 6.362910199e-12
A66: 0 | B66: 299.803705 | C66: 0.002184767764 | D66: 1 | E66: 299.801614 | F66: 29.73812523 | O66: ='Hull Long'!B66 -> 300 | P66: ='Hull Long'!C66 -> -52.61274375 | Q66: ='Hull Plan'!C66 -> 0 | R66: ='Hull Long'!B117 -> 300 | S66: ='Hull Long'!C117 -> -52.52488065 | T66: ='Hull Plan'!C117 -> 29.73580073 | U66: 29.73594053 | V66: 50.01785282 | W66: 58.18742432 | X66: 52.11634856 | Y66: 15.09662574 | Z66: 89.99546567 | AA66: 30.73294418 | AB66: 59.27669453 | AC66: 89.99949466 | AD66: 59.27159015 | AE66: 14.41920908 | AF66: 106.3040964 | AG66: 106.3132298 | AH66: 299.803705 | AI66: -74.99781523 | AJ66: 299.801614 | AK66: -45.26187477 | AL66: 29.73594053 | AM66: 5.844214002e-12
A67: 0 | B67: 399.8363738 | C67: 0.001571671796 | D67: 1 | E67: 399.834733 | F67: 57.74338146 | O67: ='Hull Long'!B67 -> 400 | P67: ='Hull Long'!C67 -> -55.16907405 | Q67: ='Hull Plan'!C67 -> 0 | R67: ='Hull Long'!B118 -> 400 | S67: ='Hull Long'!C118 -> -55.09124376 | T67: ='Hull Plan'!C118 -> 57.74174736 | U67: 57.74180981 | V67: 100.0326688 | W67: 115.5000102 | X67: 103.8793496 | Y67: 29.73594053 | Z67: 89.99802069 | AA67: 29.99530576 | AB67: 60.00907439 | AC67: 89.99964884 | AD67: 60.00667355 | AE67: 14.35484175 | AF67: 105.6360839 | AG67: 105.6401129 | AH67: 399.8363738 | AI67: -74.99842833 | AJ67: 399.834733 | AK67: -17.25661854 | AL67: 57.74180981 | AM67: 4.796163466e-12
A68: 0 | B68: 499.8652033 | C68: 0.001150761309 | D68: 1 | E68: 499.8639063 | F68: 84.05155247 | O68: ='Hull Long'!B68 -> 500 | P68: ='Hull Long'!C68 -> -57.57047524 | Q68: ='Hull Plan'!C68 -> 0 | R68: ='Hull Long'!B119 -> 500 | S68: ='Hull Long'!C119 -> -57.50206971 | T68: ='Hull Plan'!C119 -> 84.05036389 | U68: 84.05040172 | V68: 100.0288295 | W68: 130.6518524 | X68: 103.4309208 | Y68: 57.74180981 | Z68: 89.9988748 | AA68: 40.03951751 | AB68: 49.96235174 | AC68: 89.99975891 | AD68: 49.96160769 | AE68: 25.30390766 | AF68: 104.7337406 | AG68: 104.7353688 | AH68: 499.8652033 | AI68: -74.99884924 | AJ68: 499.8639063 | AK68: 9.051552474 | AL68: 84.05040172 | AM68: 3.836930773e-12
A69: 0 | B69: 599.8904333 | C69: 0.000849131134 | D69: 1 | E69: 599.8894118 | F69: 108.6625258 | O69: ='Hull Long'!B69 -> 600 | P69: ='Hull Long'!C69 -> -59.81694732 | Q69: ='Hull Plan'!C69 -> 0 | R69: ='Hull Long'!B120 -> 600 | S69: ='Hull Long'!C120 -> -59.7573585 | T69: ='Hull Plan'!C120 -> 108.6616503 | U69: 108.6616767 | V69: 100.02523 | W69: 147.689325 | X69: 103.008746 | Y69: 84.05040172 | Z69: 89.9992886 | AA69: 47.37020188 | AB69: 42.63085501 | AC69: 89.99982722 | AD69: 42.63050952 | AE69: 33.54715157 | AF69: 103.8219934 | AG69: 103.8228775 | AH69: 599.8904333 | AI69: -74.99915087 | AJ69: 599.8894118 | AK69: 33.66252578 | AL69: 108.6616767 | AM69: 2.870592652e-12
A70: 0 | B70: 698.912101 | C70: 0.0006303783219 | D70: 1 | E70: 698.9113015 | F70: 131.3555193 | O70: ='Hull Long'!B70 -> 699 | P70: ='Hull Long'!C70 -> -61.88834176 | Q70: ='Hull Plan'!C70 -> 0 | R70: ='Hull Long'!B121 -> 699 | S70: ='Hull Long'!C121 -> -61.83688253 | T70: ='Hull Plan'!C121 -> 131.3548689 | U70: 131.354889 | V70: 99.0216677 | W70: 164.4967529 | X70: 101.5889098 | Y70: 108.6616767 | Z70: 89.99952467 | AA70: 52.98954923 | AB70: 37.01111597 | AC70: 89.99987343 | AD70: 37.0109261 | AE70: 40.08175166 | AF70: 102.9071324 | AG70: 102.907671 | AH70: 698.912101 | AI70: -74.99936962 | AJ70: 698.9113015 | AK70: 56.35551933 | AL70: 131.354889 | AM70: 1.98951966e-12
A71: 0 | B71: 700.9125066 | C71: 0.0006167399019 | D71: 1 | E71: 700.9117133 | F71: 131.7968114 | O71: ='Hull Long'!B71 -> 701 | P71: ='Hull Long'!C71 -> -61.92862333 | Q71: ='Hull Plan'!C71 -> 0 | R71: ='Hull Long'!B122 -> 701 | S71: ='Hull Long'!C122 -> -61.87732219 | T71: ='Hull Plan'!C122 -> 131.7961747 | U71: 131.7961947 | V71: 2.00040561 | W71: 131.8113492 | X71: 2.048508286 | Y71: 131.354889 | Z71: 89.99926449 | AA71: 89.13116548 | AB71: 0.8695739014 | AC71: 89.99960937 | AD71: 0.8695700298 | AE71: 76.69053611 | AF71: 102.43989 | AG71: 102.4402387 | AH71: 700.9125066 | AI71: -74.99938326 | AJ71: 700.9117133 | AK71: 56.79681142 | AL71: 131.7961947 | AM71: 1.932676241e-12
A72: 0 | B72: 799.9310549 | C72: 0.0004543798551 | D72: 1 | E72: 799.9304426 | F72: 152.7927035 | O72: ='Hull Long'!B72 -> 800 | P72: ='Hull Long'!C72 -> -63.84510415 | Q72: ='Hull Plan'!C72 -> 0 | R72: ='Hull Long'!B123 -> 800 | S72: ='Hull Long'!C123 -> -63.80132461 | T72: ='Hull Plan'!C123 -> 152.7922329 | U72: 152.7922492 | V72: 99.01854826 | W72: 182.0713416 | X72: 101.2202363 | Y72: 131.7961947 | Z72: 89.99967647 | AA72: 57.05456847 | AB72: 32.94587036 | AC72: 89.99990605 | AD72: 32.94575506 | AE72: 45.08281664 | AF72: 101.971313 | AG72: 101.9716579 | AH72: 799.9310549 | AI72: -74.99954562 | AJ72: 799.9304426 | AK72: 77.79270354 | AL72: 152.7922492 | AM72: 1.818989404e-12
A73: 0 | B73: 899.9469256 | C73: 0.0003329022241 | D73: 1 | E73: 899.9464623 | F73: 172.3118759 | O73: ='Hull Long'!B73 -> 900 | P73: ='Hull Long'!C73 -> -65.62678891 | Q73: ='Hull Plan'!C73 -> 0 | R73: ='Hull Long'!B124 -> 900 | S73: ='Hull Long'!C124 -> -65.59000193 | T73: ='Hull Plan'!C124 -> 172.311529 | U73: 172.311543 | V73: 100.0158707 | W73: 199.2343035 | X73: 101.9029062 | Y73: 152.7922492 | Z73: 89.99977637 | AA73: 59.867733 | AB73: 30.13256618 | AC73: 89.99993041 | AD73: 30.13249064 | AE73: 48.82459783 | AF73: 101.042836 | AG73: 101.0430656 | AH73: 899.9469256 | AI73: -74.9996671 | AJ73: 899.9464623 | AK73: 97.31187585 | AL73: 172.311543 | AM73: 1.534772309e-12
A74: 0 | B74: 999.9601564 | C74: 0.0002431862358 | D74: 1 | E74: 999.9598134 | F74: 190.1337507 | O74: ='Hull Long'!B74 -> 1000 | P74: ='Hull Long'!C74 -> -67.25354455 | Q74: ='Hull Plan'!C74 -> 0 | R74: ='Hull Long'!B125 -> 1000 | S74: ='Hull Long'!C125 -> -67.22314209 | T74: ='Hull Plan'!C125 -> 190.1334951 | U74: 190.1335075 | V74: 100.0132308 | W74: 214.8331778 | X74: 101.5888263 | Y74: 172.311543 | Z74: 89.99984525 | AA74: 62.25504155 | AB74: 27.74516389 | AC74: 89.9999486 | AD74: 27.7451132 | AE74: 52.1512235 | AF74: 100.1036126 | AG74: 100.1037666 | AH74: 999.9601564 | AI74: -74.99975681 | AJ74: 999.9598134 | AK74: 115.1337507 | AL74: 190.1335075 | AM74: 1.278976924e-12
A75: 0 | B75: 1099.970987 | C75: 0.000177221929 | D75: 1 | E75: 1099.97074 | F75: 206.2583197 | O75: ='Hull Long'!B75 -> 1100 | P75: ='Hull Long'!C75 -> -68.72537109 | Q75: ='Hull Plan'!C75 -> 0 | R75: ='Hull Long'!B126 -> 1100 | S75: ='Hull Long'!C126 -> -68.7007451 | T75: ='Hull Plan'!C126 -> 206.258131 | U75: 206.2581425 | V75: 100.0108308 | W75: 229.2258951 | X75: 101.302454 | Y75: 190.1335075 | Z75: 89.9998936 | AA75: 64.13218131 | AB75: 25.86795983 | AC75: 89.99996221 | AD75: 25.86792509 | AE75: 54.9732727 | AF75: 99.15876746 | AG75: 99.15887081 | AH75: 1099.970987 | AI75: -74.99982278 | AJ75: 1099.97074 | AK75: 131.2583197 | AL75: 206.2581425 | AM75: 1.136868377e-12
A76: 0 | B76: 1199.979658 | C76: 0.0001289456015 | D76: 1 | E76: 1199.979486 | F76: 220.6855766 | O76: ='Hull Long'!B76 -> 1200 | P76: ='Hull Long'!C76 -> -70.04226851 | Q76: ='Hull Plan'!C76 -> 0 | R76: ='Hull Long'!B127 -> 1200 | S76: ='Hull Long'!C127 -> -70.02281094 | T76: ='Hull Plan'!C127 -> 220.6854368 | U76: 220.6854477 | V76: 100.0086707 | W76: 242.2885581 | X76: 101.0440251 | Y76: 206.2581425 | Z76: 89.99992775 | AA76: 65.62131303 | AB76: 24.37878324 | AC76: 89.99997234 | AD76: 24.37875922 | AE76: 57.41243096 | AF76: 98.2087858 | AG76: 98.20885441 | AH76: 1199.979658 | AI76: -74.99987105 | AJ76: 1199.979486 | AK76: 145.6855766 | AL76: 220.6854477 | AM76: 1.051603249e-12
A77: 0 | B77: 1299.986409 | C77: 9.368168962e-05 | D77: 1 | E77: 1299.986294 | F77: 233.4155167 | O77: ='Hull Long'!B77 -> 1300 | P77: ='Hull Long'!C77 -> -71.20423683 | Q77: ='Hull Plan'!C77 -> 0 | R77: ='Hull Long'!B128 -> 1300 | S77: ='Hull Long'!C128 -> -71.18933963 | T77: ='Hull Plan'!C128 -> 233.4154126 | U77: 233.4154231 | V77: 100.0067506 | W77: 253.9371391 | X77: 100.8137544 | Y77: 220.6854477 | Z77: 89.99995178 | AA77: 66.80734636 | AB77: 23.19271843 | AC77: 89.9999798 | AD77: 23.19270185 | AE77: 59.55311625 | AF77: 97.25416532 | AG77: 97.25420991 | AH77: 1299.986409 | AI77: -74.99990632 | AJ77: 1299.986294 | AK77: 158.4155167 | AL77: 233.4154231 | AM77: 9.094947018e-13
A78: 0 | B78: 1399.991479 | C78: 6.778794474e-05 | D78: 1 | E78: 1399.991408 | F78: 244.4481363 | O78: ='Hull Long'!B78 -> 1400 | P78: ='Hull Long'!C78 -> -72.21127604 | Q78: ='Hull Plan'!C78 -> 0 | R78: ='Hull Long'!B129 -> 1400 | S78: ='Hull Long'!C129 -> -72.20033115 | T78: ='Hull Plan'!C129 -> 244.4480582 | U78: 244.4480685 | V78: 100.0050705 | W78: 264.1133192 | X78: 100.6118352 | Y78: 233.4154231 | Z78: 89.99996844 | AA78: 67.75028297 | AB78: 22.24975988 | AC78: 89.99998516 | AD78: 22.24974859 | AE78: 61.45482346 | AF78: 96.29541667 | AG78: 96.29544468 | AH78: 1399.991479 | AI78: -74.99993221 | AJ78: 1399.991408 | AK78: 169.4481363 | AL78: 244.4480685 | AM78: 7.105427358e-13
A79: 0 | B79: 1499.995109 | C79: 4.842077583e-05 | D79: 1 | E79: 1499.995068 | F79: 253.7834323 | O79: ='Hull Long'!B79 -> 1500 | P79: ='Hull Long'!C79 -> -73.06338614 | Q79: ='Hull Plan'!C79 -> 0 | R79: ='Hull Long'!B130 -> 1500 | S79: ='Hull Long'!C130 -> -73.05578552 | T79: ='Hull Plan'!C130 -> 253.7833738 | U79: 253.7833839 | V79: 100.0036304 | W79: 272.775941 | X79: 100.4384385 | Y79: 244.4480685 | Z79: 89.99997965 | AA79: 68.49304131 | AB79: 21.50698651 | AC79: 89.9999889 | AD79: 21.50697904 | AE79: 63.1599506 | AF79: 95.33306289 | AG79: 95.33307961 | AH79: 1499.995109 | AI79: -74.99995158 | AJ79: 1499.995068 | AK79: 178.7834323 | AL79: 253.7833839 | AM79: 3.97903932e-13
A80: 0 | B80: 1599.99754 | C80: 3.337564125e-05 | D80: 1 | E80: 1599.997519 | F80: 261.4214026 | O80: ='Hull Long'!B80 -> 1600 | P80: ='Hull Long'!C80 -> -73.76056713 | Q80: ='Hull Plan'!C80 -> 0 | R80: ='Hull Long'!B131 -> 1600 | S80: ='Hull Long'!C131 -> -73.75570273 | T80: ='Hull Plan'!C131 -> 261.4213592 | U80: 261.4213693 | V80: 100.0024303 | W80: 279.8957062 | X80: 100.2937122 | Y80: 253.7833839 | Z80: 89.99998684 | AA80: 69.06648474 | AB80: 20.93353314 | AC80: 89.99999138 | AD80: 20.93352843 | AE80: 64.69882854 | AF80: 94.36763832 | AG80: 94.36764758 | AH80: 1599.99754 | AI80: -74.99996662 | AJ80: 1599.997519 | AK80: 186.4214026 | AL80: 261.4213693 | AM80: 0
A81: 0 | B81: 1699.99901 | C81: 2.09766542e-05 | D81: 1 | E81: 1699.999001 | F81: 267.3620455 | O81: ='Hull Long'!B81 -> 1700 | P81: ='Hull Long'!C81 -> -74.30281901 | Q81: ='Hull Plan'!C81 -> 0 | R81: ='Hull Long'!B132 -> 1700 | S81: ='Hull Long'!C132 -> -74.30008279 | T81: ='Hull Plan'!C132 -> 267.3620146 | U81: 267.3620246 | V81: 100.0014702 | W81: 285.4518136 | X81: 100.1777806 | Y81: 261.4213693 | Z81: 89.99999109 | AA81: 69.49269329 | AB81: 20.50731836 | AC81: 89.9999929 | AD81: 20.50731562 | AE81: 66.09299441 | AF81: 93.39968723 | AG81: 93.39969177 | AH81: 1699.99901 | AI81: -74.99997902 | AJ81: 1699.999001 | AK81: 192.3620455 | AL81: 267.3620246 | AM81: 0
A82: 0 | B82: 1799.99976 | C82: 9.999999875e-06 | D82: 1 | E82: 1799.999758 | F82: 271.6053598 | O82: ='Hull Long'!B82 -> 1800 | P82: ='Hull Long'!C82 -> -74.69014178 | Q82: ='Hull Plan'!C82 -> 0 | R82: ='Hull Long'!B133 -> 1800 | S82: ='Hull Long'!C133 -> -74.68892568 | T82: ='Hull Plan'!C133 -> 271.6053398 | U82: =((O82-R82)^2+(S82-P82)^2+(T82-Q82)^2)^0.5+0.00001 -> 271.6053498 | V82: =((O82-O81)^2+(P82-P81)^2+(Q82-Q81)^2)^0.5 -> 100.0007501 | W82: =((R82-O81)^2+(S82-P81)^2+(T82-Q81)^2)^0.5 -> 289.429801 | X82: =((R82-R81)^2+(S82-S81)^2+(T82-T81)^2)^0.5 -> 100.0907439 | Y82: =U81 -> 267.3620246 | Z82: =ACOS((U82*U82+V82*V82-W82*W82)/2/U82/V82)*180/PI() -> 89.99999328 | AA82: =ACOS((V82*V82+W82*W82-U82*U82)/2/V82/W82)*180/PI() -> 69.78710519 | AB82: =ACOS((W82*W82+Y82*Y82-X82*X82)/2/W82/Y82)*180/PI() -> 20.21290291 | AC82: =AC83+Z82+AA83+AB83-180 -> 89.99999371 | AD82: =ACOS((U82*U82+W82*W82-V82*V82)/2/U82/W82)*180/PI() -> 20.21290154 | AE82: =ACOS((W82*W82+X82*X82-Y82*Y82)/2/W82/X82)*180/PI() -> 67.3573349 | AF82: =ACOS((X82*X82+Y82*Y82-W82*W82)/2/X82/Y82)*180/PI() -> 92.42976219 | AG82: =180+AG83-AF83-AE82-AD82 -> 92.42976399 | AH82: =AH83-V83*SIN(AC83*PI()/180) -> 1799.99976 | AI82: =AI83+V83*COS(AC83*PI()/180) -> -74.99999 | AJ82: =AJ83-X83*SIN(AG83*PI()/180) -> 1799.999758 | AK82: =AK83+X83*COS(AG83*PI()/180) -> 196.6053598 | AL82: =((AH82-AJ82)^2+(AI82-AK82)^2)^0.5 -> 271.6053498 | AM82: =U82-AL82 -> 0
A83: 0 | B83: 2000 | C83: 0 | D83: 1 | E83: 2000 | F83: 275.00001 | O83: ='Hull Long'!B83 -> 2000 | P83: ='Hull Long'!C83 -> -75 | Q83: ='Hull Plan'!C83 -> 0 | R83: ='Hull Long'!B134 -> 2000 | S83: ='Hull Long'!C134 -> -75 | T83: ='Hull Plan'!C134 -> 275 | U83: =((O83-R83)^2+(S83-P83)^2+(T83-Q83)^2)^0.5+0.00001 -> 275.00001 | V83: =((O83-O82)^2+(P83-P82)^2+(Q83-Q82)^2)^0.5 -> 200.00024 | W83: =((R83-O82)^2+(S83-P82)^2+(T83-Q82)^2)^0.5 -> 340.0369039 | X83: =((R83-R82)^2+(S83-S82)^2+(T83-T82)^2)^0.5 -> 200.0290491 | Y83: =U82 -> 271.6053498 | Z83: =ACOS((U83*U83+V83*V83-W83*W83)/2/U83/V83)*180/PI() -> 89.99999714 | AA83: =ACOS((V83*V83+W83*W83-U83*U83)/2/V83/W83)*180/PI() -> 53.97259677 | AB83: =ACOS((W83*W83+Y83*Y83-X83*X83)/2/W83/Y83)*180/PI() -> 36.02740653 | AC83: =Z83 -> 89.99999714 | AD83: =ACOS((U83*U83+W83*W83-V83*V83)/2/U83/W83)*180/PI() -> 36.02740609 | AE83: =ACOS((W83*W83+X83*X83-Y83*Y83)/2/W83/X83)*180/PI() -> 53.00019281 | AF83: =ACOS((X83*X83+Y83*Y83-W83*W83)/2/X83/Y83)*180/PI() -> 90.97240066 | AG83: =180-AD83-AE83 -> 90.9724011 | AH83: =O83 -> 2000 | AI83: =P83 -> -75 | AJ83: =AH83 -> 2000 | AK83: =AI83+U83 -> 200.00001 | AL83: =((AH83-AJ83)^2+(AI83-AK83)^2)^0.5 -> 275.00001 | AM83: =U83-AL83 -> 0
A84: 0 | B84: 2000 | C84: 0 | D84: 1 | E84: 2000 | F84: 275.00001 | O84: ='Hull Long'!B84 -> 2000 | P84: ='Hull Long'!C84 -> -75 | Q84: ='Hull Plan'!C84 -> 0 | R84: ='Hull Long'!B135 -> 2000 | S84: ='Hull Long'!C135 -> -75 | T84: ='Hull Plan'!C135 -> 275 | U84: =((O84-R84)^2+(S84-P84)^2+(T84-Q84)^2)^0.5+0.00001 -> 275.00001 | V84: =((O84-O85)^2+(P84-P85)^2+(Q84-Q85)^2)^0.5 -> 200.00024 | W84: =((R84-O85)^2+(S84-P85)^2+(T84-Q85)^2)^0.5 -> 340.0369039 | X84: =((R84-R85)^2+(S84-S85)^2+(T84-T85)^2)^0.5 -> 200.0290491 | Y84: =U85 -> 271.6053498 | Z84: =ACOS((U84*U84+V84*V84-W84*W84)/2/U84/V84)*180/PI() -> 89.99999714 | AA84: =ACOS((V84*V84+W84*W84-U84*U84)/2/V84/W84)*180/PI() -> 53.97259677 | AB84: =ACOS((W84*W84+Y84*Y84-X84*X84)/2/W84/Y84)*180/PI() -> 36.02740653 | AC84: =Z84 -> 89.99999714 | AD84: =ACOS((U84*U84+W84*W84-V84*V84)/2/U84/W84)*180/PI() -> 36.02740609 | AE84: =ACOS((W84*W84+X84*X84-Y84*Y84)/2/W84/X84)*180/PI() -> 53.00019281 | AF84: =ACOS((X84*X84+Y84*Y84-W84*W84)/2/X84/Y84)*180/PI() -> 90.97240066 | AG84: =180-AD84-AE84 -> 90.9724011 | AH84: =O84 -> 2000 | AI84: =P84 -> -75 | AJ84: =AH84 -> 2000 | AK84: =AI84+U84 -> 200.00001 | AL84: =((AH84-AJ84)^2+(AI84-AK84)^2)^0.5 -> 275.00001 | AM84: =U84-AL84 -> 0
A85: 0 | B85: 2200.00024 | C85: 9.999999875e-06 | D85: 1 | E85: 2200.000242 | F85: 271.6053598 | O85: ='Hull Long'!B85 -> 2200 | P85: ='Hull Long'!C85 -> -74.69014178 | Q85: ='Hull Plan'!C85 -> 0 | R85: ='Hull Long'!B136 -> 2200 | S85: ='Hull Long'!C136 -> -74.68892568 | T85: ='Hull Plan'!C136 -> 271.6053398 | U85: =((O85-R85)^2+(S85-P85)^2+(T85-Q85)^2)^0.5+0.00001 -> 271.6053498 | V85: =((O85-O86)^2+(P85-P86)^2+(Q85-Q86)^2)^0.5 -> 100.0007501 | W85: =((R85-O86)^2+(S85-P86)^2+(T85-Q86)^2)^0.5 -> 289.429801 | X85: =((R85-R86)^2+(S85-S86)^2+(T85-T86)^2)^0.5 -> 100.0907439 | Y85: =U86 -> 267.3620246 | Z85: =ACOS((U85*U85+V85*V85-W85*W85)/2/U85/V85)*180/PI() -> 89.99999328 | AA85: =ACOS((V85*V85+W85*W85-U85*U85)/2/V85/W85)*180/PI() -> 69.78710519 | AB85: =ACOS((W85*W85+Y85*Y85-X85*X85)/2/W85/Y85)*180/PI() -> 20.21290291 | AC85: =AC84+Z85+AA84+AB84-180 -> 89.99999371 | AD85: =ACOS((U85*U85+W85*W85-V85*V85)/2/U85/W85)*180/PI() -> 20.21290154 | AE85: =ACOS((W85*W85+X85*X85-Y85*Y85)/2/W85/X85)*180/PI() -> 67.3573349 | AF85: =ACOS((X85*X85+Y85*Y85-W85*W85)/2/X85/Y85)*180/PI() -> 92.42976219 | AG85: =180+AG84-AF84-AE85-AD85 -> 92.42976399 | AH85: =AH84+V84*SIN(AC84*PI()/180) -> 2200.00024 | AI85: =AI84+V84*COS(AC84*PI()/180) -> -74.99999 | AJ85: =AJ84+X84*SIN(AG84*PI()/180) -> 2200.000242 | AK85: =AK84+X84*COS(AG84*PI()/180) -> 196.6053598 | AL85: =((AH85-AJ85)^2+(AI85-AK85)^2)^0.5 -> 271.6053498 | AM85: =U85-AL85 -> 0
A86: 0 | B86: 2300.00099 | C86: 2.09766542e-05 | D86: 1 | E86: 2300.000999 | F86: 267.3620455 | O86: ='Hull Long'!B86 -> 2300 | P86: ='Hull Long'!C86 -> -74.30281901 | Q86: ='Hull Plan'!C86 -> 0 | R86: ='Hull Long'!B137 -> 2300 | S86: ='Hull Long'!C137 -> -74.30008279 | T86: ='Hull Plan'!C137 -> 267.3620146 | U86: =((O86-R86)^2+(S86-P86)^2+(T86-Q86)^2)^0.5+0.00001 -> 267.3620246 | V86: =((O86-O87)^2+(P86-P87)^2+(Q86-Q87)^2)^0.5 -> 100.0014702 | W86: =((R86-O87)^2+(S86-P87)^2+(T86-Q87)^2)^0.5 -> 285.4518136 | X86: =((R86-R87)^2+(S86-S87)^2+(T86-T87)^2)^0.5 -> 100.1777806 | Y86: =U87 -> 261.4213693 | Z86: =ACOS((U86*U86+V86*V86-W86*W86)/2/U86/V86)*180/PI() -> 89.99999109 | AA86: =ACOS((V86*V86+W86*W86-U86*U86)/2/V86/W86)*180/PI() -> 69.49269329 | AB86: =ACOS((W86*W86+Y86*Y86-X86*X86)/2/W86/Y86)*180/PI() -> 20.50731836 | AC86: =AC85+Z86+AA85+AB85-180 -> 89.9999929 | AD86: =ACOS((U86*U86+W86*W86-V86*V86)/2/U86/W86)*180/PI() -> 20.50731562 | AE86: =ACOS((W86*W86+X86*X86-Y86*Y86)/2/W86/X86)*180/PI() -> 66.09299441 | AF86: =ACOS((X86*X86+Y86*Y86-W86*W86)/2/X86/Y86)*180/PI() -> 93.39968723 | AG86: =180+AG85-AF85-AE86-AD86 -> 93.39969177 | AH86: =AH85+V85*SIN(AC85*PI()/180) -> 2300.00099 | AI86: =AI85+V85*COS(AC85*PI()/180) -> -74.99997902 | AJ86: =AJ85+X85*SIN(AG85*PI()/180) -> 2300.000999 | AK86: =AK85+X85*COS(AG85*PI()/180) -> 192.3620455 | AL86: =((AH86-AJ86)^2+(AI86-AK86)^2)^0.5 -> 267.3620246 | AM86: =U86-AL86 -> 0
A87: 0 | B87: 2400.00246 | C87: 3.337564125e-05 | D87: 1 | E87: 2400.002481 | F87: 261.4214026 | O87: ='Hull Long'!B87 -> 2400 | P87: ='Hull Long'!C87 -> -73.76056713 | Q87: ='Hull Plan'!C87 -> 0 | R87: ='Hull Long'!B138 -> 2400 | S87: ='Hull Long'!C138 -> -73.75570273 | T87: ='Hull Plan'!C138 -> 261.4213592 | U87: 261.4213693 | V87: 100.0024303 | W87: 279.8957062 | X87: 100.2937122 | Y87: 253.7833839 | Z87: 89.99998684 | AA87: 69.06648474 | AB87: 20.93353314 | AC87: 89.99999138 | AD87: 20.93352843 | AE87: 64.69882854 | AF87: 94.36763832 | AG87: 94.36764758 | AH87: 2400.00246 | AI87: -74.99996662 | AJ87: 2400.002481 | AK87: 186.4214026 | AL87: 261.4213693 | AM87: 0
A88: 0 | B88: 2500.004891 | C88: 4.842077583e-05 | D88: 1 | E88: 2500.004932 | F88: 253.7834323 | O88: ='Hull Long'!B88 -> 2500 | P88: ='Hull Long'!C88 -> -73.06338614 | Q88: ='Hull Plan'!C88 -> 0 | R88: ='Hull Long'!B139 -> 2500 | S88: ='Hull Long'!C139 -> -73.05578552 | T88: ='Hull Plan'!C139 -> 253.7833738 | U88: 253.7833839 | V88: 100.0036304 | W88: 272.775941 | X88: 100.4384385 | Y88: 244.4480685 | Z88: 89.99997965 | AA88: 68.49304131 | AB88: 21.50698651 | AC88: 89.9999889 | AD88: 21.50697904 | AE88: 63.1599506 | AF88: 95.33306289 | AG88: 95.33307961 | AH88: 2500.004891 | AI88: -74.99995158 | AJ88: 2500.004932 | AK88: 178.7834323 | AL88: 253.7833839 | AM88: 3.97903932e-13
A89: 0 | B89: 2600.008521 | C89: 6.778794474e-05 | D89: 1 | E89: 2600.008592 | F89: 244.4481363 | O89: ='Hull Long'!B89 -> 2600 | P89: ='Hull Long'!C89 -> -72.21127604 | Q89: ='Hull Plan'!C89 -> 0 | R89: ='Hull Long'!B140 -> 2600 | S89: ='Hull Long'!C140 -> -72.20033115 | T89: ='Hull Plan'!C140 -> 244.4480582 | U89: 244.4480685 | V89: 100.0050705 | W89: 264.1133192 | X89: 100.6118352 | Y89: 233.4154231 | Z89: 89.99996844 | AA89: 67.75028297 | AB89: 22.24975988 | AC89: 89.99998516 | AD89: 22.24974859 | AE89: 61.45482346 | AF89: 96.29541667 | AG89: 96.29544468 | AH89: 2600.008521 | AI89: -74.99993221 | AJ89: 2600.008592 | AK89: 169.4481363 | AL89: 244.4480685 | AM89: 7.105427358e-13
A90: 0 | B90: 2700.013591 | C90: 9.368168962e-05 | D90: 1 | E90: 2700.013706 | F90: 233.4155167 | O90: ='Hull Long'!B90 -> 2700 | P90: ='Hull Long'!C90 -> -71.20423683 | Q90: ='Hull Plan'!C90 -> 0 | R90: ='Hull Long'!B141 -> 2700 | S90: ='Hull Long'!C141 -> -71.18933963 | T90: ='Hull Plan'!C141 -> 233.4154126 | U90: 233.4154231 | V90: 100.0067506 | W90: 253.9371391 | X90: 100.8137544 | Y90: 220.6854477 | Z90: 89.99995178 | AA90: 66.80734636 | AB90: 23.19271843 | AC90: 89.9999798 | AD90: 23.19270185 | AE90: 59.55311625 | AF90: 97.25416532 | AG90: 97.25420991 | AH90: 2700.013591 | AI90: -74.99990632 | AJ90: 2700.013706 | AK90: 158.4155167 | AL90: 233.4154231 | AM90: 9.094947018e-13
A91: 0 | B91: 2800.020342 | C91: 0.0001289456015 | D91: 1 | E91: 2800.020514 | F91: 220.6855766 | O91: ='Hull Long'!B91 -> 2800 | P91: ='Hull Long'!C91 -> -70.04226851 | Q91: ='Hull Plan'!C91 -> 0 | R91: ='Hull Long'!B142 -> 2800 | S91: ='Hull Long'!C142 -> -70.02281094 | T91: ='Hull Plan'!C142 -> 220.6854368 | U91: 220.6854477 | V91: 100.0086707 | W91: 242.2885581 | X91: 101.0440251 | Y91: 206.2581425 | Z91: 89.99992775 | AA91: 65.62131303 | AB91: 24.37878324 | AC91: 89.99997234 | AD91: 24.37875922 | AE91: 57.41243096 | AF91: 98.2087858 | AG91: 98.20885441 | AH91: 2800.020342 | AI91: -74.99987105 | AJ91: 2800.020514 | AK91: 145.6855766 | AL91: 220.6854477 | AM91: 1.051603249e-12
A92: 0 | B92: 2900.029013 | C92: 0.000177221929 | D92: 1 | E92: 2900.02926 | F92: 206.2583197 | O92: ='Hull Long'!B92 -> 2900 | P92: ='Hull Long'!C92 -> -68.72537109 | Q92: ='Hull Plan'!C92 -> 0 | R92: ='Hull Long'!B143 -> 2900 | S92: ='Hull Long'!C143 -> -68.7007451 | T92: ='Hull Plan'!C143 -> 206.258131 | U92: 206.2581425 | V92: 100.0108308 | W92: 229.2258951 | X92: 101.302454 | Y92: 190.1335075 | Z92: 89.9998936 | AA92: 64.13218131 | AB92: 25.86795983 | AC92: 89.99996221 | AD92: 25.86792509 | AE92: 54.9732727 | AF92: 99.15876746 | AG92: 99.15887081 | AH92: 2900.029013 | AI92: -74.99982278 | AJ92: 2900.02926 | AK92: 131.2583197 | AL92: 206.2581425 | AM92: 1.136868377e-12
A93: 0 | B93: 3000.039844 | C93: 0.0002431862358 | D93: 1 | E93: 3000.040187 | F93: 190.1337507 | O93: ='Hull Long'!B93 -> 3000 | P93: ='Hull Long'!C93 -> -67.25354455 | Q93: ='Hull Plan'!C93 -> 0 | R93: ='Hull Long'!B144 -> 3000 | S93: ='Hull Long'!C144 -> -67.22314209 | T93: ='Hull Plan'!C144 -> 190.1334951 | U93: 190.1335075 | V93: 100.0132308 | W93: 214.8331778 | X93: 101.5888263 | Y93: 172.311543 | Z93: 89.99984525 | AA93: 62.25504155 | AB93: 27.74516389 | AC93: 89.9999486 | AD93: 27.7451132 | AE93: 52.1512235 | AF93: 100.1036126 | AG93: 100.1037666 | AH93: 3000.039844 | AI93: -74.99975681 | AJ93: 3000.040187 | AK93: 115.1337507 | AL93: 190.1335075 | AM93: 1.278976924e-12
A94: 0 | B94: 3100.053074 | C94: 0.0003329022241 | D94: 1 | E94: 3100.053538 | F94: 172.3118759 | O94: ='Hull Long'!B94 -> 3100 | P94: ='Hull Long'!C94 -> -65.62678891 | Q94: ='Hull Plan'!C94 -> 0 | R94: ='Hull Long'!B145 -> 3100 | S94: ='Hull Long'!C145 -> -65.59000193 | T94: ='Hull Plan'!C145 -> 172.311529 | U94: 172.311543 | V94: 100.0158707 | W94: 199.2343035 | X94: 101.9029062 | Y94: 152.7922492 | Z94: 89.99977637 | AA94: 59.867733 | AB94: 30.13256618 | AC94: 89.99993041 | AD94: 30.13249064 | AE94: 48.82459783 | AF94: 101.042836 | AG94: 101.0430656 | AH94: 3100.053074 | AI94: -74.9996671 | AJ94: 3100.053538 | AK94: 97.31187585 | AL94: 172.311543 | AM94: 1.534772309e-12
A95: 0 | B95: 3200.068945 | C95: 0.0004543798551 | D95: 1 | E95: 3200.069557 | F95: 152.7927035 | O95: ='Hull Long'!B95 -> 3200 | P95: ='Hull Long'!C95 -> -63.84510415 | Q95: ='Hull Plan'!C95 -> 0 | R95: ='Hull Long'!B146 -> 3200 | S95: ='Hull Long'!C146 -> -63.80132461 | T95: ='Hull Plan'!C146 -> 152.7922329 | U95: 152.7922492 | V95: 99.01854826 | W95: 182.0713416 | X95: 101.2202363 | Y95: 131.7961947 | Z95: 89.99967647 | AA95: 57.05456847 | AB95: 32.94587036 | AC95: 89.99990605 | AD95: 32.94575506 | AE95: 45.08281664 | AF95: 101.971313 | AG95: 101.9716579 | AH95: 3200.068945 | AI95: -74.99954562 | AJ95: 3200.069557 | AK95: 77.79270354 | AL95: 152.7922492 | AM95: 1.818989404e-12
A96: 0 | B96: 3299.087493 | C96: 0.0006167399019 | D96: 1 | E96: 3299.088287 | F96: 131.7968114 | O96: ='Hull Long'!B96 -> 3299 | P96: ='Hull Long'!C96 -> -61.92862333 | Q96: ='Hull Plan'!C96 -> 0 | R96: ='Hull Long'!B147 -> 3299 | S96: ='Hull Long'!C147 -> -61.87732219 | T96: ='Hull Plan'!C147 -> 131.7961747 | U96: 131.7961947 | V96: 2.00040561 | W96: 131.8113492 | X96: 2.048508286 | Y96: 131.354889 | Z96: 89.99926449 | AA96: 89.13116548 | AB96: 0.8695739014 | AC96: 89.99960937 | AD96: 0.8695700298 | AE96: 76.69053611 | AF96: 102.43989 | AG96: 102.4402387 | AH96: 3299.087493 | AI96: -74.99938326 | AJ96: 3299.088287 | AK96: 56.79681142 | AL96: 131.7961947 | AM96: 1.932676241e-12
A97: 0 | B97: 3301.087899 | C97: 0.0006303783219 | D97: 1 | E97: 3301.088699 | F97: 131.3555193 | O97: ='Hull Long'!B97 -> 3301 | P97: ='Hull Long'!C97 -> -61.88834176 | Q97: ='Hull Plan'!C97 -> 0 | R97: ='Hull Long'!B148 -> 3301 | S97: ='Hull Long'!C148 -> -61.83688253 | T97: ='Hull Plan'!C148 -> 131.3548689 | U97: 131.354889 | V97: 99.0216677 | W97: 164.4967529 | X97: 101.5889098 | Y97: 108.6616767 | Z97: 89.99952467 | AA97: 52.98954923 | AB97: 37.01111597 | AC97: 89.99987343 | AD97: 37.0109261 | AE97: 40.08175166 | AF97: 102.9071324 | AG97: 102.907671 | AH97: 3301.087899 | AI97: -74.99936962 | AJ97: 3301.088699 | AK97: 56.35551933 | AL97: 131.354889 | AM97: 1.98951966e-12
A98: 0 | B98: 3400.109567 | C98: 0.000849131134 | D98: 1 | E98: 3400.110588 | F98: 108.6625258 | O98: ='Hull Long'!B98 -> 3400 | P98: ='Hull Long'!C98 -> -59.81694732 | Q98: ='Hull Plan'!C98 -> 0 | R98: ='Hull Long'!B149 -> 3400 | S98: ='Hull Long'!C149 -> -59.7573585 | T98: ='Hull Plan'!C149 -> 108.6616503 | U98: 108.6616767 | V98: 100.02523 | W98: 147.689325 | X98: 103.008746 | Y98: 84.05040172 | Z98: 89.9992886 | AA98: 47.37020188 | AB98: 42.63085501 | AC98: 89.99982722 | AD98: 42.63050952 | AE98: 33.54715157 | AF98: 103.8219934 | AG98: 103.8228775 | AH98: 3400.109567 | AI98: -74.99915087 | AJ98: 3400.110588 | AK98: 33.66252578 | AL98: 108.6616767 | AM98: 2.870592652e-12
A99: 0 | B99: 3500.134797 | C99: 0.001150761309 | D99: 1 | E99: 3500.136094 | F99: 84.05155247 | O99: ='Hull Long'!B99 -> 3500 | P99: ='Hull Long'!C99 -> -57.57047524 | Q99: ='Hull Plan'!C99 -> 0 | R99: ='Hull Long'!B150 -> 3500 | S99: ='Hull Long'!C150 -> -57.50206971 | T99: ='Hull Plan'!C150 -> 84.05036389 | U99: 84.05040172 | V99: 100.0288295 | W99: 130.6518524 | X99: 103.4309208 | Y99: 57.74180981 | Z99: 89.9988748 | AA99: 40.03951751 | AB99: 49.96235174 | AC99: 89.99975891 | AD99: 49.96160769 | AE99: 25.30390766 | AF99: 104.7337406 | AG99: 104.7353688 | AH99: 3500.134797 | AI99: -74.99884924 | AJ99: 3500.136094 | AK99: 9.051552474 | AL99: 84.05040172 | AM99: 3.836930773e-12
A100: 0 | B100: 3600.163626 | C100: 0.001571671796 | D100: 1 | E100: 3600.165267 | F100: 57.74338146 | O100: ='Hull Long'!B100 -> 3600 | P100: ='Hull Long'!C100 -> -55.16907405 | Q100: ='Hull Plan'!C100 -> 0 | R100: ='Hull Long'!B151 -> 3600 | S100: ='Hull Long'!C151 -> -55.09124376 | T100: ='Hull Plan'!C151 -> 57.74174736 | U100: 57.74180981 | V100: 100.0326688 | W100: 115.5000102 | X100: 103.8793496 | Y100: 29.73594053 | Z100: 89.99802069 | AA100: 29.99530576 | AB100: 60.00907439 | AC100: 89.99964884 | AD100: 60.00667355 | AE100: 14.35484175 | AF100: 105.6360839 | AG100: 105.6401129 | AH100: 3600.163626 | AI100: -74.99842833 | AJ100: 3600.165267 | AK100: -17.25661854 | AL100: 57.74180981 | AM100: 4.796163466e-12
A101: 0 | B101: 3700.196295 | C101: 0.002184767764 | D101: 1 | E101: 3700.198386 | F101: 29.73812523 | O101: ='Hull Long'!B101 -> 3700 | P101: ='Hull Long'!C101 -> -52.61274375 | Q101: ='Hull Plan'!C101 -> 0 | R101: ='Hull Long'!B152 -> 3700 | S101: ='Hull Long'!C152 -> -52.52488065 | T101: ='Hull Plan'!C152 -> 29.73580073 | U101: 29.73594053 | V101: 50.01785282 | W101: 58.18742432 | X101: 52.11634856 | Y101: 15.09662574 | Z101: 89.99546567 | AA101: 30.73294418 | AB101: 59.27669453 | AC101: 89.99949466 | AD101: 59.27159015 | AE101: 14.41920908 | AF101: 106.3040964 | AG101: 106.3132298 | AH101: 3700.196295 | AI101: -74.99781523 | AJ101: 3700.198386 | AK101: -45.26187477 | AL101: 29.73594053 | AM101: 5.844214002e-12
A102: 0 | B102: 3750.214148 | C102: 0.002625919882 | D102: 1 | E102: 3750.216554 | F102: 15.09925147 | O102: ='Hull Long'!B102 -> 3750 | P102: ='Hull Long'!C102 -> -51.27648019 | Q102: ='Hull Plan'!C102 -> 0 | R102: ='Hull Long'!B153 -> 3750 | S102: ='Hull Long'!C153 -> -51.18337266 | T102: ='Hull Plan'!C153 -> 15.09632862 | U102: 15.09662574 | V102: 50.01890256 | W102: 52.2450225 | X102: 52.23814404 | Y102: 0.1037444729 | Z102: 89.99027462 | AA102: 16.79559281 | AB102: 86.14162827 | AC102: 89.99940798 | AD102: 73.21413257 | AE102: 0.1135310545 | AF102: 93.74484068 | AG102: 106.6814697 | AH102: 3750.214148 | AI102: -74.99737408 | AJ102: 3750.216554 | AK102: -59.90074853 | AL102: 15.09662574 | AM102: 6.362910199e-12
A103: 0 | B103: 3800.23305 | C103: 0.003142746024 | D103: 1 | E103: 3800.256276 | F103: 0.1042540049 | O103: ='Hull Long'!B103 -> 3800 | P103: ='Hull Long'!C103 -> -49.90148434 | Q103: ='Hull Plan'!C103 -> 0 | R103: ='Hull Long'!B154 -> 3800 | S103: ='Hull Long'!C154 -> -49.80298038 | T103: ='Hull Plan'!C154 -> 0.0325239965 | U103: 0.1037444729 | V103: 0.05324649985 | W103: 0.1153412473 | X103: 0.05567451699 | Y103: 0.09985307015 | Z103: 88.47251692 | AA103: 64.04488853 | AB103: 28.85454015 | AC103: 101.409146 | AD103: 27.48259455 | AE103: 59.94305442 | AF103: 91.20240543 | AG103: 105.5109801 | AH103: 3800.23305 | AI103: -74.99685725 | AJ103: 3800.256276 | AK103: -74.895746 | AL103: 0.1037444729 | AM103: 4.244798957e-12
A104: 0 | B104: 3800.285245 | C104: -0.007390147305 | D104: 0 | E104: 3800.309923 | F104: 0.08936535635 | O104: ='Hull Long'!B104 -> 3800.053226 | P104: ='Hull Long'!C104 -> -49.9 | Q104: ='Hull Plan'!C104 -> 0 | R104: ='Hull Long'!B155 -> 3800.053226 | S104: ='Hull Long'!C155 -> -49.80149021 | T104: ='Hull Plan'!C155 -> 0.01626223867 | U104: 0.09985307015 | V104: 0.1132827722 | W104: 0.05567465862 | X104: 0.05567465862 | Y104: 1e-05 | Z104: 29.42963354 | AA104: 61.79339062 | AB104: 89.99485441 | AC104: 43.73820821 | AD104: 88.77697583 | AE104: 0.01029117754 | AF104: 89.99485441 | AG104: 105.5213077 | AH104: 3800.285245 | AI104: -75.00739015 | AJ104: 3800.309923 | AK104: -74.91063464 | AL104: 0.09985307014 | AM104: 4.237235562e-12
A105: 0 | B105: 3800.363564 | C105: 0.0744573652 | D105: 0 | E105: 3800.363567 | F105: 0.07446700027 | O105: ='Hull Long'!B105 -> 3800.106452 | P105: ='Hull Long'!C105 -> -49.8 | Q105: ='Hull Plan'!C105 -> 0 | R105: ='Hull Long'!B156 -> 3800.106452 | S105: ='Hull Long'!C156 -> -49.8 | T105: ='Hull Plan'!C156 -> 0 | U105: 1e-05 | V105: 282.9803649 | W105: 282.9803649 | X105: 282.9803649 | Y105: 1e-05 | Z105: 89.99999897 | AA105: 1.707547293e-06 | AB105: 89.99999897 | AC105: 105.5264522 | AD105: 89.99999897 | AE105: 1.707547293e-06 | AF105: 89.99999897 | AG105: 105.5264526 | AH105: 3800.363564 | AI105: -74.92554263 | AJ105: 3800.363567 | AK105: -74.925533 | AL105: 9.999995878e-06 | AM105: 4.122008665e-12
A106: 0 | B106: 4073.017119 | C106: -75.67464208 | D106: 0 | E106: 4073.017121 | F106: -75.67463414 | O106: ='Hull Long'!B106 -> 3933.064516 | P106: ='Hull Long'!C106 -> 200 | Q106: ='Hull Plan'!C106 -> 0 | R106: ='Hull Long'!B157 -> 3933.064516 | S106: ='Hull Long'!C157 -> 200 | T106: ='Hull Plan'!C157 -> 0 | U106: 1e-05 | V106: 67.96966331 | W106: 67.96966331 | X106: 67.96966331 | Y106: 1e-05 | Z106: 89.99999578 | AA106: 8.451927883e-06 | AB106: 89.99999578 | AC106: 105.5264487 | AD106: 89.99999578 | AE106: 8.451927883e-06 | AF106: 89.99999578 | AG106: 105.5264494 | AH106: 4073.017119 | AI106: -150.6746421 | AJ106: 4073.017121 | AK106: -150.6746341 | AL106: 8.247123652e-06 | AM106: 1.752876348e-06
A107: 0 | B107: 4138.506365 | C107: -93.86897737 | D107: 0 | E107: 4138.506367 | F107: -93.86897022 | O107: ='Hull Long'!B107 -> 3965 | P107: ='Hull Long'!C107 -> 260 | Q107: ='Hull Plan'!C107 -> 0 | R107: ='Hull Long'!B158 -> 3965 | S107: ='Hull Long'!C158 -> 260 | T107: ='Hull Plan'!C158 -> 0 | U107: 1e-05 | V107: 74.49200474 | W107: 74.49200474 | X107: 74.49200474 | Y107: 1e-05 | Z107: 89.99999615 | AA107: 7.683962816e-06 | AB107: 89.99999615 | AC107: 105.5264491 | AD107: 89.99999615 | AE107: 7.683962816e-06 | AF107: 89.99999615 | AG107: 105.5264497 | AH107: 4138.506365 | AI107: -168.8689774 | AJ107: 4138.506367 | AK107: -168.8689702 | AL107: 7.427105367e-06 | AM107: 2.572894633e-06
A108: 0 | B108: 4210.279932 | C108: -113.8092342 | D108: 0 | E108: 4210.279933 | F108: -113.8092279 | O108: ='Hull Long'!B108 -> 4000 | P108: ='Hull Long'!C108 -> 325.7575758 | Q108: ='Hull Plan'!C108 -> 0 | R108: ='Hull Long'!B159 -> 4000 | S108: ='Hull Long'!C159 -> 325.7575758 | T108: ='Hull Plan'!C159 -> 0 | U108: 1e-05 | AH108: 4210.279932 | AI108: -188.8092342 | AJ108: 4210.279933 | AK108: -188.8092279 | AL108: 6.538260655e-06 | AM108: 3.461739345e-06
A109: 0 | B109: 0 | C109: 0 | D109: 0 | E109: 0 | F109: 0 | O109: X0 | P109: Z0 | Q109: Y0 | R109: X1 | S109: Z1 | T109: Y1 | U109: F | V109: L | W109: D | X109: U | Y109: F' | Z109: A1 | AA109: A2 | AB109: A3 | AC109: A | AD109: B1 | AE109: B2 | AF109: B3 | AG109: B | AH109: XA | AI109: YA | AJ109: XB | AK109: YB | AL109: Check F | AM109: Error F
A110: 0 | B110: =AH110+$H$110 -> -75.79986391 | C110: =AI110+$I$110 -> 611.4331507 | D110: 0 | E110: =AJ110+$H$110 -> -75.79986388 | F110: =AK110+$I$110 -> 611.4331606 | G110: Side Plank | H110: =0*Basic!$D$2 -> 0 | I110: =I161+AK185-AI134+5*Basic!$D$2 -> 405.00002 | O110: ='Hull Long'!B110 -> 0 | P110: ='Hull Long'!C110 -> 325.7575758 | Q110: ='Hull Plan'!C110 -> 0 | R110: ='Hull Long'!B161 -> 0 | S110: ='Hull Long'!C161 -> 325.7575758 | T110: ='Hull Plan'!C161 -> 0 | U110: =((O110-R110)^2+(S110-P110)^2+(T110-Q110)^2)^0.5+0.00001 -> 1e-05 | AH110: =AH111-V111*SIN(AC111*PI()/180) -> -75.79986391 | AI110: =AI111+V111*COS(AC111*PI()/180) -> 206.4331307 | AJ110: =AJ111-X111*SIN(AG111*PI()/180) -> -75.79986388 | AK110: =AK111+X111*COS(AG111*PI()/180) -> 206.4331406 | AL110: =((AH110-AJ110)^2+(AI110-AK110)^2)^0.5 -> 9.986718294e-06 | AM110: =U110-AL110 -> 1.328170641e-08
A111: 2 | B111: =AH111+$H$110 -> -1.308065809 | C111: =AI111+$I$110 -> 611.2576925 | D111: 2 | E111: =AJ111+$H$110 -> -1.308065785 | F111: =AK111+$I$110 -> 611.2577025 | O111: ='Hull Long'!B111 -> 35 | P111: ='Hull Long'!C111 -> 260 | Q111: ='Hull Plan'!C111 -> 0 | R111: ='Hull Long'!B162 -> 35 | S111: ='Hull Long'!C162 -> 260 | T111: ='Hull Plan'!C162 -> 0 | U111: 1e-05 | V111: =((O111-O110)^2+(P111-P110)^2+(Q111-Q110)^2)^0.5 -> 74.49200474 | W111: =((R111-O110)^2+(S111-P110)^2+(T111-Q110)^2)^0.5 -> 74.49200474 | X111: =((R111-R110)^2+(S111-S110)^2+(T111-T110)^2)^0.5 -> 74.49200474 | Y111: =U110 -> 1e-05 | Z111: =ACOS((U111*U111+V111*V111-W111*W111)/2/U111/V111)*180/PI() -> 89.99999615 | AA111: =ACOS((V111*V111+W111*W111-U111*U111)/2/V111/W111)*180/PI() -> 7.683962816e-06 | AB111: =ACOS((W111*W111+Y111*Y111-X111*X111)/2/W111/Y111)*180/PI() -> 89.99999615 | AC111: =AC112+Z111+AA112+AB112-180 -> 89.86504562 | AD111: =ACOS((U111*U111+W111*W111-V111*V111)/2/U111/W111)*180/PI() -> 89.99999615 | AE111: =ACOS((W111*W111+X111*X111-Y111*Y111)/2/W111/X111)*180/PI() -> 7.683962816e-06 | AF111: =ACOS((X111*X111+Y111*Y111-W111*W111)/2/X111/Y111)*180/PI() -> 89.99999615 | AG111: =180+AG112-AF112-AE111-AD111 -> 89.86504563 | AH111: -1.308065809 | AI111: 206.2576725 | AJ111: -1.308065785 | AK111: 206.2576825 | AL111: 1.000332148e-05 | AM111: -3.321478012e-09
A112: 2 | B112: 32.31027612 | C112: 552.1841602 | D112: 2 | E112: 32.34194227 | F112: 611.1784404 | O112: ='Hull Long'!B112 -> 66.93548387 | P112: ='Hull Long'!C112 -> 200 | Q112: ='Hull Plan'!C112 -> 0 | R112: ='Hull Long'!B163 -> 66.93548387 | S112: ='Hull Long'!C163 -> 258.0655894 | T112: ='Hull Plan'!C163 -> 10.4265167 | U112: 58.99428872 | V112: 67.96966331 | W112: 33.65010141 | X112: 33.65010141 | Y112: 1e-05 | Z112: 29.67466181 | AA112: 60.22115063 | AB112: 89.99999148 | AC112: 29.64390735 | AD112: 90.10418756 | AE112: 1.703273075e-05 | AF112: 89.99999148 | AG112: 89.86504095 | AH112: 32.31027612 | AI112: 147.1841402 | AJ112: 32.34194227 | AK112: 206.1784204 | AL112: 58.99428872 | AM112: 7.350564601e-11
A113: 2 | B113: 172.2656736 | C113: 306.2362518 | D113: 2 | E113: 171.8662121 | F113: 610.8626831 | O113: ='Hull Long'!B113 -> 199.8935484 | P113: ='Hull Long'!C113 -> -49.8 | Q113: ='Hull Plan'!C113 -> 0 | R113: ='Hull Long'!B164 -> 199.8935484 | S113: ='Hull Long'!C164 -> 250.3526716 | T113: ='Hull Plan'!C164 -> 52.01720752 | U113: 304.6266932 | V113: 282.9803649 | W113: 151.3903178 | X113: 139.5246272 | Y113: 58.99428872 | Z113: 29.56668579 | AA113: 83.16327843 | AB113: 67.16414852 | AC113: 29.6418186 | AD113: 67.27003579 | AE113: 22.93476286 | AF113: 89.90108862 | AG113: 89.87033417 | AH113: 172.2656736 | AI113: -98.76376819 | AJ113: 171.8662121 | AK113: 205.8626631 | AL113: 304.6266932 | AM113: 1.443822839e-11
A114: 2 | B114: 172.3213313 | C114: 306.2376234 | D114: 2 | E114: 171.9218883 | F114: 610.862555 | O114: ='Hull Long'!B114 -> 199.9467742 | P114: ='Hull Long'!C114 -> -49.80149021 | Q114: ='Hull Plan'!C114 -> 0.01626223867 | R114: ='Hull Long'!B165 -> 199.9467742 | S114: ='Hull Long'!C165 -> 250.3496939 | T114: ='Hull Plan'!C165 -> 52.03326976 | U114: 304.6251935 | V114: 0.05567465862 | W114: 304.6264971 | X114: 0.05567628055 | Y114: 304.6266932 | Z114: 91.3365046 | AA114: 88.65302666 | AB114: 0.01047182409 | AC114: 91.41163433 | AD114: 0.01046873855 | AE114: 90.1965305 | AF114: 89.79299767 | AG114: 89.86813049 | AH114: 172.3213313 | AI114: -98.76239663 | AJ114: 171.9218883 | AK114: 205.862535 | AL114: 304.6251935 | AM114: 1.432454155e-11
A115: 2 | B115: 172.376989 | C115: 306.2389949 | D115: 2 | E115: 171.9775643 | F115: 610.8624268 | O115: ='Hull Long'!B115 -> 200 | P115: ='Hull Long'!C115 -> -49.80298038 | Q115: ='Hull Plan'!C115 -> 0.0325239965 | R115: ='Hull Long'!B166 -> 200 | S115: ='Hull Long'!C166 -> 250.3467164 | T115: ='Hull Plan'!C166 -> 52.04933153 | U115: 304.6236938 | V115: 0.05567451699 | W115: 304.6249974 | X115: 0.05567614019 | Y115: 304.6251935 | Z115: 91.3364713 | AA115: 88.65305993 | AB115: 0.01047184929 | AC115: 91.41159795 | AD115: 0.01046876361 | AE115: 90.19652121 | AF115: 89.79300694 | AG115: 89.86813667 | AH115: 172.376989 | AI115: -98.76102512 | AJ115: 171.9775643 | AK115: 205.8624068 | AL115: 304.6236938 | AM115: 1.432454155e-11
A116: 2 | B116: 224.5994339 | C116: 307.5195964 | D116: 2 | E116: 224.2176727 | F116: 610.7542115 | O116: ='Hull Long'!B116 -> 250 | P116: ='Hull Long'!C116 -> -51.18337266 | Q116: ='Hull Plan'!C116 -> 15.09632862 | R116: ='Hull Long'!B167 -> 250 | S116: ='Hull Long'!C167 -> 247.5885244 | T116: ='Hull Plan'!C167 -> 66.92995711 | U116: 303.2348555 | V116: 52.23814404 | W116: 308.8963801 | X116: 52.24022053 | Y116: 304.6236938 | Z116: 91.33259532 | AA116: 78.9338595 | AB116: 9.736538603 | AC116: 91.40472855 | AD116: 9.733545187 | AE116: 80.457276 | AF116: 89.8061854 | AG116: 89.88131204 | AH116: 224.5994339 | AI116: -97.48042362 | AJ116: 224.2176727 | AK116: 205.7541915 | AL116: 303.2348555 | AM116: 1.273292582e-11
A117: 2 | B117: 276.7008803 | C117: 308.765819 | D117: 2 | E117: 276.3370325 | F117: 610.6514557 | O117: ='Hull Long'!B117 -> 300 | P117: ='Hull Long'!C117 -> -52.52488065 | Q117: ='Hull Plan'!C117 -> 29.73580073 | R117: ='Hull Long'!B168 -> 300 | S117: ='Hull Long'!C168 -> 244.9080279 | T117: ='Hull Plan'!C168 -> 81.39554259 | U117: 301.885856 | V117: 52.11634856 | W117: 307.5153708 | X117: 52.11946109 | Y117: 303.2348555 | Z117: 91.30114967 | AA117: 78.94406072 | AB117: 9.757867116 | AC117: 91.37020539 | AD117: 9.75478961 | AE117: 80.42722733 | AF117: 89.81490555 | AG117: 89.88703878 | AH117: 276.7008803 | AI117: -96.23420102 | AJ117: 276.3370325 | AK117: 205.6514357 | AL117: 301.885856 | AM117: 1.125499693e-11
A118: 2 | B118: 380.552753 | C118: 311.1549203 | D118: 2 | E118: 380.2251939 | F118: 610.4620381 | O118: ='Hull Long'!B118 -> 400 | P118: ='Hull Long'!C118 -> -55.09124376 | Q118: ='Hull Plan'!C118 -> 57.74174736 | R118: ='Hull Long'!B169 -> 400 | S118: ='Hull Long'!C169 -> 239.7801216 | T118: ='Hull Plan'!C169 -> 109.0811082 | U118: 299.307297 | V118: 103.8793496 | W118: 318.9637787 | X118: 103.8883341 | Y118: 301.885856 | Z118: 91.25514692 | AA118: 69.74295775 | AB118: 19.00824709 | AC118: 91.31785088 | AD118: 19.00189533 | AE118: 71.16527499 | AF118: 89.82647792 | AG118: 89.89553364 | AH118: 380.552753 | AI118: -93.84509971 | AJ118: 380.2251939 | AK118: 205.4620181 | AL118: 299.307297 | AM118: 8.128608897e-12
A119: 2 | B119: 483.9591833 | C119: 313.4056002 | D119: 2 | E119: 483.6680295 | F119: 610.2933141 | O119: ='Hull Long'!B119 -> 500 | P119: ='Hull Long'!C119 -> -57.50206971 | Q119: ='Hull Plan'!C119 -> 84.05036389 | R119: ='Hull Long'!B170 -> 500 | S119: ='Hull Long'!C170 -> 234.9629975 | T119: ='Hull Plan'!C170 -> 135.1050206 | U119: 296.8878567 | V119: 103.4309208 | W119: 316.4119766 | X119: 103.4429732 | Y119: 299.307297 | Z119: 91.19067818 | AA119: 69.73367118 | AB119: 19.08216543 | AC119: 91.24686735 | AD119: 19.07565064 | AE119: 71.07399269 | AF119: 89.84384188 | AG119: 89.90654584 | AH119: 483.9591833 | AI119: -91.59441981 | AJ119: 483.6680295 | AK119: 205.2932941 | AL119: 296.8878567 | AM119: 5.229594535e-12
A120: 2 | B120: 586.9462844 | C120: 315.517174 | D120: 2 | E120: 586.6910965 | F120: 610.1444261 | O120: ='Hull Long'!B120 -> 600 | P120: ='Hull Long'!C120 -> -59.7573585 | Q120: ='Hull Plan'!C120 -> 108.6616503 | R120: ='Hull Long'!B171 -> 600 | S120: ='Hull Long'!C171 -> 230.4566556 | T120: ='Hull Plan'!C171 -> 159.4662064 | U120: 294.6273626 | V120: 103.008746 | W120: 314.0187523 | X120: 103.0231745 | Y120: 296.8878567 | Z120: 91.12496102 | AA120: 69.72939885 | AB120: 19.15220324 | AC120: 91.17458707 | AD120: 19.14564013 | AE120: 70.98678923 | AF120: 89.86100753 | AG120: 89.9171967 | AH120: 586.9462844 | AI120: -89.48284601 | AJ120: 586.6910965 | AK120: 205.1444061 | AL120: 294.6273626 | AM120: 2.444267011e-12
A121: 2 | B121: 688.5164255 | C121: 317.4698724 | D121: 2 | E121: 688.295895 | F121: 610.0156496 | O121: ='Hull Long'!B121 -> 699 | P121: ='Hull Long'!C121 -> -61.83688253 | Q121: ='Hull Plan'!C121 -> 131.3548689 | R121: ='Hull Long'!B172 -> 699 | S121: ='Hull Long'!C172 -> 226.3015131 | T121: ='Hull Plan'!C172 -> 181.9447841 | U121: 292.5458604 | V121: 101.5889098 | W121: 311.4499891 | X121: 101.6048801 | Y121: 294.6273626 | Z121: 91.05819129 | AA121: 69.90807046 | AB121: 19.04017289 | AC121: 91.1013827 | AD121: 19.03373824 | AE121: 71.08207121 | AF121: 89.8777559 | AG121: 89.92738195 | AH121: 688.5164255 | AI121: -87.53014761 | AJ121: 688.295895 | AK121: 205.0156296 | AL121: 292.5458604 | AM121: 0
A122: 2 | B122: 690.5645809 | C122: 317.5078909 | D122: 2 | E122: 690.3447371 | F122: 610.0132202 | O122: ='Hull Long'!B122 -> 701 | P122: ='Hull Long'!C122 -> -61.87732219 | Q122: ='Hull Plan'!C122 -> 131.7961747 | R122: ='Hull Long'!B173 -> 701 | S122: ='Hull Long'!C173 -> 226.2207097 | T122: ='Hull Plan'!C173 -> 182.3820834 | U122: 292.505412 | V122: 2.048508286 | W122: 292.549061 | X122: 2.048843561 | Y122: 292.5458604 | Z122: 91.02035758 | AA122: 88.57850209 | AB122: 0.4012688585 | AC122: 91.06342046 | AD122: 0.4011403285 | AE122: 89.70986036 | AF122: 89.88887078 | AG122: 89.93206219 | AH122: 690.5645809 | AI122: -87.49212909 | AJ122: 690.3447371 | AK122: 205.0132002 | AL122: 292.505412 | AM122: 0
A123: 2 | B123: 791.768596 | C123: 319.3199548 | D123: 2 | E123: 791.5819557 | F123: 609.9023453 | O123: ='Hull Long'!B123 -> 800 | P123: ='Hull Long'!C123 -> -63.80132461 | Q123: ='Hull Plan'!C123 -> 152.7922329 | R123: ='Hull Long'!B174 -> 800 | S123: ='Hull Long'!C174 -> 222.3763184 | T123: ='Hull Plan'!C174 -> 203.1957178 | U123: 290.5824504 | V123: 101.2202363 | W123: 309.3525932 | X123: 101.2372793 | Y123: 292.505412 | Z123: 90.98897382 | AA123: 69.91505349 | AB123: 19.10223465 | AC123: 91.02577474 | AD123: 19.0959727 | AE123: 71.00357853 | AF123: 89.89418683 | AG123: 89.9372497 | AH123: 791.768596 | AI123: -85.68006516 | AJ123: 791.5819557 | AK123: 204.9023253 | AL123: 290.5824504 | AM123: -4.547473509e-13
A124: 2 | B124: 893.6574943 | C124: 321.0095363 | D124: 2 | E124: 893.5024977 | F124: 609.8071008 | O124: ='Hull Long'!B124 -> 900 | P124: ='Hull Long'!C124 -> -65.59000193 | Q124: ='Hull Plan'!C124 -> 172.311529 | R124: ='Hull Long'!B175 -> 900 | S124: ='Hull Long'!C175 -> 218.8023231 | T124: ='Hull Plan'!C175 -> 222.561474 | U124: 288.7976061 | V124: 101.9029062 | W124: 307.7865636 | X124: 101.9205865 | Y124: 290.5824504 | Z124: 90.91927469 | AA124: 69.74878896 | AB124: 19.33798684 | AC124: 90.95002513 | AD124: 19.33193635 | AE124: 70.75235683 | AF124: 89.90965633 | AG124: 89.94645725 | AH124: 893.6574943 | AI124: -83.99048372 | AJ124: 893.5024977 | AK124: 204.8070808 | AL124: 288.7976061 | AM124: -5.115907697e-13
A125: 2 | B125: 995.2345379 | C125: 322.5567405 | D125: 2 | E125: 995.1088777 | F125: 609.7275622 | O125: ='Hull Long'!B125 -> 1000 | P125: ='Hull Long'!C125 -> -67.22314209 | Q125: ='Hull Plan'!C125 -> 190.1334951 | R125: ='Hull Long'!B176 -> 1000 | S125: ='Hull Long'!C176 -> 215.53911 | T125: ='Hull Plan'!C176 -> 240.2593332 | U125: 287.1708491 | V125: 101.5888263 | W125: 306.0236619 | X125: 101.6064111 | Y125: 288.7976061 | Z125: 90.8475806 | AA125: 69.76660238 | AB125: 19.39149597 | AC125: 90.87265209 | AD125: 19.38581702 | AE125: 70.68410623 | AF125: 89.9243978 | AG125: 89.95514824 | AH125: 995.2345379 | AI125: -82.44327946 | AJ125: 995.1088777 | AK125: 204.7275422 | AL125: 287.1708491 | AM125: -6.252776075e-13
A126: 2 | B126: 1096.527263 | C126: 323.9606547 | D126: 2 | E126: 1096.42828 | F126: 609.662543 | O126: ='Hull Long'!B126 -> 1100 | P126: ='Hull Long'!C126 -> -68.7007451 | Q126: ='Hull Plan'!C126 -> 206.258131 | R126: ='Hull Long'!B177 -> 1100 | S126: ='Hull Long'!C177 -> 212.5866791 | T126: ='Hull Plan'!C177 -> 256.2877024 | U126: 285.7019054 | V126: 101.302454 | W126: 304.4173372 | X126: 101.319423 | Y126: 287.1708491 | Z126: 90.77421643 | AA126: 69.79034098 | AB126: 19.44066354 | AC126: 90.79406698 | AD126: 19.43544259 | AE126: 70.6211761 | AF126: 89.93816036 | AG126: 89.96323185 | AH126: 1096.527263 | AI126: -81.03936527 | AJ126: 1096.42828 | AK126: 204.662523 | AL126: 285.7019054 | AM126: -6.252776075e-13
A127: 2 | B127: 1197.563436 | C127: 325.2203475 | D127: 2 | E127: 1197.488175 | F127: 609.6108045 | O127: ='Hull Long'!B127 -> 1200 | P127: ='Hull Long'!C127 -> -70.02281094 | Q127: ='Hull Plan'!C127 -> 220.6854368 | R127: ='Hull Long'!B178 -> 1200 | S127: ='Hull Long'!C178 -> 209.9450304 | T127: ='Hull Plan'!C178 -> 270.6448184 | U127: 284.3904669 | V127: 101.0440251 | W127: 302.9671826 | X127: 101.0599084 | Y127: 285.7019054 | Z127: 90.69914914 | AA127: 69.82011376 | AB127: 19.4854249 | AC127: 90.71431189 | AD127: 19.4807371 | AE127: 70.56375872 | AF127: 89.95081637 | AG127: 89.97066692 | AH127: 1197.563436 | AI127: -79.77967251 | AJ127: 1197.488175 | AK127: 204.6107845 | AL127: 284.3904669 | AM127: -5.115907697e-13
A128: 2 | B128: 1298.371029 | C128: 326.3348811 | D128: 2 | E128: 1298.316308 | F128: 609.5710603 | O128: ='Hull Long'!B128 -> 1300 | P128: ='Hull Long'!C128 -> -71.18933963 | Q128: ='Hull Plan'!C128 -> 233.4154126 | R128: ='Hull Long'!B179 -> 1300 | S128: ='Hull Long'!C179 -> 207.6141639 | T128: ='Hull Plan'!C179 -> 283.3287069 | U128: 283.2361845 | V128: 100.8137544 | W128: 301.6727848 | X128: 100.8281408 | Y128: 284.3904669 | Z128: 90.62236951 | AA128: 69.85599734 | AB128: 19.52572629 | AC128: 90.63343911 | AD128: 19.52163315 | AE128: 70.51202112 | AF128: 89.96225259 | AG128: 89.97741533 | AH128: 1298.371029 | AI128: -78.66513885 | AJ128: 1298.316308 | AK128: 204.5710403 | AL128: 283.2361845 | AM128: -4.547473509e-13
A129: 2 | B129: 1398.978204 | C129: 327.3033256 | D129: 2 | E129: 1398.940685 | F129: 609.5419798 | O129: ='Hull Long'!B129 -> 1400 | P129: ='Hull Long'!C129 -> -72.20033115 | Q129: ='Hull Plan'!C129 -> 244.4480582 | R129: ='Hull Long'!B180 -> 1400 | S129: ='Hull Long'!C180 -> 205.5940796 | T129: ='Hull Plan'!C180 -> 294.3371255 | U129: 282.2386567 | V129: 100.6118352 | W129: 300.533719 | X129: 100.6243808 | Y129: 283.2361845 | Z129: 90.5438955 | AA129: 69.89803185 | AB129: 19.56152571 | AC129: 90.55151203 | AD129: 19.55807265 | AE129: 70.46610242 | AF129: 89.97237187 | AG129: 89.98344147 | AH129: 1398.978204 | AI129: -77.69669438 | AJ129: 1398.940685 | AK129: 204.5419598 | AL129: 282.2386567 | AM129: 0
A130: 2 | B130: 1499.413283 | C130: 328.1247742 | D130: 2 | E130: 1499.389561 | F130: 609.522188 | O130: ='Hull Long'!B130 -> 1500 | P130: ='Hull Long'!C130 -> -73.05578552 | Q130: ='Hull Plan'!C130 -> 253.7833738 | R130: ='Hull Long'!B181 -> 1500 | S130: ='Hull Long'!C181 -> 203.8847775 | T130: ='Hull Plan'!C181 -> 303.6674788 | U130: 281.3974147 | V130: 100.4384385 | W130: 299.5495401 | X130: 100.4488786 | Y130: 282.2386567 | Z130: 90.46377609 | AA130: 69.94621617 | AB130: 19.59279428 | AC130: 90.46860609 | AD130: 19.59000774 | AE130: 70.42611147 | AF130: 89.98109424 | AG130: 89.98871078 | AH130: 1499.413283 | AI130: -76.87524576 | AJ130: 1499.389561 | AK130: 204.522168 | AL130: 281.3974147 | AM130: 0
A131: 2 | B131: 1599.704733 | C131: 328.7983618 | D131: 2 | E131: 1599.691436 | F131: 609.5102601 | O131: ='Hull Long'!B131 -> 1600 | P131: ='Hull Long'!C131 -> -73.75570273 | Q131: ='Hull Plan'!C131 -> 261.4213592 | R131: ='Hull Long'!B182 -> 1600 | S131: ='Hull Long'!C182 -> 202.4862576 | T131: ='Hull Plan'!C182 -> 311.316687 | U131: 280.7118986 | V131: 100.2937122 | W131: 298.7197678 | X131: 100.3018756 | Y131: 281.3974147 | Z131: 90.3820959 | AA131: 70.00050194 | AB131: 19.61951813 | AC131: 90.38480993 | AD131: 19.61740216 | AE131: 70.39212547 | AF131: 89.9883564 | AG131: 89.9931864 | AH131: 1599.704733 | AI131: -76.20165818 | AJ131: 1599.691436 | AK131: 204.5102401 | AL131: 280.7118986 | AM131: 0
A132: 2 | B132: 1699.881138 | C132: 329.3232858 | D132: 2 | E132: 1699.875046 | F132: 609.5047028 | O132: ='Hull Long'!B132 -> 1700 | P132: ='Hull Long'!C132 -> -74.30008279 | Q132: ='Hull Plan'!C132 -> 267.3620146 | R132: ='Hull Long'!B183 -> 1700 | S132: ='Hull Long'!C183 -> 201.3985199 | T132: ='Hull Plan'!C183 -> 317.2809621 | U132: 280.181417 | V132: 100.1777806 | W132: 298.0438583 | X132: 100.1836102 | Y132: 280.7118986 | Z132: 90.29898107 | AA132: 70.06078553 | AB132: 19.64170158 | AC132: 90.30022692 | AD132: 19.6402334 | AE132: 70.36419072 | AF132: 89.9941077 | AG132: 89.99682173 | AH132: 1699.881138 | AI132: -75.6767342 | AJ132: 1699.875046 | AK132: 204.5046828 | AL132: 280.181417 | AM132: 0
A133: 2 | B133: 1799.971178 | C133: 329.6988314 | D133: 2 | E133: 1799.969373 | F133: 609.5039026 | O133: ='Hull Long'!B133 -> 1800 | P133: ='Hull Long'!C133 -> -74.68892568 | Q133: ='Hull Plan'!C133 -> 271.6053398 | R133: ='Hull Long'!B184 -> 1800 | S133: ='Hull Long'!C184 -> 200.6215644 | T133: ='Hull Plan'!C184 -> 321.555378 | U133: =((O133-R133)^2+(S133-P133)^2+(T133-Q133)^2)^0.5+0.00001 -> 279.8050712 | V133: =((O133-O132)^2+(P133-P132)^2+(Q133-Q132)^2)^0.5 -> 100.0907439 | W133: =((R133-O132)^2+(S133-P132)^2+(T133-Q132)^2)^0.5 -> 297.5211467 | X133: =((R133-R132)^2+(S133-S132)^2+(T133-T132)^2)^0.5 -> 100.094327 | Y133: =U132 -> 280.181417 | Z133: =ACOS((U133*U133+V133*V133-W133*W133)/2/U133/V133)*180/PI() -> 90.21460766 | AA133: =ACOS((V133*V133+W133*W133-U133*U133)/2/V133/W133)*180/PI() -> 70.12689536 | AB133: =ACOS((W133*W133+Y133*Y133-X133*X133)/2/W133/Y133)*180/PI() -> 19.65937329 | AC133: =AC134+Z133+AA134+AB134-180 -> 90.2149772 | AD133: =ACOS((U133*U133+W133*W133-V133*V133)/2/U133/W133)*180/PI() -> 19.65849698 | AE133: =ACOS((W133*W133+X133*X133-Y133*Y133)/2/W133/X133)*180/PI() -> 70.3423306 | AF133: =ACOS((X133*X133+Y133*Y133-W133*W133)/2/X133/Y133)*180/PI() -> 89.99829611 | AG133: =180+AG134-AF134-AE133-AD133 -> 89.99954196 | AH133: =AH134-V134*SIN(AC134*PI()/180) -> 1799.971178 | AI133: =AI134+V134*COS(AC134*PI()/180) -> -75.30118861 | AJ133: =AJ134-X134*SIN(AG134*PI()/180) -> 1799.969373 | AK133: =AK134+X134*COS(AG134*PI()/180) -> 204.5038826 | AL133: =((AH133-AJ133)^2+(AI133-AK133)^2)^0.5 -> 279.8050712 | AM133: =U133-AL133 -> 0
A134: 2 | B134: 2000 | C134: 330.00002 | D134: 2 | E134: 2000 | F134: 609.5085272 | O134: ='Hull Long'!B134 -> 2000 | P134: ='Hull Long'!C134 -> -75 | Q134: ='Hull Plan'!C134 -> 275 | R134: ='Hull Long'!B185 -> 2000 | S134: ='Hull Long'!C185 -> 200 | T134: ='Hull Plan'!C185 -> 325 | U134: =((O134-R134)^2+(S134-P134)^2+(T134-Q134)^2)^0.5+0.00001 -> 279.5085072 | V134: =((O134-O133)^2+(P134-P133)^2+(Q134-Q133)^2)^0.5 -> 200.0290491 | W134: =((R134-O133)^2+(S134-P133)^2+(T134-Q133)^2)^0.5 -> 343.9549326 | X134: =((R134-R133)^2+(S134-S133)^2+(T134-T133)^2)^0.5 -> 200.0306271 | Y134: =U133 -> 279.8050712 | Z134: =ACOS((U134*U134+V134*V134-W134*W134)/2/U134/V134)*180/PI() -> 90.08627168 | AA134: =ACOS((V134*V134+W134*W134-U134*U134)/2/V134/W134)*180/PI() -> 54.35371794 | AB134: =ACOS((W134*W134+Y134*Y134-X134*X134)/2/W134/Y134)*180/PI() -> 35.56037992 | AC134: =Z134 -> 90.08627168 | AD134: =ACOS((U134*U134+W134*W134-V134*V134)/2/U134/W134)*180/PI() -> 35.56001038 | AE134: =ACOS((W134*W134+X134*X134-Y134*Y134)/2/W134/X134)*180/PI() -> 54.43866497 | AF134: =ACOS((X134*X134+Y134*Y134-W134*W134)/2/X134/Y134)*180/PI() -> 90.00095511 | AG134: =180-AD134-AE134 -> 90.00132465 | AH134: =O134 -> 2000 | AI134: =P134 -> -75 | AJ134: =AH134 -> 2000 | AK134: =AI134+U134 -> 204.5085072 | AL134: =((AH134-AJ134)^2+(AI134-AK134)^2)^0.5 -> 279.5085072 | AM134: =U134-AL134 -> 0
A135: 2 | B135: 2000 | C135: 330.00002 | D135: 2 | E135: 2000 | F135: 609.5085272 | O135: ='Hull Long'!B135 -> 2000 | P135: ='Hull Long'!C135 -> -75 | Q135: ='Hull Plan'!C135 -> 275 | R135: ='Hull Long'!B186 -> 2000 | S135: ='Hull Long'!C186 -> 200 | T135: ='Hull Plan'!C186 -> 325 | U135: =((O135-R135)^2+(S135-P135)^2+(T135-Q135)^2)^0.5+0.00001 -> 279.5085072 | V135: =((O135-O136)^2+(P135-P136)^2+(Q135-Q136)^2)^0.5 -> 200.0290491 | W135: =((R135-O136)^2+(S135-P136)^2+(T135-Q136)^2)^0.5 -> 343.9549326 | X135: =((R135-R136)^2+(S135-S136)^2+(T135-T136)^2)^0.5 -> 200.0293022 | Y135: =U136 -> 279.818973 | Z135: =ACOS((U135*U135+V135*V135-W135*W135)/2/U135/V135)*180/PI() -> 90.08627168 | AA135: =ACOS((V135*V135+W135*W135-U135*U135)/2/V135/W135)*180/PI() -> 54.35371794 | AB135: =ACOS((W135*W135+Y135*Y135-X135*X135)/2/W135/Y135)*180/PI() -> 35.56010859 | AC135: =Z135 -> 90.08627168 | AD135: =ACOS((U135*U135+W135*W135-V135*V135)/2/U135/W135)*180/PI() -> 35.56001038 | AE135: =ACOS((W135*W135+X135*X135-Y135*Y135)/2/W135/X135)*180/PI() -> 54.44264694 | AF135: =ACOS((X135*X135+Y135*Y135-W135*W135)/2/X135/Y135)*180/PI() -> 89.99724447 | AG135: =180-AD135-AE135 -> 89.99734268 | AH135: =O135 -> 2000 | AI135: =P135 -> -75 | AJ135: =AH135 -> 2000 | AK135: =AI135+U135 -> 204.5085072 | AL135: =((AH135-AJ135)^2+(AI135-AK135)^2)^0.5 -> 279.5085072 | AM135: =U135-AL135 -> 0
A136: 2 | B136: 2200.028822 | C136: 329.6988314 | D136: 2 | E136: 2200.029302 | F136: 609.5178043 | O136: ='Hull Long'!B136 -> 2200 | P136: ='Hull Long'!C136 -> -74.68892568 | Q136: ='Hull Plan'!C136 -> 271.6053398 | R136: ='Hull Long'!B187 -> 2200 | S136: ='Hull Long'!C187 -> 200.6215644 | T136: ='Hull Plan'!C187 -> 321.6331928 | U136: =((O136-R136)^2+(S136-P136)^2+(T136-Q136)^2)^0.5+0.00001 -> 279.818973 | V136: =((O136-O137)^2+(P136-P137)^2+(Q136-Q137)^2)^0.5 -> 100.0907439 | W136: =((R136-O137)^2+(S136-P137)^2+(T136-Q137)^2)^0.5 -> 297.5353305 | X136: =((R136-R137)^2+(S136-S137)^2+(T136-T137)^2)^0.5 -> 100.0915341 | Y136: =U137 -> 280.2070591 | Z136: =ACOS((U136*U136+V136*V136-W136*W136)/2/U136/V136)*180/PI() -> 90.21527249 | AA136: =ACOS((V136*V136+W136*W136-U136*U136)/2/V136/W136)*180/PI() -> 70.12720714 | AB136: =ACOS((W136*W136+Y136*Y136-X136*X136)/2/W136/Y136)*180/PI() -> 19.65782627 | AC136: =AC135+Z136+AA135+AB135-180 -> 90.2153707 | AD136: =ACOS((U136*U136+W136*W136-V136*V136)/2/U136/W136)*180/PI() -> 19.65752037 | AE136: =ACOS((W136*W136+X136*X136-Y136*Y136)/2/W136/X136)*180/PI() -> 70.349363 | AF136: =ACOS((X136*X136+Y136*Y136-W136*W136)/2/X136/Y136)*180/PI() -> 89.99281073 | AG136: =180+AG135-AF135-AE136-AD136 -> 89.99321484 | AH136: =AH135+V135*SIN(AC135*PI()/180) -> 2200.028822 | AI136: =AI135+V135*COS(AC135*PI()/180) -> -75.30118861 | AJ136: =AJ135+X135*SIN(AG135*PI()/180) -> 2200.029302 | AK136: =AK135+X135*COS(AG135*PI()/180) -> 204.5177843 | AL136: =((AH136-AJ136)^2+(AI136-AK136)^2)^0.5 -> 279.818973 | AM136: =U136-AL136 -> 0
A137: 2 | B137: 2300.118859 | C137: 329.3225984 | D137: 2 | E137: 2300.120835 | F137: 609.5296575 | O137: ='Hull Long'!B137 -> 2300 | P137: ='Hull Long'!C137 -> -74.30008279 | Q137: ='Hull Plan'!C137 -> 267.3620146 | R137: ='Hull Long'!B188 -> 2300 | S137: ='Hull Long'!C188 -> 201.3985199 | T137: ='Hull Plan'!C188 -> 317.4246839 | U137: =((O137-R137)^2+(S137-P137)^2+(T137-Q137)^2)^0.5+0.00001 -> 280.2070591 | V137: =((O137-O138)^2+(P137-P138)^2+(Q137-Q138)^2)^0.5 -> 100.1777806 | W137: =((R137-O138)^2+(S137-P138)^2+(T137-Q138)^2)^0.5 -> 298.0708282 | X137: =((R137-R138)^2+(S137-S138)^2+(T137-T138)^2)^0.5 -> 100.1793282 | Y137: =U138 -> 280.7503872 | Z137: =ACOS((U137*U137+V137*V137-W137*W137)/2/U137/V137)*180/PI() -> 90.30069646 | AA137: =ACOS((V137*V137+W137*W137-U137*U137)/2/V137/W137)*180/PI() -> 70.06092345 | AB137: =ACOS((W137*W137+Y137*Y137-X137*X137)/2/W137/Y137)*180/PI() -> 19.63897716 | AC137: =AC136+Z137+AA136+AB136-180 -> 90.30110057 | AD137: =ACOS((U137*U137+W137*W137-V137*V137)/2/U137/W137)*180/PI() -> 19.63838009 | AE137: =ACOS((W137*W137+X137*X137-Y137*Y137)/2/W137/X137)*180/PI() -> 70.37167624 | AF137: =ACOS((X137*X137+Y137*Y137-W137*W137)/2/X137/Y137)*180/PI() -> 89.98934661 | AG137: =180+AG136-AF136-AE137-AD137 -> 89.99034778 | AH137: =AH136+V136*SIN(AC136*PI()/180) -> 2300.118859 | AI137: =AI136+V136*COS(AC136*PI()/180) -> -75.6774216 | AJ137: =AJ136+X136*SIN(AG136*PI()/180) -> 2300.120835 | AK137: =AK136+X136*COS(AG136*PI()/180) -> 204.5296375 | AL137: =((AH137-AJ137)^2+(AI137-AK137)^2)^0.5 -> 280.2070591 | AM137: =U137-AL137 -> 0
A138: 2 | B138: 2400.295256 | C138: 328.7961469 | D138: 2 | E138: 2400.300162 | F138: 609.546534 | O138: ='Hull Long'!B138 -> 2400 | P138: ='Hull Long'!C138 -> -73.75570273 | Q138: ='Hull Plan'!C138 -> 261.4213592 | R138: ='Hull Long'!B189 -> 2400 | S138: ='Hull Long'!C189 -> 202.4862576 | T138: ='Hull Plan'!C189 -> 311.5327713 | U138: 280.7503872 | V138: 100.2937122 | W138: 298.7614608 | X138: 100.2962675 | Y138: 281.4489643 | Z138: 90.38540198 | AA138: 70.00005364 | AB138: 19.6155259 | AC138: 90.38640315 | AD138: 19.61454439 | AE138: 70.39913926 | AF138: 89.98533485 | AG138: 89.98731754 | AH138: 2400.295256 | AI138: -76.20387309 | AJ138: 2400.300162 | AK138: 204.546514 | AL138: 280.7503872 | AM138: 0
A139: 2 | B139: 2500.586688 | C139: 328.1197705 | D139: 2 | E139: 2500.596427 | F139: 609.5687347 | O139: ='Hull Long'!B139 -> 2500 | P139: ='Hull Long'!C139 -> -73.05578552 | Q139: ='Hull Plan'!C139 -> 253.7833738 | R139: ='Hull Long'!B190 -> 2500 | S139: ='Hull Long'!C190 -> 203.8847775 | T139: ='Hull Plan'!C190 -> 303.9574552 | U139: 281.4489643 | V139: 100.4384385 | W139: 299.6070018 | X139: 100.4422501 | Y139: 282.3027999 | Z139: 90.46917807 | AA139: 69.94474056 | AB139: 19.58753744 | AC139: 90.47116075 | AD139: 19.58608138 | AE139: 70.43182131 | AF139: 89.98064125 | AG139: 89.98408 | AH139: 2500.586688 | AI139: -76.88024948 | AJ139: 2500.596427 | AK139: 204.5687147 | AL139: 281.4489643 | AM139: 0
A140: 2 | B140: 2601.02173 | C140: 327.2938438 | D140: 2 | E140: 2601.038673 | F140: 609.5966432 | O140: ='Hull Long'!B140 -> 2600 | P140: ='Hull Long'!C140 -> -72.20033115 | Q140: ='Hull Plan'!C140 -> 244.4480582 | R140: ='Hull Long'!B191 -> 2600 | S140: ='Hull Long'!C191 -> 205.5940796 | T140: ='Hull Plan'!C191 -> 294.6987355 | U140: 282.3027999 | V140: 100.6118352 | W140: 300.6072302 | X140: 100.6171496 | Y140: 283.3119052 | Z140: 90.5518201 | AA140: 69.89511171 | AB140: 19.55508502 | AC140: 90.55525885 | AD140: 19.55306819 | AE140: 70.46977769 | AF140: 89.97513729 | AG140: 89.98059287 | AH140: 2601.02173 | AI140: -77.70617623 | AJ140: 2601.038673 | AK140: 204.5966232 | AL140: 282.3027999 | AM140: 0
A141: 2 | B141: 2701.628841 | C141: 326.3188202 | D141: 2 | E141: 2701.655817 | F141: 609.6307241 | O141: ='Hull Long'!B141 -> 2700 | P141: ='Hull Long'!C141 -> -71.18933963 | Q141: ='Hull Plan'!C141 -> 233.4154126 | R141: ='Hull Long'!B192 -> 2700 | S141: ='Hull Long'!C192 -> 207.6141639 | T141: ='Hull Plan'!C192 -> 283.7566122 | U141: 283.3119052 | V141: 100.8137544 | W141: 301.7619309 | X141: 100.8208156 | Y141: 284.4762931 | Z141: 90.63313113 | AA141: 69.85127849 | AB141: 19.5182497 | AC141: 90.63858671 | AD141: 19.51559038 | AE141: 70.51304922 | AF141: 89.96870108 | AG141: 89.97681599 | AH141: 2701.628841 | AI141: -78.68119984 | AJ141: 2701.655817 | AK141: 204.6307041 | AL141: 283.3119052 | AM141: 0
A142: 2 | B142: 2802.436334 | C142: 325.1952297 | D142: 2 | E142: 2802.476625 | F142: 609.6715199 | O142: ='Hull Long'!B142 -> 2800 | P142: ='Hull Long'!C142 -> -70.02281094 | Q142: ='Hull Plan'!C142 -> 220.6854368 | R142: ='Hull Long'!B193 -> 2800 | S142: ='Hull Long'!C193 -> 209.9450304 | T142: ='Hull Plan'!C193 -> 271.1310853 | U142: 284.4762931 | V142: 101.0440251 | W142: 303.0708967 | X142: 101.0530742 | Y142: 285.7959783 | Z142: 90.71292308 | AA142: 69.81333555 | AB142: 19.47711976 | AC142: 90.72103799 | AD142: 19.47374136 | AE142: 70.5616619 | AF142: 89.96121834 | AG142: 89.97271165 | AH142: 2802.436334 | AI142: -79.80479029 | AJ142: 2802.476625 | AK142: 204.6714999 | AL142: 284.4762931 | AM142: 0
A143: 2 | B143: 2903.472358 | C143: 323.9236761 | D143: 2 | E143: 2903.529687 | F143: 609.7196486 | O143: ='Hull Long'!B143 -> 2900 | P143: ='Hull Long'!C143 -> -68.7007451 | Q143: ='Hull Plan'!C143 -> 206.258131 | R143: ='Hull Long'!B194 -> 2900 | S143: ='Hull Long'!C194 -> 212.5866791 | T143: ='Hull Plan'!C194 -> 256.8221549 | U143: 285.7959783 | V143: 101.302454 | W143: 304.5339281 | X143: 101.3137286 | Y143: 287.2709773 | Z143: 90.79101792 | AA143: 69.78136029 | AB143: 19.43179021 | AC143: 90.80251122 | AD143: 19.42762179 | AE143: 70.61562665 | AF143: 89.95258313 | AG143: 89.96824486 | AH143: 2903.472358 | AI143: -81.07634395 | AJ143: 2903.529687 | AK143: 204.7196286 | AL143: 285.7959783 | AM143: 0
A144: 2 | B144: 3004.764875 | C144: 322.5048334 | D144: 2 | E144: 3004.8434 | F144: 609.7757999 | O144: ='Hull Long'!B144 -> 3000 | P144: ='Hull Long'!C144 -> -67.22314209 | Q144: ='Hull Plan'!C144 -> 190.1334951 | R144: ='Hull Long'!B195 -> 3000 | S144: ='Hull Long'!C195 -> 215.53911 | T144: ='Hull Plan'!C195 -> 240.8298208 | U144: 287.2709773 | V144: 101.5888263 | W144: 306.1508352 | X144: 101.6025603 | Y144: 288.9013078 | Z144: 90.86724859 | AA144: 69.7554125 | AB144: 19.38236223 | AC144: 90.88291032 | AD144: 19.37733891 | AE144: 70.6749392 | AF144: 89.94269857 | AG144: 89.96338362 | AH144: 3004.764875 | AI144: -82.49518664 | AJ144: 3004.8434 | AK144: 204.7757799 | AL144: 287.2709773 | AM144: 0
A145: 2 | B145: 3106.34164 | C145: 320.9394428 | D145: 2 | E145: 3106.44594 | F145: 609.8407317 | O145: ='Hull Long'!B145 -> 3100 | P145: ='Hull Long'!C145 -> -65.59000193 | Q145: ='Hull Plan'!C145 -> 172.311529 | R145: ='Hull Long'!B196 -> 3100 | S145: ='Hull Long'!C196 -> 218.8023231 | T145: ='Hull Plan'!C196 -> 223.1540832 | U145: 288.9013078 | V145: 101.9029062 | W145: 307.9214375 | X145: 101.9193298 | Y145: 290.6869889 | Z145: 90.94145991 | AA145: 69.73553416 | AB145: 19.32894258 | AC145: 90.96214495 | AD145: 19.32300593 | AE145: 70.73958004 | AF145: 89.93147739 | AG145: 89.95809908 | AH145: 3106.34164 | AI145: -84.06057722 | AJ145: 3106.44594 | AK145: 204.8407117 | AL145: 288.9013078 | AM145: 0
A146: 2 | B146: 3208.230179 | C146: 319.2283087 | D146: 2 | E146: 3208.365243 | F146: 609.9152662 | O146: ='Hull Long'!B146 -> 3200 | P146: ='Hull Long'!C146 -> -63.80132461 | Q146: ='Hull Plan'!C146 -> 152.7922329 | R146: ='Hull Long'!B197 -> 3200 | S146: ='Hull Long'!C197 -> 222.3763184 | T146: ='Hull Plan'!C197 -> 203.794942 | U146: 290.6869889 | V146: 101.2202363 | W146: 309.4914452 | X146: 101.239367 | Y146: 292.6078613 | Z146: 91.01312133 | AA146: 69.89995104 | AB146: 19.0937554 | AC146: 91.03974302 | AD146: 19.08692763 | AE146: 70.98729973 | AF146: 89.91894487 | AG146: 89.95239433 | AH146: 3208.230179 | AI146: -85.77171127 | AJ146: 3208.365243 | AK146: 204.9152462 | AL146: 290.6869889 | AM146: 0
A147: 2 | B147: 3309.433749 | C147: 317.3915721 | D147: 2 | E147: 3309.604575 | F147: 609.9993836 | O147: ='Hull Long'!B147 -> 3299 | P147: ='Hull Long'!C147 -> -61.87732219 | Q147: ='Hull Plan'!C147 -> 131.7961747 | R147: ='Hull Long'!B198 -> 3299 | S147: ='Hull Long'!C198 -> 226.2207097 | T147: ='Hull Plan'!C198 -> 182.9711555 | U147: 292.6078613 | V147: 2.048508286 | W147: 292.6523834 | X147: 2.048925885 | Y147: 292.6482362 | Z147: 91.04485312 | AA147: 88.55415127 | AB147: 0.4011436213 | AC147: 91.07830258 | AD147: 0.4009956115 | AE147: 89.6834581 | AF147: 89.91539828 | AG147: 89.94899575 | AH147: 3309.433749 | AI147: -87.60844792 | AJ147: 3309.604575 | AK147: 204.9993636 | AL147: 292.6078613 | AM147: 0
A148: 2 | B148: 3311.481895 | C148: 317.3530216 | D148: 2 | E148: 3311.6535 | F148: 610.0012075 | O148: ='Hull Long'!B148 -> 3301 | P148: ='Hull Long'!C148 -> -61.83688253 | Q148: ='Hull Plan'!C148 -> 131.3548689 | R148: ='Hull Long'!B199 -> 3301 | S148: ='Hull Long'!C199 -> 226.3015131 | T148: ='Hull Plan'!C199 -> 182.5334706 | U148: 292.6482362 | V148: 101.5889098 | W148: 311.5890304 | X148: 101.6111767 | Y148: 294.7244856 | Z148: 91.08357161 | AA148: 69.89167385 | AB148: 19.03259198 | AC148: 91.11716909 | AD148: 19.02475453 | AE148: 71.06271491 | AF148: 89.90469311 | AG148: 89.94612803 | AH148: 3311.481895 | AI148: -87.64699843 | AJ148: 3311.6535 | AK148: 205.0011875 | AL148: 292.6482362 | AM148: 0
A149: 2 | B149: 3413.051494 | C149: 315.3723382 | D149: 2 | E149: 3413.264632 | F149: 610.0967467 | O149: ='Hull Long'!B149 -> 3400 | P149: ='Hull Long'!C149 -> -59.7573585 | Q149: ='Hull Plan'!C149 -> 108.6616503 | R149: ='Hull Long'!B200 -> 3400 | S149: ='Hull Long'!C200 -> 230.4566556 | T149: ='Hull Plan'!C200 -> 160.0264489 | U149: 294.7244856 | V149: 103.008746 | W149: 314.1537728 | X149: 103.0345747 | Y149: 296.9763449 | Z149: 91.1506175 | AA149: 69.71246819 | AB149: 19.14587323 | AC149: 91.19205242 | AD149: 19.13691431 | AE149: 70.96505275 | AF149: 89.88907402 | AG149: 89.93946786 | AH149: 3413.051494 | AI149: -89.62768181 | AJ149: 3413.264632 | AK149: 205.0967267 | AL149: 294.7244856 | AM149: 0
A150: 2 | B150: 3516.037947 | C150: 313.2293712 | D150: 2 | E150: 3516.299149 | F150: 610.2056012 | O150: ='Hull Long'!B150 -> 3500 | P150: ='Hull Long'!C150 -> -57.50206971 | Q150: ='Hull Plan'!C150 -> 84.05036389 | R150: ='Hull Long'!B201 -> 3500 | S150: ='Hull Long'!C201 -> 234.9629975 | T150: ='Hull Plan'!C201 -> 135.6170969 | U150: 296.9763449 | V150: 103.4309208 | W150: 316.5375695 | X150: 103.460314 | Y150: 299.3836421 | Z150: 91.21545834 | AA150: 69.716932 | AB150: 19.07764664 | AC150: 91.26585218 | AD150: 19.06760965 | AE150: 71.05051454 | AF150: 89.87183881 | AG150: 89.93226964 | AH150: 3516.037947 | AI150: -91.77064885 | AJ150: 3516.299149 | AK150: 205.2055812 | AL150: 296.9763449 | AM150: 0
A151: 2 | B151: 3619.443625 | C151: 310.9444279 | D151: 2 | E151: 3619.75939 | F151: 610.3279034 | O151: ='Hull Long'!B151 -> 3600 | P151: ='Hull Long'!C151 -> -55.09124376 | Q151: ='Hull Plan'!C151 -> 57.74174736 | R151: ='Hull Long'!B202 -> 3600 | S151: ='Hull Long'!C202 -> 239.7801216 | T151: ='Hull Plan'!C202 -> 109.5243414 | U151: 299.3836421 | V151: 103.8793496 | W151: 319.0743261 | X151: 103.9125134 | Y151: 301.9464008 | Z151: 91.27770142 | AA151: 69.72741067 | AB151: 19.00602648 | AC151: 91.33813225 | AD151: 18.9948879 | AE151: 71.14098749 | AF151: 89.85298603 | AG151: 89.92455544 | AH151: 3619.443625 | AI151: -94.05559212 | AJ151: 3619.75939 | AK151: 205.3278834 | AL151: 299.3836421 | AM151: 4.547473509e-13
A152: 2 | B152: 3723.294646 | C152: 308.5185656 | D152: 2 | E152: 3723.671814 | F152: 610.4647308 | O152: ='Hull Long'!B152 -> 3700 | P152: ='Hull Long'!C152 -> -52.52488065 | Q152: ='Hull Plan'!C152 -> 29.73580073 | R152: ='Hull Long'!B203 -> 3700 | S152: ='Hull Long'!C203 -> 244.9080279 | T152: ='Hull Plan'!C203 -> 81.74818225 | U152: 301.9464008 | V152: 52.11634856 | W152: 307.5915914 | X152: 52.13441049 | Y152: 303.2860858 | Z152: 91.31969007 | AA152: 78.92803406 | AB152: 9.758264392 | AC152: 91.39125947 | AD152: 9.752275878 | AE152: 80.40092168 | AF152: 89.84081392 | AG152: 89.91837185 | AH152: 3723.294646 | AI152: -96.48145442 | AJ152: 3723.671814 | AK152: 205.4647108 | AL152: 301.9464008 | AM152: 6.252776075e-13
A153: 2 | B153: 3775.395631 | C153: 307.2531977 | D153: 2 | E153: 3775.806171 | F153: 610.5390056 | O153: ='Hull Long'!B153 -> 3750 | P153: ='Hull Long'!C153 -> -51.18337266 | Q153: ='Hull Plan'!C153 -> 15.09632862 | R153: ='Hull Long'!B204 -> 3750 | S153: ='Hull Long'!C204 -> 247.5885244 | T153: ='Hull Plan'!C204 -> 67.22882634 | U153: 303.2860858 | V153: 52.23814404 | W153: 308.9612438 | X153: 52.25722345 | Y153: 304.6646453 | Z153: 91.34865628 | AA153: 78.91992635 | AB153: 9.737686919 | AC153: 91.4262142 | AD153: 9.731417374 | AE153: 80.43201941 | AF153: 89.83029368 | AG153: 89.91412114 | AH153: 3775.395631 | AI153: -97.74682229 | AJ153: 3775.806171 | AK153: 205.5389856 | AL153: 303.2860858 | AM153: 7.389644452e-13
A154: 2 | B154: 3827.617592 | C154: 305.9530131 | D154: 2 | E154: 3828.063336 | F154: 610.6173323 | O154: ='Hull Long'!B154 -> 3800 | P154: ='Hull Long'!C154 -> -49.80298038 | Q154: ='Hull Plan'!C154 -> 0.0325239965 | R154: ='Hull Long'!B205 -> 3800 | S154: ='Hull Long'!C205 -> 250.3467164 | T154: ='Hull Plan'!C205 -> 52.28861954 | U154: 304.6646453 | V154: 0.05567451699 | W154: 304.6659615 | X154: 0.05569537917 | Y154: 304.6661335 | Z154: 91.34943801 | AA154: 88.64009469 | AB154: 0.01047407468 | AC154: 91.43326547 | AD154: 0.01046730054 | AE154: 90.171702 | AF154: 89.81782393 | AG154: 89.90165817 | AH154: 3827.617592 | AI154: -99.04700688 | AJ154: 3828.063336 | AK154: 205.6173123 | AL154: 304.6646453 | AM154: 9.094947018e-13
A155: 2 | B155: 3827.673249 | C155: 305.9516206 | D155: 2 | E155: 3828.119031 | F155: 610.6174279 | O155: ='Hull Long'!B155 -> 3800.053226 | P155: ='Hull Long'!C155 -> -49.80149021 | Q155: ='Hull Plan'!C155 -> 0.01626223867 | R155: ='Hull Long'!B206 -> 3800.053226 | S155: ='Hull Long'!C206 -> 250.3496939 | T155: ='Hull Plan'!C206 -> 52.27249121 | U155: 304.6661335 | V155: 0.05567465862 | W155: 304.6674497 | X155: 0.05569552198 | Y155: 304.6676218 | Z155: 91.34946799 | AA155: 88.64006474 | AB155: 0.01047405043 | AC155: 91.43330223 | AD155: 0.01046727589 | AE155: 90.17171349 | AF155: 89.81781246 | AG155: 89.90165348 | AH155: 3827.673249 | AI155: -99.04839944 | AJ155: 3828.119031 | AK155: 205.6174079 | AL155: 304.6661335 | AM155: 9.094947018e-13
A156: 2 | B156: 3827.728906 | C156: 305.950228 | D156: 2 | E156: 3828.174727 | F156: 610.6175235 | O156: ='Hull Long'!B156 -> 3800.106452 | P156: ='Hull Long'!C156 -> -49.8 | Q156: ='Hull Plan'!C156 -> 0 | R156: ='Hull Long'!B207 -> 3800.106452 | S156: ='Hull Long'!C207 -> 250.3526716 | T156: ='Hull Plan'!C207 -> 52.25636241 | U156: 304.6676218 | V156: 282.9803649 | W156: 151.4726572 | X156: 139.5806677 | Y156: 59.00341973 | Z156: 29.58025053 | AA156: 83.16701254 | AB156: 67.14491428 | AC156: 29.66409154 | AD156: 67.25273694 | AE156: 22.92535275 | AF156: 89.92973297 | AG156: 89.90575133 | AH156: 3827.728906 | AI156: -99.04979205 | AJ156: 3828.174727 | AK156: 205.6175035 | AL156: 304.6676218 | AM156: 1.023181539e-12
A157: 2 | B157: 3967.779902 | C157: 551.843712 | D157: 2 | E157: 3967.755206 | F157: 610.8471266 | O157: ='Hull Long'!B157 -> 3933.064516 | P157: ='Hull Long'!C157 -> 200 | Q157: ='Hull Plan'!C157 -> 0 | R157: ='Hull Long'!B208 -> 3933.064516 | S157: ='Hull Long'!C208 -> 258.0655894 | T157: ='Hull Plan'!C208 -> 10.47805744 | U157: 59.00341973 | V157: 67.96966331 | W157: 33.66610703 | X157: 33.66610703 | Y157: 1e-05 | Z157: 29.69021914 | AA157: 60.23673639 | AB157: 89.99999149 | AC157: 29.66623749 | AD157: 90.07304448 | AE157: 1.701131938e-05 | AF157: 89.99999149 | AG157: 89.90295687 | AH157: 3967.779902 | AI157: 146.843692 | AJ157: 3967.755206 | AK157: 205.8471066 | AL157: 59.00341973 | AM157: 1.980566822e-10
A158: 2 | B158: 4001.421264 | C158: 610.9041376 | D158: 2 | E158: 4001.421264 | F158: 610.9041476 | O158: ='Hull Long'!B158 -> 3965 | P158: ='Hull Long'!C158 -> 260 | Q158: ='Hull Plan'!C158 -> 0 | R158: ='Hull Long'!B209 -> 3965 | S158: ='Hull Long'!C209 -> 260 | T158: ='Hull Plan'!C209 -> 0 | U158: 1e-05 | V158: 74.49200474 | W158: 74.49200474 | X158: 74.49200474 | Y158: 1e-05 | Z158: 89.99999615 | AA158: 7.683962816e-06 | AB158: 89.99999615 | AC158: 89.90296152 | AD158: 89.99999615 | AE158: 7.683962816e-06 | AF158: 89.99999615 | AG158: 89.90296154 | AH158: 4001.421264 | AI158: 205.9041176 | AJ158: 4001.421264 | AK158: 205.9041276 | AL158: 9.995340265e-06 | AM158: 4.659735267e-09
A159: 0 | B159: =AH159+$H$110 -> 4075.913162 | C159: =AI159+$I$110 -> 611.0303003 | D159: 0 | E159: =AJ159+$H$110 -> 4075.913162 | F159: =AK159+$I$110 -> 611.0303102 | O159: ='Hull Long'!B159 -> 4000 | P159: ='Hull Long'!C159 -> 325.7575758 | Q159: ='Hull Plan'!C159 -> 0 | R159: ='Hull Long'!B210 -> 4000 | S159: ='Hull Long'!C210 -> 325.7575758 | T159: ='Hull Plan'!C210 -> 0 | U159: 1e-05 | AH159: 4075.913162 | AI159: 206.0302803 | AJ159: 4075.913162 | AK159: 206.0302902 | AL159: 9.961355525e-06 | AM159: 3.864447493e-08
A160: 0 | B160: 0 | C160: 0 | D160: 0 | E160: 0 | F160: 0 | O160: X0 | P160: Z0 | Q160: Y0 | R160: X1 | S160: Z1 | T160: Y1 | U160: F | V160: L | W160: D | X160: U | Y160: F' | Z160: A1 | AA160: A2 | AB160: A3 | AC160: A | AD160: B1 | AE160: B2 | AF160: B3 | AG160: B | AH160: XA | AI160: YA | AJ160: XB | AK160: YB | AL160: Check F | AM160: Error F
A161: 0 | B161: =AH161+$H$161 -> -37.0456032 | C161: =AI161+$I$161 -> -23.08113738 | D161: 0 | E161: =AJ161+$H$161 -> -37.0456063 | F161: =AK161+$I$161 -> -23.08112789 | G161: Washboard | H161: =0*Basic!$D$2 -> 0 | I161: =I59+AK83-AI185 -> 75.00001 | O161: ='Hull Long'!B212 -> 0 | P161: ='Hull Long'!C212 -> 325.7575758 | Q161: ='Hull Plan'!C212 -> 0 | R161: ='Hull Long'!B161 -> 0 | S161: ='Hull Long'!C161 -> 325.7575758 | T161: ='Hull Plan'!C161 -> 0 | U161: =((O161-R161)^2+(S161-P161)^2+(T161-Q161)^2)^0.5+0.00001 -> 1e-05 | AH161: =AH162-V162*SIN(AC162*PI()/180) -> -37.0456032 | AI161: =AI162+V162*COS(AC162*PI()/180) -> -98.08114738 | AJ161: =AJ162-X162*SIN(AG162*PI()/180) -> -37.0456063 | AK161: =AK162+X162*COS(AG162*PI()/180) -> -98.08113789 | AL161: =((AH161-AJ161)^2+(AI161-AK161)^2)^0.5 -> 9.986847505e-06 | AM161: =U161-AL161 -> 1.315249507e-08
A162: 3 | B162: =AH162+$H$161 -> 33.78028588 | C162: =AI162+$I$161 -> 0.0002881689812 | D162: 3 | E162: =AJ162+$H$161 -> 33.78028278 | F162: =AK162+$I$161 -> 0.0002976800791 | O162: ='Hull Long'!B213 -> 35 | P162: ='Hull Long'!C213 -> 260 | Q162: ='Hull Plan'!C213 -> 0 | R162: ='Hull Long'!B162 -> 35 | S162: ='Hull Long'!C162 -> 260 | T162: ='Hull Plan'!C162 -> 0 | U162: 1e-05 | V162: =((O162-O161)^2+(P162-P161)^2+(Q162-Q161)^2)^0.5 -> 74.49200474 | W162: =((R162-O161)^2+(S162-P161)^2+(T162-Q161)^2)^0.5 -> 74.49200474 | X162: =((R162-R161)^2+(S162-S161)^2+(T162-T161)^2)^0.5 -> 74.49200474 | Y162: =U161 -> 1e-05 | Z162: =ACOS((U162*U162+V162*V162-W162*W162)/2/U162/V162)*180/PI() -> 89.99999615 | AA162: =ACOS((V162*V162+W162*W162-U162*U162)/2/V162/W162)*180/PI() -> 7.683962816e-06 | AB162: =ACOS((W162*W162+Y162*Y162-X162*X162)/2/W162/Y162)*180/PI() -> 89.99999615 | AC162: =AC163+Z162+AA163+AB163-180 -> 108.050254 | AD162: =ACOS((U162*U162+W162*W162-V162*V162)/2/U162/W162)*180/PI() -> 89.99999615 | AE162: =ACOS((W162*W162+X162*X162-Y162*Y162)/2/W162/X162)*180/PI() -> 7.683962816e-06 | AF162: =ACOS((X162*X162+Y162*Y162-W162*W162)/2/X162/Y162)*180/PI() -> 89.99999615 | AG162: =180+AG163-AF163-AE162-AD162 -> 108.050254 | AH162: 33.78028588 | AI162: -74.99972183 | AJ162: 33.78028278 | AK162: -74.99971232 | AL162: 1.000341739e-05 | AM162: -3.417385597e-09
A163: 3 | B163: 65.77430211 | C163: 0.0002874813572 | D163: 3 | E163: 65.77429907 | F163: 10.42681418 | O163: ='Hull Long'!B214 -> 66.93548387 | P163: ='Hull Long'!C214 -> 258.0655894 | Q163: ='Hull Plan'!C214 -> 0 | R163: ='Hull Long'!B163 -> 66.93548387 | S163: ='Hull Long'!C163 -> 258.0655894 | T163: ='Hull Plan'!C163 -> 10.4265167 | U163: 10.4265267 | V163: 31.99401623 | W163: 33.65010141 | X163: 33.65010141 | Y163: 1e-05 | Z163: 89.99998209 | AA163: 18.05026763 | AB163: 89.99999148 | AC163: 89.99999877 | AD163: 71.94975028 | AE163: 1.703273075e-05 | AF163: 89.99999148 | AG163: 108.0502494 | AH163: 65.77430211 | AI163: -74.99972252 | AJ163: 65.77429907 | AK163: -64.57319582 | AL163: 10.4265267 | AM163: -5.163869332e-12
A164: 3 | B164: 198.9558925 | C164: 0.0002763566954 | D164: 3 | E164: 198.9558929 | F164: 52.01749388 | O164: ='Hull Long'!B215 -> 199.8935484 | P164: ='Hull Long'!C215 -> 250.3526716 | Q164: ='Hull Plan'!C215 -> 0 | R164: ='Hull Long'!B164 -> 199.8935484 | S164: ='Hull Long'!C164 -> 250.3526716 | T164: ='Hull Plan'!C164 -> 52.01720752 | U164: 52.01721752 | V164: 133.1815904 | W164: 142.9794597 | X164: 139.5246272 | Y164: 10.4265267 | Z164: 89.9999957 | AA164: 21.3343063 | AB164: 68.66571516 | AC164: 89.99999521 | AD164: 68.665698 | AE164: 3.991474462 | AF164: 107.3428104 | AG164: 107.3428271 | AH164: 198.9558925 | AI164: -74.99973364 | AJ164: 198.9558929 | AK164: -22.98251612 | AL164: 52.01721752 | AM164: -2.458477866e-12
A165: 3 | B165: 199.0092046 | C165: 0.01652859183 | D165: 3 | E165: 199.009205 | F165: 52.03354611 | O165: ='Hull Long'!B216 -> 199.9467742 | P165: ='Hull Long'!C216 -> 250.3496939 | Q165: ='Hull Plan'!C216 -> 0.01626223867 | R165: ='Hull Long'!B165 -> 199.9467742 | S165: ='Hull Long'!C165 -> 250.3496939 | T165: ='Hull Plan'!C165 -> 52.03326976 | U165: 52.01701752 | V165: 0.05573430843 | W165: 52.03329707 | X165: 0.05567628055 | Y165: 52.01721752 | Z165: 106.9538895 | AA165: 72.98740658 | AB165: 0.05870386448 | AC165: 106.9538891 | AD165: 0.05870390582 | AE165: 73.18426914 | AF165: 106.757027 | AG165: 106.7570265 | AH165: 199.0092046 | AI165: -74.98348141 | AJ165: 199.009205 | AK165: -22.96646389 | AL165: 52.01701752 | AM165: -2.458477866e-12
A166: 3 | B166: 199.0625167 | C166: 0.03278034616 | D166: 3 | E166: 199.062517 | F166: 52.04959788 | O166: ='Hull Long'!B217 -> 200 | P166: ='Hull Long'!C217 -> 250.3467164 | Q166: ='Hull Plan'!C217 -> 0.0325239965 | R166: ='Hull Long'!B166 -> 200 | S166: ='Hull Long'!C166 -> 250.3467164 | T166: ='Hull Plan'!C166 -> 52.04933153 | U166: 52.01681753 | V166: 0.05573416342 | W166: 52.0330966 | X166: 0.05567614019 | Y166: 52.01701752 | Z166: 106.9534182 | AA166: 72.9878777 | AB166: 0.05870408513 | AC166: 106.9534178 | AD166: 0.05870412647 | AE166: 73.18473075 | AF166: 106.7565652 | AG166: 106.7565647 | AH166: 199.0625167 | AI166: -74.96722965 | AJ166: 199.062517 | AK166: -22.95041212 | AL166: 52.01681753 | AM166: -2.458477866e-12
A167: 3 | B167: 249.1385391 | C167: 15.09657176 | D167: 3 | E167: 249.1385394 | F167: 66.93021025 | O167: ='Hull Long'!B218 -> 250 | P167: ='Hull Long'!C218 -> 247.5885244 | Q167: ='Hull Plan'!C218 -> 15.09632862 | R167: ='Hull Long'!B167 -> 250 | S167: ='Hull Long'!C167 -> 247.5885244 | T167: ='Hull Plan'!C167 -> 66.92995711 | U167: 51.83363849 | V167: 52.29269388 | W167: 83.56359363 | X167: 52.24022053 | Y167: 52.01681753 | Z167: 106.7422566 | AA167: 36.44108016 | AB167: 36.81666317 | AC167: 106.7422563 | AD167: 36.81666322 | AE167: 36.63347038 | AF167: 106.5498665 | AG167: 106.5498661 | AH167: 249.1385391 | AI167: -59.90343824 | AJ167: 249.1385394 | AK167: -8.069799748 | AL167: 51.83363849 | AM167: -2.373212737e-12
A168: 3 | B168: 299.210342 | C168: 29.73603077 | D168: 3 | E168: 299.2103422 | F168: 81.39578263 | O168: ='Hull Long'!B219 -> 300 | P168: ='Hull Long'!C219 -> 244.9080279 | Q168: ='Hull Plan'!C219 -> 29.73580073 | R168: ='Hull Long'!B168 -> 300 | S168: ='Hull Long'!C168 -> 244.9080279 | T168: ='Hull Plan'!C168 -> 81.39554259 | U168: 51.65975186 | V168: 52.16799023 | W168: 83.08291541 | X168: 52.11946109 | Y168: 51.83363849 | Z168: 106.2973008 | AA168: 36.64114459 | AB168: 37.06155456 | AC168: 106.2973005 | AD168: 37.06155461 | AE168: 36.82462037 | AF168: 106.1138251 | AG168: 106.1138247 | AH168: 299.210342 | AI168: -45.26397923 | AJ168: 299.2103422 | AK168: 6.395772629 | AL168: 51.65975186 | AM168: -2.245315045e-12
A169: 3 | B169: 399.3417372 | C169: 57.74196151 | D169: 3 | E169: 399.3417374 | F169: 109.0813323 | O169: ='Hull Long'!B220 -> 400 | P169: ='Hull Long'!C220 -> 239.7801216 | Q169: ='Hull Plan'!C220 -> 57.74174736 | R169: ='Hull Long'!B169 -> 400 | S169: ='Hull Long'!C169 -> 239.7801216 | T169: ='Hull Plan'!C169 -> 109.0811082 | U169: 51.33937082 | V169: 103.9741721 | W169: 127.7574782 | X169: 103.8883341 | Y169: 51.65975186 | Z169: 105.6258709 | AA169: 22.76785056 | AB169: 51.60627846 | AC169: 105.6258707 | AD169: 51.60627852 | AE169: 22.93801471 | AF169: 105.4557068 | AG169: 105.4557065 | AH169: 399.3417372 | AI169: -17.25804849 | AJ169: 399.3417374 | AK169: 34.08132234 | AL169: 51.33937082 | AM169: -2.01794137e-12
A170: 3 | B170: 499.4576975 | C170: 84.05056255 | D170: 3 | E170: 499.4576977 | F170: 135.1052293 | O170: ='Hull Long'!B221 -> 500 | P170: ='Hull Long'!C221 -> 234.9629975 | Q170: ='Hull Plan'!C221 -> 84.05036389 | R170: ='Hull Long'!B170 -> 500 | S170: ='Hull Long'!C170 -> 234.9629975 | T170: ='Hull Plan'!C170 -> 135.1050206 | U170: 51.05466673 | V170: 103.514965 | W170: 126.5238346 | X170: 103.4429732 | Y170: 51.33937082 | Z170: 104.7233807 | AA170: 22.97119484 | AB170: 52.30542436 | AC170: 104.7233806 | AD170: 52.30542441 | AE170: 23.12371106 | AF170: 104.5708646 | AG170: 104.5708643 | AH170: 499.4576975 | AI170: 9.050552548 | AJ170: 499.4576977 | AK170: 60.10521927 | AL170: 51.05466673 | AM170: -1.755040557e-12
A171: 3 | B171: 599.5591853 | C171: 108.6618339 | D171: 3 | E171: 599.5591854 | F171: 159.4663999 | O171: ='Hull Long'!B222 -> 600 | P171: ='Hull Long'!C222 -> 230.4566556 | Q171: ='Hull Plan'!C222 -> 108.6616503 | R171: ='Hull Long'!B171 -> 600 | S171: ='Hull Long'!C171 -> 230.4566556 | T171: ='Hull Plan'!C171 -> 159.4662064 | U171: 50.80456606 | V171: 103.0826006 | W171: 125.3309875 | X171: 103.0231745 | Y171: 51.05466673 | Z171: 103.8129482 | AA171: 23.18119416 | AB171: 53.00585758 | AC171: 103.8129481 | AD171: 53.00585763 | AE171: 23.31626391 | AF171: 103.6778785 | AG171: 103.6778783 | AH171: 599.5591853 | AI171: 33.66182387 | AJ171: 599.5591854 | AK171: 84.46638993 | AL171: 50.80456606 | AM171: -1.435296326e-12
A172: 3 | B172: 698.6463483 | C172: 131.3550377 | D172: 3 | E172: 698.6463484 | F172: 181.9449629 | O172: ='Hull Long'!B223 -> 699 | P172: ='Hull Long'!C223 -> 226.3015131 | Q172: ='Hull Plan'!C223 -> 131.3548689 | R172: ='Hull Long'!B172 -> 699 | S172: ='Hull Long'!C172 -> 226.3015131 | T172: ='Hull Plan'!C172 -> 181.9447841 | U172: 50.58992518 | V172: 101.6525818 | W172: 123.2423746 | X172: 101.6048801 | Y172: 50.80456606 | Z172: 102.8995683 | AA172: 23.586412 | AB172: 53.51401968 | AC172: 102.8995682 | AD172: 53.51401971 | AE172: 23.70439509 | AF172: 102.7815852 | AG172: 102.7815851 | AH172: 698.6463483 | AI172: 56.35502773 | AJ172: 698.6463484 | AK172: 106.9449529 | AL172: 50.58992518 | AM172: -1.080024958e-12
A173: 3 | B173: 700.6479822 | C173: 131.7963335 | D173: 3 | E173: 700.6479823 | F173: 182.3822522 | O173: ='Hull Long'!B224 -> 701 | P173: ='Hull Long'!C224 -> 226.2207097 | Q173: ='Hull Plan'!C224 -> 131.7961747 | R173: ='Hull Long'!B173 -> 701 | S173: ='Hull Long'!C173 -> 226.2207097 | T173: ='Hull Plan'!C173 -> 182.3820834 | U173: 50.58591874 | V173: 2.049702422 | W173: 51.06645823 | X173: 2.048843561 | Y173: 50.58992518 | Z173: 102.4329796 | AA173: 75.32064259 | AB173: 2.246377794 | AC173: 102.4329795 | AD173: 2.246377817 | AE173: 75.43005487 | AF173: 102.3235673 | AG173: 102.3235672 | AH173: 700.6479822 | AI173: 56.79632346 | AJ173: 700.6479823 | AK173: 107.3822422 | AL173: 50.58591874 | AM173: -1.080024958e-12
A174: 3 | B174: 799.7226002 | C174: 152.7923774 | D174: 3 | E174: 799.7226003 | F174: 203.1958723 | O174: ='Hull Long'!B225 -> 800 | P174: ='Hull Long'!C225 -> 222.3763184 | Q174: ='Hull Plan'!C225 -> 152.7922329 | R174: ='Hull Long'!B174 -> 800 | S174: ='Hull Long'!C174 -> 222.3763184 | T174: ='Hull Plan'!C174 -> 203.1957178 | U174: 50.40349493 | V174: 101.2749416 | W174: 122.1215546 | X174: 101.2372793 | Y174: 50.58591874 | Z174: 101.9651833 | AA174: 23.81376243 | AB174: 54.2210542 | AC174: 101.9651833 | AD174: 54.22105423 | AE174: 23.91476311 | AF174: 101.8641827 | AG174: 101.8641826 | AH174: 799.7226002 | AI174: 77.79236737 | AJ174: 799.7226003 | AK174: 128.1958623 | AL174: 50.40349493 | AM174: -1.023181539e-12
A175: 3 | B175: 899.7864498 | C175: 172.3116595 | D175: 3 | E175: 899.7864498 | F175: 222.5616146 | O175: ='Hull Long'!B226 -> 900 | P175: ='Hull Long'!C226 -> 218.8023231 | Q175: ='Hull Plan'!C226 -> 172.311529 | R175: ='Hull Long'!B175 -> 900 | S175: ='Hull Long'!C175 -> 218.8023231 | T175: ='Hull Plan'!C175 -> 222.561474 | U175: 50.24995501 | V175: 101.9498718 | W175: 121.9857387 | X175: 101.9205865 | Y175: 50.40349493 | Z175: 101.0379774 | AA175: 23.84805032 | AB175: 55.11397228 | AC175: 101.0379773 | AD175: 55.1139723 | AE175: 23.93276773 | AF175: 100.95326 | AG175: 100.9532599 | AH175: 899.7864498 | AI175: 97.31164954 | AJ175: 899.7864498 | AK175: 147.5616046 | AL175: 50.24995501 | AM175: -9.237055565e-13
A176: 3 | B176: 999.8396808 | C176: 190.133612 | D176: 3 | E176: 999.8396809 | F176: 240.2594601 | O176: ='Hull Long'!B227 -> 1000 | P176: ='Hull Long'!C227 -> 215.53911 | Q176: ='Hull Plan'!C227 -> 190.1334951 | R176: ='Hull Long'!B176 -> 1000 | S176: ='Hull Long'!C176 -> 215.53911 | T176: ='Hull Plan'!C176 -> 240.2593332 | U176: 50.12584812 | V176: 101.6281016 | W176: 120.9444197 | X176: 101.6064111 | Y176: 50.24995501 | Z176: 100.0998654 | AA176: 24.08120778 | AB176: 55.81892676 | AC176: 100.0998654 | AD176: 55.81892678 | AE176: 24.15010708 | AF176: 100.0309662 | AG176: 100.0309661 | AH176: 999.8396808 | AI176: 115.133602 | AJ176: 999.8396809 | AK176: 165.2594501 | AL176: 50.12584812 | AM176: -8.526512829e-13
A177: 3 | B177: 1099.883258 | C177: 206.2582347 | D177: 3 | E177: 1099.883258 | F177: 256.2878161 | O177: ='Hull Long'!B228 -> 1100 | P177: ='Hull Long'!C228 -> 212.5866791 | Q177: ='Hull Plan'!C228 -> 206.258131 | R177: ='Hull Long'!B177 -> 1100 | S177: ='Hull Long'!C177 -> 212.5866791 | T177: ='Hull Plan'!C177 -> 256.2877024 | U177: 50.02958137 | V177: 101.3346966 | W177: 119.9378839 | X177: 101.319423 | Y177: 50.12584812 | Z177: 99.15596235 | AA177: 24.31886349 | AB177: 56.52517415 | AC177: 99.15596234 | AD177: 56.52517417 | AE177: 24.37260839 | AF177: 99.10221745 | AG177: 99.10221743 | AH177: 1099.883258 | AI177: 131.2582247 | AJ177: 1099.883258 | AK177: 181.2878061 | AL177: 50.02958137 | AM177: -5.96855898e-13
A178: 3 | B178: 1199.918145 | C178: 220.6855276 | D178: 3 | E178: 1199.918145 | F178: 270.6449192 | O178: ='Hull Long'!B229 -> 1200 | P178: ='Hull Long'!C229 -> 209.9450304 | Q178: ='Hull Plan'!C229 -> 220.6854368 | R178: ='Hull Long'!B178 -> 1200 | S178: ='Hull Long'!C178 -> 209.9450304 | T178: ='Hull Plan'!C178 -> 270.6448184 | U178: 49.95939154 | V178: 101.0699038 | W178: 118.9648008 | X178: 101.0599084 | Y178: 50.02958137 | Z178: 98.20675868 | AA178: 24.56028742 | AB178: 57.23295389 | AC178: 98.20675868 | AD178: 57.2329539 | AE178: 24.59967394 | AF178: 98.16737217 | AG178: 98.16737216 | AH178: 1199.918145 | AI178: 145.6855176 | AJ178: 1199.918145 | AK178: 195.6449092 | AL178: 49.95939154 | AM178: -4.831690603e-13
A179: 3 | B179: 1299.945308 | C179: 233.4154908 | D179: 3 | E179: 1299.945308 | F179: 283.3287952 | O179: ='Hull Long'!B230 -> 1300 | P179: ='Hull Long'!C230 -> 207.6141639 | Q179: ='Hull Plan'!C230 -> 233.4154126 | R179: ='Hull Long'!B179 -> 1300 | S179: ='Hull Long'!C179 -> 207.6141639 | T179: ='Hull Plan'!C179 -> 283.3287069 | U179: 49.91330437 | V179: 100.8339488 | W179: 118.0237782 | X179: 100.8281408 | Y179: 49.95939154 | Z179: 97.2527625 | AA179: 24.80461077 | AB179: 57.94262672 | AC179: 97.25276251 | AD179: 57.94262673 | AE179: 24.83059035 | AF179: 97.22678293 | AG179: 97.22678293 | AH179: 1299.945308 | AI179: 158.4154808 | AJ179: 1299.945308 | AK179: 208.3287852 | AL179: 49.91330437 | AM179: -3.694822226e-13
A180: 3 | B180: 1399.965711 | C180: 244.4481243 | D180: 3 | E180: 1399.965711 | F180: 294.3372016 | O180: ='Hull Long'!B231 -> 1400 | P180: ='Hull Long'!C231 -> 205.5940796 | Q180: ='Hull Plan'!C231 -> 244.4480582 | R180: ='Hull Long'!B180 -> 1400 | S180: ='Hull Long'!C180 -> 205.5940796 | T180: ='Hull Plan'!C180 -> 294.3371255 | U180: 49.88907729 | V180: 100.6270342 | W180: 117.1133462 | X180: 100.6243808 | Y180: 49.91330437 | Z180: 96.29449792 | AA180: 25.05079667 | AB180: 58.6547054 | AC180: 96.29449793 | AD180: 58.65470541 | AE180: 25.06450847 | AF180: 96.28078613 | AG180: 96.28078613 | AH180: 1399.965711 | AI180: 169.4481143 | AJ180: 1399.965711 | AK180: 219.3371916 | AL180: 49.88907729 | AM180: -1.98951966e-13
A181: 3 | B181: 1499.980319 | C181: 253.783428 | D181: 3 | E181: 1499.980319 | F181: 303.667543 | O181: ='Hull Long'!B232 -> 1500 | P181: ='Hull Long'!C232 -> 203.8847775 | Q181: ='Hull Plan'!C232 -> 253.7833738 | R181: ='Hull Long'!B181 -> 1500 | S181: ='Hull Long'!C181 -> 203.8847775 | T181: ='Hull Plan'!C181 -> 303.6674788 | U181: 49.88411504 | V181: 100.4493396 | W181: 116.2319297 | X181: 100.4488786 | Y181: 49.88907729 | Z181: 95.33250354 | AA181: 25.29759783 | AB181: 59.36989863 | AC181: 95.33250355 | AD181: 59.36989863 | AE181: 25.30041604 | AF181: 95.32968534 | AG181: 95.32968535 | AH181: 1499.980319 | AI181: 178.783418 | AJ181: 1499.980319 | AK181: 228.667533 | AL181: 49.88411504 | AM181: -5.684341886e-14
A182: 3 | B182: 1599.990099 | C182: 261.4214019 | D182: 3 | E182: 1599.990099 | F182: 311.3167397 | O182: ='Hull Long'!B233 -> 1600 | P182: ='Hull Long'!C233 -> 202.4862576 | Q182: ='Hull Plan'!C233 -> 261.4213592 | R182: ='Hull Long'!B182 -> 1600 | S182: ='Hull Long'!C182 -> 202.4862576 | T182: ='Hull Plan'!C182 -> 311.316687 | U182: 49.89533784 | V182: 100.3010203 | W182: 115.3778055 | X182: 100.3018756 | Y182: 49.88411504 | Z182: 94.36733077 | AA182: 25.54349092 | AB182: 60.08917831 | AC182: 94.36733078 | AD182: 60.08917831 | AE182: 25.5370987 | AF182: 94.37372299 | AG182: 94.373723 | AH182: 1599.990099 | AI182: 186.4213919 | AJ182: 1599.990099 | AK182: 236.3167297 | AL182: 49.89533784 | AM182: 8.526512829e-14
A183: 3 | B183: 1699.996015 | C183: 267.3620461 | D183: 3 | E183: 1699.996015 | F183: 317.2810036 | O183: ='Hull Long'!B234 -> 1700 | P183: ='Hull Long'!C234 -> 201.3985199 | Q183: ='Hull Plan'!C234 -> 267.3620146 | R183: ='Hull Long'!B183 -> 1700 | S183: ='Hull Long'!C183 -> 201.3985199 | T183: ='Hull Plan'!C183 -> 317.2809621 | U183: 49.91895753 | V183: 100.1822068 | W183: 114.5490219 | X183: 100.1836102 | Y183: 49.89533784 | Z183: 93.3995421 | AA183: 25.78656638 | AB183: 60.81389152 | AC183: 93.39954211 | AD183: 60.81389152 | AE183: 25.77308186 | AF183: 93.41302662 | AG183: 93.41302663 | AH183: 1699.996015 | AI183: 192.3620361 | AJ183: 1699.996015 | AK183: 242.2809936 | AL183: 49.91895753 | AM183: 1.98951966e-13
A184: 3 | B184: 1799.999034 | C184: 271.6053605 | D184: 3 | E184: 1799.999034 | F184: 321.5554087 | O184: ='Hull Long'!B235 -> 1800 | P184: ='Hull Long'!C235 -> 200.6215644 | Q184: ='Hull Plan'!C235 -> 271.6053398 | R184: ='Hull Long'!B184 -> 1800 | S184: ='Hull Long'!C184 -> 200.6215644 | T184: ='Hull Plan'!C184 -> 321.555378 | U184: =((O184-R184)^2+(S184-P184)^2+(T184-Q184)^2)^0.5+0.00001 -> 49.95004822 | V184: =((O184-O183)^2+(P184-P183)^2+(Q184-Q183)^2)^0.5 -> 100.0930041 | W184: =((R184-O183)^2+(S184-P183)^2+(T184-Q183)^2)^0.5 -> 113.7432385 | X184: =((R184-R183)^2+(S184-S183)^2+(T184-T183)^2)^0.5 -> 100.094327 | Y184: =U183 -> 49.91895753 | Z184: =ACOS((U184*U184+V184*V184-W184*W184)/2/U184/V184)*180/PI() -> 92.42970917 | AA184: =ACOS((V184*V184+W184*W184-U184*U184)/2/V184/W184)*180/PI() -> 26.02431951 | AB184: =ACOS((W184*W184+Y184*Y184-X184*X184)/2/W184/Y184)*180/PI() -> 61.54597132 | AC184: =AC185+Z184+AA185+AB185-180 -> 92.42970917 | AD184: =ACOS((U184*U184+W184*W184-V184*V184)/2/U184/W184)*180/PI() -> 61.54597132 | AE184: =ACOS((W184*W184+X184*X184-Y184*Y184)/2/W184/X184)*180/PI() -> 26.00653865 | AF184: =ACOS((X184*X184+Y184*Y184-W184*W184)/2/X184/Y184)*180/PI() -> 92.44749003 | AG184: =180+AG185-AF185-AE184-AD184 -> 92.44749004 | AH184: =AH185-V185*SIN(AC185*PI()/180) -> 1799.999034 | AI184: =AI185+V185*COS(AC185*PI()/180) -> 196.6053505 | AJ184: =AJ185-X185*SIN(AG185*PI()/180) -> 1799.999034 | AK184: =AK185+X185*COS(AG185*PI()/180) -> 246.5553987 | AL184: =((AH184-AJ184)^2+(AI184-AK184)^2)^0.5 -> 49.95004822 | AM184: =U184-AL184 -> 2.273736754e-13
A185: 3 | B185: 2000 | C185: 275.00001 | D185: 3 | E185: 2000 | F185: 325.00002 | O185: ='Hull Long'!B236 -> 2000 | P185: ='Hull Long'!C236 -> 200 | Q185: ='Hull Plan'!C236 -> 275 | R185: ='Hull Long'!B185 -> 2000 | S185: ='Hull Long'!C185 -> 200 | T185: ='Hull Plan'!C185 -> 325 | U185: =((O185-R185)^2+(S185-P185)^2+(T185-Q185)^2)^0.5+0.00001 -> 50.00001 | V185: =((O185-O184)^2+(P185-P184)^2+(Q185-Q184)^2)^0.5 -> 200.0297729 | W185: =((R185-O184)^2+(S185-P184)^2+(T185-Q184)^2)^0.5 -> 207.0057392 | X185: =((R185-R184)^2+(S185-S184)^2+(T185-T184)^2)^0.5 -> 200.0306271 | Y185: =U184 -> 49.95004822 | Z185: =ACOS((U185*U185+V185*V185-W185*W185)/2/U185/V185)*180/PI() -> 90.97239738 | AA185: =ACOS((V185*V185+W185*W185-U185*U185)/2/V185/W185)*180/PI() -> 13.97535185 | AB185: =ACOS((W185*W185+Y185*Y185-X185*X185)/2/W185/Y185)*180/PI() -> 75.05225077 | AC185: =Z185 -> 90.97239738 | AD185: =ACOS((U185*U185+W185*W185-V185*V185)/2/U185/W185)*180/PI() -> 75.05225077 | AE185: =ACOS((W185*W185+X185*X185-Y185*Y185)/2/W185/X185)*180/PI() -> 13.9610431 | AF185: =ACOS((X185*X185+Y185*Y185-W185*W185)/2/X185/Y185)*180/PI() -> 90.98670612 | AG185: =180-AD185-AE185 -> 90.98670613 | AH185: =O185 -> 2000 | AI185: =P185 -> 200 | AJ185: =AH185 -> 2000 | AK185: =AI185+U185 -> 250.00001 | AL185: =((AH185-AJ185)^2+(AI185-AK185)^2)^0.5 -> 50.00001 | AM185: =U185-AL185 -> 0
A186: 3 | B186: =AH186+$H$161 -> 2000 | C186: =AI186+$I$161 -> 275.00001 | D186: 3 | E186: 2000 | F186: 325.00002 | O186: ='Hull Long'!B237 -> 2000 | P186: ='Hull Long'!C237 -> 200 | Q186: ='Hull Plan'!C237 -> 275 | R186: ='Hull Long'!B186 -> 2000 | S186: ='Hull Long'!C186 -> 200 | T186: ='Hull Plan'!C186 -> 325 | U186: =((O186-R186)^2+(S186-P186)^2+(T186-Q186)^2)^0.5+0.00001 -> 50.00001 | V186: =((O186-O187)^2+(P186-P187)^2+(Q186-Q187)^2)^0.5 -> 200.0297729 | W186: =((R186-O187)^2+(S186-P187)^2+(T186-Q187)^2)^0.5 -> 207.0057392 | X186: =((R186-R187)^2+(S186-S187)^2+(T186-T187)^2)^0.5 -> 200.0293022 | Y186: =U187 -> 50.02786303 | Z186: =ACOS((U186*U186+V186*V186-W186*W186)/2/U186/V186)*180/PI() -> 90.97239738 | AA186: =ACOS((V186*V186+W186*W186-U186*U186)/2/V186/W186)*180/PI() -> 13.97535185 | AB186: =ACOS((W186*W186+Y186*Y186-X186*X186)/2/W186/Y186)*180/PI() -> 75.05225077 | AC186: =Z186 -> 90.97239738 | AD186: =ACOS((U186*U186+W186*W186-V186*V186)/2/U186/W186)*180/PI() -> 75.05225077 | AE186: =ACOS((W186*W186+X186*X186-Y186*Y186)/2/W186/X186)*180/PI() -> 13.98332884 | AF186: =ACOS((X186*X186+Y186*Y186-W186*W186)/2/X186/Y186)*180/PI() -> 90.9644204 | AG186: =180-AD186-AE186 -> 90.96442039 | AH186: =O186 -> 2000 | AI186: =P186 -> 200 | AJ186: =AH186 -> 2000 | AK186: =AI186+U186 -> 250.00001 | AL186: =((AH186-AJ186)^2+(AI186-AK186)^2)^0.5 -> 50.00001 | AM186: =U186-AL186 -> 0
A187: 3 | B187: 2200.000966 | C187: 271.6053605 | D187: 3 | E187: 2200.000966 | F187: 321.6332235 | O187: ='Hull Long'!B238 -> 2200 | P187: ='Hull Long'!C238 -> 200.6215644 | Q187: ='Hull Plan'!C238 -> 271.6053398 | R187: ='Hull Long'!B187 -> 2200 | S187: ='Hull Long'!C187 -> 200.6215644 | T187: ='Hull Plan'!C187 -> 321.6331928 | U187: =((O187-R187)^2+(S187-P187)^2+(T187-Q187)^2)^0.5+0.00001 -> 50.02786303 | V187: =((O187-O188)^2+(P187-P188)^2+(Q187-Q188)^2)^0.5 -> 100.0930041 | W187: =((R187-O188)^2+(S187-P188)^2+(T187-Q188)^2)^0.5 -> 113.7803342 | X187: =((R187-R188)^2+(S187-S188)^2+(T187-T188)^2)^0.5 -> 100.0915341 | Y187: =U188 -> 50.06267932 | Z187: =ACOS((U187*U187+V187*V187-W187*W187)/2/U187/V187)*180/PI() -> 92.42970917 | AA187: =ACOS((V187*V187+W187*W187-U187*U187)/2/V187/W187)*180/PI() -> 26.05877078 | AB187: =ACOS((W187*W187+Y187*Y187-X187*X187)/2/W187/Y187)*180/PI() -> 61.51152004 | AC187: =AC186+Z187+AA186+AB186-180 -> 92.42970917 | AD187: =ACOS((U187*U187+W187*W187-V187*V187)/2/U187/W187)*180/PI() -> 61.51152004 | AE187: =ACOS((W187*W187+X187*X187-Y187*Y187)/2/W187/X187)*180/PI() -> 26.07868289 | AF187: =ACOS((X187*X187+Y187*Y187-W187*W187)/2/X187/Y187)*180/PI() -> 92.40979707 | AG187: =180+AG186-AF186-AE187-AD187 -> 92.40979706 | AH187: =AH186+V186*SIN(AC186*PI()/180) -> 2200.000966 | AI187: =AI186+V186*COS(AC186*PI()/180) -> 196.6053505 | AJ187: =AJ186+X186*SIN(AG186*PI()/180) -> 2200.000966 | AK187: =AK186+X186*COS(AG186*PI()/180) -> 246.6332135 | AL187: =((AH187-AJ187)^2+(AI187-AK187)^2)^0.5 -> 50.02786303 | AM187: =U187-AL187 -> -5.684341886e-14
A188: 3 | B188: 2300.003985 | C188: 267.3620461 | D188: 3 | E188: 2300.003985 | F188: 317.4247254 | O188: ='Hull Long'!B239 -> 2300 | P188: ='Hull Long'!C239 -> 201.3985199 | Q188: ='Hull Plan'!C239 -> 267.3620146 | R188: ='Hull Long'!B188 -> 2300 | S188: ='Hull Long'!C188 -> 201.3985199 | T188: ='Hull Plan'!C188 -> 317.4246839 | U188: =((O188-R188)^2+(S188-P188)^2+(T188-Q188)^2)^0.5+0.00001 -> 50.06267932 | V188: =((O188-O189)^2+(P188-P189)^2+(Q188-Q189)^2)^0.5 -> 100.1822068 | W188: =((R188-O189)^2+(S188-P189)^2+(T188-Q189)^2)^0.5 -> 114.6191762 | X188: =((R188-R189)^2+(S188-S189)^2+(T188-T189)^2)^0.5 -> 100.1793282 | Y188: =U189 -> 50.11142213 | Z188: =ACOS((U188*U188+V188*V188-W188*W188)/2/U188/V188)*180/PI() -> 93.39954211 | AA188: =ACOS((V188*V188+W188*W188-U188*U188)/2/V188/W188)*180/PI() -> 25.84928873 | AB188: =ACOS((W188*W188+Y188*Y188-X188*X188)/2/W188/Y188)*180/PI() -> 60.75116916 | AC188: =AC187+Z188+AA187+AB187-180 -> 93.3995421 | AD188: =ACOS((U188*U188+W188*W188-V188*V188)/2/U188/W188)*180/PI() -> 60.75116916 | AE188: =ACOS((W188*W188+X188*X188-Y188*Y188)/2/W188/X188)*180/PI() -> 25.87711725 | AF188: =ACOS((X188*X188+Y188*Y188-W188*W188)/2/X188/Y188)*180/PI() -> 93.37171359 | AG188: =180+AG187-AF187-AE188-AD188 -> 93.37171358 | AH188: =AH187+V187*SIN(AC187*PI()/180) -> 2300.003985 | AI188: =AI187+V187*COS(AC187*PI()/180) -> 192.3620361 | AJ188: =AJ187+X187*SIN(AG187*PI()/180) -> 2300.003985 | AK188: =AK187+X187*COS(AG187*PI()/180) -> 242.4247154 | AL188: =((AH188-AJ188)^2+(AI188-AK188)^2)^0.5 -> 50.06267932 | AM188: =U188-AL188 -> -1.421085472e-13
A189: 3 | B189: 2400.009901 | C189: 261.4214019 | D189: 3 | E189: 2400.009901 | F189: 311.5328241 | O189: ='Hull Long'!B240 -> 2400 | P189: ='Hull Long'!C240 -> 202.4862576 | Q189: ='Hull Plan'!C240 -> 261.4213592 | R189: ='Hull Long'!B189 -> 2400 | S189: ='Hull Long'!C189 -> 202.4862576 | T189: ='Hull Plan'!C189 -> 311.5327713 | U189: 50.11142213 | V189: 100.3010203 | W189: 115.4857081 | X189: 100.2962675 | Y189: 50.17409145 | Z189: 94.36733078 | AA189: 25.63641707 | AB189: 59.99625214 | AC189: 94.36733077 | AD189: 59.99625215 | AE189: 25.67211393 | AF189: 94.33163393 | AG189: 94.33163391 | AH189: 2400.009901 | AI189: 186.4213919 | AJ189: 2400.009901 | AK189: 236.5328141 | AL189: 50.11142213 | AM189: -1.421085472e-13
A190: 3 | B190: 2500.019681 | C190: 253.783428 | D190: 3 | E190: 2500.019681 | F190: 303.9575195 | O190: ='Hull Long'!B241 -> 2500 | P190: ='Hull Long'!C241 -> 203.8847775 | Q190: ='Hull Plan'!C241 -> 253.7833738 | R190: ='Hull Long'!B190 -> 2500 | S190: ='Hull Long'!C190 -> 203.8847775 | T190: ='Hull Plan'!C190 -> 303.9574552 | U190: 50.17409145 | V190: 100.4493396 | W190: 116.3799383 | X190: 100.4422501 | Y190: 50.25068728 | Z190: 95.33250354 | AA190: 25.42043944 | AB190: 59.247057 | AC190: 95.33250352 | AD190: 59.24705701 | AE190: 25.4639433 | AF190: 95.2889997 | AG190: 95.28899967 | AH190: 2500.019681 | AI190: 178.783418 | AJ190: 2500.019681 | AK190: 228.9575095 | AL190: 50.17409145 | AM190: 0
A191: 3 | B191: 2600.034289 | C191: 244.4481244 | D191: 3 | E191: 2600.034289 | F191: 294.6988117 | O191: ='Hull Long'!B242 -> 2600 | P191: ='Hull Long'!C242 -> 205.5940796 | Q191: ='Hull Plan'!C242 -> 244.4480582 | R191: ='Hull Long'!B191 -> 2600 | S191: ='Hull Long'!C191 -> 205.5940796 | T191: ='Hull Plan'!C191 -> 294.6987355 | U191: 50.25068728 | V191: 100.6270342 | W191: 117.3018602 | X191: 100.6171496 | Y191: 50.34120964 | Z191: 96.29449793 | AA191: 25.20164512 | AB191: 58.50385693 | AC191: 96.2944979 | AD191: 58.50385694 | AE191: 25.25288174 | AF191: 96.24326133 | AG191: 96.24326129 | AH191: 2600.034289 | AI191: 169.4481144 | AJ191: 2600.034289 | AK191: 219.6988017 | AL191: 50.25068728 | AM191: 1.421085472e-13
A192: 3 | B192: 2700.054692 | C192: 233.415491 | D192: 3 | E192: 2700.054692 | F192: 283.7567006 | O192: ='Hull Long'!B243 -> 2700 | P192: ='Hull Long'!C243 -> 207.6141639 | Q192: ='Hull Plan'!C243 -> 233.4154126 | R192: ='Hull Long'!B192 -> 2700 | S192: ='Hull Long'!C192 -> 207.6141639 | T192: ='Hull Plan'!C192 -> 283.7566122 | U192: 50.34120964 | V192: 100.8339488 | W192: 118.2514529 | X192: 100.8208156 | Y192: 50.4456585 | Z192: 97.25276252 | AA192: 24.98032741 | AB192: 57.76691006 | AC192: 97.25276247 | AD192: 57.76691008 | AE192: 25.03921006 | AF192: 97.19387987 | AG192: 97.19387982 | AH192: 2700.054692 | AI192: 158.415481 | AJ192: 2700.054692 | AK192: 208.7566906 | AL192: 50.34120964 | AM192: 2.273736754e-13
A193: 3 | B193: 2800.081855 | C193: 220.6855279 | D193: 3 | E193: 2800.081855 | F193: 271.1311864 | O193: ='Hull Long'!B244 -> 2800 | P193: ='Hull Long'!C244 -> 209.9450304 | Q193: ='Hull Plan'!C244 -> 220.6854368 | R193: ='Hull Long'!B193 -> 2800 | S193: ='Hull Long'!C193 -> 209.9450304 | T193: ='Hull Plan'!C193 -> 271.1310853 | U193: 50.4456585 | V193: 101.0699038 | W193: 119.2286816 | X193: 101.0530742 | Y193: 50.56403389 | Z193: 98.2067587 | AA193: 24.75678197 | AB193: 57.03645932 | AC193: 98.20675864 | AD193: 57.03645933 | AE193: 24.82321197 | AF193: 98.14032872 | AG193: 98.14032864 | AH193: 2800.081855 | AI193: 145.6855179 | AJ193: 2800.081855 | AK193: 196.1311764 | AL193: 50.4456585 | AM193: 3.126388037e-13
A194: 3 | B194: 2900.116742 | C194: 206.258235 | D194: 3 | E194: 2900.116742 | F194: 256.8222689 | O194: ='Hull Long'!B245 -> 2900 | P194: ='Hull Long'!C245 -> 212.5866791 | Q194: ='Hull Plan'!C245 -> 206.258131 | R194: ='Hull Long'!B194 -> 2900 | S194: ='Hull Long'!C194 -> 212.5866791 | T194: ='Hull Plan'!C194 -> 256.8221549 | U194: 50.56403389 | V194: 101.3346966 | W194: 120.2334986 | X194: 101.3137286 | Y194: 50.69633579 | Z194: 99.15596237 | AA194: 24.53130534 | AB194: 56.31273227 | AC194: 99.15596229 | AD194: 56.31273229 | AE194: 24.60517253 | AF194: 99.0820952 | AG194: 99.0820951 | AH194: 2900.116742 | AI194: 131.258225 | AJ194: 2900.116742 | AK194: 181.8222589 | AL194: 50.56403389 | AM194: 3.410605132e-13
A195: 3 | B195: 3000.160319 | C195: 190.1336124 | D195: 3 | E195: 3000.160319 | F195: 240.8299482 | O195: ='Hull Long'!B246 -> 3000 | P195: ='Hull Long'!C246 -> 215.53911 | Q195: ='Hull Plan'!C246 -> 190.1334951 | R195: ='Hull Long'!B195 -> 3000 | S195: ='Hull Long'!C195 -> 215.53911 | T195: ='Hull Plan'!C195 -> 240.8298208 | U195: 50.69633579 | V195: 101.6281016 | W195: 121.2658438 | X195: 101.6025603 | Y195: 50.8425642 | Z195: 100.0998655 | AA195: 24.30419335 | AB195: 55.59594116 | AC195: 100.0998654 | AD195: 55.59594118 | AE195: 24.38537674 | AF195: 100.0186821 | AG195: 100.018682 | AH195: 3000.160319 | AI195: 115.1336024 | AJ195: 3000.160319 | AK195: 165.8299382 | AL195: 50.69633579 | AM195: 3.694822226e-13
A196: 3 | B196: 3100.21355 | C196: 172.31166 | D196: 3 | E196: 3100.21355 | F196: 223.1542242 | O196: ='Hull Long'!B247 -> 3100 | P196: ='Hull Long'!C247 -> 218.8023231 | Q196: ='Hull Plan'!C247 -> 172.311529 | R196: ='Hull Long'!B196 -> 3100 | S196: ='Hull Long'!C196 -> 218.8023231 | T196: ='Hull Plan'!C196 -> 223.1540832 | U196: 50.8425642 | V196: 101.9498718 | W196: 122.325645 | X196: 101.9193298 | Y196: 51.00271913 | Z196: 101.0379774 | AA196: 24.0757397 | AB196: 54.88628287 | AC196: 101.0379773 | AD196: 54.8862829 | AE196: 24.16410812 | AF196: 100.949609 | AG196: 100.9496089 | AH196: 3100.21355 | AI196: 97.31165001 | AJ196: 3100.21355 | AK196: 148.1542142 | AL196: 50.8425642 | AM196: 5.258016245e-13
A197: 3 | B197: 3200.2774 | C197: 152.7923779 | D197: 3 | E197: 3200.2774 | F197: 203.7950971 | O197: ='Hull Long'!B248 -> 3200 | P197: ='Hull Long'!C248 -> 222.3763184 | Q197: ='Hull Plan'!C248 -> 152.7922329 | R197: ='Hull Long'!B197 -> 3200 | S197: ='Hull Long'!C197 -> 222.3763184 | T197: ='Hull Plan'!C197 -> 203.794942 | U197: 51.00271913 | V197: 101.2749416 | W197: 122.4728616 | X197: 101.239367 | Y197: 51.17499083 | Z197: 101.9651834 | AA197: 24.04119011 | AB197: 53.9936265 | AC197: 101.9651832 | AD197: 53.99362652 | AE197: 24.136568 | AF197: 101.8698055 | AG197: 101.8698053 | AH197: 3200.2774 | AI197: 77.79236792 | AJ197: 3200.2774 | AK197: 128.7950871 | AL197: 51.00271913 | AM197: 5.115907697e-13
A198: 3 | B198: 3299.352018 | C198: 131.7963341 | D198: 3 | E198: 3299.352018 | F198: 182.9713249 | O198: ='Hull Long'!B249 -> 3299 | P198: ='Hull Long'!C249 -> 226.2207097 | Q198: ='Hull Plan'!C249 -> 131.7961747 | R198: ='Hull Long'!B198 -> 3299 | S198: ='Hull Long'!C198 -> 226.2207097 | T198: ='Hull Plan'!C198 -> 182.9711555 | U198: 51.17499083 | V198: 2.049702422 | W198: 51.65508278 | X198: 2.048925885 | Y198: 51.17861172 | Z198: 102.4329796 | AA198: 75.34625359 | AB198: 2.220766773 | AC198: 102.4329794 | AD198: 2.220766793 | AE198: 75.44513297 | AF198: 102.3341003 | AG198: 102.3341001 | AH198: 3299.352018 | AI198: 56.79632409 | AJ198: 3299.352018 | AK198: 107.9713149 | AL198: 51.17499083 | AM198: 4.263256415e-13
A199: 3 | B199: 3301.353652 | C199: 131.3550384 | D199: 3 | E199: 3301.353652 | F199: 182.5336501 | O199: ='Hull Long'!B250 -> 3301 | P199: ='Hull Long'!C250 -> 226.3015131 | Q199: ='Hull Plan'!C250 -> 131.3548689 | R199: ='Hull Long'!B199 -> 3301 | S199: ='Hull Long'!C199 -> 226.3015131 | T199: ='Hull Plan'!C199 -> 182.5334706 | U199: 51.17861172 | V199: 101.6525818 | W199: 123.5933293 | X199: 101.6111767 | Y199: 51.36480854 | Z199: 102.8995683 | AA199: 23.80582891 | AB199: 53.29460275 | AC199: 102.8995681 | AD199: 53.29460278 | AE199: 23.9081706 | AF199: 102.7972267 | AG199: 102.7972264 | AH199: 3301.353652 | AI199: 56.35502836 | AJ199: 3301.353652 | AK199: 107.5336401 | AL199: 51.17861172 | AM199: 4.263256415e-13
A200: 3 | B200: 3400.440815 | C200: 108.6618346 | D200: 3 | E200: 3400.440815 | F200: 160.0266431 | O200: ='Hull Long'!B251 -> 3400 | P200: ='Hull Long'!C251 -> 230.4566556 | Q200: ='Hull Plan'!C251 -> 108.6616503 | R200: ='Hull Long'!B200 -> 3400 | S200: ='Hull Long'!C200 -> 230.4566556 | T200: ='Hull Plan'!C200 -> 160.0264489 | U200: 51.36480854 | V200: 103.0826006 | W200: 125.6689007 | X200: 103.0345747 | Y200: 51.56674302 | Z200: 103.8129482 | AA200: 23.38520527 | AB200: 52.80184645 | AC200: 103.812948 | AD200: 52.80184648 | AE200: 23.49425022 | AF200: 103.7039033 | AG200: 103.7039031 | AH200: 3400.440815 | AI200: 33.66182457 | AJ200: 3400.440815 | AK200: 85.02663311 | AL200: 51.36480854 | AM200: 1.563194019e-13
A201: 3 | B201: 3500.542303 | C201: 84.05056331 | D201: 3 | E201: 3500.542302 | F201: 135.6173063 | O201: ='Hull Long'!B252 -> 3500 | P201: ='Hull Long'!C252 -> 234.9629975 | Q201: ='Hull Plan'!C252 -> 84.05036389 | R201: ='Hull Long'!B201 -> 3500 | S201: ='Hull Long'!C201 -> 234.9629975 | T201: ='Hull Plan'!C201 -> 135.6170969 | U201: 51.56674302 | V201: 103.514965 | W201: 126.837592 | X201: 103.460314 | Y201: 51.78260401 | Z201: 104.7233808 | AA201: 23.15423274 | AB201: 52.12238645 | AC201: 104.7233805 | AD201: 52.12238649 | AE201: 23.26985021 | AF201: 104.6077633 | AG201: 104.6077631 | AH201: 3500.542303 | AI201: 9.050553313 | AJ201: 3500.542302 | AK201: 60.61729633 | AL201: 51.56674302 | AM201: -9.947598301e-14
A202: 3 | B202: 3600.658263 | C202: 57.74196233 | D202: 3 | E202: 3600.658263 | F202: 109.5245663 | O202: ='Hull Long'!B253 -> 3600 | P202: ='Hull Long'!C253 -> 239.7801216 | Q202: ='Hull Plan'!C253 -> 57.74174736 | R202: ='Hull Long'!B202 -> 3600 | S202: ='Hull Long'!C202 -> 239.7801216 | T202: ='Hull Plan'!C202 -> 109.5243414 | U202: 51.78260401 | V202: 103.9741721 | W202: 128.0332248 | X202: 103.9125134 | Y202: 52.01239152 | Z202: 105.6258709 | AA202: 22.92330985 | AB202: 51.45081917 | AC202: 105.6258707 | AD202: 51.4508192 | AE202: 23.04532852 | AF202: 105.5038523 | AG202: 105.503852 | AH202: 3600.658263 | AI202: -17.25804767 | AJ202: 3600.658263 | AK202: 34.52455634 | AL202: 51.78260401 | AM202: -3.97903932e-13
A203: 3 | B203: 3700.789658 | C203: 29.73603161 | D203: 3 | E203: 3700.789658 | F203: 81.74842313 | O203: ='Hull Long'!B254 -> 3700 | P203: ='Hull Long'!C254 -> 244.9080279 | Q203: ='Hull Plan'!C254 -> 29.73580073 | R203: ='Hull Long'!B203 -> 3700 | S203: ='Hull Long'!C203 -> 244.9080279 | T203: ='Hull Plan'!C203 -> 81.74818225 | U203: 52.01239152 | V203: 52.16799023 | W203: 83.36458872 | X203: 52.13441049 | Y203: 52.13250772 | Z203: 106.2973008 | AA203: 36.78721226 | AB203: 36.91548688 | AC203: 106.2973005 | AD203: 36.91548691 | AE203: 36.91391593 | AF203: 106.1705972 | AG203: 106.1705968 | AH203: 3700.789658 | AI203: -45.26397839 | AJ203: 3700.789658 | AK203: 6.748413135 | AL203: 52.01239152 | AM203: -6.536993169e-13
... 213 more rows

Sheet Offsets
A1: Bottom Plank | C1: Washboard | E1: Topside | G1: Coaming
C2: ='Hull Unfold'!E162 -> 33.78028278 | D2: ='Hull Unfold'!F162 -> 0.0002976800791 | E2: ='Hull Unfold'!B111 -> -1.308065809 | F2: ='Hull Unfold'!C111 -> 611.2576925
C3: =INT(-'Hull Unfold'!E163/50)*-50 -> 100 | D3: =('Hull Unfold'!F164-'Hull Unfold'!F162)/('Hull Unfold'!E164-'Hull Unfold'!E162)*(C3-'Hull Unfold'!E162)+'Hull Unfold'!F162 -> 20.85424833 | E3: =INT(-'Hull Unfold'!E212/50)*-50 -> -50 | F3: =('Hull Unfold'!F113-'Hull Unfold'!F111)/('Hull Unfold'!E113-'Hull Unfold'!E111)*(E3-'Hull Unfold'!E111)+'Hull Unfold'!F111 -> 611.3687713
C4: =INT(-'Hull Unfold'!E164/50)*-50 -> 200 | D4: =('Hull Unfold'!F165-'Hull Unfold'!F163)/('Hull Unfold'!E165-'Hull Unfold'!E163)*(C4-'Hull Unfold'!E163)+'Hull Unfold'!F163 -> 52.34295259 | E4: ='Hull Unfold'!B113 -> 172.2656736 | F4: ='Hull Unfold'!C113 -> 306.2362518
C5: =INT(-'Hull Unfold'!E165/50)*-50 -> 200 | D5: =('Hull Unfold'!F166-'Hull Unfold'!F164)/('Hull Unfold'!E166-'Hull Unfold'!E164)*(C5-'Hull Unfold'!E164)+'Hull Unfold'!F164 -> 52.33186949 | E5: ='Hull Unfold'!B114 -> 172.3213313 | F5: ='Hull Unfold'!C114 -> 306.2376234
A6: ='Hull Unfold'!E64 -> 199.743724 | B6: ='Hull Unfold'!F64 -> 0.1042540049 | C6: =INT(-'Hull Unfold'!E166/50)*-50 -> 200 | D6: =('Hull Unfold'!F167-'Hull Unfold'!F165)/('Hull Unfold'!E167-'Hull Unfold'!E165)*(C6-'Hull Unfold'!E165)+'Hull Unfold'!F165 -> 52.32797533 | E6: ='Hull Unfold'!B115 -> 172.376989 | F6: ='Hull Unfold'!C115 -> 306.2389949 | G6: ='Hull Unfold'!B217 -> 172.4039363 | H6: ='Hull Unfold'!F217-'Hull Unfold'!C217 -> 12.00001
A7: ='Hull Unfold'!E65 -> 249.7834457 | B7: ='Hull Unfold'!F65 -> 15.09925147 | C7: =INT(-'Hull Unfold'!E167/50)*-50 -> 250 | D7: =('Hull Unfold'!F168-'Hull Unfold'!F166)/('Hull Unfold'!E168-'Hull Unfold'!E166)*(C7-'Hull Unfold'!E166)+'Hull Unfold'!F166 -> 66.97574113 | E7: ='Hull Unfold'!B116 -> 224.5994339 | F7: ='Hull Unfold'!C116 -> 307.5195964 | G7: ='Hull Unfold'!B218 -> 224.6238387 | H7: ='Hull Unfold'!F218-'Hull Unfold'!C218 -> 14.76112111
A8: ='Hull Unfold'!E66 -> 299.801614 | B8: ='Hull Unfold'!F66 -> 29.73812523 | C8: =INT(-'Hull Unfold'!E168/50)*-50 -> 300 | D8: =('Hull Unfold'!F169-'Hull Unfold'!F167)/('Hull Unfold'!E169-'Hull Unfold'!E167)*(C8-'Hull Unfold'!E167)+'Hull Unfold'!F167 -> 81.20332603 | E8: ='Hull Unfold'!B117 -> 276.7008803 | F8: ='Hull Unfold'!C117 -> 308.765819 | G8: ='Hull Unfold'!B219 -> 276.7229188 | H8: ='Hull Unfold'!F219-'Hull Unfold'!C219 -> 17.44445444
A9: ='Hull Unfold'!E67 -> 399.834733 | B9: ='Hull Unfold'!F67 -> 57.74338146 | C9: =INT(-'Hull Unfold'!E169/50)*-50 -> 400 | D9: =('Hull Unfold'!F170-'Hull Unfold'!F168)/('Hull Unfold'!E170-'Hull Unfold'!E168)*(C9-'Hull Unfold'!E168)+'Hull Unfold'!F168 -> 108.4291321 | E9: ='Hull Unfold'!B118 -> 380.552753 | F9: ='Hull Unfold'!C118 -> 311.1549203 | G9: ='Hull Unfold'!B220 -> 380.5705622 | H9: ='Hull Unfold'!F220-'Hull Unfold'!C220 -> 22.57778778
A10: ='Hull Unfold'!E68 -> 499.8639063 | B10: ='Hull Unfold'!F68 -> 84.05155247 | C10: =INT(-'Hull Unfold'!E170/50)*-50 -> 500 | D10: =('Hull Unfold'!F171-'Hull Unfold'!F169)/('Hull Unfold'!E171-'Hull Unfold'!E169)*(C10-'Hull Unfold'!E169)+'Hull Unfold'!F169 -> 134.4121585 | E10: ='Hull Unfold'!B119 -> 483.9591833 | F10: ='Hull Unfold'!C119 -> 313.4056002 | G10: ='Hull Unfold'!B221 -> 483.9733828 | H10: ='Hull Unfold'!F221-'Hull Unfold'!C221 -> 27.40001
A11: ='Hull Unfold'!E69 -> 599.8894118 | B11: ='Hull Unfold'!F69 -> 108.6625258 | C11: =INT(-'Hull Unfold'!E171/50)*-50 -> 600 | D11: =('Hull Unfold'!F172-'Hull Unfold'!F170)/('Hull Unfold'!E172-'Hull Unfold'!E170)*(C11-'Hull Unfold'!E170)+'Hull Unfold'!F170 -> 158.7480154 | E11: ='Hull Unfold'!B120 -> 586.9462844 | F11: ='Hull Unfold'!C120 -> 315.517174 | G11: ='Hull Unfold'!B222 -> 586.957437 | H11: ='Hull Unfold'!F222-'Hull Unfold'!C222 -> 31.91112111
A12: ='Hull Unfold'!E70 -> 698.9113015 | B12: ='Hull Unfold'!F70 -> 131.3555193 | C12: =INT(-'Hull Unfold'!E172/50)*-50 -> 700 | D12: =('Hull Unfold'!F173-'Hull Unfold'!F171)/('Hull Unfold'!E173-'Hull Unfold'!E171)*(C12-'Hull Unfold'!E171)+'Hull Unfold'!F171 -> 182.2353609 | E12: ='Hull Unfold'!B121 -> 688.5164255 | F12: ='Hull Unfold'!C121 -> 317.4698724 | G12: ='Hull Unfold'!B223 -> 688.5250606 | H12: ='Hull Unfold'!F223-'Hull Unfold'!C223 -> 36.07066111
A13: ='Hull Unfold'!E71 -> 700.9117133 | B13: ='Hull Unfold'!F71 -> 131.7968114 | C13: =INT(-'Hull Unfold'!E173/50)*-50 -> 750 | D13: =('Hull Unfold'!F174-'Hull Unfold'!F172)/('Hull Unfold'!E174-'Hull Unfold'!E172)*(C13-'Hull Unfold'!E172)+'Hull Unfold'!F172 -> 192.7418789 | E13: ='Hull Unfold'!B122 -> 690.5645809 | F13: ='Hull Unfold'!C122 -> 317.5078909 | G13: ='Hull Unfold'!B224 -> 690.5731697 | H13: ='Hull Unfold'!F224-'Hull Unfold'!C224 -> 36.15155
A14: ='Hull Unfold'!E72 -> 799.9304426 | B14: ='Hull Unfold'!F72 -> 152.7927035 | C14: =INT(-'Hull Unfold'!E174/50)*-50 -> 800 | D14: =('Hull Unfold'!F175-'Hull Unfold'!F173)/('Hull Unfold'!E175-'Hull Unfold'!E173)*(C14-'Hull Unfold'!E173)+'Hull Unfold'!F173 -> 202.4281066 | E14: ='Hull Unfold'!B123 -> 791.768596 | F14: ='Hull Unfold'!C123 -> 319.3199548 | G14: ='Hull Unfold'!B225 -> 791.7751186 | H14: ='Hull Unfold'!F225-'Hull Unfold'!C225 -> 40.00001
A15: ='Hull Unfold'!E73 -> 899.9464623 | B15: ='Hull Unfold'!F73 -> 172.3118759 | C15: =INT(-'Hull Unfold'!E175/50)*-50 -> 900 | D15: =('Hull Unfold'!F176-'Hull Unfold'!F174)/('Hull Unfold'!E176-'Hull Unfold'!E174)*(C15-'Hull Unfold'!E174)+'Hull Unfold'!F174 -> 221.768201 | E15: ='Hull Unfold'!B124 -> 893.6574943 | F15: ='Hull Unfold'!C124 -> 321.0095363 | G15: ='Hull Unfold'!B226 -> 893.6623255 | H15: ='Hull Unfold'!F226-'Hull Unfold'!C226 -> 43.57778778
A16: ='Hull Unfold'!E74 -> 999.9598134 | B16: ='Hull Unfold'!F74 -> 190.1337507 | C16: =INT(-'Hull Unfold'!E176/50)*-50 -> 1000 | D16: =('Hull Unfold'!F177-'Hull Unfold'!F175)/('Hull Unfold'!E177-'Hull Unfold'!E175)*(C16-'Hull Unfold'!E175)+'Hull Unfold'!F175 -> 239.4525506 | E16: ='Hull Unfold'!B125 -> 995.2345379 | F16: ='Hull Unfold'!C125 -> 322.5567405 | G16: ='Hull Unfold'!B227 -> 995.2380237 | H16: ='Hull Unfold'!F227-'Hull Unfold'!C227 -> 46.84445444
A17: ='Hull Unfold'!E75 -> 1099.97074 | B17: ='Hull Unfold'!F75 -> 206.2583197 | C17: =INT(-'Hull Unfold'!E177/50)*-50 -> 1100 | D17: =('Hull Unfold'!F178-'Hull Unfold'!F176)/('Hull Unfold'!E178-'Hull Unfold'!E176)*(C17-'Hull Unfold'!E176)+'Hull Unfold'!F176 -> 255.4705789 | E17: ='Hull Unfold'!B126 -> 1096.527263 | F17: ='Hull Unfold'!C126 -> 323.9606547 | G17: ='Hull Unfold'!B228 -> 1096.529701 | H17: ='Hull Unfold'!F228-'Hull Unfold'!C228 -> 49.80001
A18: ='Hull Unfold'!E76 -> 1199.979486 | B18: ='Hull Unfold'!F76 -> 220.6855766 | C18: =INT(-'Hull Unfold'!E178/50)*-50 -> 1200 | D18: =('Hull Unfold'!F179-'Hull Unfold'!F177)/('Hull Unfold'!E179-'Hull Unfold'!E177)*(C18-'Hull Unfold'!E177)+'Hull Unfold'!F177 -> 269.8198914 | E18: ='Hull Unfold'!B127 -> 1197.563436 | F18: ='Hull Unfold'!C127 -> 325.2203475 | G18: ='Hull Unfold'!B229 -> 1197.565077 | H18: ='Hull Unfold'!F229-'Hull Unfold'!C229 -> 52.44445444
A19: ='Hull Unfold'!E77 -> 1299.986294 | B19: ='Hull Unfold'!F77 -> 233.4155167 | C19: =INT(-'Hull Unfold'!E179/50)*-50 -> 1300 | D19: =('Hull Unfold'!F180-'Hull Unfold'!F178)/('Hull Unfold'!E180-'Hull Unfold'!E178)*(C19-'Hull Unfold'!E178)+'Hull Unfold'!F178 -> 282.4979381 | E19: ='Hull Unfold'!B128 -> 1298.371029 | F19: ='Hull Unfold'!C128 -> 326.3348811 | G19: ='Hull Unfold'!B230 -> 1298.372082 | H19: ='Hull Unfold'!F230-'Hull Unfold'!C230 -> 54.77778778
A20: ='Hull Unfold'!E78 -> 1399.991408 | B20: ='Hull Unfold'!F78 -> 244.4481363 | C20: =INT(-'Hull Unfold'!E180/50)*-50 -> 1400 | D20: =('Hull Unfold'!F181-'Hull Unfold'!F179)/('Hull Unfold'!E181-'Hull Unfold'!E179)*(C20-'Hull Unfold'!E179)+'Hull Unfold'!F179 -> 293.5019501 | E20: ='Hull Unfold'!B129 -> 1398.978204 | F20: ='Hull Unfold'!C129 -> 327.3033256 | G20: ='Hull Unfold'!B231 -> 1398.978837 | H20: ='Hull Unfold'!F231-'Hull Unfold'!C231 -> 56.80001
A21: ='Hull Unfold'!E79 -> 1499.995068 | B21: ='Hull Unfold'!F79 -> 253.7834323 | C21: =INT(-'Hull Unfold'!E181/50)*-50 -> 1500 | D21: =('Hull Unfold'!F182-'Hull Unfold'!F180)/('Hull Unfold'!E182-'Hull Unfold'!E180)*(C21-'Hull Unfold'!E180)+'Hull Unfold'!F180 -> 302.8288463 | E21: ='Hull Unfold'!B130 -> 1499.413283 | F21: ='Hull Unfold'!C130 -> 328.1247742 | G21: ='Hull Unfold'!B232 -> 1499.413633 | H21: ='Hull Unfold'!F232-'Hull Unfold'!C232 -> 58.51112111
A22: ='Hull Unfold'!E80 -> 1599.997519 | B22: ='Hull Unfold'!F80 -> 261.4214026 | C22: =INT(-'Hull Unfold'!E182/50)*-50 -> 1600 | D22: =('Hull Unfold'!F183-'Hull Unfold'!F181)/('Hull Unfold'!E183-'Hull Unfold'!E181)*(C22-'Hull Unfold'!E181)+'Hull Unfold'!F181 -> 310.4750787 | E22: ='Hull Unfold'!B131 -> 1599.704733 | F22: ='Hull Unfold'!C131 -> 328.7983618 | G22: ='Hull Unfold'!B233 -> 1599.704903 | H22: ='Hull Unfold'!F233-'Hull Unfold'!C233 -> 59.91112111
A23: ='Hull Unfold'!E81 -> 1699.999001 | B23: ='Hull Unfold'!F81 -> 267.3620455 | C23: =INT(-'Hull Unfold'!E183/50)*-50 -> 1700 | D23: =('Hull Unfold'!F184-'Hull Unfold'!F182)/('Hull Unfold'!E184-'Hull Unfold'!E182)*(C23-'Hull Unfold'!E182)+'Hull Unfold'!F182 -> 316.4363524 | E23: ='Hull Unfold'!B132 -> 1699.881138 | F23: ='Hull Unfold'!C132 -> 329.3232858 | G23: ='Hull Unfold'!B234 -> 1699.881204 | H23: ='Hull Unfold'!F234-'Hull Unfold'!C234 -> 61.00001
A24: ='Hull Unfold'!E82 -> 1799.999758 | B24: ='Hull Unfold'!F82 -> 271.6053598 | C24: =INT(-'Hull Unfold'!E184/50)*-50 -> 1800 | D24: =('Hull Unfold'!F185-'Hull Unfold'!F183)/('Hull Unfold'!E185-'Hull Unfold'!E183)*(C24-'Hull Unfold'!E183)+'Hull Unfold'!F183 -> 319.8540774 | E24: ='Hull Unfold'!B133 -> 1799.971178 | F24: ='Hull Unfold'!C133 -> 329.6988314 | G24: ='Hull Unfold'!B235 -> 1799.971193 | H24: ='Hull Unfold'!F235-'Hull Unfold'!C235 -> 61.77778778
A25: ='Hull Unfold'!E83 -> 2000 | B25: ='Hull Unfold'!F83 -> 275.00001 | C25: ='Hull Unfold'!E185 -> 2000 | D25: ='Hull Unfold'!F185 -> 325.00002 | E25: ='Hull Unfold'!B134 -> 2000 | F25: ='Hull Unfold'!C134 -> 330.00002 | G25: ='Hull Unfold'!B236 -> 2000 | H25: ='Hull Unfold'!F236-'Hull Unfold'!C236 -> 62.40001
A26: ='Hull Unfold'!E84 -> 2000 | B26: ='Hull Unfold'!F84 -> 275.00001 | C26: ='Hull Unfold'!E186 -> 2000 | D26: ='Hull Unfold'!F186 -> 325.00002 | E26: ='Hull Unfold'!B135 -> 2000 | F26: ='Hull Unfold'!C135 -> 330.00002 | G26: ='Hull Unfold'!B237 -> 2000 | H26: ='Hull Unfold'!F237-'Hull Unfold'!C237 -> 62.40001
A27: ='Hull Unfold'!E85 -> 2200.000242 | B27: ='Hull Unfold'!F85 -> 271.6053598 | C27: =INT('Hull Unfold'!E187/50)*50 -> 2200 | D27: =('Hull Unfold'!F188-'Hull Unfold'!F186)/('Hull Unfold'!E188-'Hull Unfold'!E186)*(C27-'Hull Unfold'!E186)+'Hull Unfold'!F186 -> 319.9498907 | E27: ='Hull Unfold'!B136 -> 2200.028822 | F27: ='Hull Unfold'!C136 -> 329.6988314 | G27: ='Hull Unfold'!B238 -> 2200.028807 | H27: ='Hull Unfold'!F238-'Hull Unfold'!C238 -> 61.77778778
A28: ='Hull Unfold'!E86 -> 2300.000999 | B28: ='Hull Unfold'!F86 -> 267.3620455 | C28: =INT('Hull Unfold'!E188/50)*50 -> 2300 | D28: =('Hull Unfold'!F189-'Hull Unfold'!F187)/('Hull Unfold'!E189-'Hull Unfold'!E187)*(C28-'Hull Unfold'!E187)+'Hull Unfold'!F187 -> 316.5832982 | E28: ='Hull Unfold'!B137 -> 2300.118859 | F28: ='Hull Unfold'!C137 -> 329.3225984 | G28: ='Hull Unfold'!B239 -> 2300.118796 | H28: ='Hull Unfold'!F239-'Hull Unfold'!C239 -> 61.00001
A29: ='Hull Unfold'!E87 -> 2400.002481 | B29: ='Hull Unfold'!F87 -> 261.4214026 | C29: =INT('Hull Unfold'!E189/50)*50 -> 2400 | D29: =('Hull Unfold'!F190-'Hull Unfold'!F188)/('Hull Unfold'!E190-'Hull Unfold'!E188)*(C29-'Hull Unfold'!E188)+'Hull Unfold'!F188 -> 310.6919192 | E29: ='Hull Unfold'!B138 -> 2400.295256 | F29: ='Hull Unfold'!C138 -> 328.7961469 | G29: ='Hull Unfold'!B240 -> 2400.295097 | H29: ='Hull Unfold'!F240-'Hull Unfold'!C240 -> 59.91112111
A30: ='Hull Unfold'!E88 -> 2500.004932 | B30: ='Hull Unfold'!F88 -> 253.7834323 | C30: =INT('Hull Unfold'!E190/50)*50 -> 2500 | D30: =('Hull Unfold'!F191-'Hull Unfold'!F189)/('Hull Unfold'!E191-'Hull Unfold'!E189)*(C30-'Hull Unfold'!E189)+'Hull Unfold'!F189 -> 303.1176774 | E30: ='Hull Unfold'!B139 -> 2500.586688 | F30: ='Hull Unfold'!C139 -> 328.1197705 | G30: ='Hull Unfold'!B241 -> 2500.586367 | H30: ='Hull Unfold'!F241-'Hull Unfold'!C241 -> 58.51112111
A31: ='Hull Unfold'!E89 -> 2600.008592 | B31: ='Hull Unfold'!F89 -> 244.4481363 | C31: =INT('Hull Unfold'!E191/50)*50 -> 2600 | D31: =('Hull Unfold'!F192-'Hull Unfold'!F190)/('Hull Unfold'!E192-'Hull Unfold'!E190)*(C31-'Hull Unfold'!E190)+'Hull Unfold'!F190 -> 293.8608654 | E31: ='Hull Unfold'!B140 -> 2601.02173 | F31: ='Hull Unfold'!C140 -> 327.2938438 | G31: ='Hull Unfold'!B242 -> 2601.021163 | H31: ='Hull Unfold'!F242-'Hull Unfold'!C242 -> 56.80001
A32: ='Hull Unfold'!E90 -> 2700.013706 | B32: ='Hull Unfold'!F90 -> 233.4155167 | C32: =INT('Hull Unfold'!E192/50)*50 -> 2700 | D32: =('Hull Unfold'!F193-'Hull Unfold'!F191)/('Hull Unfold'!E193-'Hull Unfold'!E191)*(C32-'Hull Unfold'!E191)+'Hull Unfold'!F191 -> 282.9218405 | E32: ='Hull Unfold'!B141 -> 2701.628841 | F32: ='Hull Unfold'!C141 -> 326.3188202 | G32: ='Hull Unfold'!B243 -> 2701.627918 | H32: ='Hull Unfold'!F243-'Hull Unfold'!C243 -> 54.77778778
A33: ='Hull Unfold'!E91 -> 2800.020514 | B33: ='Hull Unfold'!F91 -> 220.6855766 | C33: =INT('Hull Unfold'!E193/50)*50 -> 2800 | D33: =('Hull Unfold'!F194-'Hull Unfold'!F192)/('Hull Unfold'!E194-'Hull Unfold'!E192)*(C33-'Hull Unfold'!E192)+'Hull Unfold'!F192 -> 270.3010249 | E33: ='Hull Unfold'!B142 -> 2802.436334 | F33: ='Hull Unfold'!C142 -> 325.1952297 | G33: ='Hull Unfold'!B244 -> 2802.434923 | H33: ='Hull Unfold'!F244-'Hull Unfold'!C244 -> 52.44445444
A34: ='Hull Unfold'!E92 -> 2900.02926 | B34: ='Hull Unfold'!F92 -> 206.2583197 | C34: =INT('Hull Unfold'!E194/50)*50 -> 2900 | D34: =('Hull Unfold'!F195-'Hull Unfold'!F193)/('Hull Unfold'!E195-'Hull Unfold'!E193)*(C34-'Hull Unfold'!E193)+'Hull Unfold'!F193 -> 255.9989055 | E34: ='Hull Unfold'!B143 -> 2903.472358 | F34: ='Hull Unfold'!C143 -> 323.9236761 | G34: ='Hull Unfold'!B245 -> 2903.470299 | H34: ='Hull Unfold'!F245-'Hull Unfold'!C245 -> 49.80001
A35: ='Hull Unfold'!E93 -> 3000.040187 | B35: ='Hull Unfold'!F93 -> 190.1337507 | C35: =INT('Hull Unfold'!E195/50)*50 -> 3000 | D35: =('Hull Unfold'!F196-'Hull Unfold'!F194)/('Hull Unfold'!E196-'Hull Unfold'!E194)*(C35-'Hull Unfold'!E194)+'Hull Unfold'!F194 -> 240.0160338 | E35: ='Hull Unfold'!B144 -> 3004.764875 | F35: ='Hull Unfold'!C144 -> 322.5048334 | G35: ='Hull Unfold'!B246 -> 3004.761976 | H35: ='Hull Unfold'!F246-'Hull Unfold'!C246 -> 46.84445444
A36: ='Hull Unfold'!E94 -> 3100.053538 | B36: ='Hull Unfold'!F94 -> 172.3118759 | C36: =INT('Hull Unfold'!E196/50)*50 -> 3100 | D36: =('Hull Unfold'!F197-'Hull Unfold'!F195)/('Hull Unfold'!E197-'Hull Unfold'!E195)*(C36-'Hull Unfold'!E195)+'Hull Unfold'!F195 -> 222.353026 | E36: ='Hull Unfold'!B145 -> 3106.34164 | F36: ='Hull Unfold'!C145 -> 320.9394428 | G36: ='Hull Unfold'!B247 -> 3106.337675 | H36: ='Hull Unfold'!F247-'Hull Unfold'!C247 -> 43.57778778
A37: ='Hull Unfold'!E95 -> 3200.069557 | B37: ='Hull Unfold'!F95 -> 152.7927035 | C37: =INT('Hull Unfold'!E197/50)*50 -> 3200 | D37: =('Hull Unfold'!F198-'Hull Unfold'!F196)/('Hull Unfold'!E198-'Hull Unfold'!E196)*(C37-'Hull Unfold'!E196)+'Hull Unfold'!F196 -> 203.0189439 | E37: ='Hull Unfold'!B146 -> 3208.230179 | F37: ='Hull Unfold'!C146 -> 319.2283087 | G37: ='Hull Unfold'!B248 -> 3208.224881 | H37: ='Hull Unfold'!F248-'Hull Unfold'!C248 -> 40.00001
A38: ='Hull Unfold'!E96 -> 3299.088287 | B38: ='Hull Unfold'!F96 -> 131.7968114 | C38: =INT('Hull Unfold'!E198/50)*50 -> 3250 | D38: =('Hull Unfold'!F199-'Hull Unfold'!F197)/('Hull Unfold'!E199-'Hull Unfold'!E197)*(C38-'Hull Unfold'!E197)+'Hull Unfold'!F197 -> 193.3359199 | E38: ='Hull Unfold'!B147 -> 3309.433749 | F38: ='Hull Unfold'!C147 -> 317.3915721 | G38: ='Hull Unfold'!B249 -> 3309.42683 | H38: ='Hull Unfold'!F249-'Hull Unfold'!C249 -> 36.15155
A39: ='Hull Unfold'!E97 -> 3301.088699 | B39: ='Hull Unfold'!F97 -> 131.3555193 | C39: =INT('Hull Unfold'!E199/50)*50 -> 3300 | D39: =('Hull Unfold'!F200-'Hull Unfold'!F198)/('Hull Unfold'!E200-'Hull Unfold'!E198)*(C39-'Hull Unfold'!E198)+'Hull Unfold'!F198 -> 182.8242488 | E39: ='Hull Unfold'!B148 -> 3311.481895 | F39: ='Hull Unfold'!C148 -> 317.3530216 | G39: ='Hull Unfold'!B250 -> 3311.474939 | H39: ='Hull Unfold'!F250-'Hull Unfold'!C250 -> 36.07066111
A40: ='Hull Unfold'!E98 -> 3400.110588 | B40: ='Hull Unfold'!F98 -> 108.6625258 | C40: =INT('Hull Unfold'!E200/50)*50 -> 3400 | D40: =('Hull Unfold'!F201-'Hull Unfold'!F199)/('Hull Unfold'!E201-'Hull Unfold'!E199)*(C40-'Hull Unfold'!E199)+'Hull Unfold'!F199 -> 159.2987621 | E40: ='Hull Unfold'!B149 -> 3413.051494 | F40: ='Hull Unfold'!C149 -> 315.3723382 | G40: ='Hull Unfold'!B251 -> 3413.042563 | H40: ='Hull Unfold'!F251-'Hull Unfold'!C251 -> 31.91112111
A41: ='Hull Unfold'!E99 -> 3500.136094 | B41: ='Hull Unfold'!F99 -> 84.05155247 | C41: =INT('Hull Unfold'!E201/50)*50 -> 3500 | D41: =('Hull Unfold'!F202-'Hull Unfold'!F200)/('Hull Unfold'!E202-'Hull Unfold'!E200)*(C41-'Hull Unfold'!E200)+'Hull Unfold'!F200 -> 134.9142182 | E41: ='Hull Unfold'!B150 -> 3516.037947 | F41: ='Hull Unfold'!C150 -> 313.2293712 | G41: ='Hull Unfold'!B252 -> 3516.026617 | H41: ='Hull Unfold'!F252-'Hull Unfold'!C252 -> 27.40001
A42: ='Hull Unfold'!E100 -> 3600.165267 | B42: ='Hull Unfold'!F100 -> 57.74338146 | C42: =INT('Hull Unfold'!E202/50)*50 -> 3600 | D42: =('Hull Unfold'!F203-'Hull Unfold'!F201)/('Hull Unfold'!E203-'Hull Unfold'!E201)*(C42-'Hull Unfold'!E201)+'Hull Unfold'!F201 -> 108.8620212 | E42: ='Hull Unfold'!B151 -> 3619.443625 | F42: ='Hull Unfold'!C151 -> 310.9444279 | G42: ='Hull Unfold'!B253 -> 3619.429438 | H42: ='Hull Unfold'!F253-'Hull Unfold'!C253 -> 22.57778778
A43: ='Hull Unfold'!E101 -> 3700.198386 | B43: ='Hull Unfold'!F101 -> 29.73812523 | C43: =INT('Hull Unfold'!E203/50)*50 -> 3700 | D43: =('Hull Unfold'!F204-'Hull Unfold'!F202)/('Hull Unfold'!E204-'Hull Unfold'!E202)*(C43-'Hull Unfold'!E202)+'Hull Unfold'!F202 -> 81.55108032 | E43: ='Hull Unfold'!B152 -> 3723.294646 | F43: ='Hull Unfold'!C152 -> 308.5185656 | G43: ='Hull Unfold'!B254 -> 3723.277081 | H43: ='Hull Unfold'!F254-'Hull Unfold'!C254 -> 17.44445444
A44: ='Hull Unfold'!E102 -> 3750.216554 | B44: ='Hull Unfold'!F102 -> 15.09925147 | C44: =INT('Hull Unfold'!E204/50)*50 -> 3750 | D44: =('Hull Unfold'!F205-'Hull Unfold'!F203)/('Hull Unfold'!E205-'Hull Unfold'!E203)*(C44-'Hull Unfold'!E203)+'Hull Unfold'!F203 -> 67.27268328 | E44: ='Hull Unfold'!B153 -> 3775.395631 | F44: ='Hull Unfold'!C153 -> 307.2531977 | G44: ='Hull Unfold'!B255 -> 3775.376161 | H44: ='Hull Unfold'!F255-'Hull Unfold'!C255 -> 14.76112111
A45: ='Hull Unfold'!E103 -> 3800.256276 | B45: ='Hull Unfold'!F103 -> 0.1042540049 | C45: =INT('Hull Unfold'!E205/50)*50 -> 3800 | D45: =('Hull Unfold'!F206-'Hull Unfold'!F204)/('Hull Unfold'!E206-'Hull Unfold'!E204)*(C45-'Hull Unfold'!E204)+'Hull Unfold'!F204 -> 52.5683766 | E45: ='Hull Unfold'!B154 -> 3827.617592 | F45: ='Hull Unfold'!C154 -> 305.9530131 | G45: ='Hull Unfold'!B256 -> 3827.596064 | H45: ='Hull Unfold'!F256-'Hull Unfold'!C256 -> 12.00001
C46: =INT('Hull Unfold'!E206/50)*50 -> 3800 | D46: =('Hull Unfold'!F207-'Hull Unfold'!F205)/('Hull Unfold'!E207-'Hull Unfold'!E205)*(C46-'Hull Unfold'!E205)+'Hull Unfold'!F205 -> 52.5723289 | E46: ='Hull Unfold'!B155 -> 3827.673249 | F46: ='Hull Unfold'!C155 -> 305.9516206
C47: =INT('Hull Unfold'!E207/50)*50 -> 3800 | D47: =('Hull Unfold'!F208-'Hull Unfold'!F206)/('Hull Unfold'!E208-'Hull Unfold'!E206)*(C47-'Hull Unfold'!E206)+'Hull Unfold'!F206 -> 52.58357062 | E47: ='Hull Unfold'!B156 -> 3827.728906 | F47: ='Hull Unfold'!C156 -> 305.950228
C48: =INT('Hull Unfold'!E208/50)*50 -> 3900 | D48: =('Hull Unfold'!F209-'Hull Unfold'!F207)/('Hull Unfold'!E209-'Hull Unfold'!E207)*(C48-'Hull Unfold'!E207)+'Hull Unfold'!F207 -> 20.95012754 | E48: ='Hull Unfold'!B157 -> 3967.779902 | F48: ='Hull Unfold'!C157 -> 551.843712
C49: ='Hull Unfold'!E209 -> 3966.219717 | D49: ='Hull Unfold'!F209 -> 0.0002984263538 | E49: ='Hull Unfold'!B158 -> 4001.421264 | F49: ='Hull Unfold'!C158 -> 610.9041376

Sheet Righting Moments
A1: Righting Moments
A5: Parameters | B5: =1500*Basic!$D$2 -> 1500 | C5: =1500*Basic!$D$2 -> 1500 | G5: DWL | H5: =H7*1025-S10 -> 1.055413048
A6: Number of Lines | B6: =COUNT(A8:A1454) -> 801 | E6: =COUNT(D8:D1454) -> 801 | G6: =N7-L7 -> -16.21443728 | H6: vol | I6: cbx | J6: cby | K6: CGX0 | L6: CGY0 | M6: cgx | N6: cgy | O6: Heel | P6: Righting Moment | R6: Righting Moment | S6: 4m Canoe
A7: Line Id | B7: X | C7: Y | D7: Line Id | E7: X | F7: Y | G7: Mid Section | H7: =SUM(H8:H808) -> 0.1083467444 | I7: =IF(H7>0,SUMPRODUCT(H8:H808,I8:I808)/H7,0) -> 23.42856929 | J7: =IF(H7>0,SUMPRODUCT(H8:H808,J8:J808)/H7,0) -> -63.92914021 | K7: =U10*1000 -> 0 | L7: =T10*1000 -> 156.8181818 | M7: 0 | N7: 140.6037445 | O7: 45 | P7: =(I7-M7)*H7*1025*9.81/1000 -> 25.5243392 | S7: Wt | T7: cgy | U7: cgx
A8: 0 | B8: 0 | C8: 0 | D8: 0 | E8: 0 | F8: 0 | G8: ='Hull Long'!B59 -> 0 | K8: A | L8: Acy | M8: A | N8: Acx | O8: GZ | P8: GM | R8: Hull | S8: 20 | T8: 0.075 | U8: 0
A9: 3 | B9: =M7-100*Basic!$D$2 -> -100 | C9: =N7 -> 140.6037445 | D9: 5 | E9: =I7-100*Basic!$D$2 -> -76.57143071 | F9: =J7 -> -63.92914021 | G9: 0 | O9: =I7-M7 -> 23.42856929 | P9: =O9/(SIN(RADIANS(O7))+0.000001) -> 33.13295358 | R9: Crew | S9: 90 | T9: 0.175 | U9: 0
A10: 3 | B10: =M7+100*Basic!$D$2 -> 100 | C10: =N7 -> 140.6037445 | D10: 5 | E10: =I7+100*Basic!$D$2 -> 123.4285693 | F10: =J7 -> -63.92914021 | R10: Total | S10: =S8+S9 -> 110 | T10: =(S8*T8+S9*T9)/S10 -> 0.1568181818 | U10: =(S8*U8+S9*U9)/S10 -> 0
A11: 0 | B11: 0 | C11: 0 | D11: 0 | E11: 0 | F11: 0
A12: 3 | B12: =M7 -> 0 | C12: =N7-100*Basic!$D$2 -> 40.60374454 | D12: 5 | E12: =I7 -> 23.42856929 | F12: =J7-100*Basic!$D$2 -> -163.9291402 | P12: Heel | Q12: Data | R12: HCG | S12: LCG | T12: MCG | U12: X4 | V12: X5 | W12: X6 | X12: X7 | Y12: X8
A13: 3 | B13: =M7 -> 0 | C13: =N7+100*Basic!$D$2 -> 240.6037445 | D13: 5 | E13: =I7 -> 23.42856929 | F13: =J7+100*Basic!$D$2 -> 36.07085979 | P13: 0 | Q13: -2.15250384e-15 | R13: -2.158272427e-15 | S13: -5.666940772e-15 | T13: -2.15250384e-15
A14: 0 | B14: 0 | C14: 0 | D14: 0 | E14: 0 | F14: 0 | P14: 5 | Q14: 6.167334204 | R14: 3.816109478 | S14: 12.36604468 | T14: 6.167334204
A15: 0 | B15: 0 | C15: 0 | D15: 0 | E15: 0 | F15: 0 | P15: 10 | Q15: 12.86180197 | R15: 8.177219059 | S15: 25.21206559 | T15: 12.86180197
A16: 0 | B16: 0 | C16: 0 | D16: 0 | E16: 0 | F16: 0 | P16: 15 | Q16: 20.65878197 | R16: 13.6767063 | S16: 39.06685612 | T16: 20.65878197
A17: 0 | B17: 0 | C17: 0 | D17: 0 | E17: 0 | F17: 0 | P17: 20 | Q17: 28.93264549 | R17: 19.70581026 | S17: 53.25797001 | T17: 28.93264549
A18: 0 | B18: 0 | C18: 0 | D18: 0 | E18: 0 | F18: 0 | P18: 25 | Q18: 33.27094413 | R18: 21.86985352 | S18: 63.32864097 | T18: 33.27094413
A19: 0 | B19: 0 | C19: 0 | D19: 0 | E19: 0 | F19: 0 | P19: 30 | Q19: 34.58814905 | R19: 21.09948281 | S19: 70.14941309 | T19: 34.58814905
A20: 0 | B20: 0 | C20: 0 | D20: 0 | E20: 0 | F20: 0 | P20: 35 | Q20: 34.15582795 | R20: 18.68216975 | S20: 74.95008293 | T20: 34.15582795
A21: 0 | B21: 0 | C21: 0 | D21: 0 | E21: 0 | F21: 0 | P21: 40 | Q21: 30.79147936 | R21: 13.45067686 | S21: 76.50821492 | T21: 30.79147936
A22: 0 | B22: 0 | C22: 0 | D22: 0 | E22: 0 | F22: 0 | P22: 45 | Q22: 24.24783389 | R22: 5.171914385 | S22: 74.53908943 | T22: 24.24783389
A23: 0 | B23: 0 | C23: 0 | D23: 0 | E23: 0 | F23: 0 | K23: 0 | L23: 0 | M23: 0 | N23: 0
A24: 0 | B24: 0 | C24: 0 | D24: 0 | E24: 0 | F24: 0 | G24: ='Hull Long'!B60 -> 35 | H24: vol | I24: cx | J24: cy | K24: A | L24: Acy | M24: A | N24: Acx
A25: 1 | B25: =('Hull Long'!C9-$L$7)*SIN(RADIANS($O$7))+('Hull Plan'!C9-$K$7)*COS(RADIANS($O$7))+$M$7 -> 72.96056333 | C25: =('Hull Long'!C9-$L$7)*COS(RADIANS($O$7))-('Hull Plan'!C9-$K$7)*SIN(RADIANS($O$7))+$N$7 -> 213.5643079 | D25: 2 | E25: =B25 -> 72.96056333 | F25: =IF(C25<0,C25,0) -> 0 | G25: =ABS(K39)/1000000 -> 0 | H25: =(G24-G8)*(G25+G9)/2000 -> 0 | I25: =IF(M39+M23<>0,(N39+N23)/(M39+M23),0) -> 0 | J25: =IF(K39+K23<>0,(L39+L23)/(K39+K23),0) -> 0 | K25: =(F26+F25)/2*(E26-E25) -> 0 | L25: =(E26-E25)*(F25^2+F25*F26+F26^2)/6 -> 0 | M25: =(E26+E25)/2*(F26-F25) -> 0 | N25: =(F26-F25)*(E25^2+E25*E26+E26^2)/6 -> 0
A26: 1 | B26: =IF(C25*C27<0,(B27-B25)/(C27-C25)*(0-C25)+B25,B25) -> 72.96056333 | C26: =IF(AND(C25*C27<0,B27<>B25),(C27-C25)/(B27-B25)*(B26-B25)+C25,C25) -> 213.5643079 | D26: 2 | E26: 72.96056333 | F26: 0 | K26: 0 | L26: 0 | M26: 0 | N26: 0
A27: 1 | B27: =('Hull Long'!C60-$L$7)*SIN(RADIANS($O$7))+('Hull Plan'!C60-$K$7)*COS(RADIANS($O$7))+$M$7 -> 72.96056333 | C27: =('Hull Long'!C60-$L$7)*COS(RADIANS($O$7))-('Hull Plan'!C60-$K$7)*SIN(RADIANS($O$7))+$N$7 -> 213.5643079 | D27: 2 | E27: 72.96056333 | F27: 0 | K27: 0 | L27: 0 | M27: 0 | N27: 0
A28: 1 | B28: =IF(C27*C29<0,(B29-B27)/(C29-C27)*(0-C27)+B27,B27) -> 72.96056333 | C28: =IF(AND(C27*C29<0,B29<>B27),(C29-C27)/(B29-B27)*(B28-B27)+C27,C27) -> 213.5643079 | D28: 2 | E28: 72.96056333 | F28: 0 | K28: 0 | L28: 0 | M28: 0 | N28: 0
A29: 1 | B29: =('Hull Long'!C111-$L$7)*SIN(RADIANS($O$7))+('Hull Plan'!C111-$K$7)*COS(RADIANS($O$7))+$M$7 -> 72.96056333 | C29: =('Hull Long'!C111-$L$7)*COS(RADIANS($O$7))-('Hull Plan'!C111-$K$7)*SIN(RADIANS($O$7))+$N$7 -> 213.5643079 | D29: 2 | E29: 72.96056333 | F29: 0 | K29: 0 | L29: 0 | M29: 0 | N29: 0
A30: 1 | B30: =IF(C29*C31<0,(B31-B29)/(C31-C29)*(0-C29)+B29,B29) -> 72.96056333 | C30: =IF(AND(C29*C31<0,B31<>B29),(C31-C29)/(B31-B29)*(B30-B29)+C29,C29) -> 213.5643079 | D30: 2 | E30: 72.96056333 | F30: 0 | K30: 0 | L30: 0 | M30: 0 | N30: 0
A31: 1 | B31: =('Hull Long'!C162-$L$7)*SIN(RADIANS($O$7))+('Hull Plan'!C162-$K$7)*COS(RADIANS($O$7))+$M$7 -> 72.96056333 | C31: =('Hull Long'!C162-$L$7)*COS(RADIANS($O$7))-('Hull Plan'!C162-$K$7)*SIN(RADIANS($O$7))+$N$7 -> 213.5643079 | D31: 2 | E31: 72.96056333 | F31: 0 | K31: 0 | L31: 0 | M31: 0 | N31: 0
A32: 1 | B32: =IF(C31*C33<0,(B33-B31)/(C33-C31)*(0-C31)+B31,B31) -> 72.96056333 | C32: =IF(AND(C31*C33<0,B33<>B31),(C33-C31)/(B33-B31)*(B32-B31)+C31,C31) -> 213.5643079 | D32: 2 | E32: 72.96056333 | F32: 0 | K32: 0 | L32: 0 | M32: 0 | N32: 0
A33: 1 | B33: =('Hull Long'!C162-$L$7)*SIN(RADIANS($O$7))+('Hull Plan'!F162-$K$7)*COS(RADIANS($O$7))+$M$7 -> 72.96056333 | C33: =('Hull Long'!C162-$L$7)*COS(RADIANS($O$7))-('Hull Plan'!F162-$K$7)*SIN(RADIANS($O$7))+$N$7 -> 213.5643079 | D33: 2 | E33: 72.96056333 | F33: 0 | K33: 0 | L33: 0 | M33: 0 | N33: 0
A34: 1 | B34: =IF(C33*C35<0,(B35-B33)/(C35-C33)*(0-C33)+B33,B33) -> 72.96056333 | C34: =IF(AND(C33*C35<0,B35<>B33),(C35-C33)/(B35-B33)*(B34-B33)+C33,C33) -> 213.5643079 | D34: 2 | E34: 72.96056333 | F34: 0 | K34: 0 | L34: 0 | M34: 0 | N34: 0
A35: 1 | B35: =('Hull Long'!C111-$L$7)*SIN(RADIANS($O$7))+('Hull Plan'!F111-$K$7)*COS(RADIANS($O$7))+$M$7 -> 72.96056333 | C35: =('Hull Long'!C111-$L$7)*COS(RADIANS($O$7))-('Hull Plan'!F111-$K$7)*SIN(RADIANS($O$7))+$N$7 -> 213.5643079 | D35: 2 | E35: 72.96056333 | F35: 0 | K35: 0 | L35: 0 | M35: 0 | N35: 0
A36: 1 | B36: =IF(C35*C37<0,(B37-B35)/(C37-C35)*(0-C35)+B35,B35) -> 72.96056333 | C36: =IF(AND(C35*C37<0,B37<>B35),(C37-C35)/(B37-B35)*(B36-B35)+C35,C35) -> 213.5643079 | D36: 2 | E36: 72.96056333 | F36: 0 | K36: 0 | L36: 0 | M36: 0 | N36: 0
A37: 1 | B37: =('Hull Long'!C60-$L$7)*SIN(RADIANS($O$7))+('Hull Plan'!F60-$K$7)*COS(RADIANS($O$7))+$M$7 -> 72.96056333 | C37: =('Hull Long'!C60-$L$7)*COS(RADIANS($O$7))-('Hull Plan'!F60-$K$7)*SIN(RADIANS($O$7))+$N$7 -> 213.5643079 | D37: 2 | E37: 72.96056333 | F37: 0 | K37: 0 | L37: 0 | M37: 0 | N37: 0
A38: 1 | B38: =IF(C37*C39<0,(B39-B37)/(C39-C37)*(0-C37)+B37,B37) -> 72.96056333 | C38: =IF(AND(C37*C39<0,B39<>B37),(C39-C37)/(B39-B37)*(B38-B37)+C37,C37) -> 213.5643079 | D38: 2 | E38: 72.96056333 | F38: 0 | K38: 0 | L38: 0 | M38: 0 | N38: 0
A39: 1 | B39: =('Hull Long'!C9-$L$7)*SIN(RADIANS($O$7))+('Hull Plan'!F9-$K$7)*COS(RADIANS($O$7))+$M$7 -> 72.96056333 | C39: =('Hull Long'!C9-$L$7)*COS(RADIANS($O$7))-('Hull Plan'!F9-$K$7)*SIN(RADIANS($O$7))+$N$7 -> 213.5643079 | D39: 2 | E39: 72.96056333 | F39: 0 | K39: =SUM(K25:K38) -> 0 | L39: =SUM(L25:L38) -> 0 | M39: =SUM(M25:M38) -> 0 | N39: =SUM(N25:N38) -> 0
A40: 0 | B40: 0 | C40: 0 | D40: 0 | E40: 0 | F40: 0 | G40: ='Hull Long'!B61 -> 66.93548387 | H40: vol | I40: cx | J40: cy | K40: A | L40: Acy | M40: A | N40: Acx
A41: 1 | B41: =('Hull Long'!C10-$L$7)*SIN(RADIANS($O$7))+('Hull Plan'!C10-$K$7)*COS(RADIANS($O$7))+$M$7 -> 30.53415646 | C41: =('Hull Long'!C10-$L$7)*COS(RADIANS($O$7))-('Hull Plan'!C10-$K$7)*SIN(RADIANS($O$7))+$N$7 -> 171.137901 | D41: 2 | E41: =B41 -> 30.53415646 | F41: =IF(C41<0,C41,0) -> 0 | G41: =ABS(K55)/1000000 -> 0 | H41: =(G40-G24)*(G41+G25)/2000 -> 0 | I41: =IF(M55+M39<>0,(N55+N39)/(M55+M39),0) -> 0 | J41: =IF(K55+K39<>0,(L55+L39)/(K55+K39),0) -> 0 | K41: =(F42+F41)/2*(E42-E41) -> 0 | L41: =(E42-E41)*(F41^2+F41*F42+F42^2)/6 -> 0 | M41: =(E42+E41)/2*(F42-F41) -> 0 | N41: =(F42-F41)*(E41^2+E41*E42+E42^2)/6 -> 0
A42: 1 | B42: =IF(C41*C43<0,(B43-B41)/(C43-C41)*(0-C41)+B41,B41) -> 30.53415646 | C42: =IF(AND(C41*C43<0,B43<>B41),(C43-C41)/(B43-B41)*(B42-B41)+C41,C41) -> 171.137901 | D42: 2 | E42: 30.53415646 | F42: 0 | K42: 0 | L42: 0 | M42: 0 | N42: 0
A43: 1 | B43: =('Hull Long'!C61-$L$7)*SIN(RADIANS($O$7))+('Hull Plan'!C61-$K$7)*COS(RADIANS($O$7))+$M$7 -> 30.53415646 | C43: =('Hull Long'!C61-$L$7)*COS(RADIANS($O$7))-('Hull Plan'!C61-$K$7)*SIN(RADIANS($O$7))+$N$7 -> 171.137901 | D43: 2 | E43: 30.53415646 | F43: 0 | K43: 0 | L43: 0 | M43: 0 | N43: 0
A44: 1 | B44: =IF(C43*C45<0,(B45-B43)/(C45-C43)*(0-C43)+B43,B43) -> 30.53415646 | C44: =IF(AND(C43*C45<0,B45<>B43),(C45-C43)/(B45-B43)*(B44-B43)+C43,C43) -> 171.137901 | D44: 2 | E44: 30.53415646 | F44: 0 | K44: 0 | L44: 0 | M44: 0 | N44: 0
A45: 1 | B45: =('Hull Long'!C112-$L$7)*SIN(RADIANS($O$7))+('Hull Plan'!C112-$K$7)*COS(RADIANS($O$7))+$M$7 -> 30.53415646 | C45: =('Hull Long'!C112-$L$7)*COS(RADIANS($O$7))-('Hull Plan'!C112-$K$7)*SIN(RADIANS($O$7))+$N$7 -> 171.137901 | D45: 2 | E45: 30.53415646 | F45: 0 | K45: 0 | L45: 0 | M45: 0 | N45: 0
A46: 1 | B46: =IF(C45*C47<0,(B47-B45)/(C47-C45)*(0-C45)+B45,B45) -> 30.53415646 | C46: =IF(AND(C45*C47<0,B47<>B45),(C47-C45)/(B47-B45)*(B46-B45)+C45,C45) -> 171.137901 | D46: 2 | E46: 30.53415646 | F46: 0 | K46: 0 | L46: 0 | M46: 0 | N46: 0
A47: 1 | B47: =('Hull Long'!C163-$L$7)*SIN(RADIANS($O$7))+('Hull Plan'!C163-$K$7)*COS(RADIANS($O$7))+$M$7 -> 78.96538914 | C47: =('Hull Long'!C163-$L$7)*COS(RADIANS($O$7))-('Hull Plan'!C163-$K$7)*SIN(RADIANS($O$7))+$N$7 -> 204.8238124 | D47: 2 | E47: 78.96538914 | F47: 0 | K47: 0 | L47: 0 | M47: 0 | N47: 0
A48: 1 | B48: =IF(C47*C49<0,(B49-B47)/(C49-C47)*(0-C47)+B47,B47) -> 78.96538914 | C48: =IF(AND(C47*C49<0,B49<>B47),(C49-C47)/(B49-B47)*(B48-B47)+C47,C47) -> 204.8238124 | D48: 2 | E48: 78.96538914 | F48: 0 | K48: 0 | L48: 0 | M48: 0 | N48: 0
A49: 1 | B49: =('Hull Long'!C163-$L$7)*SIN(RADIANS($O$7))+('Hull Plan'!F163-$K$7)*COS(RADIANS($O$7))+$M$7 -> 64.22006781 | C49: =('Hull Long'!C163-$L$7)*COS(RADIANS($O$7))-('Hull Plan'!F163-$K$7)*SIN(RADIANS($O$7))+$N$7 -> 219.5691337 | D49: 2 | E49: 64.22006781 | F49: 0 | K49: 0 | L49: 0 | M49: 0 | N49: 0
A50: 1 | B50: =IF(C49*C51<0,(B51-B49)/(C51-C49)*(0-C49)+B49,B49) -> 64.22006781 | C50: =IF(AND(C49*C51<0,B51<>B49),(C51-C49)/(B51-B49)*(B50-B49)+C49,C49) -> 219.5691337 | D50: 2 | E50: 64.22006781 | F50: 0 | K50: 0 | L50: 0 | M50: 0 | N50: 0
A51: 1 | B51: =('Hull Long'!C112-$L$7)*SIN(RADIANS($O$7))+('Hull Plan'!F112-$K$7)*COS(RADIANS($O$7))+$M$7 -> 30.53415646 | C51: =('Hull Long'!C112-$L$7)*COS(RADIANS($O$7))-('Hull Plan'!F112-$K$7)*SIN(RADIANS($O$7))+$N$7 -> 171.137901 | D51: 2 | E51: 30.53415646 | F51: 0 | K51: 0 | L51: 0 | M51: 0 | N51: 0
A52: 1 | B52: =IF(C51*C53<0,(B53-B51)/(C53-C51)*(0-C51)+B51,B51) -> 30.53415646 | C52: =IF(AND(C51*C53<0,B53<>B51),(C53-C51)/(B53-B51)*(B52-B51)+C51,C51) -> 171.137901 | D52: 2 | E52: 30.53415646 | F52: 0 | K52: 0 | L52: 0 | M52: 0 | N52: 0
A53: 1 | B53: =('Hull Long'!C61-$L$7)*SIN(RADIANS($O$7))+('Hull Plan'!F61-$K$7)*COS(RADIANS($O$7))+$M$7 -> 30.53415646 | C53: =('Hull Long'!C61-$L$7)*COS(RADIANS($O$7))-('Hull Plan'!F61-$K$7)*SIN(RADIANS($O$7))+$N$7 -> 171.137901 | D53: 2 | E53: 30.53415646 | F53: 0 | K53: 0 | L53: 0 | M53: 0 | N53: 0
A54: 1 | B54: =IF(C53*C55<0,(B55-B53)/(C55-C53)*(0-C53)+B53,B53) -> 30.53415646 | C54: =IF(AND(C53*C55<0,B55<>B53),(C55-C53)/(B55-B53)*(B54-B53)+C53,C53) -> 171.137901 | D54: 2 | E54: 30.53415646 | F54: 0 | K54: 0 | L54: 0 | M54: 0 | N54: 0
A55: 1 | B55: =('Hull Long'!C10-$L$7)*SIN(RADIANS($O$7))+('Hull Plan'!F10-$K$7)*COS(RADIANS($O$7))+$M$7 -> 30.53415646 | C55: =('Hull Long'!C10-$L$7)*COS(RADIANS($O$7))-('Hull Plan'!F10-$K$7)*SIN(RADIANS($O$7))+$N$7 -> 171.137901 | D55: 2 | E55: 30.53415646 | F55: 0 | K55: =SUM(K41:K54) -> 0 | L55: =SUM(L41:L54) -> 0 | M55: =SUM(M41:M54) -> 0 | N55: =SUM(N41:N54) -> 0
A56: 0 | B56: 0 | C56: 0 | D56: 0 | E56: 0 | F56: 0 | G56: ='Hull Long'!B62 -> 199.8935484 | H56: vol | I56: cx | J56: cy | K56: A | L56: Acy | M56: A | N56: Acx
A57: 1 | B57: =('Hull Long'!C11-$L$7)*SIN(RADIANS($O$7))+('Hull Plan'!C11-$K$7)*COS(RADIANS($O$7))+$M$7 -> -146.1011175 | C57: =('Hull Long'!C11-$L$7)*COS(RADIANS($O$7))-('Hull Plan'!C11-$K$7)*SIN(RADIANS($O$7))+$N$7 -> -5.497372941 | D57: 2 | E57: =B57 -> -146.1011175 | F57: =IF(C57<0,C57,0) -> -5.497372941 | G57: =ABS(K71)/1000000 -> 1.079912571e-05 | H57: =(G56-G40)*(G57+G41)/2000 -> 7.179154261e-07 | I57: =IF(M71+M55<>0,(N71+N55)/(M71+M55),0) -> -142.2092434 | J57: =IF(K71+K55<>0,(L71+L55)/(K71+K55),0) -> -1.832457647 | K57: =(F58+F57)/2*(E58-E57) -> 0 | L57: =(E58-E57)*(F57^2+F57*F58+F58^2)/6 -> 0 | M57: =(E58+E57)/2*(F58-F57) -> 0 | N57: =(F58-F57)*(E57^2+E57*E58+E58^2)/6 -> 0
A58: 1 | B58: =IF(C57*C59<0,(B59-B57)/(C59-C57)*(0-C57)+B57,B57) -> -146.1011175 | C58: =IF(AND(C57*C59<0,B59<>B57),(C59-C57)/(B59-B57)*(B58-B57)+C57,C57) -> -5.497372941 | D58: 2 | E58: -146.1011175 | F58: -5.497372941 | K58: 0 | L58: 0 | M58: 0 | N58: 0
A59: 1 | B59: =('Hull Long'!C62-$L$7)*SIN(RADIANS($O$7))+('Hull Plan'!C62-$K$7)*COS(RADIANS($O$7))+$M$7 -> -146.1011175 | C59: =('Hull Long'!C62-$L$7)*COS(RADIANS($O$7))-('Hull Plan'!C62-$K$7)*SIN(RADIANS($O$7))+$N$7 -> -5.497372941 | D59: 2 | E59: -146.1011175 | F59: -5.497372941 | K59: 0 | L59: 0 | M59: 0 | N59: 0
A60: 1 | B60: =IF(C59*C61<0,(B61-B59)/(C61-C59)*(0-C59)+B59,B59) -> -146.1011175 | C60: =IF(AND(C59*C61<0,B61<>B59),(C61-C59)/(B61-B59)*(B60-B59)+C59,C59) -> -5.497372941 | D60: 2 | E60: -146.1011175 | F60: -5.497372941 | K60: 0 | L60: 0 | M60: 0 | N60: 0
A61: 1 | B61: =('Hull Long'!C113-$L$7)*SIN(RADIANS($O$7))+('Hull Plan'!C113-$K$7)*COS(RADIANS($O$7))+$M$7 -> -146.1011175 | C61: =('Hull Long'!C113-$L$7)*COS(RADIANS($O$7))-('Hull Plan'!C113-$K$7)*SIN(RADIANS($O$7))+$N$7 -> -5.497372941 | D61: 2 | E61: -146.1011175 | F61: -5.497372941 | K61: -21.44587521 | L61: 39.29865802 | M61: -781.7264547 | N61: 55594.69633
A62: 1 | B62: =IF(C61*C63<0,(B63-B61)/(C63-C61)*(0-C61)+B61,B61) -> -138.2988907 | C62: =IF(AND(C61*C63<0,B63<>B61),(C63-C61)/(B63-B61)*(B62-B61)+C61,C61) -> -9.769962617e-15 | D62: 2 | E62: -138.2988907 | F62: -9.769962617e-15 | K62: -1.178352665e-12 | L62: 3.837487162e-27 | M62: -1.728223271e-13 | N62: 2.521534167e-11
A63: 1 | B63: =('Hull Long'!C164-$L$7)*SIN(RADIANS($O$7))+('Hull Plan'!C164-$K$7)*COS(RADIANS($O$7))+$M$7 -> 102.9205921 | C63: =('Hull Long'!C164-$L$7)*COS(RADIANS($O$7))-('Hull Plan'!C164-$K$7)*SIN(RADIANS($O$7))+$N$7 -> 169.9608963 | D63: 2 | E63: 102.9205921 | F63: 0 | K63: 0 | L63: 0 | M63: 0 | N63: 0
A64: 1 | B64: =IF(C63*C65<0,(B65-B63)/(C65-C63)*(0-C63)+B63,B63) -> 102.9205921 | C64: =IF(AND(C63*C65<0,B65<>B63),(C65-C63)/(B65-B63)*(B64-B63)+C63,C63) -> 169.9608963 | D64: 2 | E64: 102.9205921 | F64: 0 | K64: 0 | L64: 0 | M64: 0 | N64: 0
A65: 1 | B65: =('Hull Long'!C164-$L$7)*SIN(RADIANS($O$7))+('Hull Plan'!F164-$K$7)*COS(RADIANS($O$7))+$M$7 -> 29.35715179 | C65: =('Hull Long'!C164-$L$7)*COS(RADIANS($O$7))-('Hull Plan'!F164-$K$7)*SIN(RADIANS($O$7))+$N$7 -> 243.5243367 | D65: 2 | E65: 29.35715179 | F65: 0 | K65: 2.438367714e-12 | L65: -2.310085955e-26 | M65: 1.603987276e-12 | N65: -8.012632438e-11
A66: 1 | B66: =IF(C65*C67<0,(B67-B65)/(C67-C65)*(0-C65)+B65,B65) -> -142.2277221 | C66: =IF(AND(C65*C67<0,B67<>B65),(C67-C65)/(B67-B65)*(B66-B65)+C65,C65) -> -2.842170943e-14 | D66: 2 | E66: -142.2277221 | F66: -2.842170943e-14 | K66: 10.6467495 | L66: -19.50971754 | M66: 792.5255804 | N66: -57130.43182
A67: 1 | B67: =('Hull Long'!C113-$L$7)*SIN(RADIANS($O$7))+('Hull Plan'!F113-$K$7)*COS(RADIANS($O$7))+$M$7 -> -146.1011175 | C67: =('Hull Long'!C113-$L$7)*COS(RADIANS($O$7))-('Hull Plan'!F113-$K$7)*SIN(RADIANS($O$7))+$N$7 -> -5.497372941 | D67: 2 | E67: -146.1011175 | F67: -5.497372941 | K67: 0 | L67: 0 | M67: 0 | N67: 0
A68: 1 | B68: =IF(C67*C69<0,(B69-B67)/(C69-C67)*(0-C67)+B67,B67) -> -146.1011175 | C68: =IF(AND(C67*C69<0,B69<>B67),(C69-C67)/(B69-B67)*(B68-B67)+C67,C67) -> -5.497372941 | D68: 2 | E68: -146.1011175 | F68: -5.497372941 | K68: 0 | L68: 0 | M68: 0 | N68: 0
A69: 1 | B69: =('Hull Long'!C62-$L$7)*SIN(RADIANS($O$7))+('Hull Plan'!F62-$K$7)*COS(RADIANS($O$7))+$M$7 -> -146.1011175 | C69: =('Hull Long'!C62-$L$7)*COS(RADIANS($O$7))-('Hull Plan'!F62-$K$7)*SIN(RADIANS($O$7))+$N$7 -> -5.497372941 | D69: 2 | E69: -146.1011175 | F69: -5.497372941 | K69: 0 | L69: 0 | M69: 0 | N69: 0
A70: 1 | B70: =IF(C69*C71<0,(B71-B69)/(C71-C69)*(0-C69)+B69,B69) -> -146.1011175 | C70: =IF(AND(C69*C71<0,B71<>B69),(C71-C69)/(B71-B69)*(B70-B69)+C69,C69) -> -5.497372941 | D70: 2 | E70: -146.1011175 | F70: -5.497372941 | K70: 0 | L70: 0 | M70: 0 | N70: 0
A71: 1 | B71: =('Hull Long'!C11-$L$7)*SIN(RADIANS($O$7))+('Hull Plan'!F11-$K$7)*COS(RADIANS($O$7))+$M$7 -> -146.1011175 | C71: =('Hull Long'!C11-$L$7)*COS(RADIANS($O$7))-('Hull Plan'!F11-$K$7)*SIN(RADIANS($O$7))+$N$7 -> -5.497372941 | D71: 2 | E71: -146.1011175 | F71: -5.497372941 | K71: =SUM(K57:K70) -> -10.79912571 | L71: =SUM(L57:L70) -> 19.78894048 | M71: =SUM(M57:M70) -> 10.79912571 | N71: =SUM(N57:N70) -> -1535.735496
A72: 0 | B72: 0 | C72: 0 | D72: 0 | E72: 0 | F72: 0 | G72: ='Hull Long'!B63 -> 199.9467742 | H72: vol | I72: cx | J72: cy | K72: A | L72: Acy | M72: A | N72: Acx
A73: 1 | B73: =('Hull Long'!C12-$L$7)*SIN(RADIANS($O$7))+('Hull Plan'!C12-$K$7)*COS(RADIANS($O$7))+$M$7 -> -146.1718282 | C73: =('Hull Long'!C12-$L$7)*COS(RADIANS($O$7))-('Hull Plan'!C12-$K$7)*SIN(RADIANS($O$7))+$N$7 -> -5.568083619 | D73: 2 | E73: =B73 -> -146.1718282 | F73: =IF(C73<0,C73,0) -> -5.568083619 | G73: =ABS(K87)/1000000 -> 1.106566775e-05 | H73: =(G72-G56)*(G73+G57)/2000 -> 5.818856324e-10 | I73: =IF(M87+M71<>0,(N87+N71)/(M87+M71),0) -> -142.2192198 | J73: =IF(K87+K71<>0,(L87+L71)/(K87+K71),0) -> -1.843841863 | K73: =(F74+F73)/2*(E74-E73) -> 0 | L73: =(E74-E73)*(F73^2+F73*F74+F74^2)/6 -> 0 | M73: =(E74+E73)/2*(F74-F73) -> 0 | N73: =(F74-F73)*(E73^2+E73*E74+E74^2)/6 -> 0
A74: 1 | B74: =IF(C73*C75<0,(B75-B73)/(C75-C73)*(0-C73)+B73,B73) -> -146.1718282 | C74: =IF(AND(C73*C75<0,B75<>B73),(C75-C73)/(B75-B73)*(B74-B73)+C73,C73) -> -5.568083619 | D74: 2 | E74: -146.1718282 | F74: -5.568083619 | K74: 0 | L74: 0 | M74: 0 | N74: 0
A75: 1 | B75: =('Hull Long'!C63-$L$7)*SIN(RADIANS($O$7))+('Hull Plan'!C63-$K$7)*COS(RADIANS($O$7))+$M$7 -> -146.1718282 | C75: =('Hull Long'!C63-$L$7)*COS(RADIANS($O$7))-('Hull Plan'!C63-$K$7)*SIN(RADIANS($O$7))+$N$7 -> -5.568083619 | D75: 2 | E75: -146.1718282 | F75: -5.568083619 | K75: 0 | L75: 0 | M75: 0 | N75: 0
A76: 1 | B76: =IF(C75*C77<0,(B77-B75)/(C77-C75)*(0-C75)+B75,B75) -> -146.1718282 | C76: =IF(AND(C75*C77<0,B77<>B75),(C77-C75)/(B77-B75)*(B76-B75)+C75,C75) -> -5.568083619 | D76: 2 | E76: -146.1718282 | F76: -5.568083619 | K76: -0.4495238994 | L76: 1.244968938 | M76: -8.498671955 | N76: 620.9607945
A77: 1 | B77: =('Hull Long'!C114-$L$7)*SIN(RADIANS($O$7))+('Hull Plan'!C114-$K$7)*COS(RADIANS($O$7))+$M$7 -> -146.0906721 | C77: =('Hull Long'!C114-$L$7)*COS(RADIANS($O$7))-('Hull Plan'!C114-$K$7)*SIN(RADIANS($O$7))+$N$7 -> -5.50992582 | D77: 2 | E77: -146.0906721 | F77: -5.50992582 | K77: -21.54393598 | L77: 39.56849638 | M77: -783.4048302 | N77: 55706.54322
A78: 1 | B78: =IF(C77*C79<0,(B79-B77)/(C79-C77)*(0-C77)+B77,B77) -> -138.2706263 | C78: =IF(AND(C77*C79<0,B79<>B77),(C79-C77)/(B79-B77)*(B78-B77)+C77,C77) -> -5.329070518e-15 | D78: 2 | E78: -138.2706263 | F78: -5.329070518e-15 | K78: -6.426871587e-13 | L78: 1.14164173e-27 | M78: -9.416675965e-14 | N78: 1.375001883e-11
A79: 1 | B79: =('Hull Long'!C165-$L$7)*SIN(RADIANS($O$7))+('Hull Plan'!C165-$K$7)*COS(RADIANS($O$7))+$M$7 -> 102.9298444 | C79: =('Hull Long'!C165-$L$7)*COS(RADIANS($O$7))-('Hull Plan'!C165-$K$7)*SIN(RADIANS($O$7))+$N$7 -> 169.9474331 | D79: 2 | E79: 102.9298444 | F79: 0 | K79: 0 | L79: 0 | M79: 0 | N79: 0
A80: 1 | B80: =IF(C79*C81<0,(B81-B79)/(C81-C79)*(0-C79)+B79,B79) -> 102.9298444 | C80: =IF(AND(C79*C81<0,B81<>B79),(C81-C79)/(B81-B79)*(B80-B79)+C79,C79) -> 169.9474331 | D80: 2 | E80: 102.9298444 | F80: 0 | K80: 0 | L80: 0 | M80: 0 | N80: 0
A81: 1 | B81: =('Hull Long'!C165-$L$7)*SIN(RADIANS($O$7))+('Hull Plan'!F165-$K$7)*COS(RADIANS($O$7))+$M$7 -> 29.34368858 | C81: =('Hull Long'!C165-$L$7)*COS(RADIANS($O$7))-('Hull Plan'!F165-$K$7)*SIN(RADIANS($O$7))+$N$7 -> 243.5335889 | D81: 2 | E81: 29.34368858 | F81: 0 | K81: 0 | L81: 0 | M81: 0 | N81: 0
A82: 1 | B82: =IF(C81*C83<0,(B83-B81)/(C83-C81)*(0-C81)+B81,B81) -> -142.2476362 | C82: =IF(AND(C81*C83<0,B83<>B81),(C83-C81)/(B83-B81)*(B82-B81)+C81,C81) -> 0 | D82: 2 | E82: -142.2476362 | F82: 0 | K82: 10.60632457 | L82: -19.39871146 | M82: 791.1087975 | N82: -57034.70866
A83: 1 | B83: =('Hull Long'!C114-$L$7)*SIN(RADIANS($O$7))+('Hull Plan'!F114-$K$7)*COS(RADIANS($O$7))+$M$7 -> -146.1136704 | C83: =('Hull Long'!C114-$L$7)*COS(RADIANS($O$7))-('Hull Plan'!F114-$K$7)*SIN(RADIANS($O$7))+$N$7 -> -5.486927541 | D83: 2 | E83: -146.1136704 | F83: -5.486927541 | K83: 0 | L83: 0 | M83: 0 | N83: 0
A84: 1 | B84: =IF(C83*C85<0,(B85-B83)/(C85-C83)*(0-C83)+B83,B83) -> -146.1136704 | C84: =IF(AND(C83*C85<0,B85<>B83),(C85-C83)/(B85-B83)*(B84-B83)+C83,C83) -> -5.486927541 | D84: 2 | E84: -146.1136704 | F84: -5.486927541 | K84: 0.3214675617 | L84: -0.8884728307 | M84: 11.86037237 | N84: -866.6537239
A85: 1 | B85: =('Hull Long'!C63-$L$7)*SIN(RADIANS($O$7))+('Hull Plan'!F63-$K$7)*COS(RADIANS($O$7))+$M$7 -> -146.1718282 | C85: =('Hull Long'!C63-$L$7)*COS(RADIANS($O$7))-('Hull Plan'!F63-$K$7)*SIN(RADIANS($O$7))+$N$7 -> -5.568083619 | D85: 2 | E85: -146.1718282 | F85: -5.568083619 | K85: 0 | L85: 0 | M85: 0 | N85: 0
A86: 1 | B86: =IF(C85*C87<0,(B87-B85)/(C87-C85)*(0-C85)+B85,B85) -> -146.1718282 | C86: =IF(AND(C85*C87<0,B87<>B85),(C87-C85)/(B87-B85)*(B86-B85)+C85,C85) -> -5.568083619 | D86: 2 | E86: -146.1718282 | F86: -5.568083619 | K86: 0 | L86: 0 | M86: 0 | N86: 0
A87: 1 | B87: =('Hull Long'!C12-$L$7)*SIN(RADIANS($O$7))+('Hull Plan'!F12-$K$7)*COS(RADIANS($O$7))+$M$7 -> -146.1718282 | C87: =('Hull Long'!C12-$L$7)*COS(RADIANS($O$7))-('Hull Plan'!F12-$K$7)*SIN(RADIANS($O$7))+$N$7 -> -5.568083619 | D87: 2 | E87: -146.1718282 | F87: -5.568083619 | K87: =SUM(K73:K86) -> -11.06566775 | L87: =SUM(L73:L86) -> 20.52628103 | M87: =SUM(M73:M86) -> 11.06566775 | N87: =SUM(N73:N86) -> -1573.85837
A88: 0 | B88: 0 | C88: 0 | D88: 0 | E88: 0 | F88: 0 | G88: ='Hull Long'!B64 -> 200 | H88: vol | I88: cx | J88: cy | K88: A | L88: Acy | M88: A | N88: Acx
A89: 1 | B89: =('Hull Long'!C13-$L$7)*SIN(RADIANS($O$7))+('Hull Plan'!C13-$K$7)*COS(RADIANS($O$7))+$M$7 -> -146.2425388 | C89: =('Hull Long'!C13-$L$7)*COS(RADIANS($O$7))-('Hull Plan'!C13-$K$7)*SIN(RADIANS($O$7))+$N$7 -> -5.638794298 | D89: 2 | E89: =B89 -> -146.2425388 | F89: =IF(C89<0,C89,0) -> -5.638794298 | G89: =ABS(K103)/1000000 -> 1.1332397e-05 | H89: =(G88-G72)*(G89+G73)/2000 -> 5.960775299e-10 | I89: =IF(M103+M87<>0,(N103+N87)/(M103+M87),0) -> -142.238394 | J89: =IF(K103+K87<>0,(L103+L87)/(K103+K87),0) -> -1.865829198 | K89: =(F90+F89)/2*(E90-E89) -> 0 | L89: =(E90-E89)*(F89^2+F89*F90+F90^2)/6 -> 0 | M89: =(E90+E89)/2*(F90-F89) -> 0 | N89: =(F90-F89)*(E89^2+E89*E90+E90^2)/6 -> 0
A90: 1 | B90: =IF(C89*C91<0,(B91-B89)/(C91-C89)*(0-C89)+B89,B89) -> -146.2425388 | C90: =IF(AND(C89*C91<0,B91<>B89),(C91-C89)/(B91-B89)*(B90-B89)+C89,C89) -> -5.638794298 | D90: 2 | E90: -146.2425388 | F90: -5.638794298 | K90: -0.3903782193 | L90: 1.093846781 | M90: -10.18498822 | N90: 744.5619075
A91: 1 | B91: =('Hull Long'!C64-$L$7)*SIN(RADIANS($O$7))+('Hull Plan'!C64-$K$7)*COS(RADIANS($O$7))+$M$7 -> -146.1728777 | C91: =('Hull Long'!C64-$L$7)*COS(RADIANS($O$7))-('Hull Plan'!C64-$K$7)*SIN(RADIANS($O$7))+$N$7 -> -5.569133208 | D91: 2 | E91: -146.1728777 | F91: -5.569133208 | K91: 0 | L91: 0 | M91: 0 | N91: 0
A92: 1 | B92: =IF(C91*C93<0,(B93-B91)/(C93-C91)*(0-C91)+B91,B91) -> -146.1728777 | C92: =IF(AND(C91*C93<0,B93<>B91),(C93-C91)/(B93-B91)*(B92-B91)+C91,C91) -> -5.569133208 | D92: 2 | E92: -146.1728777 | F92: -5.569133208 | K92: -0.513823108 | L92: 1.424789981 | M92: -6.817516915 | N92: 498.110138
A93: 1 | B93: =('Hull Long'!C115-$L$7)*SIN(RADIANS($O$7))+('Hull Plan'!C115-$K$7)*COS(RADIANS($O$7))+$M$7 -> -146.080227 | C93: =('Hull Long'!C115-$L$7)*COS(RADIANS($O$7))-('Hull Plan'!C115-$K$7)*SIN(RADIANS($O$7))+$N$7 -> -5.522478327 | D93: 2 | E93: -146.080227 | F93: -5.522478327 | K93: -21.64221757 | L93: 39.83955916 | M93: -785.08267 | N93: 55818.32021
A94: 1 | B94: =IF(C93*C95<0,(B95-B93)/(C95-C93)*(0-C93)+B93,B93) -> -138.2423628 | C94: =IF(AND(C93*C95<0,B95<>B93),(C95-C93)/(B95-B93)*(B94-B93)+C93,C93) -> -7.105427358e-15 | D94: 2 | E94: -138.2423628 | F94: -7.105427358e-15 | K94: -8.568486688e-13 | L94: 2.029425324e-27 | M94: -1.254223978e-13 | N94: 1.832828943e-11
A95: 1 | B95: =('Hull Long'!C166-$L$7)*SIN(RADIANS($O$7))+('Hull Plan'!C166-$K$7)*COS(RADIANS($O$7))+$M$7 -> 102.9390963 | C95: =('Hull Long'!C166-$L$7)*COS(RADIANS($O$7))-('Hull Plan'!C166-$K$7)*SIN(RADIANS($O$7))+$N$7 -> 169.9339703 | D95: 2 | E95: 102.9390963 | F95: 0 | K95: 0 | L95: 0 | M95: 0 | N95: 0
A96: 1 | B96: =IF(C95*C97<0,(B97-B95)/(C97-C95)*(0-C95)+B95,B95) -> 102.9390963 | C96: =IF(AND(C95*C97<0,B97<>B95),(C97-C95)/(B97-B95)*(B96-B95)+C95,C95) -> 169.9339703 | D96: 2 | E96: 102.9390963 | F96: 0 | K96: 0 | L96: 0 | M96: 0 | N96: 0
A97: 1 | B97: =('Hull Long'!C166-$L$7)*SIN(RADIANS($O$7))+('Hull Plan'!F166-$K$7)*COS(RADIANS($O$7))+$M$7 -> 29.33022575 | C97: =('Hull Long'!C166-$L$7)*COS(RADIANS($O$7))-('Hull Plan'!F166-$K$7)*SIN(RADIANS($O$7))+$N$7 -> 243.5428408 | D97: 2 | E97: 29.33022575 | F97: 0 | K97: 2.438551057e-12 | L97: -2.310259653e-26 | M97: 1.604935904e-12 | N97: -8.018511963e-11
A98: 1 | B98: =IF(C97*C99<0,(B99-B97)/(C99-C97)*(0-C97)+B97,B97) -> -142.2675498 | C98: =IF(AND(C97*C99<0,B99<>B97),(C99-C97)/(B99-B97)*(B98-B97)+C97,C97) -> -2.842170943e-14 | D98: 2 | E98: -142.2675498 | F98: -2.842170943e-14 | K98: 10.56597773 | L98: -19.28813053 | M98: 789.6917173 | N98: -56938.94095
A99: 1 | B99: =('Hull Long'!C115-$L$7)*SIN(RADIANS($O$7))+('Hull Plan'!F115-$K$7)*COS(RADIANS($O$7))+$M$7 -> -146.1262229 | C99: =('Hull Long'!C115-$L$7)*COS(RADIANS($O$7))-('Hull Plan'!F115-$K$7)*SIN(RADIANS($O$7))+$N$7 -> -5.47648245 | D99: 2 | E99: -146.1262229 | F99: -5.47648245 | K99: 0 | L99: 0 | M99: 0 | N99: 0
A100: 1 | B100: =IF(C99*C101<0,(B101-B99)/(C101-C99)*(0-C99)+B99,B99) -> -146.1262229 | C100: =IF(AND(C99*C101<0,B101<>B99),(C101-C99)/(B101-B99)*(B100-B99)+C99,C99) -> -5.47648245 | D100: 2 | E100: -146.1262229 | F100: -5.47648245 | K100: 0.2576659422 | L100: -0.7115364287 | M100: 13.54086661 | N100: -989.4957916
A101: 1 | B101: =('Hull Long'!C64-$L$7)*SIN(RADIANS($O$7))+('Hull Plan'!F64-$K$7)*COS(RADIANS($O$7))+$M$7 -> -146.1728777 | C101: =('Hull Long'!C64-$L$7)*COS(RADIANS($O$7))-('Hull Plan'!F64-$K$7)*SIN(RADIANS($O$7))+$N$7 -> -5.569133208 | D101: 2 | E101: -146.1728777 | F101: -5.569133208 | K101: 0 | L101: 0 | M101: 0 | N101: 0
A102: 1 | B102: =IF(C101*C103<0,(B103-B101)/(C103-C101)*(0-C101)+B101,B101) -> -146.1728777 | C102: =IF(AND(C101*C103<0,B103<>B101),(C103-C101)/(B103-B101)*(B102-B101)+C101,C101) -> -5.569133208 | D102: 2 | E102: -146.1728777 | F102: -5.569133208 | K102: 0.3903782193 | L102: -1.093846781 | M102: 10.18498822 | N102: -744.5619075
A103: 1 | B103: =('Hull Long'!C13-$L$7)*SIN(RADIANS($O$7))+('Hull Plan'!F13-$K$7)*COS(RADIANS($O$7))+$M$7 -> -146.2425388 | C103: =('Hull Long'!C13-$L$7)*COS(RADIANS($O$7))-('Hull Plan'!F13-$K$7)*SIN(RADIANS($O$7))+$N$7 -> -5.638794298 | D103: 2 | E103: -146.2425388 | F103: -5.638794298 | K103: =SUM(K89:K102) -> -11.332397 | L103: =SUM(L89:L102) -> 21.26468217 | M103: =SUM(M89:M102) -> 11.332397 | N103: =SUM(N89:N102) -> -1612.00639
A104: 0 | B104: 0 | C104: 0 | D104: 0 | E104: 0 | F104: 0 | G104: ='Hull Long'!B65 -> 250 | H104: vol | I104: cx | J104: cy | K104: A | L104: Acy | M104: A | N104: Acx
A105: 1 | B105: =('Hull Long'!C14-$L$7)*SIN(RADIANS($O$7))+('Hull Plan'!C14-$K$7)*COS(RADIANS($O$7))+$M$7 -> -147.2109914 | C105: =('Hull Long'!C14-$L$7)*COS(RADIANS($O$7))-('Hull Plan'!C14-$K$7)*SIN(RADIANS($O$7))+$N$7 -> -6.607246872 | D105: 2 | E105: =B105 -> -147.2109914 | F105: =IF(C105<0,C105,0) -> -6.607246872 | G105: =ABS(K119)/1000000 -> 0.000357169522 | H105: =(G104-G88)*(G105+G89)/2000 -> 9.212547976e-06 | I105: =IF(M119+M103<>0,(N119+N103)/(M119+M103),0) -> -134.3019354 | J105: =IF(K119+K103<>0,(L119+L103)/(K119+K103),0) -> -5.603726281 | K105: =(F106+F105)/2*(E106-E105) -> 0 | L105: =(E106-E105)*(F105^2+F105*F106+F106^2)/6 -> 0 | M105: =(E106+E105)/2*(F106-F105) -> 0 | N105: =(F106-F105)*(E105^2+E105*E106+E106^2)/6 -> 0
A106: 1 | B106: =IF(C105*C107<0,(B107-B105)/(C107-C105)*(0-C105)+B105,B105) -> -147.2109914 | C106: =IF(AND(C105*C107<0,B107<>B105),(C107-C105)/(B107-B105)*(B106-B105)+C105,C105) -> -6.607246872 | D106: 2 | E106: -147.2109914 | F106: -6.607246872 | K106: -0.4328849466 | L106: 1.422974946 | M106: -9.690907518 | N106: 713.1445397
A107: 1 | B107: =('Hull Long'!C65-$L$7)*SIN(RADIANS($O$7))+('Hull Plan'!C65-$K$7)*COS(RADIANS($O$7))+$M$7 -> -147.1451466 | C107: =('Hull Long'!C65-$L$7)*COS(RADIANS($O$7))-('Hull Plan'!C65-$K$7)*SIN(RADIANS($O$7))+$N$7 -> -6.541402092 | D107: 2 | E107: -147.1451466 | F107: -6.541402092 | K107: 0 | L107: 0 | M107: 0 | N107: 0
A108: 1 | B108: =IF(C107*C109<0,(B109-B107)/(C109-C107)*(0-C107)+B107,B107) -> -147.1451466 | C108: =IF(AND(C107*C109<0,B109<>B107),(C109-C107)/(B109-B107)*(B108-B107)+C107,C107) -> -6.541402092 | D108: 2 | E108: -147.1451466 | F108: -6.541402092 | K108: -127.2308951 | L108: 803.946495 | M108: 1504.072494 | N108: -106670.8343
A109: 1 | B109: =('Hull Long'!C116-$L$7)*SIN(RADIANS($O$7))+('Hull Plan'!C116-$K$7)*COS(RADIANS($O$7))+$M$7 -> -136.4045933 | C109: =('Hull Long'!C116-$L$7)*COS(RADIANS($O$7))-('Hull Plan'!C116-$K$7)*SIN(RADIANS($O$7))+$N$7 -> -17.15028147 | D109: 2 | E109: -136.4045933 | F109: -17.15028147 | K109: -208.8059482 | L109: 1193.693595 | M109: -2130.571221 | N109: 132763.6239
A110: 1 | B110: =IF(C109*C111<0,(B111-B109)/(C111-C109)*(0-C109)+B109,B109) -> -112.0544451 | C110: =IF(AND(C109*C111<0,B111<>B109),(C111-C109)/(B111-B109)*(B110-B109)+C109,C109) -> -3.552713679e-15 | D110: 2 | E110: -112.0544451 | F110: -3.552713679e-15 | K110: -3.971319209e-13 | L110: 4.702986692e-28 | M110: -9.654389121e-16 | N110: 7.398877453e-12
A111: 1 | B111: =('Hull Long'!C167-$L$7)*SIN(RADIANS($O$7))+('Hull Plan'!C167-$K$7)*COS(RADIANS($O$7))+$M$7 -> 111.5109513 | C111: =('Hull Long'!C167-$L$7)*COS(RADIANS($O$7))-('Hull Plan'!C167-$K$7)*SIN(RADIANS($O$7))+$N$7 -> 157.4614427 | D111: 2 | E111: 111.5109513 | F111: 0 | K111: 0 | L111: 0 | M111: 0 | N111: 0
A112: 1 | B112: =IF(C111*C113<0,(B113-B111)/(C113-C111)*(0-C111)+B111,B111) -> 111.5109513 | C112: =IF(AND(C111*C113<0,B113<>B111),(C113-C111)/(B113-B111)*(B112-B111)+C111,C111) -> 157.4614427 | D112: 2 | E112: 111.5109513 | F112: 0 | K112: 0 | L112: 0 | M112: 0 | N112: 0
A113: 1 | B113: =('Hull Long'!C167-$L$7)*SIN(RADIANS($O$7))+('Hull Plan'!F167-$K$7)*COS(RADIANS($O$7))+$M$7 -> 16.85769821 | C113: =('Hull Long'!C167-$L$7)*COS(RADIANS($O$7))-('Hull Plan'!F167-$K$7)*SIN(RADIANS($O$7))+$N$7 -> 252.1146958 | D113: 2 | E113: 16.85769821 | F113: 0 | K113: 0 | L113: 0 | M113: 0 | N113: 0
A114: 1 | B114: =IF(C113*C115<0,(B115-B113)/(C115-C113)*(0-C113)+B113,B113) -> 16.85769821 | C114: =IF(AND(C113*C115<0,B115<>B113),(C115-C113)/(B115-B113)*(B114-B113)+C113,C113) -> 252.1146958 | D114: 2 | E114: 16.85769821 | F114: 0 | K114: 0 | L114: 0 | M114: 0 | N114: 0
A115: 1 | B115: =('Hull Long'!C116-$L$7)*SIN(RADIANS($O$7))+('Hull Plan'!F116-$K$7)*COS(RADIANS($O$7))+$M$7 -> -157.754026 | C115: =('Hull Long'!C116-$L$7)*COS(RADIANS($O$7))-('Hull Plan'!F116-$K$7)*SIN(RADIANS($O$7))+$N$7 -> 4.199151211 | D115: 2 | E115: -157.754026 | F115: 0 | K115: -1.105161741e-14 | L115: 1.963161618e-29 | M115: 8.296307117e-13 | N115: -6.458235336e-11
A116: 1 | B116: =IF(C115*C117<0,(B117-B115)/(C117-C115)*(0-C115)+B115,B115) -> -153.6063543 | C116: =IF(AND(C115*C117<0,B117<>B115),(C117-C115)/(B117-B115)*(B116-B115)+C115,C115) -> -5.329070518e-15 | D116: 2 | E116: -153.6063543 | F116: -5.329070518e-15 | K116: -21.1326788 | L116: 46.07911644 | M116: 983.6682489 | N116: -73971.30413
A117: 1 | B117: =('Hull Long'!C65-$L$7)*SIN(RADIANS($O$7))+('Hull Plan'!F65-$K$7)*COS(RADIANS($O$7))+$M$7 -> -147.1451466 | C117: =('Hull Long'!C65-$L$7)*COS(RADIANS($O$7))-('Hull Plan'!F65-$K$7)*SIN(RADIANS($O$7))+$N$7 -> -6.541402092 | D117: 2 | E117: -147.1451466 | F117: -6.541402092 | K117: 0 | L117: 0 | M117: 0 | N117: 0
A118: 1 | B118: =IF(C117*C119<0,(B119-B117)/(C119-C117)*(0-C117)+B117,B117) -> -147.1451466 | C118: =IF(AND(C117*C119<0,B119<>B117),(C119-C117)/(B119-B117)*(B118-B117)+C117,C117) -> -6.541402092 | D118: 2 | E118: -147.1451466 | F118: -6.541402092 | K118: 0.4328849466 | L118: -1.422974946 | M118: 9.690907518 | N118: -713.1445397
A119: 1 | B119: =('Hull Long'!C14-$L$7)*SIN(RADIANS($O$7))+('Hull Plan'!F14-$K$7)*COS(RADIANS($O$7))+$M$7 -> -147.2109914 | C119: =('Hull Long'!C14-$L$7)*COS(RADIANS($O$7))-('Hull Plan'!F14-$K$7)*SIN(RADIANS($O$7))+$N$7 -> -6.607246872 | D119: 2 | E119: -147.2109914 | F119: -6.607246872 | K119: =SUM(K105:K118) -> -357.169522 | L119: =SUM(L105:L118) -> 2043.719206 | M119: =SUM(M105:M118) -> 357.169522 | N119: =SUM(N105:N118) -> -47878.51454
A120: 0 | B120: 0 | C120: 0 | D120: 0 | E120: 0 | F120: 0 | G120: ='Hull Long'!B66 -> 300 | H120: vol | I120: cx | J120: cy | K120: A | L120: Acy | M120: A | N120: Acx
A121: 1 | B121: =('Hull Long'!C15-$L$7)*SIN(RADIANS($O$7))+('Hull Plan'!C15-$K$7)*COS(RADIANS($O$7))+$M$7 -> -148.1521636 | C121: =('Hull Long'!C15-$L$7)*COS(RADIANS($O$7))-('Hull Plan'!C15-$K$7)*SIN(RADIANS($O$7))+$N$7 -> -7.548419092 | D121: 2 | E121: =B121 -> -148.1521636 | F121: =IF(C121<0,C121,0) -> -7.548419092 | G121: =ABS(K135)/1000000 -> 0.0009816378875 | H121: =(G120-G104)*(G121+G105)/2000 -> 3.347018524e-05 | I121: =IF(M135+M119<>0,(N135+N119)/(M135+M119),0) -> -125.9925222 | J121: =IF(K135+K119<>0,(L135+L119)/(K135+K119),0) -> -8.481735215 | K121: =(F122+F121)/2*(E122-E121) -> 0 | L121: =(E122-E121)*(F121^2+F121*F122+F122^2)/6 -> 0 | M121: =(E122+E121)/2*(F122-F121) -> 0 | N121: =(F122-F121)*(E121^2+E121*E122+E122^2)/6 -> 0
A122: 1 | B122: =IF(C121*C123<0,(B123-B121)/(C123-C121)*(0-C121)+B121,B121) -> -148.1521636 | C122: =IF(AND(C121*C123<0,B123<>B121),(C123-C121)/(B123-B121)*(B122-B121)+C121,C121) -> -7.548419092 | D122: 2 | E122: -148.1521636 | F122: -7.548419092 | K122: -0.467097915 | L122: 1.75567951 | M122: -9.203648195 | N122: 681.6272373
A123: 1 | B123: =('Hull Long'!C66-$L$7)*SIN(RADIANS($O$7))+('Hull Plan'!C66-$K$7)*COS(RADIANS($O$7))+$M$7 -> -148.0900277 | C123: =('Hull Long'!C66-$L$7)*COS(RADIANS($O$7))-('Hull Plan'!C66-$K$7)*SIN(RADIANS($O$7))+$N$7 -> -7.486283121 | D123: 2 | E123: -148.0900277 | F123: -7.486283121 | K123: 0 | L123: 0 | M123: 0 | N123: 0
A124: 1 | B124: =IF(C123*C125<0,(B125-B123)/(C125-C123)*(0-C123)+B123,B123) -> -148.0900277 | C124: =IF(AND(C123*C125<0,B125<>B123),(C125-C123)/(B125-B123)*(B124-B123)+C123,C123) -> -7.486283121 | D124: 2 | E124: -148.0900277 | F124: -7.486283121 | K124: -378.9271246 | L124: 3790.542865 | M124: 2883.544978 | N124: -198698.1799
A125: 1 | B125: =('Hull Long'!C117-$L$7)*SIN(RADIANS($O$7))+('Hull Plan'!C117-$K$7)*COS(RADIANS($O$7))+$M$7 -> -127.0015127 | C125: =('Hull Long'!C117-$L$7)*COS(RADIANS($O$7))-('Hull Plan'!C117-$K$7)*SIN(RADIANS($O$7))+$N$7 -> -28.45054086 | D125: 2 | E125: -127.0015127 | F125: -28.45054086 | K125: -574.8536572 | L125: 5451.632488 | M125: -3038.40807 | N125: 164180.9885
A126: 1 | B126: =IF(C125*C127<0,(B127-B125)/(C127-C125)*(0-C125)+B125,B125) -> -86.59077607 | C126: =IF(AND(C125*C127<0,B127<>B125),(C127-C125)/(B127-B125)*(B126-B125)+C125,C125) -> 0 | D126: 2 | E126: -86.59077607 | F126: 0 | K126: 0 | L126: 0 | M126: 0 | N126: 0
A127: 1 | B127: =('Hull Long'!C168-$L$7)*SIN(RADIANS($O$7))+('Hull Plan'!C168-$K$7)*COS(RADIANS($O$7))+$M$7 -> 119.8442676 | C127: =('Hull Long'!C168-$L$7)*COS(RADIANS($O$7))-('Hull Plan'!C168-$K$7)*SIN(RADIANS($O$7))+$N$7 -> 145.3373319 | D127: 2 | E127: 119.8442676 | F127: 0 | K127: 0 | L127: 0 | M127: 0 | N127: 0
A128: 1 | B128: =IF(C127*C129<0,(B129-B127)/(C129-C127)*(0-C127)+B127,B127) -> 119.8442676 | C128: =IF(AND(C127*C129<0,B129<>B127),(C129-C127)/(B129-B127)*(B128-B127)+C127,C127) -> 145.3373319 | D128: 2 | E128: 119.8442676 | F128: 0 | K128: 0 | L128: 0 | M128: 0 | N128: 0
A129: 1 | B129: =('Hull Long'!C168-$L$7)*SIN(RADIANS($O$7))+('Hull Plan'!F168-$K$7)*COS(RADIANS($O$7))+$M$7 -> 4.733587392 | C129: =('Hull Long'!C168-$L$7)*COS(RADIANS($O$7))-('Hull Plan'!F168-$K$7)*SIN(RADIANS($O$7))+$N$7 -> 260.4480122 | D129: 2 | E129: 4.733587392 | F129: 0 | K129: 0 | L129: 0 | M129: 0 | N129: 0
A130: 1 | B130: =IF(C129*C131<0,(B131-B129)/(C131-C129)*(0-C129)+B129,B129) -> 4.733587392 | C130: =IF(AND(C129*C131<0,B131<>B129),(C131-C129)/(B131-B129)*(B130-B129)+C129,C129) -> 260.4480122 | D130: 2 | E130: 4.733587392 | F130: 0 | K130: 0 | L130: 0 | M130: 0 | N130: 0
A131: 1 | B131: =('Hull Long'!C117-$L$7)*SIN(RADIANS($O$7))+('Hull Plan'!F117-$K$7)*COS(RADIANS($O$7))+$M$7 -> -169.0542854 | C131: =('Hull Long'!C117-$L$7)*COS(RADIANS($O$7))-('Hull Plan'!F117-$K$7)*SIN(RADIANS($O$7))+$N$7 -> 13.60223181 | D131: 2 | E131: -169.0542854 | F131: 0 | K131: -1.201002418e-14 | L131: 7.111362862e-30 | M131: 2.882907119e-13 | N131: -2.340735064e-11
A132: 1 | B132: =IF(C131*C133<0,(B133-B131)/(C133-C131)*(0-C131)+B131,B131) -> -155.5322003 | C132: =IF(AND(C131*C133<0,B133<>B131),(C133-C131)/(B133-B131)*(B132-B131)+C131,C131) -> -1.776356839e-15 | D132: 2 | E132: -155.5322003 | F132: -1.776356839e-15 | K132: -27.85710571 | L132: 69.51539343 | M132: 1136.50098 | N132: -86284.01637
A133: 1 | B133: =('Hull Long'!C66-$L$7)*SIN(RADIANS($O$7))+('Hull Plan'!F66-$K$7)*COS(RADIANS($O$7))+$M$7 -> -148.0900277 | C133: =('Hull Long'!C66-$L$7)*COS(RADIANS($O$7))-('Hull Plan'!F66-$K$7)*SIN(RADIANS($O$7))+$N$7 -> -7.486283121 | D133: 2 | E133: -148.0900277 | F133: -7.486283121 | K133: 0 | L133: 0 | M133: 0 | N133: 0
A134: 1 | B134: =IF(C133*C135<0,(B135-B133)/(C135-C133)*(0-C133)+B133,B133) -> -148.0900277 | C134: =IF(AND(C133*C135<0,B135<>B133),(C135-C133)/(B135-B133)*(B134-B133)+C133,C133) -> -7.486283121 | D134: 2 | E134: -148.0900277 | F134: -7.486283121 | K134: 0.467097915 | L134: -1.75567951 | M134: 9.203648195 | N134: -681.6272373
A135: 1 | B135: =('Hull Long'!C15-$L$7)*SIN(RADIANS($O$7))+('Hull Plan'!F15-$K$7)*COS(RADIANS($O$7))+$M$7 -> -148.1521636 | C135: =('Hull Long'!C15-$L$7)*COS(RADIANS($O$7))-('Hull Plan'!F15-$K$7)*SIN(RADIANS($O$7))+$N$7 -> -7.548419092 | D135: 2 | E135: -148.1521636 | F135: -7.548419092 | K135: =SUM(K121:K134) -> -981.6378875 | L135: =SUM(L121:L134) -> 9311.690746 | M135: =SUM(M121:M134) -> 981.6378875 | N135: =SUM(N121:N134) -> -120801.2078
A136: 0 | B136: 0 | C136: 0 | D136: 0 | E136: 0 | F136: 0 | G136: ='Hull Long'!B67 -> 400 | H136: vol | I136: cx | J136: cy | K136: A | L136: Acy | M136: A | N136: Acx
A137: 1 | B137: =('Hull Long'!C16-$L$7)*SIN(RADIANS($O$7))+('Hull Plan'!C16-$K$7)*COS(RADIANS($O$7))+$M$7 -> -149.952667 | C137: =('Hull Long'!C16-$L$7)*COS(RADIANS($O$7))-('Hull Plan'!C16-$K$7)*SIN(RADIANS($O$7))+$N$7 -> -9.34892247 | D137: 2 | E137: =B137 -> -149.952667 | F137: =IF(C137<0,C137,0) -> -9.34892247 | G137: =ABS(K151)/1000000 -> 0.003038470644 | H137: =(G136-G120)*(G137+G121)/2000 -> 0.0002010054266 | I137: =IF(M151+M135<>0,(N151+N135)/(M151+M135),0) -> -107.155721 | J137: =IF(K151+K135<>0,(L151+L135)/(K151+K135),0) -> -14.93127322 | K137: =(F138+F137)/2*(E138-E137) -> 0 | L137: =(E138-E137)*(F137^2+F137*F138+F138^2)/6 -> 0 | M137: =(E138+E137)/2*(F138-F137) -> 0 | N137: =(F138-F137)*(E137^2+E137*E138+E138^2)/6 -> 0
A138: 1 | B138: =IF(C137*C139<0,(B139-B137)/(C139-C137)*(0-C137)+B137,B137) -> -149.952667 | C138: =IF(AND(C137*C139<0,B139<>B137),(C139-C137)/(B139-B137)*(B138-B137)+C137,C137) -> -9.34892247 | D138: 2 | E138: -149.952667 | F138: -9.34892247 | K138: -0.5130579909 | L138: 2.391216849 | M138: -8.252009104 | N138: 618.5918442
A139: 1 | B139: =('Hull Long'!C67-$L$7)*SIN(RADIANS($O$7))+('Hull Plan'!C67-$K$7)*COS(RADIANS($O$7))+$M$7 -> -149.8976261 | C139: =('Hull Long'!C67-$L$7)*COS(RADIANS($O$7))-('Hull Plan'!C67-$K$7)*SIN(RADIANS($O$7))+$N$7 -> -9.29388161 | D139: 2 | E139: -149.8976261 | F139: -9.29388161 | K139: 0 | L139: 0 | M139: 0 | N139: 0
A140: 1 | B140: =IF(C139*C141<0,(B141-B139)/(C141-C139)*(0-C139)+B139,B139) -> -149.8976261 | C140: =IF(AND(C139*C141<0,B141<>B139),(C141-C139)/(B141-B139)*(B140-B139)+C139,C139) -> -9.29388161 | D140: 2 | E140: -149.8976261 | F140: -9.29388161 | K140: -1213.502608 | L140: 20841.29934 | M140: 5278.481938 | N140: -344503.6453
A141: 1 | B141: =('Hull Long'!C118-$L$7)*SIN(RADIANS($O$7))+('Hull Plan'!C118-$K$7)*COS(RADIANS($O$7))+$M$7 -> -109.0130107 | C141: =('Hull Long'!C118-$L$7)*COS(RADIANS($O$7))-('Hull Plan'!C118-$K$7)*SIN(RADIANS($O$7))+$N$7 -> -50.0684284 | D141: 2 | E141: -109.0130107 | F141: -50.0684284 | K141: -1781.896188 | L141: 29738.9139 | M141: -3676.213933 | N141: 145530.1676
A142: 1 | B142: =IF(C141*C143<0,(B143-B141)/(C143-C141)*(0-C141)+B141,B141) -> -37.83457572 | C142: =IF(AND(C141*C143<0,B143<>B141),(C143-C141)/(B143-B141)*(B142-B141)+C141,C141) -> 7.105427358e-15 | D142: 2 | E142: -37.83457572 | F142: 0 | K142: 0 | L142: 0 | M142: 0 | N142: 0
A143: 1 | B143: =('Hull Long'!C169-$L$7)*SIN(RADIANS($O$7))+('Hull Plan'!C169-$K$7)*COS(RADIANS($O$7))+$M$7 -> 135.7949415 | C143: =('Hull Long'!C169-$L$7)*COS(RADIANS($O$7))-('Hull Plan'!C169-$K$7)*SIN(RADIANS($O$7))+$N$7 -> 122.1347034 | D143: 2 | E143: 135.7949415 | F143: 0 | K143: 0 | L143: 0 | M143: 0 | N143: 0
A144: 1 | B144: =IF(C143*C145<0,(B145-B143)/(C145-C143)*(0-C143)+B143,B143) -> 135.7949415 | C144: =IF(AND(C143*C145<0,B145<>B143),(C145-C143)/(B145-B143)*(B144-B143)+C143,C143) -> 122.1347034 | D144: 2 | E144: 135.7949415 | F144: 0 | K144: 0 | L144: 0 | M144: 0 | N144: 0
A145: 1 | B145: =('Hull Long'!C169-$L$7)*SIN(RADIANS($O$7))+('Hull Plan'!F169-$K$7)*COS(RADIANS($O$7))+$M$7 -> -18.4690411 | C145: =('Hull Long'!C169-$L$7)*COS(RADIANS($O$7))-('Hull Plan'!F169-$K$7)*SIN(RADIANS($O$7))+$N$7 -> 276.398686 | D145: 2 | E145: -18.4690411 | F145: 0 | K145: 0 | L145: 0 | M145: 0 | N145: 0
A146: 1 | B146: =IF(C145*C147<0,(B147-B145)/(C147-C145)*(0-C145)+B145,B145) -> -18.4690411 | C146: =IF(AND(C145*C147<0,B147<>B145),(C147-C145)/(B147-B145)*(B146-B145)+C145,C145) -> 276.398686 | D146: 2 | E146: -18.4690411 | F146: 0 | K146: 0 | L146: 0 | M146: 0 | N146: 0
A147: 1 | B147: =('Hull Long'!C118-$L$7)*SIN(RADIANS($O$7))+('Hull Plan'!F118-$K$7)*COS(RADIANS($O$7))+$M$7 -> -190.6721729 | C147: =('Hull Long'!C118-$L$7)*COS(RADIANS($O$7))-('Hull Plan'!F118-$K$7)*SIN(RADIANS($O$7))+$N$7 -> 31.59073383 | D147: 2 | E147: -190.6721729 | F147: 0 | K147: 0 | L147: 0 | M147: 0 | N147: 0
A148: 1 | B148: =IF(C147*C149<0,(B149-B147)/(C149-C147)*(0-C147)+B147,B147) -> -159.166487 | C148: =IF(AND(C147*C149<0,B149<>B147),(C149-C147)/(B149-B147)*(B148-B147)+C147,C147) -> 1.421085472e-14 | D148: 2 | E148: -159.166487 | F148: 0 | K148: -43.0718476 | L148: 133.4348841 | M148: 1436.202639 | N148: -111002.9426
A149: 1 | B149: =('Hull Long'!C67-$L$7)*SIN(RADIANS($O$7))+('Hull Plan'!F67-$K$7)*COS(RADIANS($O$7))+$M$7 -> -149.8976261 | C149: =('Hull Long'!C67-$L$7)*COS(RADIANS($O$7))-('Hull Plan'!F67-$K$7)*SIN(RADIANS($O$7))+$N$7 -> -9.29388161 | D149: 2 | E149: -149.8976261 | F149: -9.29388161 | K149: 0 | L149: 0 | M149: 0 | N149: 0
A150: 1 | B150: =IF(C149*C151<0,(B151-B149)/(C151-C149)*(0-C149)+B149,B149) -> -149.8976261 | C150: =IF(AND(C149*C151<0,B151<>B149),(C151-C149)/(B151-B149)*(B150-B149)+C149,C149) -> -9.29388161 | D150: 2 | E150: -149.8976261 | F150: -9.29388161 | K150: 0.5130579909 | L150: -2.391216849 | M150: 8.252009104 | N150: -618.5918442
A151: 1 | B151: =('Hull Long'!C16-$L$7)*SIN(RADIANS($O$7))+('Hull Plan'!F16-$K$7)*COS(RADIANS($O$7))+$M$7 -> -149.952667 | C151: =('Hull Long'!C16-$L$7)*COS(RADIANS($O$7))-('Hull Plan'!F16-$K$7)*SIN(RADIANS($O$7))+$N$7 -> -9.34892247 | D151: 2 | E151: -149.952667 | F151: -9.34892247 | K151: =SUM(K137:K150) -> -3038.470644 | L151: =SUM(L137:L150) -> 50713.64812 | M151: =SUM(M137:M150) -> 3038.470644 | N151: =SUM(N137:N150) -> -309976.4203
A152: 0 | B152: 0 | C152: 0 | D152: 0 | E152: 0 | F152: 0 | G152: ='Hull Long'!B68 -> 500 | H152: vol | I152: cx | J152: cy | K152: A | L152: Acy | M152: A | N152: Acx
A153: 1 | B153: =('Hull Long'!C17-$L$7)*SIN(RADIANS($O$7))+('Hull Plan'!C17-$K$7)*COS(RADIANS($O$7))+$M$7 -> -151.644049 | C153: =('Hull Long'!C17-$L$7)*COS(RADIANS($O$7))-('Hull Plan'!C17-$K$7)*SIN(RADIANS($O$7))+$N$7 -> -11.04030443 | D153: 2 | E153: =B153 -> -151.644049 | F153: =IF(C153<0,C153,0) -> -11.04030443 | G153: =ABS(K167)/1000000 -> 0.006004081407 | H153: =(G152-G136)*(G153+G137)/2000 -> 0.0004521276025 | I153: =IF(M167+M151<>0,(N167+N151)/(M167+M151),0) -> -88.87763136 | J153: =IF(K167+K151<>0,(L167+L151)/(K167+K151),0) -> -21.18490072 | K153: =(F154+F153)/2*(E154-E153) -> 0 | L153: =(E154-E153)*(F153^2+F153*F154+F154^2)/6 -> 0 | M153: =(E154+E153)/2*(F154-F153) -> 0 | N153: =(F154-F153)*(E153^2+E153*E154+E154^2)/6 -> 0
A154: 1 | B154: =IF(C153*C155<0,(B155-B153)/(C155-C153)*(0-C153)+B153,B153) -> -151.644049 | C154: =IF(AND(C153*C155<0,B155<>B153),(C155-C153)/(B155-B153)*(B154-B153)+C153,C153) -> -11.04030443 | D154: 2 | E154: -151.644049 | F154: -11.04030443 | K154: -0.5329129714 | L154: 2.93532042 | M154: -7.334725473 | N154: 556.0450334
A155: 1 | B155: =('Hull Long'!C68-$L$7)*SIN(RADIANS($O$7))+('Hull Plan'!C68-$K$7)*COS(RADIANS($O$7))+$M$7 -> -151.5956732 | C155: =('Hull Long'!C68-$L$7)*COS(RADIANS($O$7))-('Hull Plan'!C68-$K$7)*SIN(RADIANS($O$7))+$N$7 -> -10.99192868 | D155: 2 | E155: -151.5956732 | F155: -10.99192868 | K155: 0 | L155: 0 | M155: 0 | N155: 0
A156: 1 | B156: =IF(C155*C157<0,(B157-B155)/(C157-C155)*(0-C155)+B155,B155) -> -151.5956732 | C156: =IF(AND(C155*C157<0,B157<>B155),(C157-C155)/(B157-B155)*(B156-B155)+C155,C155) -> -10.99192868 | D156: 2 | E156: -151.5956732 | F156: -10.99192868 | K156: -2419.925133 | L156: 57966.10357 | M156: 7236.274887 | N156: -449643.0335
A157: 1 | B157: =('Hull Long'!C119-$L$7)*SIN(RADIANS($O$7))+('Hull Plan'!C119-$K$7)*COS(RADIANS($O$7))+$M$7 -> -92.11472094 | C157: =('Hull Long'!C119-$L$7)*COS(RADIANS($O$7))-('Hull Plan'!C119-$K$7)*SIN(RADIANS($O$7))+$N$7 -> -70.37614093 | D157: 2 | E157: -92.11472094 | F157: -70.37614093 | K157: -3523.843279 | L157: 82664.83041 | M157: -2958.835303 | N157: 91606.7813
A158: 1 | B158: =IF(C157*C159<0,(B159-B157)/(C159-C157)*(0-C157)+B157,B157) -> 8.028402366 | C158: =IF(AND(C157*C159<0,B159<>B157),(C159-C157)/(B159-B157)*(B158-B157)+C157,C157) -> 0 | D158: 2 | E158: 8.028402366 | F158: 0 | K158: 0 | L158: 0 | M158: 0 | N158: 0
A159: 1 | B159: =('Hull Long'!C170-$L$7)*SIN(RADIANS($O$7))+('Hull Plan'!C170-$K$7)*COS(RADIANS($O$7))+$M$7 -> 150.7904053 | C159: =('Hull Long'!C170-$L$7)*COS(RADIANS($O$7))-('Hull Plan'!C170-$K$7)*SIN(RADIANS($O$7))+$N$7 -> 100.3267974 | D159: 2 | E159: 150.7904053 | F159: 0 | K159: 0 | L159: 0 | M159: 0 | N159: 0
A160: 1 | B160: =IF(C159*C161<0,(B161-B159)/(C161-C159)*(0-C159)+B159,B159) -> 150.7904053 | C160: =IF(AND(C159*C161<0,B161<>B159),(C161-C159)/(B161-B159)*(B160-B159)+C159,C159) -> 100.3267974 | D160: 2 | E160: 150.7904053 | F160: 0 | K160: 0 | L160: 0 | M160: 0 | N160: 0
A161: 1 | B161: =('Hull Long'!C170-$L$7)*SIN(RADIANS($O$7))+('Hull Plan'!F170-$K$7)*COS(RADIANS($O$7))+$M$7 -> -40.27694717 | C161: =('Hull Long'!C170-$L$7)*COS(RADIANS($O$7))-('Hull Plan'!F170-$K$7)*SIN(RADIANS($O$7))+$N$7 -> 291.3941499 | D161: 2 | E161: -40.27694717 | F161: 0 | K161: 0 | L161: 0 | M161: 0 | N161: 0
A162: 1 | B162: =IF(C161*C163<0,(B163-B161)/(C163-C161)*(0-C161)+B161,B161) -> -40.27694717 | C162: =IF(AND(C161*C163<0,B163<>B161),(C163-C161)/(B163-B161)*(B162-B161)+C161,C161) -> 291.3941499 | D162: 2 | E162: -40.27694717 | F162: 0 | K162: 0 | L162: 0 | M162: 0 | N162: 0
A163: 1 | B163: =('Hull Long'!C119-$L$7)*SIN(RADIANS($O$7))+('Hull Plan'!F119-$K$7)*COS(RADIANS($O$7))+$M$7 -> -210.9798855 | C163: =('Hull Long'!C119-$L$7)*COS(RADIANS($O$7))-('Hull Plan'!F119-$K$7)*SIN(RADIANS($O$7))+$N$7 -> 48.4890236 | D163: 2 | E163: -210.9798855 | F163: 0 | K163: 0 | L163: 0 | M163: 0 | N163: 0
A164: 1 | B164: =IF(C163*C165<0,(B165-B163)/(C165-C163)*(0-C163)+B163,B163) -> -162.5697246 | C164: =IF(AND(C163*C165<0,B165<>B163),(C165-C163)/(B165-B163)*(B164-B163)+C163,C163) -> 7.105427358e-15 | D164: 2 | E164: -162.5697246 | F164: 0 | K164: -60.31299494 | L164: 220.9853795 | M164: 1726.641822 | N164: -135667.9352
A165: 1 | B165: =('Hull Long'!C68-$L$7)*SIN(RADIANS($O$7))+('Hull Plan'!F68-$K$7)*COS(RADIANS($O$7))+$M$7 -> -151.5956732 | C165: =('Hull Long'!C68-$L$7)*COS(RADIANS($O$7))-('Hull Plan'!F68-$K$7)*SIN(RADIANS($O$7))+$N$7 -> -10.99192868 | D165: 2 | E165: -151.5956732 | F165: -10.99192868 | K165: 0 | L165: 0 | M165: 0 | N165: 0
A166: 1 | B166: =IF(C165*C167<0,(B167-B165)/(C167-C165)*(0-C165)+B165,B165) -> -151.5956732 | C166: =IF(AND(C165*C167<0,B167<>B165),(C167-C165)/(B167-B165)*(B166-B165)+C165,C165) -> -10.99192868 | D166: 2 | E166: -151.5956732 | F166: -10.99192868 | K166: 0.5329129714 | L166: -2.93532042 | M166: 7.334725473 | N166: -556.0450334
A167: 1 | B167: =('Hull Long'!C17-$L$7)*SIN(RADIANS($O$7))+('Hull Plan'!F17-$K$7)*COS(RADIANS($O$7))+$M$7 -> -151.644049 | C167: =('Hull Long'!C17-$L$7)*COS(RADIANS($O$7))-('Hull Plan'!F17-$K$7)*SIN(RADIANS($O$7))+$N$7 -> -11.04030443 | D167: 2 | E167: -151.644049 | F167: -11.04030443 | K167: =SUM(K153:K166) -> -6004.081407 | L167: =SUM(L153:L166) -> 140851.9194 | M167: =SUM(M153:M166) -> 6004.081407 | N167: =SUM(N153:N166) -> -493704.1874
A168: 0 | B168: 0 | C168: 0 | D168: 0 | E168: 0 | F168: 0 | G168: ='Hull Long'!B69 -> 600 | H168: vol | I168: cx | J168: cy | K168: A | L168: Acy | M168: A | N168: Acx
A169: 1 | B169: =('Hull Long'!C18-$L$7)*SIN(RADIANS($O$7))+('Hull Plan'!C18-$K$7)*COS(RADIANS($O$7))+$M$7 -> -153.2263095 | C169: =('Hull Long'!C18-$L$7)*COS(RADIANS($O$7))-('Hull Plan'!C18-$K$7)*SIN(RADIANS($O$7))+$N$7 -> -12.62256498 | D169: 2 | E169: =B169 -> -153.2263095 | F169: =IF(C169<0,C169,0) -> -12.62256498 | G169: =ABS(K183)/1000000 -> 0.009686906183 | H169: =(G168-G152)*(G169+G153)/2000 -> 0.0007845493795 | I169: =IF(M183+M167<>0,(N183+N167)/(M183+M167),0) -> -70.78581088 | J169: =IF(K183+K167<>0,(L183+L167)/(K183+K167),0) -> -27.36865179 | K169: =(F170+F169)/2*(E170-E169) -> 0 | L169: =(E170-E169)*(F169^2+F169*F170+F170^2)/6 -> 0 | M169: =(E170+E169)/2*(F170-F169) -> 0 | N169: =(F170-F169)*(E169^2+E169*E170+E170^2)/6 -> 0
A170: 1 | B170: =IF(C169*C171<0,(B171-B169)/(C171-C169)*(0-C169)+B169,B169) -> -153.2263095 | C170: =IF(AND(C169*C171<0,B171<>B169),(C171-C169)/(B171-B169)*(B170-B169)+C169,C169) -> -12.62256498 | D170: 2 | E170: -153.2263095 | F170: -12.62256498 | K170: -0.5310352882 | L170: 3.345922289 | M170: -6.456169734 | N170: 494.5595173
A171: 1 | B171: =('Hull Long'!C69-$L$7)*SIN(RADIANS($O$7))+('Hull Plan'!C69-$K$7)*COS(RADIANS($O$7))+$M$7 -> -153.1841689 | C171: =('Hull Long'!C69-$L$7)*COS(RADIANS($O$7))-('Hull Plan'!C69-$K$7)*SIN(RADIANS($O$7))+$N$7 -> -12.58042432 | D171: 2 | E171: -153.1841689 | F171: -12.58042432 | K171: 0 | L171: 0 | M171: 0 | N171: 0
A172: 1 | B172: =IF(C171*C173<0,(B173-B171)/(C173-C171)*(0-C171)+B171,B171) -> -153.1841689 | C172: =IF(AND(C171*C173<0,B173<>B171),(C173-C171)/(B173-B171)*(B172-B171)+C171,C171) -> -12.58042432 | D172: 2 | E172: -153.1841689 | F172: -12.58042432 | K172: -3918.989565 | L172: 118779.368 | M172: 8811.673134 | N172: -524460.3376
A173: 1 | B173: =('Hull Long'!C120-$L$7)*SIN(RADIANS($O$7))+('Hull Plan'!C120-$K$7)*COS(RADIANS($O$7))+$M$7 -> -76.3066434 | C173: =('Hull Long'!C120-$L$7)*COS(RADIANS($O$7))-('Hull Plan'!C120-$K$7)*SIN(RADIANS($O$7))+$N$7 -> -89.37367846 | D173: 2 | E173: -76.3066434 | F173: -89.37367846 | K173: -5688.869824 | L173: 169478.4075 | M173: -1130.935588 | N173: 67507.35863
A174: 1 | B174: =IF(C173*C175<0,(B175-B173)/(C175-C173)*(0-C173)+B173,B173) -> 50.99861967 | C174: =IF(AND(C173*C175<0,B175<>B173),(C175-C173)/(B175-B173)*(B174-B173)+C173,C173) -> 0 | D174: 2 | E174: 50.99861967 | F174: 0 | K174: 0 | L174: 0 | M174: 0 | N174: 0
A175: 1 | B175: =('Hull Long'!C171-$L$7)*SIN(RADIANS($O$7))+('Hull Plan'!C171-$K$7)*COS(RADIANS($O$7))+$M$7 -> 164.8299001 | C175: =('Hull Long'!C171-$L$7)*COS(RADIANS($O$7))-('Hull Plan'!C171-$K$7)*SIN(RADIANS($O$7))+$N$7 -> 79.9143728 | D175: 2 | E175: 164.8299001 | F175: 0 | K175: 0 | L175: 0 | M175: 0 | N175: 0
A176: 1 | B176: =IF(C175*C177<0,(B177-B175)/(C177-C175)*(0-C175)+B175,B175) -> 164.8299001 | C176: =IF(AND(C175*C177<0,B177<>B175),(C177-C175)/(B177-B175)*(B176-B175)+C175,C175) -> 79.9143728 | D176: 2 | E176: 164.8299001 | F176: 0 | K176: 0 | L176: 0 | M176: 0 | N176: 0
A177: 1 | B177: =('Hull Long'!C171-$L$7)*SIN(RADIANS($O$7))+('Hull Plan'!F171-$K$7)*COS(RADIANS($O$7))+$M$7 -> -60.68937174 | C177: =('Hull Long'!C171-$L$7)*COS(RADIANS($O$7))-('Hull Plan'!F171-$K$7)*SIN(RADIANS($O$7))+$N$7 -> 305.4336446 | D177: 2 | E177: -60.68937174 | F177: 0 | K177: 0 | L177: 0 | M177: 0 | N177: 0
A178: 1 | B178: =IF(C177*C179<0,(B179-B177)/(C179-C177)*(0-C177)+B177,B177) -> -60.68937174 | C178: =IF(AND(C177*C179<0,B179<>B177),(C179-C177)/(B179-B177)*(B178-B177)+C177,C177) -> 305.4336446 | D178: 2 | E178: -60.68937174 | F178: 0 | K178: 0 | L178: 0 | M178: 0 | N178: 0
A179: 1 | B179: =('Hull Long'!C120-$L$7)*SIN(RADIANS($O$7))+('Hull Plan'!F120-$K$7)*COS(RADIANS($O$7))+$M$7 -> -229.977423 | C179: =('Hull Long'!C120-$L$7)*COS(RADIANS($O$7))-('Hull Plan'!F120-$K$7)*SIN(RADIANS($O$7))+$N$7 -> 64.29710113 | D179: 2 | E179: -229.977423 | F179: 0 | K179: 0 | L179: 0 | M179: 0 | N179: 0
A180: 1 | B180: =IF(C179*C181<0,(B181-B179)/(C181-C179)*(0-C179)+B179,B179) -> -165.7508028 | C180: =IF(AND(C179*C181<0,B181<>B179),(C181-C179)/(B181-B179)*(B180-B179)+C179,C179) -> 0 | D180: 2 | E180: -165.7508028 | F180: 0 | K180: -79.0467937 | L180: 331.4807352 | M180: 2006.168637 | N180: -160042.1137
A181: 1 | B181: =('Hull Long'!C69-$L$7)*SIN(RADIANS($O$7))+('Hull Plan'!F69-$K$7)*COS(RADIANS($O$7))+$M$7 -> -153.1841689 | C181: =('Hull Long'!C69-$L$7)*COS(RADIANS($O$7))-('Hull Plan'!F69-$K$7)*SIN(RADIANS($O$7))+$N$7 -> -12.58042432 | D181: 2 | E181: -153.1841689 | F181: -12.58042432 | K181: 0 | L181: 0 | M181: 0 | N181: 0
A182: 1 | B182: =IF(C181*C183<0,(B183-B181)/(C183-C181)*(0-C181)+B181,B181) -> -153.1841689 | C182: =IF(AND(C181*C183<0,B183<>B181),(C183-C181)/(B183-B181)*(B182-B181)+C181,C181) -> -12.58042432 | D182: 2 | E182: -153.1841689 | F182: -12.58042432 | K182: 0.5310352882 | L182: -3.345922289 | M182: 6.456169734 | N182: -494.5595173
A183: 1 | B183: =('Hull Long'!C18-$L$7)*SIN(RADIANS($O$7))+('Hull Plan'!F18-$K$7)*COS(RADIANS($O$7))+$M$7 -> -153.2263095 | C183: =('Hull Long'!C18-$L$7)*COS(RADIANS($O$7))-('Hull Plan'!F18-$K$7)*SIN(RADIANS($O$7))+$N$7 -> -12.62256498 | D183: 2 | E183: -153.2263095 | F183: -12.62256498 | K183: =SUM(K169:K182) -> -9686.906183 | L183: =SUM(L169:L182) -> 288589.2562 | M183: =SUM(M169:M182) -> 9686.906183 | N183: =SUM(N169:N182) -> -616995.0926
A184: 0 | B184: 0 | C184: 0 | D184: 0 | E184: 0 | F184: 0 | G184: ='Hull Long'!B70 -> 699 | H184: vol | I184: cx | J184: cy | K184: A | L184: Acy | M184: A | N184: Acx
A185: 1 | B185: =('Hull Long'!C19-$L$7)*SIN(RADIANS($O$7))+('Hull Plan'!C19-$K$7)*COS(RADIANS($O$7))+$M$7 -> -154.6852574 | C185: =('Hull Long'!C19-$L$7)*COS(RADIANS($O$7))-('Hull Plan'!C19-$K$7)*SIN(RADIANS($O$7))+$N$7 -> -14.08151286 | D185: 2 | E185: =B185 -> -154.6852574 | F185: =IF(C185<0,C185,0) -> -14.08151286 | G185: =ABS(K199)/1000000 -> 0.01386320967 | H185: =(G184-G168)*(G185+G169)/2000 -> 0.001165730735 | I185: =IF(M199+M183<>0,(N199+N183)/(M199+M183),0) -> -53.62004879 | J185: =IF(K199+K183<>0,(L199+L183)/(K199+K183),0) -> -33.22884784 | K185: =(F186+F185)/2*(E186-E185) -> 0 | L185: =(E186-E185)*(F185^2+F185*F186+F186^2)/6 -> 0 | M185: =(E186+E185)/2*(F186-F185) -> 0 | N185: =(F186-F185)*(E185^2+E185*E186+E186^2)/6 -> 0
A186: 1 | B186: =IF(C185*C187<0,(B187-B185)/(C187-C185)*(0-C185)+B185,B185) -> -154.6852574 | C186: =IF(AND(C185*C187<0,B187<>B185),(C187-C185)/(B187-B185)*(B186-B185)+C185,C185) -> -14.08151286 | D186: 2 | E186: -154.6852574 | F186: -14.08151286 | K186: -0.511785072 | L186: 3.59869989 | M186: -5.628564913 | N186: 435.2768002
A187: 1 | B187: =('Hull Long'!C70-$L$7)*SIN(RADIANS($O$7))+('Hull Plan'!C70-$K$7)*COS(RADIANS($O$7))+$M$7 -> -154.6488659 | C187: =('Hull Long'!C70-$L$7)*COS(RADIANS($O$7))-('Hull Plan'!C70-$K$7)*SIN(RADIANS($O$7))+$N$7 -> -14.04512137 | D187: 2 | E187: -154.6488659 | F187: -14.04512137 | K187: 0 | L187: 0 | M187: 0 | N187: 0
A188: 1 | B188: =IF(C187*C189<0,(B189-B187)/(C189-C187)*(0-C187)+B187,B187) -> -154.6488659 | C188: =IF(AND(C187*C189<0,B189<>B187),(C189-C187)/(B189-B187)*(B188-B187)+C187,C187) -> -14.04512137 | D188: 2 | E188: -154.6488659 | F188: -14.04512137 | K188: -5618.573613 | L188: 203245.9286 | M188: 10044.9314 | N188: -576779.5736
A189: 1 | B189: =('Hull Long'!C121-$L$7)*SIN(RADIANS($O$7))+('Hull Plan'!C121-$K$7)*COS(RADIANS($O$7))+$M$7 -> -61.73056022 | C189: =('Hull Long'!C121-$L$7)*COS(RADIANS($O$7))-('Hull Plan'!C121-$K$7)*SIN(RADIANS($O$7))+$N$7 -> -106.8906527 | D189: 2 | E189: -61.73056022 | F189: -106.8906527 | K189: -8146.080588 | L189: 290246.6237 | M189: 1547.660713 | N189: 114672.3125
A190: 1 | B190: =IF(C189*C191<0,(B191-B189)/(C191-C189)*(0-C189)+B189,B189) -> 90.68839094 | C190: =IF(AND(C189*C191<0,B191<>B189),(C191-C189)/(B191-B189)*(B190-B189)+C189,C189) -> 0 | D190: 2 | E190: 90.68839094 | F190: 0 | K190: 0 | L190: 0 | M190: 0 | N190: 0
A191: 1 | B191: =('Hull Long'!C172-$L$7)*SIN(RADIANS($O$7))+('Hull Plan'!C172-$K$7)*COS(RADIANS($O$7))+$M$7 -> 177.7865254 | C191: =('Hull Long'!C172-$L$7)*COS(RADIANS($O$7))-('Hull Plan'!C172-$K$7)*SIN(RADIANS($O$7))+$N$7 -> 61.08148867 | D191: 2 | E191: 177.7865254 | F191: 0 | K191: 0 | L191: 0 | M191: 0 | N191: 0
A192: 1 | B192: =IF(C191*C193<0,(B193-B191)/(C193-C191)*(0-C191)+B191,B191) -> 177.7865254 | C192: =IF(AND(C191*C193<0,B193<>B191),(C193-C191)/(B193-B191)*(B192-B191)+C191,C191) -> 61.08148867 | D192: 2 | E192: 177.7865254 | F192: 0 | K192: 0 | L192: 0 | M192: 0 | N192: 0
A193: 1 | B193: =('Hull Long'!C172-$L$7)*SIN(RADIANS($O$7))+('Hull Plan'!F172-$K$7)*COS(RADIANS($O$7))+$M$7 -> -79.52225586 | C193: =('Hull Long'!C172-$L$7)*COS(RADIANS($O$7))-('Hull Plan'!F172-$K$7)*SIN(RADIANS($O$7))+$N$7 -> 318.3902699 | D193: 2 | E193: -79.52225586 | F193: 0 | K193: 0 | L193: 0 | M193: 0 | N193: 0
A194: 1 | B194: =IF(C193*C195<0,(B195-B193)/(C195-C193)*(0-C193)+B193,B193) -> -79.52225586 | C194: =IF(AND(C193*C195<0,B195<>B193),(C195-C193)/(B195-B193)*(B194-B193)+C193,C193) -> 318.3902699 | D194: 2 | E194: -79.52225586 | F194: 0 | K194: 0 | L194: 0 | M194: 0 | N194: 0
A195: 1 | B195: =('Hull Long'!C121-$L$7)*SIN(RADIANS($O$7))+('Hull Plan'!F121-$K$7)*COS(RADIANS($O$7))+$M$7 -> -247.4943973 | C195: =('Hull Long'!C121-$L$7)*COS(RADIANS($O$7))-('Hull Plan'!F121-$K$7)*SIN(RADIANS($O$7))+$N$7 -> 78.87318432 | D195: 2 | E195: -247.4943973 | F195: 0 | K195: -5.599887503e-13 | L195: 2.652639591e-27 | M195: 2.957118172e-12 | N195: -3.113492184e-10
A196: 1 | B196: =IF(C195*C197<0,(B197-B195)/(C197-C195)*(0-C195)+B195,B195) -> -168.682987 | C196: =IF(AND(C195*C197<0,B197<>B195),(C197-C195)/(B197-B195)*(B196-B195)+C195,C195) -> -1.421085472e-14 | D196: 2 | E196: -168.682987 | F196: -1.421085472e-14 | K196: -98.55546727 | L196: 461.4078333 | M196: 2270.617559 | N196: -183656.0073
A197: 1 | B197: =('Hull Long'!C70-$L$7)*SIN(RADIANS($O$7))+('Hull Plan'!F70-$K$7)*COS(RADIANS($O$7))+$M$7 -> -154.6488659 | C197: =('Hull Long'!C70-$L$7)*COS(RADIANS($O$7))-('Hull Plan'!F70-$K$7)*SIN(RADIANS($O$7))+$N$7 -> -14.04512137 | D197: 2 | E197: -154.6488659 | F197: -14.04512137 | K197: 0 | L197: 0 | M197: 0 | N197: 0
A198: 1 | B198: =IF(C197*C199<0,(B199-B197)/(C199-C197)*(0-C197)+B197,B197) -> -154.6488659 | C198: =IF(AND(C197*C199<0,B199<>B197),(C199-C197)/(B199-B197)*(B198-B197)+C197,C197) -> -14.04512137 | D198: 2 | E198: -154.6488659 | F198: -14.04512137 | K198: 0.511785072 | L198: -3.59869989 | M198: 5.628564913 | N198: -435.2768002
A199: 1 | B199: =('Hull Long'!C19-$L$7)*SIN(RADIANS($O$7))+('Hull Plan'!F19-$K$7)*COS(RADIANS($O$7))+$M$7 -> -154.6852574 | C199: =('Hull Long'!C19-$L$7)*COS(RADIANS($O$7))-('Hull Plan'!F19-$K$7)*SIN(RADIANS($O$7))+$N$7 -> -14.08151286 | D199: 2 | E199: -154.6852574 | F199: -14.08151286 | K199: =SUM(K185:K198) -> -13863.20967 | L199: =SUM(L185:L198) -> 493953.9602 | M199: =SUM(M185:M198) -> 13863.20967 | N199: =SUM(N185:N198) -> -645763.2684
A200: 0 | B200: 0 | C200: 0 | D200: 0 | E200: 0 | F200: 0 | G200: ='Hull Long'!B71 -> 701 | H200: vol | I200: cx | J200: cy | K200: A | L200: Acy | M200: A | N200: Acx
A201: 1 | B201: =('Hull Long'!C20-$L$7)*SIN(RADIANS($O$7))+('Hull Plan'!C20-$K$7)*COS(RADIANS($O$7))+$M$7 -> -154.713629 | C201: =('Hull Long'!C20-$L$7)*COS(RADIANS($O$7))-('Hull Plan'!C20-$K$7)*SIN(RADIANS($O$7))+$N$7 -> -14.10988443 | D201: 2 | E201: =B201 -> -154.713629 | F201: =IF(C201<0,C201,0) -> -14.10988443 | G201: =ABS(K215)/1000000 -> 0.01395186402 | H201: =(G200-G184)*(G201+G185)/2000 -> 2.781507368e-05 | I201: =IF(M215+M199<>0,(N215+N199)/(M215+M199),0) -> -46.41403486 | J201: =IF(K215+K199<>0,(L215+L199)/(K215+K199),0) -> -35.68751689 | K201: =(F202+F201)/2*(E202-E201) -> 0 | L201: =(E202-E201)*(F201^2+F201*F202+F202^2)/6 -> 0 | M201: =(E202+E201)/2*(F202-F201) -> 0 | N201: =(F202-F201)*(E201^2+E201*E202+E202^2)/6 -> 0
A202: 1 | B202: =IF(C201*C203<0,(B203-B201)/(C203-C201)*(0-C201)+B201,B201) -> -154.713629 | C202: =IF(AND(C201*C203<0,B203<>B201),(C203-C201)/(B203-B201)*(B202-B201)+C201,C201) -> -14.10988443 | D202: 2 | E202: -154.713629 | F202: -14.10988443 | K202: -0.5112441083 | L202: 3.602162688 | M202: -5.612304205 | N202: 434.099074
A203: 1 | B203: =('Hull Long'!C71-$L$7)*SIN(RADIANS($O$7))+('Hull Plan'!C71-$K$7)*COS(RADIANS($O$7))+$M$7 -> -154.6773493 | C203: =('Hull Long'!C71-$L$7)*COS(RADIANS($O$7))-('Hull Plan'!C71-$K$7)*SIN(RADIANS($O$7))+$N$7 -> -14.07360474 | D203: 2 | E203: -154.6773493 | F203: -14.07360474 | K203: 0 | L203: 0 | M203: 0 | N203: 0
... 605 more rows
